Workbook

Sheet 貸款排程
B1: 貸款分期償還排程
C2: 輸入值 | G2: 貸款摘要
C3: 貸款金額 | E3: NT$5,000.00 | G3: 已排程還款 | I3: =IF(貸款良好,-PMT(利率/每年還款次數,已排程的還款次數,貸款金額),"") -> NT$425.75
C4: 年利率 | E4: 4.00% | G4: 已排程還款次數 | I4: =IF(貸款良好,貸款期間*每年還款次數,"") -> 12
C5: 貸款期間 (年計) | E5: 1 | G5: 實際還款次數 | I5: =實際還款次數 -> 10
C6: 每年還款次數 | E6: 12 | G6: 提早還款總金額 | I6: =提早還款總金額 -> NT$900.00
C7: 貸款開始日期 | E7: =TODAY() -> 2020-04-14 | G7: 總利息 | I7: =利息總計 -> NT$89.62
C9: 選擇性額外還款 | E9: NT$100.00 | G9: 放款方名稱 | H9: Woodgrove Bank
B11: 還款編號 | C11: 還款日 | D11: 期初餘額 | E11: 已排程還款 | F11: 額外還款 | G11: 還款總金額 | H11: 本金 | I11: 利息 | J11: 結餘 | K11: 累計利息
B12: =IF(貸款良好,IF(ROW()-ROW(還款排程[[#Headers],[還款編號]])>已排程的還款次數,"",ROW()-ROW(還款排程[[#Headers],[還款編號]])),"") -> 1 | C12: =IF(還款排程[[#This Row],[還款編號]]<>"",EOMONTH(貸款開始日期,ROW(還款排程[[#This Row],[還款編號]])-ROW(還款排程[[#Headers],[還款編號]])-2)+DAY(貸款開始日期),"") -> 2020-04-14 | D12: =IF(還款排程[[#This Row],[還款編號]]<>"",IF(ROW()-ROW(還款排程[[#Headers],[期初餘額]])=1,貸款金額,INDEX(還款排程[結餘],ROW()-ROW(還款排程[[#Headers],[期初餘額]])-1)),"") -> NT$5,000.00 | E12: =IF(還款排程[[#This Row],[還款編號]]<>"",已排程的還款,"") -> NT$425.75 | F12: =IF(還款排程[[#This Row],[還款編號]]<>"",IF(還款排程[[#This Row],[已排程還款]]+額外還款<還款排程[[#This Row],[期初餘額]],額外還款,IF(還款排程[[#This Row],[期初餘額]]-還款排程[[#This Row],[已排程還款]]>0,還款排程[[#This Row],[期初餘額]]-還款排程[[#This Row],[已排程還款]],0)),"") -> NT$100.00 | G12: =IF(還款排程[[#This Row],[還款編號]]<>"",IF(還款排程[[#This Row],[已排程還款]]+還款排程[[#This Row],[額外還款]]<=還款排程[[#This Row],[期初餘額]],還款排程[[#This Row],[已排程還款]]+還款排程[[#This Row],[額外還款]],還款排程[[#This Row],[期初餘額]]),"") -> NT$525.75 | H12: =IF(還款排程[[#This Row],[還款編號]]<>"",還款排程[[#This Row],[還款總金額]]-還款排程[[#This Row],[利息]],"") -> NT$509.08 | I12: =IF(還款排程[[#This Row],[還款編號]]<>"",還款排程[[#This Row],[期初餘額]]*(利率/每年還款次數),"") -> NT$16.67 | J12: =IF(還款排程[[#This Row],[還款編號]]<>"",IF(還款排程[[#This Row],[已排程還款]]+還款排程[[#This Row],[額外還款]]<=還款排程[[#This Row],[期初餘額]],還款排程[[#This Row],[期初餘額]]-還款排程[[#This Row],[本金]],0),"") -> NT$4,490.92 | K12: =IF(還款排程[[#This Row],[還款編號]]<>"",SUM(INDEX(還款排程[利息],1,1):還款排程[[#This Row],[利息]]),"") -> NT$16.67
B13: =IF(貸款良好,IF(ROW()-ROW(還款排程[[#Headers],[還款編號]])>已排程的還款次數,"",ROW()-ROW(還款排程[[#Headers],[還款編號]])),"") -> 2 | C13: =IF(還款排程[[#This Row],[還款編號]]<>"",EOMONTH(貸款開始日期,ROW(還款排程[[#This Row],[還款編號]])-ROW(還款排程[[#Headers],[還款編號]])-2)+DAY(貸款開始日期),"") -> 2020-05-14 | D13: =IF(還款排程[[#This Row],[還款編號]]<>"",IF(ROW()-ROW(還款排程[[#Headers],[期初餘額]])=1,貸款金額,INDEX(還款排程[結餘],ROW()-ROW(還款排程[[#Headers],[期初餘額]])-1)),"") -> NT$4,490.92 | E13: =IF(還款排程[[#This Row],[還款編號]]<>"",已排程的還款,"") -> NT$425.75 | F13: =IF(還款排程[[#This Row],[還款編號]]<>"",IF(還款排程[[#This Row],[已排程還款]]+額外還款<還款排程[[#This Row],[期初餘額]],額外還款,IF(還款排程[[#This Row],[期初餘額]]-還款排程[[#This Row],[已排程還款]]>0,還款排程[[#This Row],[期初餘額]]-還款排程[[#This Row],[已排程還款]],0)),"") -> NT$100.00 | G13: =IF(還款排程[[#This Row],[還款編號]]<>"",IF(還款排程[[#This Row],[已排程還款]]+還款排程[[#This Row],[額外還款]]<=還款排程[[#This Row],[期初餘額]],還款排程[[#This Row],[已排程還款]]+還款排程[[#This Row],[額外還款]],還款排程[[#This Row],[期初餘額]]),"") -> NT$525.75 | H13: =IF(還款排程[[#This Row],[還款編號]]<>"",還款排程[[#This Row],[還款總金額]]-還款排程[[#This Row],[利息]],"") -> NT$510.78 | I13: =IF(還款排程[[#This Row],[還款編號]]<>"",還款排程[[#This Row],[期初餘額]]*(利率/每年還款次數),"") -> NT$14.97 | J13: =IF(還款排程[[#This Row],[還款編號]]<>"",IF(還款排程[[#This Row],[已排程還款]]+還款排程[[#This Row],[額外還款]]<=還款排程[[#This Row],[期初餘額]],還款排程[[#This Row],[期初餘額]]-還款排程[[#This Row],[本金]],0),"") -> NT$3,980.14 | K13: =IF(還款排程[[#This Row],[還款編號]]<>"",SUM(INDEX(還款排程[利息],1,1):還款排程[[#This Row],[利息]]),"") -> NT$31.64
B14: =IF(貸款良好,IF(ROW()-ROW(還款排程[[#Headers],[還款編號]])>已排程的還款次數,"",ROW()-ROW(還款排程[[#Headers],[還款編號]])),"") -> 3 | C14: =IF(還款排程[[#This Row],[還款編號]]<>"",EOMONTH(貸款開始日期,ROW(還款排程[[#This Row],[還款編號]])-ROW(還款排程[[#Headers],[還款編號]])-2)+DAY(貸款開始日期),"") -> 2020-06-14 | D14: =IF(還款排程[[#This Row],[還款編號]]<>"",IF(ROW()-ROW(還款排程[[#Headers],[期初餘額]])=1,貸款金額,INDEX(還款排程[結餘],ROW()-ROW(還款排程[[#Headers],[期初餘額]])-1)),"") -> NT$3,980.14 | E14: =IF(還款排程[[#This Row],[還款編號]]<>"",已排程的還款,"") -> NT$425.75 | F14: =IF(還款排程[[#This Row],[還款編號]]<>"",IF(還款排程[[#This Row],[已排程還款]]+額外還款<還款排程[[#This Row],[期初餘額]],額外還款,IF(還款排程[[#This Row],[期初餘額]]-還款排程[[#This Row],[已排程還款]]>0,還款排程[[#This Row],[期初餘額]]-還款排程[[#This Row],[已排程還款]],0)),"") -> NT$100.00 | G14: =IF(還款排程[[#This Row],[還款編號]]<>"",IF(還款排程[[#This Row],[已排程還款]]+還款排程[[#This Row],[額外還款]]<=還款排程[[#This Row],[期初餘額]],還款排程[[#This Row],[已排程還款]]+還款排程[[#This Row],[額外還款]],還款排程[[#This Row],[期初餘額]]),"") -> NT$525.75 | H14: =IF(還款排程[[#This Row],[還款編號]]<>"",還款排程[[#This Row],[還款總金額]]-還款排程[[#This Row],[利息]],"") -> NT$512.48 | I14: =IF(還款排程[[#This Row],[還款編號]]<>"",還款排程[[#This Row],[期初餘額]]*(利率/每年還款次數),"") -> NT$13.27 | J14: =IF(還款排程[[#This Row],[還款編號]]<>"",IF(還款排程[[#This Row],[已排程還款]]+還款排程[[#This Row],[額外還款]]<=還款排程[[#This Row],[期初餘額]],還款排程[[#This Row],[期初餘額]]-還款排程[[#This Row],[本金]],0),"") -> NT$3,467.65 | K14: =IF(還款排程[[#This Row],[還款編號]]<>"",SUM(INDEX(還款排程[利息],1,1):還款排程[[#This Row],[利息]]),"") -> NT$44.90
B15: =IF(貸款良好,IF(ROW()-ROW(還款排程[[#Headers],[還款編號]])>已排程的還款次數,"",ROW()-ROW(還款排程[[#Headers],[還款編號]])),"") -> 4 | C15: =IF(還款排程[[#This Row],[還款編號]]<>"",EOMONTH(貸款開始日期,ROW(還款排程[[#This Row],[還款編號]])-ROW(還款排程[[#Headers],[還款編號]])-2)+DAY(貸款開始日期),"") -> 2020-07-14 | D15: =IF(還款排程[[#This Row],[還款編號]]<>"",IF(ROW()-ROW(還款排程[[#Headers],[期初餘額]])=1,貸款金額,INDEX(還款排程[結餘],ROW()-ROW(還款排程[[#Headers],[期初餘額]])-1)),"") -> NT$3,467.65 | E15: =IF(還款排程[[#This Row],[還款編號]]<>"",已排程的還款,"") -> NT$425.75 | F15: =IF(還款排程[[#This Row],[還款編號]]<>"",IF(還款排程[[#This Row],[已排程還款]]+額外還款<還款排程[[#This Row],[期初餘額]],額外還款,IF(還款排程[[#This Row],[期初餘額]]-還款排程[[#This Row],[已排程還款]]>0,還款排程[[#This Row],[期初餘額]]-還款排程[[#This Row],[已排程還款]],0)),"") -> NT$100.00 | G15: =IF(還款排程[[#This Row],[還款編號]]<>"",IF(還款排程[[#This Row],[已排程還款]]+還款排程[[#This Row],[額外還款]]<=還款排程[[#This Row],[期初餘額]],還款排程[[#This Row],[已排程還款]]+還款排程[[#This Row],[額外還款]],還款排程[[#This Row],[期初餘額]]),"") -> NT$525.75 | H15: =IF(還款排程[[#This Row],[還款編號]]<>"",還款排程[[#This Row],[還款總金額]]-還款排程[[#This Row],[利息]],"") -> NT$514.19 | I15: =IF(還款排程[[#This Row],[還款編號]]<>"",還款排程[[#This Row],[期初餘額]]*(利率/每年還款次數),"") -> NT$11.56 | J15: =IF(還款排程[[#This Row],[還款編號]]<>"",IF(還款排程[[#This Row],[已排程還款]]+還款排程[[#This Row],[額外還款]]<=還款排程[[#This Row],[期初餘額]],還款排程[[#This Row],[期初餘額]]-還款排程[[#This Row],[本金]],0),"") -> NT$2,953.46 | K15: =IF(還款排程[[#This Row],[還款編號]]<>"",SUM(INDEX(還款排程[利息],1,1):還款排程[[#This Row],[利息]]),"") -> NT$56.46
B16: =IF(貸款良好,IF(ROW()-ROW(還款排程[[#Headers],[還款編號]])>已排程的還款次數,"",ROW()-ROW(還款排程[[#Headers],[還款編號]])),"") -> 5 | C16: =IF(還款排程[[#This Row],[還款編號]]<>"",EOMONTH(貸款開始日期,ROW(還款排程[[#This Row],[還款編號]])-ROW(還款排程[[#Headers],[還款編號]])-2)+DAY(貸款開始日期),"") -> 2020-08-14 | D16: =IF(還款排程[[#This Row],[還款編號]]<>"",IF(ROW()-ROW(還款排程[[#Headers],[期初餘額]])=1,貸款金額,INDEX(還款排程[結餘],ROW()-ROW(還款排程[[#Headers],[期初餘額]])-1)),"") -> NT$2,953.46 | E16: =IF(還款排程[[#This Row],[還款編號]]<>"",已排程的還款,"") -> NT$425.75 | F16: =IF(還款排程[[#This Row],[還款編號]]<>"",IF(還款排程[[#This Row],[已排程還款]]+額外還款<還款排程[[#This Row],[期初餘額]],額外還款,IF(還款排程[[#This Row],[期初餘額]]-還款排程[[#This Row],[已排程還款]]>0,還款排程[[#This Row],[期初餘額]]-還款排程[[#This Row],[已排程還款]],0)),"") -> NT$100.00 | G16: =IF(還款排程[[#This Row],[還款編號]]<>"",IF(還款排程[[#This Row],[已排程還款]]+還款排程[[#This Row],[額外還款]]<=還款排程[[#This Row],[期初餘額]],還款排程[[#This Row],[已排程還款]]+還款排程[[#This Row],[額外還款]],還款排程[[#This Row],[期初餘額]]),"") -> NT$525.75 | H16: =IF(還款排程[[#This Row],[還款編號]]<>"",還款排程[[#This Row],[還款總金額]]-還款排程[[#This Row],[利息]],"") -> NT$515.90 | I16: =IF(還款排程[[#This Row],[還款編號]]<>"",還款排程[[#This Row],[期初餘額]]*(利率/每年還款次數),"") -> NT$9.84 | J16: =IF(還款排程[[#This Row],[還款編號]]<>"",IF(還款排程[[#This Row],[已排程還款]]+還款排程[[#This Row],[額外還款]]<=還款排程[[#This Row],[期初餘額]],還款排程[[#This Row],[期初餘額]]-還款排程[[#This Row],[本金]],0),"") -> NT$2,437.56 | K16: =IF(還款排程[[#This Row],[還款編號]]<>"",SUM(INDEX(還款排程[利息],1,1):還款排程[[#This Row],[利息]]),"") -> NT$66.31
B17: =IF(貸款良好,IF(ROW()-ROW(還款排程[[#Headers],[還款編號]])>已排程的還款次數,"",ROW()-ROW(還款排程[[#Headers],[還款編號]])),"") -> 6 | C17: =IF(還款排程[[#This Row],[還款編號]]<>"",EOMONTH(貸款開始日期,ROW(還款排程[[#This Row],[還款編號]])-ROW(還款排程[[#Headers],[還款編號]])-2)+DAY(貸款開始日期),"") -> 2020-09-14 | D17: =IF(還款排程[[#This Row],[還款編號]]<>"",IF(ROW()-ROW(還款排程[[#Headers],[期初餘額]])=1,貸款金額,INDEX(還款排程[結餘],ROW()-ROW(還款排程[[#Headers],[期初餘額]])-1)),"") -> NT$2,437.56 | E17: =IF(還款排程[[#This Row],[還款編號]]<>"",已排程的還款,"") -> NT$425.75 | F17: =IF(還款排程[[#This Row],[還款編號]]<>"",IF(還款排程[[#This Row],[已排程還款]]+額外還款<還款排程[[#This Row],[期初餘額]],額外還款,IF(還款排程[[#This Row],[期初餘額]]-還款排程[[#This Row],[已排程還款]]>0,還款排程[[#This Row],[期初餘額]]-還款排程[[#This Row],[已排程還款]],0)),"") -> NT$100.00 | G17: =IF(還款排程[[#This Row],[還款編號]]<>"",IF(還款排程[[#This Row],[已排程還款]]+還款排程[[#This Row],[額外還款]]<=還款排程[[#This Row],[期初餘額]],還款排程[[#This Row],[已排程還款]]+還款排程[[#This Row],[額外還款]],還款排程[[#This Row],[期初餘額]]),"") -> NT$525.75 | H17: =IF(還款排程[[#This Row],[還款編號]]<>"",還款排程[[#This Row],[還款總金額]]-還款排程[[#This Row],[利息]],"") -> NT$517.62 | I17: =IF(還款排程[[#This Row],[還款編號]]<>"",還款排程[[#This Row],[期初餘額]]*(利率/每年還款次數),"") -> NT$8.13 | J17: =IF(還款排程[[#This Row],[還款編號]]<>"",IF(還款排程[[#This Row],[已排程還款]]+還款排程[[#This Row],[額外還款]]<=還款排程[[#This Row],[期初餘額]],還款排程[[#This Row],[期初餘額]]-還款排程[[#This Row],[本金]],0),"") -> NT$1,919.94 | K17: =IF(還款排程[[#This Row],[還款編號]]<>"",SUM(INDEX(還款排程[利息],1,1):還款排程[[#This Row],[利息]]),"") -> NT$74.43
B18: =IF(貸款良好,IF(ROW()-ROW(還款排程[[#Headers],[還款編號]])>已排程的還款次數,"",ROW()-ROW(還款排程[[#Headers],[還款編號]])),"") -> 7 | C18: =IF(還款排程[[#This Row],[還款編號]]<>"",EOMONTH(貸款開始日期,ROW(還款排程[[#This Row],[還款編號]])-ROW(還款排程[[#Headers],[還款編號]])-2)+DAY(貸款開始日期),"") -> 2020-10-14 | D18: =IF(還款排程[[#This Row],[還款編號]]<>"",IF(ROW()-ROW(還款排程[[#Headers],[期初餘額]])=1,貸款金額,INDEX(還款排程[結餘],ROW()-ROW(還款排程[[#Headers],[期初餘額]])-1)),"") -> NT$1,919.94 | E18: =IF(還款排程[[#This Row],[還款編號]]<>"",已排程的還款,"") -> NT$425.75 | F18: =IF(還款排程[[#This Row],[還款編號]]<>"",IF(還款排程[[#This Row],[已排程還款]]+額外還款<還款排程[[#This Row],[期初餘額]],額外還款,IF(還款排程[[#This Row],[期初餘額]]-還款排程[[#This Row],[已排程還款]]>0,還款排程[[#This Row],[期初餘額]]-還款排程[[#This Row],[已排程還款]],0)),"") -> NT$100.00 | G18: =IF(還款排程[[#This Row],[還款編號]]<>"",IF(還款排程[[#This Row],[已排程還款]]+還款排程[[#This Row],[額外還款]]<=還款排程[[#This Row],[期初餘額]],還款排程[[#This Row],[已排程還款]]+還款排程[[#This Row],[額外還款]],還款排程[[#This Row],[期初餘額]]),"") -> NT$525.75 | H18: =IF(還款排程[[#This Row],[還款編號]]<>"",還款排程[[#This Row],[還款總金額]]-還款排程[[#This Row],[利息]],"") -> NT$519.35 | I18: =IF(還款排程[[#This Row],[還款編號]]<>"",還款排程[[#This Row],[期初餘額]]*(利率/每年還款次數),"") -> NT$6.40 | J18: =IF(還款排程[[#This Row],[還款編號]]<>"",IF(還款排程[[#This Row],[已排程還款]]+還款排程[[#This Row],[額外還款]]<=還款排程[[#This Row],[期初餘額]],還款排程[[#This Row],[期初餘額]]-還款排程[[#This Row],[本金]],0),"") -> NT$1,400.59 | K18: =IF(還款排程[[#This Row],[還款編號]]<>"",SUM(INDEX(還款排程[利息],1,1):還款排程[[#This Row],[利息]]),"") -> NT$80.83
B19: =IF(貸款良好,IF(ROW()-ROW(還款排程[[#Headers],[還款編號]])>已排程的還款次數,"",ROW()-ROW(還款排程[[#Headers],[還款編號]])),"") -> 8 | C19: =IF(還款排程[[#This Row],[還款編號]]<>"",EOMONTH(貸款開始日期,ROW(還款排程[[#This Row],[還款編號]])-ROW(還款排程[[#Headers],[還款編號]])-2)+DAY(貸款開始日期),"") -> 2020-11-14 | D19: =IF(還款排程[[#This Row],[還款編號]]<>"",IF(ROW()-ROW(還款排程[[#Headers],[期初餘額]])=1,貸款金額,INDEX(還款排程[結餘],ROW()-ROW(還款排程[[#Headers],[期初餘額]])-1)),"") -> NT$1,400.59 | E19: =IF(還款排程[[#This Row],[還款編號]]<>"",已排程的還款,"") -> NT$425.75 | F19: =IF(還款排程[[#This Row],[還款編號]]<>"",IF(還款排程[[#This Row],[已排程還款]]+額外還款<還款排程[[#This Row],[期初餘額]],額外還款,IF(還款排程[[#This Row],[期初餘額]]-還款排程[[#This Row],[已排程還款]]>0,還款排程[[#This Row],[期初餘額]]-還款排程[[#This Row],[已排程還款]],0)),"") -> NT$100.00 | G19: =IF(還款排程[[#This Row],[還款編號]]<>"",IF(還款排程[[#This Row],[已排程還款]]+還款排程[[#This Row],[額外還款]]<=還款排程[[#This Row],[期初餘額]],還款排程[[#This Row],[已排程還款]]+還款排程[[#This Row],[額外還款]],還款排程[[#This Row],[期初餘額]]),"") -> NT$525.75 | H19: =IF(還款排程[[#This Row],[還款編號]]<>"",還款排程[[#This Row],[還款總金額]]-還款排程[[#This Row],[利息]],"") -> NT$521.08 | I19: =IF(還款排程[[#This Row],[還款編號]]<>"",還款排程[[#This Row],[期初餘額]]*(利率/每年還款次數),"") -> NT$4.67 | J19: =IF(還款排程[[#This Row],[還款編號]]<>"",IF(還款排程[[#This Row],[已排程還款]]+還款排程[[#This Row],[額外還款]]<=還款排程[[#This Row],[期初餘額]],還款排程[[#This Row],[期初餘額]]-還款排程[[#This Row],[本金]],0),"") -> NT$879.50 | K19: =IF(還款排程[[#This Row],[還款編號]]<>"",SUM(INDEX(還款排程[利息],1,1):還款排程[[#This Row],[利息]]),"") -> NT$85.50
B20: =IF(貸款良好,IF(ROW()-ROW(還款排程[[#Headers],[還款編號]])>已排程的還款次數,"",ROW()-ROW(還款排程[[#Headers],[還款編號]])),"") -> 9 | C20: =IF(還款排程[[#This Row],[還款編號]]<>"",EOMONTH(貸款開始日期,ROW(還款排程[[#This Row],[還款編號]])-ROW(還款排程[[#Headers],[還款編號]])-2)+DAY(貸款開始日期),"") -> 2020-12-14 | D20: =IF(還款排程[[#This Row],[還款編號]]<>"",IF(ROW()-ROW(還款排程[[#Headers],[期初餘額]])=1,貸款金額,INDEX(還款排程[結餘],ROW()-ROW(還款排程[[#Headers],[期初餘額]])-1)),"") -> NT$879.50 | E20: =IF(還款排程[[#This Row],[還款編號]]<>"",已排程的還款,"") -> NT$425.75 | F20: =IF(還款排程[[#This Row],[還款編號]]<>"",IF(還款排程[[#This Row],[已排程還款]]+額外還款<還款排程[[#This Row],[期初餘額]],額外還款,IF(還款排程[[#This Row],[期初餘額]]-還款排程[[#This Row],[已排程還款]]>0,還款排程[[#This Row],[期初餘額]]-還款排程[[#This Row],[已排程還款]],0)),"") -> NT$100.00 | G20: =IF(還款排程[[#This Row],[還款編號]]<>"",IF(還款排程[[#This Row],[已排程還款]]+還款排程[[#This Row],[額外還款]]<=還款排程[[#This Row],[期初餘額]],還款排程[[#This Row],[已排程還款]]+還款排程[[#This Row],[額外還款]],還款排程[[#This Row],[期初餘額]]),"") -> NT$525.75 | H20: =IF(還款排程[[#This Row],[還款編號]]<>"",還款排程[[#This Row],[還款總金額]]-還款排程[[#This Row],[利息]],"") -> NT$522.82 | I20: =IF(還款排程[[#This Row],[還款編號]]<>"",還款排程[[#This Row],[期初餘額]]*(利率/每年還款次數),"") -> NT$2.93 | J20: =IF(還款排程[[#This Row],[還款編號]]<>"",IF(還款排程[[#This Row],[已排程還款]]+還款排程[[#This Row],[額外還款]]<=還款排程[[#This Row],[期初餘額]],還款排程[[#This Row],[期初餘額]]-還款排程[[#This Row],[本金]],0),"") -> NT$356.69 | K20: =IF(還款排程[[#This Row],[還款編號]]<>"",SUM(INDEX(還款排程[利息],1,1):還款排程[[#This Row],[利息]]),"") -> NT$88.43
B21: =IF(貸款良好,IF(ROW()-ROW(還款排程[[#Headers],[還款編號]])>已排程的還款次數,"",ROW()-ROW(還款排程[[#Headers],[還款編號]])),"") -> 10 | C21: =IF(還款排程[[#This Row],[還款編號]]<>"",EOMONTH(貸款開始日期,ROW(還款排程[[#This Row],[還款編號]])-ROW(還款排程[[#Headers],[還款編號]])-2)+DAY(貸款開始日期),"") -> 2021-01-14 | D21: =IF(還款排程[[#This Row],[還款編號]]<>"",IF(ROW()-ROW(還款排程[[#Headers],[期初餘額]])=1,貸款金額,INDEX(還款排程[結餘],ROW()-ROW(還款排程[[#Headers],[期初餘額]])-1)),"") -> NT$356.69 | E21: =IF(還款排程[[#This Row],[還款編號]]<>"",已排程的還款,"") -> NT$425.75 | F21: =IF(還款排程[[#This Row],[還款編號]]<>"",IF(還款排程[[#This Row],[已排程還款]]+額外還款<還款排程[[#This Row],[期初餘額]],額外還款,IF(還款排程[[#This Row],[期初餘額]]-還款排程[[#This Row],[已排程還款]]>0,還款排程[[#This Row],[期初餘額]]-還款排程[[#This Row],[已排程還款]],0)),"") -> NT$0.00 | G21: =IF(還款排程[[#This Row],[還款編號]]<>"",IF(還款排程[[#This Row],[已排程還款]]+還款排程[[#This Row],[額外還款]]<=還款排程[[#This Row],[期初餘額]],還款排程[[#This Row],[已排程還款]]+還款排程[[#This Row],[額外還款]],還款排程[[#This Row],[期初餘額]]),"") -> NT$356.69 | H21: =IF(還款排程[[#This Row],[還款編號]]<>"",還款排程[[#This Row],[還款總金額]]-還款排程[[#This Row],[利息]],"") -> NT$355.50 | I21: =IF(還款排程[[#This Row],[還款編號]]<>"",還款排程[[#This Row],[期初餘額]]*(利率/每年還款次數),"") -> NT$1.19 | J21: =IF(還款排程[[#This Row],[還款編號]]<>"",IF(還款排程[[#This Row],[已排程還款]]+還款排程[[#This Row],[額外還款]]<=還款排程[[#This Row],[期初餘額]],還款排程[[#This Row],[期初餘額]]-還款排程[[#This Row],[本金]],0),"") -> NT$0.00 | K21: =IF(還款排程[[#This Row],[還款編號]]<>"",SUM(INDEX(還款排程[利息],1,1):還款排程[[#This Row],[利息]]),"") -> NT$89.62
B22: =IF(貸款良好,IF(ROW()-ROW(還款排程[[#Headers],[還款編號]])>已排程的還款次數,"",ROW()-ROW(還款排程[[#Headers],[還款編號]])),"") -> 11 | C22: =IF(還款排程[[#This Row],[還款編號]]<>"",EOMONTH(貸款開始日期,ROW(還款排程[[#This Row],[還款編號]])-ROW(還款排程[[#Headers],[還款編號]])-2)+DAY(貸款開始日期),"") -> 2021-02-14 | D22: =IF(還款排程[[#This Row],[還款編號]]<>"",IF(ROW()-ROW(還款排程[[#Headers],[期初餘額]])=1,貸款金額,INDEX(還款排程[結餘],ROW()-ROW(還款排程[[#Headers],[期初餘額]])-1)),"") -> NT$0.00 | E22: =IF(還款排程[[#This Row],[還款編號]]<>"",已排程的還款,"") -> NT$425.75 | F22: =IF(還款排程[[#This Row],[還款編號]]<>"",IF(還款排程[[#This Row],[已排程還款]]+額外還款<還款排程[[#This Row],[期初餘額]],額外還款,IF(還款排程[[#This Row],[期初餘額]]-還款排程[[#This Row],[已排程還款]]>0,還款排程[[#This Row],[期初餘額]]-還款排程[[#This Row],[已排程還款]],0)),"") -> NT$0.00 | G22: =IF(還款排程[[#This Row],[還款編號]]<>"",IF(還款排程[[#This Row],[已排程還款]]+還款排程[[#This Row],[額外還款]]<=還款排程[[#This Row],[期初餘額]],還款排程[[#This Row],[已排程還款]]+還款排程[[#This Row],[額外還款]],還款排程[[#This Row],[期初餘額]]),"") -> NT$0.00 | H22: =IF(還款排程[[#This Row],[還款編號]]<>"",還款排程[[#This Row],[還款總金額]]-還款排程[[#This Row],[利息]],"") -> NT$0.00 | I22: =IF(還款排程[[#This Row],[還款編號]]<>"",還款排程[[#This Row],[期初餘額]]*(利率/每年還款次數),"") -> NT$0.00 | J22: =IF(還款排程[[#This Row],[還款編號]]<>"",IF(還款排程[[#This Row],[已排程還款]]+還款排程[[#This Row],[額外還款]]<=還款排程[[#This Row],[期初餘額]],還款排程[[#This Row],[期初餘額]]-還款排程[[#This Row],[本金]],0),"") -> NT$0.00 | K22: =IF(還款排程[[#This Row],[還款編號]]<>"",SUM(INDEX(還款排程[利息],1,1):還款排程[[#This Row],[利息]]),"") -> NT$89.62
B23: =IF(貸款良好,IF(ROW()-ROW(還款排程[[#Headers],[還款編號]])>已排程的還款次數,"",ROW()-ROW(還款排程[[#Headers],[還款編號]])),"") -> 12 | C23: =IF(還款排程[[#This Row],[還款編號]]<>"",EOMONTH(貸款開始日期,ROW(還款排程[[#This Row],[還款編號]])-ROW(還款排程[[#Headers],[還款編號]])-2)+DAY(貸款開始日期),"") -> 2021-03-14 | D23: =IF(還款排程[[#This Row],[還款編號]]<>"",IF(ROW()-ROW(還款排程[[#Headers],[期初餘額]])=1,貸款金額,INDEX(還款排程[結餘],ROW()-ROW(還款排程[[#Headers],[期初餘額]])-1)),"") -> NT$0.00 | E23: =IF(還款排程[[#This Row],[還款編號]]<>"",已排程的還款,"") -> NT$425.75 | F23: =IF(還款排程[[#This Row],[還款編號]]<>"",IF(還款排程[[#This Row],[已排程還款]]+額外還款<還款排程[[#This Row],[期初餘額]],額外還款,IF(還款排程[[#This Row],[期初餘額]]-還款排程[[#This Row],[已排程還款]]>0,還款排程[[#This Row],[期初餘額]]-還款排程[[#This Row],[已排程還款]],0)),"") -> NT$0.00 | G23: =IF(還款排程[[#This Row],[還款編號]]<>"",IF(還款排程[[#This Row],[已排程還款]]+還款排程[[#This Row],[額外還款]]<=還款排程[[#This Row],[期初餘額]],還款排程[[#This Row],[已排程還款]]+還款排程[[#This Row],[額外還款]],還款排程[[#This Row],[期初餘額]]),"") -> NT$0.00 | H23: =IF(還款排程[[#This Row],[還款編號]]<>"",還款排程[[#This Row],[還款總金額]]-還款排程[[#This Row],[利息]],"") -> NT$0.00 | I23: =IF(還款排程[[#This Row],[還款編號]]<>"",還款排程[[#This Row],[期初餘額]]*(利率/每年還款次數),"") -> NT$0.00 | J23: =IF(還款排程[[#This Row],[還款編號]]<>"",IF(還款排程[[#This Row],[已排程還款]]+還款排程[[#This Row],[額外還款]]<=還款排程[[#This Row],[期初餘額]],還款排程[[#This Row],[期初餘額]]-還款排程[[#This Row],[本金]],0),"") -> NT$0.00 | K23: =IF(還款排程[[#This Row],[還款編號]]<>"",SUM(INDEX(還款排程[利息],1,1):還款排程[[#This Row],[利息]]),"") -> NT$89.62
B24: =IF(貸款良好,IF(ROW()-ROW(還款排程[[#Headers],[還款編號]])>已排程的還款次數,"",ROW()-ROW(還款排程[[#Headers],[還款編號]])),"") ->  | C24: =IF(還款排程[[#This Row],[還款編號]]<>"",EOMONTH(貸款開始日期,ROW(還款排程[[#This Row],[還款編號]])-ROW(還款排程[[#Headers],[還款編號]])-2)+DAY(貸款開始日期),"") ->  | D24: =IF(還款排程[[#This Row],[還款編號]]<>"",IF(ROW()-ROW(還款排程[[#Headers],[期初餘額]])=1,貸款金額,INDEX(還款排程[結餘],ROW()-ROW(還款排程[[#Headers],[期初餘額]])-1)),"") ->  | E24: =IF(還款排程[[#This Row],[還款編號]]<>"",已排程的還款,"") ->  | F24: =IF(還款排程[[#This Row],[還款編號]]<>"",IF(還款排程[[#This Row],[已排程還款]]+額外還款<還款排程[[#This Row],[期初餘額]],額外還款,IF(還款排程[[#This Row],[期初餘額]]-還款排程[[#This Row],[已排程還款]]>0,還款排程[[#This Row],[期初餘額]]-還款排程[[#This Row],[已排程還款]],0)),"") ->  | G24: =IF(還款排程[[#This Row],[還款編號]]<>"",IF(還款排程[[#This Row],[已排程還款]]+還款排程[[#This Row],[額外還款]]<=還款排程[[#This Row],[期初餘額]],還款排程[[#This Row],[已排程還款]]+還款排程[[#This Row],[額外還款]],還款排程[[#This Row],[期初餘額]]),"") ->  | H24: =IF(還款排程[[#This Row],[還款編號]]<>"",還款排程[[#This Row],[還款總金額]]-還款排程[[#This Row],[利息]],"") ->  | I24: =IF(還款排程[[#This Row],[還款編號]]<>"",還款排程[[#This Row],[期初餘額]]*(利率/每年還款次數),"") ->  | J24: =IF(還款排程[[#This Row],[還款編號]]<>"",IF(還款排程[[#This Row],[已排程還款]]+還款排程[[#This Row],[額外還款]]<=還款排程[[#This Row],[期初餘額]],還款排程[[#This Row],[期初餘額]]-還款排程[[#This Row],[本金]],0),"") ->  | K24: =IF(還款排程[[#This Row],[還款編號]]<>"",SUM(INDEX(還款排程[利息],1,1):還款排程[[#This Row],[利息]]),"") -> 
B25: =IF(貸款良好,IF(ROW()-ROW(還款排程[[#Headers],[還款編號]])>已排程的還款次數,"",ROW()-ROW(還款排程[[#Headers],[還款編號]])),"") ->  | C25: =IF(還款排程[[#This Row],[還款編號]]<>"",EOMONTH(貸款開始日期,ROW(還款排程[[#This Row],[還款編號]])-ROW(還款排程[[#Headers],[還款編號]])-2)+DAY(貸款開始日期),"") ->  | D25: =IF(還款排程[[#This Row],[還款編號]]<>"",IF(ROW()-ROW(還款排程[[#Headers],[期初餘額]])=1,貸款金額,INDEX(還款排程[結餘],ROW()-ROW(還款排程[[#Headers],[期初餘額]])-1)),"") ->  | E25: =IF(還款排程[[#This Row],[還款編號]]<>"",已排程的還款,"") ->  | F25: =IF(還款排程[[#This Row],[還款編號]]<>"",IF(還款排程[[#This Row],[已排程還款]]+額外還款<還款排程[[#This Row],[期初餘額]],額外還款,IF(還款排程[[#This Row],[期初餘額]]-還款排程[[#This Row],[已排程還款]]>0,還款排程[[#This Row],[期初餘額]]-還款排程[[#This Row],[已排程還款]],0)),"") ->  | G25: =IF(還款排程[[#This Row],[還款編號]]<>"",IF(還款排程[[#This Row],[已排程還款]]+還款排程[[#This Row],[額外還款]]<=還款排程[[#This Row],[期初餘額]],還款排程[[#This Row],[已排程還款]]+還款排程[[#This Row],[額外還款]],還款排程[[#This Row],[期初餘額]]),"") ->  | H25: =IF(還款排程[[#This Row],[還款編號]]<>"",還款排程[[#This Row],[還款總金額]]-還款排程[[#This Row],[利息]],"") ->  | I25: =IF(還款排程[[#This Row],[還款編號]]<>"",還款排程[[#This Row],[期初餘額]]*(利率/每年還款次數),"") ->  | J25: =IF(還款排程[[#This Row],[還款編號]]<>"",IF(還款排程[[#This Row],[已排程還款]]+還款排程[[#This Row],[額外還款]]<=還款排程[[#This Row],[期初餘額]],還款排程[[#This Row],[期初餘額]]-還款排程[[#This Row],[本金]],0),"") ->  | K25: =IF(還款排程[[#This Row],[還款編號]]<>"",SUM(INDEX(還款排程[利息],1,1):還款排程[[#This Row],[利息]]),"") -> 
B26: =IF(貸款良好,IF(ROW()-ROW(還款排程[[#Headers],[還款編號]])>已排程的還款次數,"",ROW()-ROW(還款排程[[#Headers],[還款編號]])),"") ->  | C26: =IF(還款排程[[#This Row],[還款編號]]<>"",EOMONTH(貸款開始日期,ROW(還款排程[[#This Row],[還款編號]])-ROW(還款排程[[#Headers],[還款編號]])-2)+DAY(貸款開始日期),"") ->  | D26: =IF(還款排程[[#This Row],[還款編號]]<>"",IF(ROW()-ROW(還款排程[[#Headers],[期初餘額]])=1,貸款金額,INDEX(還款排程[結餘],ROW()-ROW(還款排程[[#Headers],[期初餘額]])-1)),"") ->  | E26: =IF(還款排程[[#This Row],[還款編號]]<>"",已排程的還款,"") ->  | F26: =IF(還款排程[[#This Row],[還款編號]]<>"",IF(還款排程[[#This Row],[已排程還款]]+額外還款<還款排程[[#This Row],[期初餘額]],額外還款,IF(還款排程[[#This Row],[期初餘額]]-還款排程[[#This Row],[已排程還款]]>0,還款排程[[#This Row],[期初餘額]]-還款排程[[#This Row],[已排程還款]],0)),"") ->  | G26: =IF(還款排程[[#This Row],[還款編號]]<>"",IF(還款排程[[#This Row],[已排程還款]]+還款排程[[#This Row],[額外還款]]<=還款排程[[#This Row],[期初餘額]],還款排程[[#This Row],[已排程還款]]+還款排程[[#This Row],[額外還款]],還款排程[[#This Row],[期初餘額]]),"") ->  | H26: =IF(還款排程[[#This Row],[還款編號]]<>"",還款排程[[#This Row],[還款總金額]]-還款排程[[#This Row],[利息]],"") ->  | I26: =IF(還款排程[[#This Row],[還款編號]]<>"",還款排程[[#This Row],[期初餘額]]*(利率/每年還款次數),"") ->  | J26: =IF(還款排程[[#This Row],[還款編號]]<>"",IF(還款排程[[#This Row],[已排程還款]]+還款排程[[#This Row],[額外還款]]<=還款排程[[#This Row],[期初餘額]],還款排程[[#This Row],[期初餘額]]-還款排程[[#This Row],[本金]],0),"") ->  | K26: =IF(還款排程[[#This Row],[還款編號]]<>"",SUM(INDEX(還款排程[利息],1,1):還款排程[[#This Row],[利息]]),"") -> 
B27: =IF(貸款良好,IF(ROW()-ROW(還款排程[[#Headers],[還款編號]])>已排程的還款次數,"",ROW()-ROW(還款排程[[#Headers],[還款編號]])),"") ->  | C27: =IF(還款排程[[#This Row],[還款編號]]<>"",EOMONTH(貸款開始日期,ROW(還款排程[[#This Row],[還款編號]])-ROW(還款排程[[#Headers],[還款編號]])-2)+DAY(貸款開始日期),"") ->  | D27: =IF(還款排程[[#This Row],[還款編號]]<>"",IF(ROW()-ROW(還款排程[[#Headers],[期初餘額]])=1,貸款金額,INDEX(還款排程[結餘],ROW()-ROW(還款排程[[#Headers],[期初餘額]])-1)),"") ->  | E27: =IF(還款排程[[#This Row],[還款編號]]<>"",已排程的還款,"") ->  | F27: =IF(還款排程[[#This Row],[還款編號]]<>"",IF(還款排程[[#This Row],[已排程還款]]+額外還款<還款排程[[#This Row],[期初餘額]],額外還款,IF(還款排程[[#This Row],[期初餘額]]-還款排程[[#This Row],[已排程還款]]>0,還款排程[[#This Row],[期初餘額]]-還款排程[[#This Row],[已排程還款]],0)),"") ->  | G27: =IF(還款排程[[#This Row],[還款編號]]<>"",IF(還款排程[[#This Row],[已排程還款]]+還款排程[[#This Row],[額外還款]]<=還款排程[[#This Row],[期初餘額]],還款排程[[#This Row],[已排程還款]]+還款排程[[#This Row],[額外還款]],還款排程[[#This Row],[期初餘額]]),"") ->  | H27: =IF(還款排程[[#This Row],[還款編號]]<>"",還款排程[[#This Row],[還款總金額]]-還款排程[[#This Row],[利息]],"") ->  | I27: =IF(還款排程[[#This Row],[還款編號]]<>"",還款排程[[#This Row],[期初餘額]]*(利率/每年還款次數),"") ->  | J27: =IF(還款排程[[#This Row],[還款編號]]<>"",IF(還款排程[[#This Row],[已排程還款]]+還款排程[[#This Row],[額外還款]]<=還款排程[[#This Row],[期初餘額]],還款排程[[#This Row],[期初餘額]]-還款排程[[#This Row],[本金]],0),"") ->  | K27: =IF(還款排程[[#This Row],[還款編號]]<>"",SUM(INDEX(還款排程[利息],1,1):還款排程[[#This Row],[利息]]),"") -> 
B28: =IF(貸款良好,IF(ROW()-ROW(還款排程[[#Headers],[還款編號]])>已排程的還款次數,"",ROW()-ROW(還款排程[[#Headers],[還款編號]])),"") ->  | C28: =IF(還款排程[[#This Row],[還款編號]]<>"",EOMONTH(貸款開始日期,ROW(還款排程[[#This Row],[還款編號]])-ROW(還款排程[[#Headers],[還款編號]])-2)+DAY(貸款開始日期),"") ->  | D28: =IF(還款排程[[#This Row],[還款編號]]<>"",IF(ROW()-ROW(還款排程[[#Headers],[期初餘額]])=1,貸款金額,INDEX(還款排程[結餘],ROW()-ROW(還款排程[[#Headers],[期初餘額]])-1)),"") ->  | E28: =IF(還款排程[[#This Row],[還款編號]]<>"",已排程的還款,"") ->  | F28: =IF(還款排程[[#This Row],[還款編號]]<>"",IF(還款排程[[#This Row],[已排程還款]]+額外還款<還款排程[[#This Row],[期初餘額]],額外還款,IF(還款排程[[#This Row],[期初餘額]]-還款排程[[#This Row],[已排程還款]]>0,還款排程[[#This Row],[期初餘額]]-還款排程[[#This Row],[已排程還款]],0)),"") ->  | G28: =IF(還款排程[[#This Row],[還款編號]]<>"",IF(還款排程[[#This Row],[已排程還款]]+還款排程[[#This Row],[額外還款]]<=還款排程[[#This Row],[期初餘額]],還款排程[[#This Row],[已排程還款]]+還款排程[[#This Row],[額外還款]],還款排程[[#This Row],[期初餘額]]),"") ->  | H28: =IF(還款排程[[#This Row],[還款編號]]<>"",還款排程[[#This Row],[還款總金額]]-還款排程[[#This Row],[利息]],"") ->  | I28: =IF(還款排程[[#This Row],[還款編號]]<>"",還款排程[[#This Row],[期初餘額]]*(利率/每年還款次數),"") ->  | J28: =IF(還款排程[[#This Row],[還款編號]]<>"",IF(還款排程[[#This Row],[已排程還款]]+還款排程[[#This Row],[額外還款]]<=還款排程[[#This Row],[期初餘額]],還款排程[[#This Row],[期初餘額]]-還款排程[[#This Row],[本金]],0),"") ->  | K28: =IF(還款排程[[#This Row],[還款編號]]<>"",SUM(INDEX(還款排程[利息],1,1):還款排程[[#This Row],[利息]]),"") -> 
B29: =IF(貸款良好,IF(ROW()-ROW(還款排程[[#Headers],[還款編號]])>已排程的還款次數,"",ROW()-ROW(還款排程[[#Headers],[還款編號]])),"") ->  | C29: =IF(還款排程[[#This Row],[還款編號]]<>"",EOMONTH(貸款開始日期,ROW(還款排程[[#This Row],[還款編號]])-ROW(還款排程[[#Headers],[還款編號]])-2)+DAY(貸款開始日期),"") ->  | D29: =IF(還款排程[[#This Row],[還款編號]]<>"",IF(ROW()-ROW(還款排程[[#Headers],[期初餘額]])=1,貸款金額,INDEX(還款排程[結餘],ROW()-ROW(還款排程[[#Headers],[期初餘額]])-1)),"") ->  | E29: =IF(還款排程[[#This Row],[還款編號]]<>"",已排程的還款,"") ->  | F29: =IF(還款排程[[#This Row],[還款編號]]<>"",IF(還款排程[[#This Row],[已排程還款]]+額外還款<還款排程[[#This Row],[期初餘額]],額外還款,IF(還款排程[[#This Row],[期初餘額]]-還款排程[[#This Row],[已排程還款]]>0,還款排程[[#This Row],[期初餘額]]-還款排程[[#This Row],[已排程還款]],0)),"") ->  | G29: =IF(還款排程[[#This Row],[還款編號]]<>"",IF(還款排程[[#This Row],[已排程還款]]+還款排程[[#This Row],[額外還款]]<=還款排程[[#This Row],[期初餘額]],還款排程[[#This Row],[已排程還款]]+還款排程[[#This Row],[額外還款]],還款排程[[#This Row],[期初餘額]]),"") ->  | H29: =IF(還款排程[[#This Row],[還款編號]]<>"",還款排程[[#This Row],[還款總金額]]-還款排程[[#This Row],[利息]],"") ->  | I29: =IF(還款排程[[#This Row],[還款編號]]<>"",還款排程[[#This Row],[期初餘額]]*(利率/每年還款次數),"") ->  | J29: =IF(還款排程[[#This Row],[還款編號]]<>"",IF(還款排程[[#This Row],[已排程還款]]+還款排程[[#This Row],[額外還款]]<=還款排程[[#This Row],[期初餘額]],還款排程[[#This Row],[期初餘額]]-還款排程[[#This Row],[本金]],0),"") ->  | K29: =IF(還款排程[[#This Row],[還款編號]]<>"",SUM(INDEX(還款排程[利息],1,1):還款排程[[#This Row],[利息]]),"") -> 
B30: =IF(貸款良好,IF(ROW()-ROW(還款排程[[#Headers],[還款編號]])>已排程的還款次數,"",ROW()-ROW(還款排程[[#Headers],[還款編號]])),"") ->  | C30: =IF(還款排程[[#This Row],[還款編號]]<>"",EOMONTH(貸款開始日期,ROW(還款排程[[#This Row],[還款編號]])-ROW(還款排程[[#Headers],[還款編號]])-2)+DAY(貸款開始日期),"") ->  | D30: =IF(還款排程[[#This Row],[還款編號]]<>"",IF(ROW()-ROW(還款排程[[#Headers],[期初餘額]])=1,貸款金額,INDEX(還款排程[結餘],ROW()-ROW(還款排程[[#Headers],[期初餘額]])-1)),"") ->  | E30: =IF(還款排程[[#This Row],[還款編號]]<>"",已排程的還款,"") ->  | F30: =IF(還款排程[[#This Row],[還款編號]]<>"",IF(還款排程[[#This Row],[已排程還款]]+額外還款<還款排程[[#This Row],[期初餘額]],額外還款,IF(還款排程[[#This Row],[期初餘額]]-還款排程[[#This Row],[已排程還款]]>0,還款排程[[#This Row],[期初餘額]]-還款排程[[#This Row],[已排程還款]],0)),"") ->  | G30: =IF(還款排程[[#This Row],[還款編號]]<>"",IF(還款排程[[#This Row],[已排程還款]]+還款排程[[#This Row],[額外還款]]<=還款排程[[#This Row],[期初餘額]],還款排程[[#This Row],[已排程還款]]+還款排程[[#This Row],[額外還款]],還款排程[[#This Row],[期初餘額]]),"") ->  | H30: =IF(還款排程[[#This Row],[還款編號]]<>"",還款排程[[#This Row],[還款總金額]]-還款排程[[#This Row],[利息]],"") ->  | I30: =IF(還款排程[[#This Row],[還款編號]]<>"",還款排程[[#This Row],[期初餘額]]*(利率/每年還款次數),"") ->  | J30: =IF(還款排程[[#This Row],[還款編號]]<>"",IF(還款排程[[#This Row],[已排程還款]]+還款排程[[#This Row],[額外還款]]<=還款排程[[#This Row],[期初餘額]],還款排程[[#This Row],[期初餘額]]-還款排程[[#This Row],[本金]],0),"") ->  | K30: =IF(還款排程[[#This Row],[還款編號]]<>"",SUM(INDEX(還款排程[利息],1,1):還款排程[[#This Row],[利息]]),"") -> 
B31: =IF(貸款良好,IF(ROW()-ROW(還款排程[[#Headers],[還款編號]])>已排程的還款次數,"",ROW()-ROW(還款排程[[#Headers],[還款編號]])),"") ->  | C31: =IF(還款排程[[#This Row],[還款編號]]<>"",EOMONTH(貸款開始日期,ROW(還款排程[[#This Row],[還款編號]])-ROW(還款排程[[#Headers],[還款編號]])-2)+DAY(貸款開始日期),"") ->  | D31: =IF(還款排程[[#This Row],[還款編號]]<>"",IF(ROW()-ROW(還款排程[[#Headers],[期初餘額]])=1,貸款金額,INDEX(還款排程[結餘],ROW()-ROW(還款排程[[#Headers],[期初餘額]])-1)),"") ->  | E31: =IF(還款排程[[#This Row],[還款編號]]<>"",已排程的還款,"") ->  | F31: =IF(還款排程[[#This Row],[還款編號]]<>"",IF(還款排程[[#This Row],[已排程還款]]+額外還款<還款排程[[#This Row],[期初餘額]],額外還款,IF(還款排程[[#This Row],[期初餘額]]-還款排程[[#This Row],[已排程還款]]>0,還款排程[[#This Row],[期初餘額]]-還款排程[[#This Row],[已排程還款]],0)),"") ->  | G31: =IF(還款排程[[#This Row],[還款編號]]<>"",IF(還款排程[[#This Row],[已排程還款]]+還款排程[[#This Row],[額外還款]]<=還款排程[[#This Row],[期初餘額]],還款排程[[#This Row],[已排程還款]]+還款排程[[#This Row],[額外還款]],還款排程[[#This Row],[期初餘額]]),"") ->  | H31: =IF(還款排程[[#This Row],[還款編號]]<>"",還款排程[[#This Row],[還款總金額]]-還款排程[[#This Row],[利息]],"") ->  | I31: =IF(還款排程[[#This Row],[還款編號]]<>"",還款排程[[#This Row],[期初餘額]]*(利率/每年還款次數),"") ->  | J31: =IF(還款排程[[#This Row],[還款編號]]<>"",IF(還款排程[[#This Row],[已排程還款]]+還款排程[[#This Row],[額外還款]]<=還款排程[[#This Row],[期初餘額]],還款排程[[#This Row],[期初餘額]]-還款排程[[#This Row],[本金]],0),"") ->  | K31: =IF(還款排程[[#This Row],[還款編號]]<>"",SUM(INDEX(還款排程[利息],1,1):還款排程[[#This Row],[利息]]),"") -> 
B32: =IF(貸款良好,IF(ROW()-ROW(還款排程[[#Headers],[還款編號]])>已排程的還款次數,"",ROW()-ROW(還款排程[[#Headers],[還款編號]])),"") ->  | C32: =IF(還款排程[[#This Row],[還款編號]]<>"",EOMONTH(貸款開始日期,ROW(還款排程[[#This Row],[還款編號]])-ROW(還款排程[[#Headers],[還款編號]])-2)+DAY(貸款開始日期),"") ->  | D32: =IF(還款排程[[#This Row],[還款編號]]<>"",IF(ROW()-ROW(還款排程[[#Headers],[期初餘額]])=1,貸款金額,INDEX(還款排程[結餘],ROW()-ROW(還款排程[[#Headers],[期初餘額]])-1)),"") ->  | E32: =IF(還款排程[[#This Row],[還款編號]]<>"",已排程的還款,"") ->  | F32: =IF(還款排程[[#This Row],[還款編號]]<>"",IF(還款排程[[#This Row],[已排程還款]]+額外還款<還款排程[[#This Row],[期初餘額]],額外還款,IF(還款排程[[#This Row],[期初餘額]]-還款排程[[#This Row],[已排程還款]]>0,還款排程[[#This Row],[期初餘額]]-還款排程[[#This Row],[已排程還款]],0)),"") ->  | G32: =IF(還款排程[[#This Row],[還款編號]]<>"",IF(還款排程[[#This Row],[已排程還款]]+還款排程[[#This Row],[額外還款]]<=還款排程[[#This Row],[期初餘額]],還款排程[[#This Row],[已排程還款]]+還款排程[[#This Row],[額外還款]],還款排程[[#This Row],[期初餘額]]),"") ->  | H32: =IF(還款排程[[#This Row],[還款編號]]<>"",還款排程[[#This Row],[還款總金額]]-還款排程[[#This Row],[利息]],"") ->  | I32: =IF(還款排程[[#This Row],[還款編號]]<>"",還款排程[[#This Row],[期初餘額]]*(利率/每年還款次數),"") ->  | J32: =IF(還款排程[[#This Row],[還款編號]]<>"",IF(還款排程[[#This Row],[已排程還款]]+還款排程[[#This Row],[額外還款]]<=還款排程[[#This Row],[期初餘額]],還款排程[[#This Row],[期初餘額]]-還款排程[[#This Row],[本金]],0),"") ->  | K32: =IF(還款排程[[#This Row],[還款編號]]<>"",SUM(INDEX(還款排程[利息],1,1):還款排程[[#This Row],[利息]]),"") -> 
B33: =IF(貸款良好,IF(ROW()-ROW(還款排程[[#Headers],[還款編號]])>已排程的還款次數,"",ROW()-ROW(還款排程[[#Headers],[還款編號]])),"") ->  | C33: =IF(還款排程[[#This Row],[還款編號]]<>"",EOMONTH(貸款開始日期,ROW(還款排程[[#This Row],[還款編號]])-ROW(還款排程[[#Headers],[還款編號]])-2)+DAY(貸款開始日期),"") ->  | D33: =IF(還款排程[[#This Row],[還款編號]]<>"",IF(ROW()-ROW(還款排程[[#Headers],[期初餘額]])=1,貸款金額,INDEX(還款排程[結餘],ROW()-ROW(還款排程[[#Headers],[期初餘額]])-1)),"") ->  | E33: =IF(還款排程[[#This Row],[還款編號]]<>"",已排程的還款,"") ->  | F33: =IF(還款排程[[#This Row],[還款編號]]<>"",IF(還款排程[[#This Row],[已排程還款]]+額外還款<還款排程[[#This Row],[期初餘額]],額外還款,IF(還款排程[[#This Row],[期初餘額]]-還款排程[[#This Row],[已排程還款]]>0,還款排程[[#This Row],[期初餘額]]-還款排程[[#This Row],[已排程還款]],0)),"") ->  | G33: =IF(還款排程[[#This Row],[還款編號]]<>"",IF(還款排程[[#This Row],[已排程還款]]+還款排程[[#This Row],[額外還款]]<=還款排程[[#This Row],[期初餘額]],還款排程[[#This Row],[已排程還款]]+還款排程[[#This Row],[額外還款]],還款排程[[#This Row],[期初餘額]]),"") ->  | H33: =IF(還款排程[[#This Row],[還款編號]]<>"",還款排程[[#This Row],[還款總金額]]-還款排程[[#This Row],[利息]],"") ->  | I33: =IF(還款排程[[#This Row],[還款編號]]<>"",還款排程[[#This Row],[期初餘額]]*(利率/每年還款次數),"") ->  | J33: =IF(還款排程[[#This Row],[還款編號]]<>"",IF(還款排程[[#This Row],[已排程還款]]+還款排程[[#This Row],[額外還款]]<=還款排程[[#This Row],[期初餘額]],還款排程[[#This Row],[期初餘額]]-還款排程[[#This Row],[本金]],0),"") ->  | K33: =IF(還款排程[[#This Row],[還款編號]]<>"",SUM(INDEX(還款排程[利息],1,1):還款排程[[#This Row],[利息]]),"") -> 
B34: =IF(貸款良好,IF(ROW()-ROW(還款排程[[#Headers],[還款編號]])>已排程的還款次數,"",ROW()-ROW(還款排程[[#Headers],[還款編號]])),"") ->  | C34: =IF(還款排程[[#This Row],[還款編號]]<>"",EOMONTH(貸款開始日期,ROW(還款排程[[#This Row],[還款編號]])-ROW(還款排程[[#Headers],[還款編號]])-2)+DAY(貸款開始日期),"") ->  | D34: =IF(還款排程[[#This Row],[還款編號]]<>"",IF(ROW()-ROW(還款排程[[#Headers],[期初餘額]])=1,貸款金額,INDEX(還款排程[結餘],ROW()-ROW(還款排程[[#Headers],[期初餘額]])-1)),"") ->  | E34: =IF(還款排程[[#This Row],[還款編號]]<>"",已排程的還款,"") ->  | F34: =IF(還款排程[[#This Row],[還款編號]]<>"",IF(還款排程[[#This Row],[已排程還款]]+額外還款<還款排程[[#This Row],[期初餘額]],額外還款,IF(還款排程[[#This Row],[期初餘額]]-還款排程[[#This Row],[已排程還款]]>0,還款排程[[#This Row],[期初餘額]]-還款排程[[#This Row],[已排程還款]],0)),"") ->  | G34: =IF(還款排程[[#This Row],[還款編號]]<>"",IF(還款排程[[#This Row],[已排程還款]]+還款排程[[#This Row],[額外還款]]<=還款排程[[#This Row],[期初餘額]],還款排程[[#This Row],[已排程還款]]+還款排程[[#This Row],[額外還款]],還款排程[[#This Row],[期初餘額]]),"") ->  | H34: =IF(還款排程[[#This Row],[還款編號]]<>"",還款排程[[#This Row],[還款總金額]]-還款排程[[#This Row],[利息]],"") ->  | I34: =IF(還款排程[[#This Row],[還款編號]]<>"",還款排程[[#This Row],[期初餘額]]*(利率/每年還款次數),"") ->  | J34: =IF(還款排程[[#This Row],[還款編號]]<>"",IF(還款排程[[#This Row],[已排程還款]]+還款排程[[#This Row],[額外還款]]<=還款排程[[#This Row],[期初餘額]],還款排程[[#This Row],[期初餘額]]-還款排程[[#This Row],[本金]],0),"") ->  | K34: =IF(還款排程[[#This Row],[還款編號]]<>"",SUM(INDEX(還款排程[利息],1,1):還款排程[[#This Row],[利息]]),"") -> 
B35: =IF(貸款良好,IF(ROW()-ROW(還款排程[[#Headers],[還款編號]])>已排程的還款次數,"",ROW()-ROW(還款排程[[#Headers],[還款編號]])),"") ->  | C35: =IF(還款排程[[#This Row],[還款編號]]<>"",EOMONTH(貸款開始日期,ROW(還款排程[[#This Row],[還款編號]])-ROW(還款排程[[#Headers],[還款編號]])-2)+DAY(貸款開始日期),"") ->  | D35: =IF(還款排程[[#This Row],[還款編號]]<>"",IF(ROW()-ROW(還款排程[[#Headers],[期初餘額]])=1,貸款金額,INDEX(還款排程[結餘],ROW()-ROW(還款排程[[#Headers],[期初餘額]])-1)),"") ->  | E35: =IF(還款排程[[#This Row],[還款編號]]<>"",已排程的還款,"") ->  | F35: =IF(還款排程[[#This Row],[還款編號]]<>"",IF(還款排程[[#This Row],[已排程還款]]+額外還款<還款排程[[#This Row],[期初餘額]],額外還款,IF(還款排程[[#This Row],[期初餘額]]-還款排程[[#This Row],[已排程還款]]>0,還款排程[[#This Row],[期初餘額]]-還款排程[[#This Row],[已排程還款]],0)),"") ->  | G35: =IF(還款排程[[#This Row],[還款編號]]<>"",IF(還款排程[[#This Row],[已排程還款]]+還款排程[[#This Row],[額外還款]]<=還款排程[[#This Row],[期初餘額]],還款排程[[#This Row],[已排程還款]]+還款排程[[#This Row],[額外還款]],還款排程[[#This Row],[期初餘額]]),"") ->  | H35: =IF(還款排程[[#This Row],[還款編號]]<>"",還款排程[[#This Row],[還款總金額]]-還款排程[[#This Row],[利息]],"") ->  | I35: =IF(還款排程[[#This Row],[還款編號]]<>"",還款排程[[#This Row],[期初餘額]]*(利率/每年還款次數),"") ->  | J35: =IF(還款排程[[#This Row],[還款編號]]<>"",IF(還款排程[[#This Row],[已排程還款]]+還款排程[[#This Row],[額外還款]]<=還款排程[[#This Row],[期初餘額]],還款排程[[#This Row],[期初餘額]]-還款排程[[#This Row],[本金]],0),"") ->  | K35: =IF(還款排程[[#This Row],[還款編號]]<>"",SUM(INDEX(還款排程[利息],1,1):還款排程[[#This Row],[利息]]),"") -> 
B36: =IF(貸款良好,IF(ROW()-ROW(還款排程[[#Headers],[還款編號]])>已排程的還款次數,"",ROW()-ROW(還款排程[[#Headers],[還款編號]])),"") ->  | C36: =IF(還款排程[[#This Row],[還款編號]]<>"",EOMONTH(貸款開始日期,ROW(還款排程[[#This Row],[還款編號]])-ROW(還款排程[[#Headers],[還款編號]])-2)+DAY(貸款開始日期),"") ->  | D36: =IF(還款排程[[#This Row],[還款編號]]<>"",IF(ROW()-ROW(還款排程[[#Headers],[期初餘額]])=1,貸款金額,INDEX(還款排程[結餘],ROW()-ROW(還款排程[[#Headers],[期初餘額]])-1)),"") ->  | E36: =IF(還款排程[[#This Row],[還款編號]]<>"",已排程的還款,"") ->  | F36: =IF(還款排程[[#This Row],[還款編號]]<>"",IF(還款排程[[#This Row],[已排程還款]]+額外還款<還款排程[[#This Row],[期初餘額]],額外還款,IF(還款排程[[#This Row],[期初餘額]]-還款排程[[#This Row],[已排程還款]]>0,還款排程[[#This Row],[期初餘額]]-還款排程[[#This Row],[已排程還款]],0)),"") ->  | G36: =IF(還款排程[[#This Row],[還款編號]]<>"",IF(還款排程[[#This Row],[已排程還款]]+還款排程[[#This Row],[額外還款]]<=還款排程[[#This Row],[期初餘額]],還款排程[[#This Row],[已排程還款]]+還款排程[[#This Row],[額外還款]],還款排程[[#This Row],[期初餘額]]),"") ->  | H36: =IF(還款排程[[#This Row],[還款編號]]<>"",還款排程[[#This Row],[還款總金額]]-還款排程[[#This Row],[利息]],"") ->  | I36: =IF(還款排程[[#This Row],[還款編號]]<>"",還款排程[[#This Row],[期初餘額]]*(利率/每年還款次數),"") ->  | J36: =IF(還款排程[[#This Row],[還款編號]]<>"",IF(還款排程[[#This Row],[已排程還款]]+還款排程[[#This Row],[額外還款]]<=還款排程[[#This Row],[期初餘額]],還款排程[[#This Row],[期初餘額]]-還款排程[[#This Row],[本金]],0),"") ->  | K36: =IF(還款排程[[#This Row],[還款編號]]<>"",SUM(INDEX(還款排程[利息],1,1):還款排程[[#This Row],[利息]]),"") -> 
B37: =IF(貸款良好,IF(ROW()-ROW(還款排程[[#Headers],[還款編號]])>已排程的還款次數,"",ROW()-ROW(還款排程[[#Headers],[還款編號]])),"") ->  | C37: =IF(還款排程[[#This Row],[還款編號]]<>"",EOMONTH(貸款開始日期,ROW(還款排程[[#This Row],[還款編號]])-ROW(還款排程[[#Headers],[還款編號]])-2)+DAY(貸款開始日期),"") ->  | D37: =IF(還款排程[[#This Row],[還款編號]]<>"",IF(ROW()-ROW(還款排程[[#Headers],[期初餘額]])=1,貸款金額,INDEX(還款排程[結餘],ROW()-ROW(還款排程[[#Headers],[期初餘額]])-1)),"") ->  | E37: =IF(還款排程[[#This Row],[還款編號]]<>"",已排程的還款,"") ->  | F37: =IF(還款排程[[#This Row],[還款編號]]<>"",IF(還款排程[[#This Row],[已排程還款]]+額外還款<還款排程[[#This Row],[期初餘額]],額外還款,IF(還款排程[[#This Row],[期初餘額]]-還款排程[[#This Row],[已排程還款]]>0,還款排程[[#This Row],[期初餘額]]-還款排程[[#This Row],[已排程還款]],0)),"") ->  | G37: =IF(還款排程[[#This Row],[還款編號]]<>"",IF(還款排程[[#This Row],[已排程還款]]+還款排程[[#This Row],[額外還款]]<=還款排程[[#This Row],[期初餘額]],還款排程[[#This Row],[已排程還款]]+還款排程[[#This Row],[額外還款]],還款排程[[#This Row],[期初餘額]]),"") ->  | H37: =IF(還款排程[[#This Row],[還款編號]]<>"",還款排程[[#This Row],[還款總金額]]-還款排程[[#This Row],[利息]],"") ->  | I37: =IF(還款排程[[#This Row],[還款編號]]<>"",還款排程[[#This Row],[期初餘額]]*(利率/每年還款次數),"") ->  | J37: =IF(還款排程[[#This Row],[還款編號]]<>"",IF(還款排程[[#This Row],[已排程還款]]+還款排程[[#This Row],[額外還款]]<=還款排程[[#This Row],[期初餘額]],還款排程[[#This Row],[期初餘額]]-還款排程[[#This Row],[本金]],0),"") ->  | K37: =IF(還款排程[[#This Row],[還款編號]]<>"",SUM(INDEX(還款排程[利息],1,1):還款排程[[#This Row],[利息]]),"") -> 
B38: =IF(貸款良好,IF(ROW()-ROW(還款排程[[#Headers],[還款編號]])>已排程的還款次數,"",ROW()-ROW(還款排程[[#Headers],[還款編號]])),"") ->  | C38: =IF(還款排程[[#This Row],[還款編號]]<>"",EOMONTH(貸款開始日期,ROW(還款排程[[#This Row],[還款編號]])-ROW(還款排程[[#Headers],[還款編號]])-2)+DAY(貸款開始日期),"") ->  | D38: =IF(還款排程[[#This Row],[還款編號]]<>"",IF(ROW()-ROW(還款排程[[#Headers],[期初餘額]])=1,貸款金額,INDEX(還款排程[結餘],ROW()-ROW(還款排程[[#Headers],[期初餘額]])-1)),"") ->  | E38: =IF(還款排程[[#This Row],[還款編號]]<>"",已排程的還款,"") ->  | F38: =IF(還款排程[[#This Row],[還款編號]]<>"",IF(還款排程[[#This Row],[已排程還款]]+額外還款<還款排程[[#This Row],[期初餘額]],額外還款,IF(還款排程[[#This Row],[期初餘額]]-還款排程[[#This Row],[已排程還款]]>0,還款排程[[#This Row],[期初餘額]]-還款排程[[#This Row],[已排程還款]],0)),"") ->  | G38: =IF(還款排程[[#This Row],[還款編號]]<>"",IF(還款排程[[#This Row],[已排程還款]]+還款排程[[#This Row],[額外還款]]<=還款排程[[#This Row],[期初餘額]],還款排程[[#This Row],[已排程還款]]+還款排程[[#This Row],[額外還款]],還款排程[[#This Row],[期初餘額]]),"") ->  | H38: =IF(還款排程[[#This Row],[還款編號]]<>"",還款排程[[#This Row],[還款總金額]]-還款排程[[#This Row],[利息]],"") ->  | I38: =IF(還款排程[[#This Row],[還款編號]]<>"",還款排程[[#This Row],[期初餘額]]*(利率/每年還款次數),"") ->  | J38: =IF(還款排程[[#This Row],[還款編號]]<>"",IF(還款排程[[#This Row],[已排程還款]]+還款排程[[#This Row],[額外還款]]<=還款排程[[#This Row],[期初餘額]],還款排程[[#This Row],[期初餘額]]-還款排程[[#This Row],[本金]],0),"") ->  | K38: =IF(還款排程[[#This Row],[還款編號]]<>"",SUM(INDEX(還款排程[利息],1,1):還款排程[[#This Row],[利息]]),"") -> 
B39: =IF(貸款良好,IF(ROW()-ROW(還款排程[[#Headers],[還款編號]])>已排程的還款次數,"",ROW()-ROW(還款排程[[#Headers],[還款編號]])),"") ->  | C39: =IF(還款排程[[#This Row],[還款編號]]<>"",EOMONTH(貸款開始日期,ROW(還款排程[[#This Row],[還款編號]])-ROW(還款排程[[#Headers],[還款編號]])-2)+DAY(貸款開始日期),"") ->  | D39: =IF(還款排程[[#This Row],[還款編號]]<>"",IF(ROW()-ROW(還款排程[[#Headers],[期初餘額]])=1,貸款金額,INDEX(還款排程[結餘],ROW()-ROW(還款排程[[#Headers],[期初餘額]])-1)),"") ->  | E39: =IF(還款排程[[#This Row],[還款編號]]<>"",已排程的還款,"") ->  | F39: =IF(還款排程[[#This Row],[還款編號]]<>"",IF(還款排程[[#This Row],[已排程還款]]+額外還款<還款排程[[#This Row],[期初餘額]],額外還款,IF(還款排程[[#This Row],[期初餘額]]-還款排程[[#This Row],[已排程還款]]>0,還款排程[[#This Row],[期初餘額]]-還款排程[[#This Row],[已排程還款]],0)),"") ->  | G39: =IF(還款排程[[#This Row],[還款編號]]<>"",IF(還款排程[[#This Row],[已排程還款]]+還款排程[[#This Row],[額外還款]]<=還款排程[[#This Row],[期初餘額]],還款排程[[#This Row],[已排程還款]]+還款排程[[#This Row],[額外還款]],還款排程[[#This Row],[期初餘額]]),"") ->  | H39: =IF(還款排程[[#This Row],[還款編號]]<>"",還款排程[[#This Row],[還款總金額]]-還款排程[[#This Row],[利息]],"") ->  | I39: =IF(還款排程[[#This Row],[還款編號]]<>"",還款排程[[#This Row],[期初餘額]]*(利率/每年還款次數),"") ->  | J39: =IF(還款排程[[#This Row],[還款編號]]<>"",IF(還款排程[[#This Row],[已排程還款]]+還款排程[[#This Row],[額外還款]]<=還款排程[[#This Row],[期初餘額]],還款排程[[#This Row],[期初餘額]]-還款排程[[#This Row],[本金]],0),"") ->  | K39: =IF(還款排程[[#This Row],[還款編號]]<>"",SUM(INDEX(還款排程[利息],1,1):還款排程[[#This Row],[利息]]),"") -> 
B40: =IF(貸款良好,IF(ROW()-ROW(還款排程[[#Headers],[還款編號]])>已排程的還款次數,"",ROW()-ROW(還款排程[[#Headers],[還款編號]])),"") ->  | C40: =IF(還款排程[[#This Row],[還款編號]]<>"",EOMONTH(貸款開始日期,ROW(還款排程[[#This Row],[還款編號]])-ROW(還款排程[[#Headers],[還款編號]])-2)+DAY(貸款開始日期),"") ->  | D40: =IF(還款排程[[#This Row],[還款編號]]<>"",IF(ROW()-ROW(還款排程[[#Headers],[期初餘額]])=1,貸款金額,INDEX(還款排程[結餘],ROW()-ROW(還款排程[[#Headers],[期初餘額]])-1)),"") ->  | E40: =IF(還款排程[[#This Row],[還款編號]]<>"",已排程的還款,"") ->  | F40: =IF(還款排程[[#This Row],[還款編號]]<>"",IF(還款排程[[#This Row],[已排程還款]]+額外還款<還款排程[[#This Row],[期初餘額]],額外還款,IF(還款排程[[#This Row],[期初餘額]]-還款排程[[#This Row],[已排程還款]]>0,還款排程[[#This Row],[期初餘額]]-還款排程[[#This Row],[已排程還款]],0)),"") ->  | G40: =IF(還款排程[[#This Row],[還款編號]]<>"",IF(還款排程[[#This Row],[已排程還款]]+還款排程[[#This Row],[額外還款]]<=還款排程[[#This Row],[期初餘額]],還款排程[[#This Row],[已排程還款]]+還款排程[[#This Row],[額外還款]],還款排程[[#This Row],[期初餘額]]),"") ->  | H40: =IF(還款排程[[#This Row],[還款編號]]<>"",還款排程[[#This Row],[還款總金額]]-還款排程[[#This Row],[利息]],"") ->  | I40: =IF(還款排程[[#This Row],[還款編號]]<>"",還款排程[[#This Row],[期初餘額]]*(利率/每年還款次數),"") ->  | J40: =IF(還款排程[[#This Row],[還款編號]]<>"",IF(還款排程[[#This Row],[已排程還款]]+還款排程[[#This Row],[額外還款]]<=還款排程[[#This Row],[期初餘額]],還款排程[[#This Row],[期初餘額]]-還款排程[[#This Row],[本金]],0),"") ->  | K40: =IF(還款排程[[#This Row],[還款編號]]<>"",SUM(INDEX(還款排程[利息],1,1):還款排程[[#This Row],[利息]]),"") -> 
B41: =IF(貸款良好,IF(ROW()-ROW(還款排程[[#Headers],[還款編號]])>已排程的還款次數,"",ROW()-ROW(還款排程[[#Headers],[還款編號]])),"") ->  | C41: =IF(還款排程[[#This Row],[還款編號]]<>"",EOMONTH(貸款開始日期,ROW(還款排程[[#This Row],[還款編號]])-ROW(還款排程[[#Headers],[還款編號]])-2)+DAY(貸款開始日期),"") ->  | D41: =IF(還款排程[[#This Row],[還款編號]]<>"",IF(ROW()-ROW(還款排程[[#Headers],[期初餘額]])=1,貸款金額,INDEX(還款排程[結餘],ROW()-ROW(還款排程[[#Headers],[期初餘額]])-1)),"") ->  | E41: =IF(還款排程[[#This Row],[還款編號]]<>"",已排程的還款,"") ->  | F41: =IF(還款排程[[#This Row],[還款編號]]<>"",IF(還款排程[[#This Row],[已排程還款]]+額外還款<還款排程[[#This Row],[期初餘額]],額外還款,IF(還款排程[[#This Row],[期初餘額]]-還款排程[[#This Row],[已排程還款]]>0,還款排程[[#This Row],[期初餘額]]-還款排程[[#This Row],[已排程還款]],0)),"") ->  | G41: =IF(還款排程[[#This Row],[還款編號]]<>"",IF(還款排程[[#This Row],[已排程還款]]+還款排程[[#This Row],[額外還款]]<=還款排程[[#This Row],[期初餘額]],還款排程[[#This Row],[已排程還款]]+還款排程[[#This Row],[額外還款]],還款排程[[#This Row],[期初餘額]]),"") ->  | H41: =IF(還款排程[[#This Row],[還款編號]]<>"",還款排程[[#This Row],[還款總金額]]-還款排程[[#This Row],[利息]],"") ->  | I41: =IF(還款排程[[#This Row],[還款編號]]<>"",還款排程[[#This Row],[期初餘額]]*(利率/每年還款次數),"") ->  | J41: =IF(還款排程[[#This Row],[還款編號]]<>"",IF(還款排程[[#This Row],[已排程還款]]+還款排程[[#This Row],[額外還款]]<=還款排程[[#This Row],[期初餘額]],還款排程[[#This Row],[期初餘額]]-還款排程[[#This Row],[本金]],0),"") ->  | K41: =IF(還款排程[[#This Row],[還款編號]]<>"",SUM(INDEX(還款排程[利息],1,1):還款排程[[#This Row],[利息]]),"") -> 
B42: =IF(貸款良好,IF(ROW()-ROW(還款排程[[#Headers],[還款編號]])>已排程的還款次數,"",ROW()-ROW(還款排程[[#Headers],[還款編號]])),"") ->  | C42: =IF(還款排程[[#This Row],[還款編號]]<>"",EOMONTH(貸款開始日期,ROW(還款排程[[#This Row],[還款編號]])-ROW(還款排程[[#Headers],[還款編號]])-2)+DAY(貸款開始日期),"") ->  | D42: =IF(還款排程[[#This Row],[還款編號]]<>"",IF(ROW()-ROW(還款排程[[#Headers],[期初餘額]])=1,貸款金額,INDEX(還款排程[結餘],ROW()-ROW(還款排程[[#Headers],[期初餘額]])-1)),"") ->  | E42: =IF(還款排程[[#This Row],[還款編號]]<>"",已排程的還款,"") ->  | F42: =IF(還款排程[[#This Row],[還款編號]]<>"",IF(還款排程[[#This Row],[已排程還款]]+額外還款<還款排程[[#This Row],[期初餘額]],額外還款,IF(還款排程[[#This Row],[期初餘額]]-還款排程[[#This Row],[已排程還款]]>0,還款排程[[#This Row],[期初餘額]]-還款排程[[#This Row],[已排程還款]],0)),"") ->  | G42: =IF(還款排程[[#This Row],[還款編號]]<>"",IF(還款排程[[#This Row],[已排程還款]]+還款排程[[#This Row],[額外還款]]<=還款排程[[#This Row],[期初餘額]],還款排程[[#This Row],[已排程還款]]+還款排程[[#This Row],[額外還款]],還款排程[[#This Row],[期初餘額]]),"") ->  | H42: =IF(還款排程[[#This Row],[還款編號]]<>"",還款排程[[#This Row],[還款總金額]]-還款排程[[#This Row],[利息]],"") ->  | I42: =IF(還款排程[[#This Row],[還款編號]]<>"",還款排程[[#This Row],[期初餘額]]*(利率/每年還款次數),"") ->  | J42: =IF(還款排程[[#This Row],[還款編號]]<>"",IF(還款排程[[#This Row],[已排程還款]]+還款排程[[#This Row],[額外還款]]<=還款排程[[#This Row],[期初餘額]],還款排程[[#This Row],[期初餘額]]-還款排程[[#This Row],[本金]],0),"") ->  | K42: =IF(還款排程[[#This Row],[還款編號]]<>"",SUM(INDEX(還款排程[利息],1,1):還款排程[[#This Row],[利息]]),"") -> 
B43: =IF(貸款良好,IF(ROW()-ROW(還款排程[[#Headers],[還款編號]])>已排程的還款次數,"",ROW()-ROW(還款排程[[#Headers],[還款編號]])),"") ->  | C43: =IF(還款排程[[#This Row],[還款編號]]<>"",EOMONTH(貸款開始日期,ROW(還款排程[[#This Row],[還款編號]])-ROW(還款排程[[#Headers],[還款編號]])-2)+DAY(貸款開始日期),"") ->  | D43: =IF(還款排程[[#This Row],[還款編號]]<>"",IF(ROW()-ROW(還款排程[[#Headers],[期初餘額]])=1,貸款金額,INDEX(還款排程[結餘],ROW()-ROW(還款排程[[#Headers],[期初餘額]])-1)),"") ->  | E43: =IF(還款排程[[#This Row],[還款編號]]<>"",已排程的還款,"") ->  | F43: =IF(還款排程[[#This Row],[還款編號]]<>"",IF(還款排程[[#This Row],[已排程還款]]+額外還款<還款排程[[#This Row],[期初餘額]],額外還款,IF(還款排程[[#This Row],[期初餘額]]-還款排程[[#This Row],[已排程還款]]>0,還款排程[[#This Row],[期初餘額]]-還款排程[[#This Row],[已排程還款]],0)),"") ->  | G43: =IF(還款排程[[#This Row],[還款編號]]<>"",IF(還款排程[[#This Row],[已排程還款]]+還款排程[[#This Row],[額外還款]]<=還款排程[[#This Row],[期初餘額]],還款排程[[#This Row],[已排程還款]]+還款排程[[#This Row],[額外還款]],還款排程[[#This Row],[期初餘額]]),"") ->  | H43: =IF(還款排程[[#This Row],[還款編號]]<>"",還款排程[[#This Row],[還款總金額]]-還款排程[[#This Row],[利息]],"") ->  | I43: =IF(還款排程[[#This Row],[還款編號]]<>"",還款排程[[#This Row],[期初餘額]]*(利率/每年還款次數),"") ->  | J43: =IF(還款排程[[#This Row],[還款編號]]<>"",IF(還款排程[[#This Row],[已排程還款]]+還款排程[[#This Row],[額外還款]]<=還款排程[[#This Row],[期初餘額]],還款排程[[#This Row],[期初餘額]]-還款排程[[#This Row],[本金]],0),"") ->  | K43: =IF(還款排程[[#This Row],[還款編號]]<>"",SUM(INDEX(還款排程[利息],1,1):還款排程[[#This Row],[利息]]),"") -> 
B44: =IF(貸款良好,IF(ROW()-ROW(還款排程[[#Headers],[還款編號]])>已排程的還款次數,"",ROW()-ROW(還款排程[[#Headers],[還款編號]])),"") ->  | C44: =IF(還款排程[[#This Row],[還款編號]]<>"",EOMONTH(貸款開始日期,ROW(還款排程[[#This Row],[還款編號]])-ROW(還款排程[[#Headers],[還款編號]])-2)+DAY(貸款開始日期),"") ->  | D44: =IF(還款排程[[#This Row],[還款編號]]<>"",IF(ROW()-ROW(還款排程[[#Headers],[期初餘額]])=1,貸款金額,INDEX(還款排程[結餘],ROW()-ROW(還款排程[[#Headers],[期初餘額]])-1)),"") ->  | E44: =IF(還款排程[[#This Row],[還款編號]]<>"",已排程的還款,"") ->  | F44: =IF(還款排程[[#This Row],[還款編號]]<>"",IF(還款排程[[#This Row],[已排程還款]]+額外還款<還款排程[[#This Row],[期初餘額]],額外還款,IF(還款排程[[#This Row],[期初餘額]]-還款排程[[#This Row],[已排程還款]]>0,還款排程[[#This Row],[期初餘額]]-還款排程[[#This Row],[已排程還款]],0)),"") ->  | G44: =IF(還款排程[[#This Row],[還款編號]]<>"",IF(還款排程[[#This Row],[已排程還款]]+還款排程[[#This Row],[額外還款]]<=還款排程[[#This Row],[期初餘額]],還款排程[[#This Row],[已排程還款]]+還款排程[[#This Row],[額外還款]],還款排程[[#This Row],[期初餘額]]),"") ->  | H44: =IF(還款排程[[#This Row],[還款編號]]<>"",還款排程[[#This Row],[還款總金額]]-還款排程[[#This Row],[利息]],"") ->  | I44: =IF(還款排程[[#This Row],[還款編號]]<>"",還款排程[[#This Row],[期初餘額]]*(利率/每年還款次數),"") ->  | J44: =IF(還款排程[[#This Row],[還款編號]]<>"",IF(還款排程[[#This Row],[已排程還款]]+還款排程[[#This Row],[額外還款]]<=還款排程[[#This Row],[期初餘額]],還款排程[[#This Row],[期初餘額]]-還款排程[[#This Row],[本金]],0),"") ->  | K44: =IF(還款排程[[#This Row],[還款編號]]<>"",SUM(INDEX(還款排程[利息],1,1):還款排程[[#This Row],[利息]]),"") -> 
B45: =IF(貸款良好,IF(ROW()-ROW(還款排程[[#Headers],[還款編號]])>已排程的還款次數,"",ROW()-ROW(還款排程[[#Headers],[還款編號]])),"") ->  | C45: =IF(還款排程[[#This Row],[還款編號]]<>"",EOMONTH(貸款開始日期,ROW(還款排程[[#This Row],[還款編號]])-ROW(還款排程[[#Headers],[還款編號]])-2)+DAY(貸款開始日期),"") ->  | D45: =IF(還款排程[[#This Row],[還款編號]]<>"",IF(ROW()-ROW(還款排程[[#Headers],[期初餘額]])=1,貸款金額,INDEX(還款排程[結餘],ROW()-ROW(還款排程[[#Headers],[期初餘額]])-1)),"") ->  | E45: =IF(還款排程[[#This Row],[還款編號]]<>"",已排程的還款,"") ->  | F45: =IF(還款排程[[#This Row],[還款編號]]<>"",IF(還款排程[[#This Row],[已排程還款]]+額外還款<還款排程[[#This Row],[期初餘額]],額外還款,IF(還款排程[[#This Row],[期初餘額]]-還款排程[[#This Row],[已排程還款]]>0,還款排程[[#This Row],[期初餘額]]-還款排程[[#This Row],[已排程還款]],0)),"") ->  | G45: =IF(還款排程[[#This Row],[還款編號]]<>"",IF(還款排程[[#This Row],[已排程還款]]+還款排程[[#This Row],[額外還款]]<=還款排程[[#This Row],[期初餘額]],還款排程[[#This Row],[已排程還款]]+還款排程[[#This Row],[額外還款]],還款排程[[#This Row],[期初餘額]]),"") ->  | H45: =IF(還款排程[[#This Row],[還款編號]]<>"",還款排程[[#This Row],[還款總金額]]-還款排程[[#This Row],[利息]],"") ->  | I45: =IF(還款排程[[#This Row],[還款編號]]<>"",還款排程[[#This Row],[期初餘額]]*(利率/每年還款次數),"") ->  | J45: =IF(還款排程[[#This Row],[還款編號]]<>"",IF(還款排程[[#This Row],[已排程還款]]+還款排程[[#This Row],[額外還款]]<=還款排程[[#This Row],[期初餘額]],還款排程[[#This Row],[期初餘額]]-還款排程[[#This Row],[本金]],0),"") ->  | K45: =IF(還款排程[[#This Row],[還款編號]]<>"",SUM(INDEX(還款排程[利息],1,1):還款排程[[#This Row],[利息]]),"") -> 
B46: =IF(貸款良好,IF(ROW()-ROW(還款排程[[#Headers],[還款編號]])>已排程的還款次數,"",ROW()-ROW(還款排程[[#Headers],[還款編號]])),"") ->  | C46: =IF(還款排程[[#This Row],[還款編號]]<>"",EOMONTH(貸款開始日期,ROW(還款排程[[#This Row],[還款編號]])-ROW(還款排程[[#Headers],[還款編號]])-2)+DAY(貸款開始日期),"") ->  | D46: =IF(還款排程[[#This Row],[還款編號]]<>"",IF(ROW()-ROW(還款排程[[#Headers],[期初餘額]])=1,貸款金額,INDEX(還款排程[結餘],ROW()-ROW(還款排程[[#Headers],[期初餘額]])-1)),"") ->  | E46: =IF(還款排程[[#This Row],[還款編號]]<>"",已排程的還款,"") ->  | F46: =IF(還款排程[[#This Row],[還款編號]]<>"",IF(還款排程[[#This Row],[已排程還款]]+額外還款<還款排程[[#This Row],[期初餘額]],額外還款,IF(還款排程[[#This Row],[期初餘額]]-還款排程[[#This Row],[已排程還款]]>0,還款排程[[#This Row],[期初餘額]]-還款排程[[#This Row],[已排程還款]],0)),"") ->  | G46: =IF(還款排程[[#This Row],[還款編號]]<>"",IF(還款排程[[#This Row],[已排程還款]]+還款排程[[#This Row],[額外還款]]<=還款排程[[#This Row],[期初餘額]],還款排程[[#This Row],[已排程還款]]+還款排程[[#This Row],[額外還款]],還款排程[[#This Row],[期初餘額]]),"") ->  | H46: =IF(還款排程[[#This Row],[還款編號]]<>"",還款排程[[#This Row],[還款總金額]]-還款排程[[#This Row],[利息]],"") ->  | I46: =IF(還款排程[[#This Row],[還款編號]]<>"",還款排程[[#This Row],[期初餘額]]*(利率/每年還款次數),"") ->  | J46: =IF(還款排程[[#This Row],[還款編號]]<>"",IF(還款排程[[#This Row],[已排程還款]]+還款排程[[#This Row],[額外還款]]<=還款排程[[#This Row],[期初餘額]],還款排程[[#This Row],[期初餘額]]-還款排程[[#This Row],[本金]],0),"") ->  | K46: =IF(還款排程[[#This Row],[還款編號]]<>"",SUM(INDEX(還款排程[利息],1,1):還款排程[[#This Row],[利息]]),"") -> 
B47: =IF(貸款良好,IF(ROW()-ROW(還款排程[[#Headers],[還款編號]])>已排程的還款次數,"",ROW()-ROW(還款排程[[#Headers],[還款編號]])),"") ->  | C47: =IF(還款排程[[#This Row],[還款編號]]<>"",EOMONTH(貸款開始日期,ROW(還款排程[[#This Row],[還款編號]])-ROW(還款排程[[#Headers],[還款編號]])-2)+DAY(貸款開始日期),"") ->  | D47: =IF(還款排程[[#This Row],[還款編號]]<>"",IF(ROW()-ROW(還款排程[[#Headers],[期初餘額]])=1,貸款金額,INDEX(還款排程[結餘],ROW()-ROW(還款排程[[#Headers],[期初餘額]])-1)),"") ->  | E47: =IF(還款排程[[#This Row],[還款編號]]<>"",已排程的還款,"") ->  | F47: =IF(還款排程[[#This Row],[還款編號]]<>"",IF(還款排程[[#This Row],[已排程還款]]+額外還款<還款排程[[#This Row],[期初餘額]],額外還款,IF(還款排程[[#This Row],[期初餘額]]-還款排程[[#This Row],[已排程還款]]>0,還款排程[[#This Row],[期初餘額]]-還款排程[[#This Row],[已排程還款]],0)),"") ->  | G47: =IF(還款排程[[#This Row],[還款編號]]<>"",IF(還款排程[[#This Row],[已排程還款]]+還款排程[[#This Row],[額外還款]]<=還款排程[[#This Row],[期初餘額]],還款排程[[#This Row],[已排程還款]]+還款排程[[#This Row],[額外還款]],還款排程[[#This Row],[期初餘額]]),"") ->  | H47: =IF(還款排程[[#This Row],[還款編號]]<>"",還款排程[[#This Row],[還款總金額]]-還款排程[[#This Row],[利息]],"") ->  | I47: =IF(還款排程[[#This Row],[還款編號]]<>"",還款排程[[#This Row],[期初餘額]]*(利率/每年還款次數),"") ->  | J47: =IF(還款排程[[#This Row],[還款編號]]<>"",IF(還款排程[[#This Row],[已排程還款]]+還款排程[[#This Row],[額外還款]]<=還款排程[[#This Row],[期初餘額]],還款排程[[#This Row],[期初餘額]]-還款排程[[#This Row],[本金]],0),"") ->  | K47: =IF(還款排程[[#This Row],[還款編號]]<>"",SUM(INDEX(還款排程[利息],1,1):還款排程[[#This Row],[利息]]),"") -> 
B48: =IF(貸款良好,IF(ROW()-ROW(還款排程[[#Headers],[還款編號]])>已排程的還款次數,"",ROW()-ROW(還款排程[[#Headers],[還款編號]])),"") ->  | C48: =IF(還款排程[[#This Row],[還款編號]]<>"",EOMONTH(貸款開始日期,ROW(還款排程[[#This Row],[還款編號]])-ROW(還款排程[[#Headers],[還款編號]])-2)+DAY(貸款開始日期),"") ->  | D48: =IF(還款排程[[#This Row],[還款編號]]<>"",IF(ROW()-ROW(還款排程[[#Headers],[期初餘額]])=1,貸款金額,INDEX(還款排程[結餘],ROW()-ROW(還款排程[[#Headers],[期初餘額]])-1)),"") ->  | E48: =IF(還款排程[[#This Row],[還款編號]]<>"",已排程的還款,"") ->  | F48: =IF(還款排程[[#This Row],[還款編號]]<>"",IF(還款排程[[#This Row],[已排程還款]]+額外還款<還款排程[[#This Row],[期初餘額]],額外還款,IF(還款排程[[#This Row],[期初餘額]]-還款排程[[#This Row],[已排程還款]]>0,還款排程[[#This Row],[期初餘額]]-還款排程[[#This Row],[已排程還款]],0)),"") ->  | G48: =IF(還款排程[[#This Row],[還款編號]]<>"",IF(還款排程[[#This Row],[已排程還款]]+還款排程[[#This Row],[額外還款]]<=還款排程[[#This Row],[期初餘額]],還款排程[[#This Row],[已排程還款]]+還款排程[[#This Row],[額外還款]],還款排程[[#This Row],[期初餘額]]),"") ->  | H48: =IF(還款排程[[#This Row],[還款編號]]<>"",還款排程[[#This Row],[還款總金額]]-還款排程[[#This Row],[利息]],"") ->  | I48: =IF(還款排程[[#This Row],[還款編號]]<>"",還款排程[[#This Row],[期初餘額]]*(利率/每年還款次數),"") ->  | J48: =IF(還款排程[[#This Row],[還款編號]]<>"",IF(還款排程[[#This Row],[已排程還款]]+還款排程[[#This Row],[額外還款]]<=還款排程[[#This Row],[期初餘額]],還款排程[[#This Row],[期初餘額]]-還款排程[[#This Row],[本金]],0),"") ->  | K48: =IF(還款排程[[#This Row],[還款編號]]<>"",SUM(INDEX(還款排程[利息],1,1):還款排程[[#This Row],[利息]]),"") -> 
B49: =IF(貸款良好,IF(ROW()-ROW(還款排程[[#Headers],[還款編號]])>已排程的還款次數,"",ROW()-ROW(還款排程[[#Headers],[還款編號]])),"") ->  | C49: =IF(還款排程[[#This Row],[還款編號]]<>"",EOMONTH(貸款開始日期,ROW(還款排程[[#This Row],[還款編號]])-ROW(還款排程[[#Headers],[還款編號]])-2)+DAY(貸款開始日期),"") ->  | D49: =IF(還款排程[[#This Row],[還款編號]]<>"",IF(ROW()-ROW(還款排程[[#Headers],[期初餘額]])=1,貸款金額,INDEX(還款排程[結餘],ROW()-ROW(還款排程[[#Headers],[期初餘額]])-1)),"") ->  | E49: =IF(還款排程[[#This Row],[還款編號]]<>"",已排程的還款,"") ->  | F49: =IF(還款排程[[#This Row],[還款編號]]<>"",IF(還款排程[[#This Row],[已排程還款]]+額外還款<還款排程[[#This Row],[期初餘額]],額外還款,IF(還款排程[[#This Row],[期初餘額]]-還款排程[[#This Row],[已排程還款]]>0,還款排程[[#This Row],[期初餘額]]-還款排程[[#This Row],[已排程還款]],0)),"") ->  | G49: =IF(還款排程[[#This Row],[還款編號]]<>"",IF(還款排程[[#This Row],[已排程還款]]+還款排程[[#This Row],[額外還款]]<=還款排程[[#This Row],[期初餘額]],還款排程[[#This Row],[已排程還款]]+還款排程[[#This Row],[額外還款]],還款排程[[#This Row],[期初餘額]]),"") ->  | H49: =IF(還款排程[[#This Row],[還款編號]]<>"",還款排程[[#This Row],[還款總金額]]-還款排程[[#This Row],[利息]],"") ->  | I49: =IF(還款排程[[#This Row],[還款編號]]<>"",還款排程[[#This Row],[期初餘額]]*(利率/每年還款次數),"") ->  | J49: =IF(還款排程[[#This Row],[還款編號]]<>"",IF(還款排程[[#This Row],[已排程還款]]+還款排程[[#This Row],[額外還款]]<=還款排程[[#This Row],[期初餘額]],還款排程[[#This Row],[期初餘額]]-還款排程[[#This Row],[本金]],0),"") ->  | K49: =IF(還款排程[[#This Row],[還款編號]]<>"",SUM(INDEX(還款排程[利息],1,1):還款排程[[#This Row],[利息]]),"") -> 
B50: =IF(貸款良好,IF(ROW()-ROW(還款排程[[#Headers],[還款編號]])>已排程的還款次數,"",ROW()-ROW(還款排程[[#Headers],[還款編號]])),"") ->  | C50: =IF(還款排程[[#This Row],[還款編號]]<>"",EOMONTH(貸款開始日期,ROW(還款排程[[#This Row],[還款編號]])-ROW(還款排程[[#Headers],[還款編號]])-2)+DAY(貸款開始日期),"") ->  | D50: =IF(還款排程[[#This Row],[還款編號]]<>"",IF(ROW()-ROW(還款排程[[#Headers],[期初餘額]])=1,貸款金額,INDEX(還款排程[結餘],ROW()-ROW(還款排程[[#Headers],[期初餘額]])-1)),"") ->  | E50: =IF(還款排程[[#This Row],[還款編號]]<>"",已排程的還款,"") ->  | F50: =IF(還款排程[[#This Row],[還款編號]]<>"",IF(還款排程[[#This Row],[已排程還款]]+額外還款<還款排程[[#This Row],[期初餘額]],額外還款,IF(還款排程[[#This Row],[期初餘額]]-還款排程[[#This Row],[已排程還款]]>0,還款排程[[#This Row],[期初餘額]]-還款排程[[#This Row],[已排程還款]],0)),"") ->  | G50: =IF(還款排程[[#This Row],[還款編號]]<>"",IF(還款排程[[#This Row],[已排程還款]]+還款排程[[#This Row],[額外還款]]<=還款排程[[#This Row],[期初餘額]],還款排程[[#This Row],[已排程還款]]+還款排程[[#This Row],[額外還款]],還款排程[[#This Row],[期初餘額]]),"") ->  | H50: =IF(還款排程[[#This Row],[還款編號]]<>"",還款排程[[#This Row],[還款總金額]]-還款排程[[#This Row],[利息]],"") ->  | I50: =IF(還款排程[[#This Row],[還款編號]]<>"",還款排程[[#This Row],[期初餘額]]*(利率/每年還款次數),"") ->  | J50: =IF(還款排程[[#This Row],[還款編號]]<>"",IF(還款排程[[#This Row],[已排程還款]]+還款排程[[#This Row],[額外還款]]<=還款排程[[#This Row],[期初餘額]],還款排程[[#This Row],[期初餘額]]-還款排程[[#This Row],[本金]],0),"") ->  | K50: =IF(還款排程[[#This Row],[還款編號]]<>"",SUM(INDEX(還款排程[利息],1,1):還款排程[[#This Row],[利息]]),"") -> 
B51: =IF(貸款良好,IF(ROW()-ROW(還款排程[[#Headers],[還款編號]])>已排程的還款次數,"",ROW()-ROW(還款排程[[#Headers],[還款編號]])),"") ->  | C51: =IF(還款排程[[#This Row],[還款編號]]<>"",EOMONTH(貸款開始日期,ROW(還款排程[[#This Row],[還款編號]])-ROW(還款排程[[#Headers],[還款編號]])-2)+DAY(貸款開始日期),"") ->  | D51: =IF(還款排程[[#This Row],[還款編號]]<>"",IF(ROW()-ROW(還款排程[[#Headers],[期初餘額]])=1,貸款金額,INDEX(還款排程[結餘],ROW()-ROW(還款排程[[#Headers],[期初餘額]])-1)),"") ->  | E51: =IF(還款排程[[#This Row],[還款編號]]<>"",已排程的還款,"") ->  | F51: =IF(還款排程[[#This Row],[還款編號]]<>"",IF(還款排程[[#This Row],[已排程還款]]+額外還款<還款排程[[#This Row],[期初餘額]],額外還款,IF(還款排程[[#This Row],[期初餘額]]-還款排程[[#This Row],[已排程還款]]>0,還款排程[[#This Row],[期初餘額]]-還款排程[[#This Row],[已排程還款]],0)),"") ->  | G51: =IF(還款排程[[#This Row],[還款編號]]<>"",IF(還款排程[[#This Row],[已排程還款]]+還款排程[[#This Row],[額外還款]]<=還款排程[[#This Row],[期初餘額]],還款排程[[#This Row],[已排程還款]]+還款排程[[#This Row],[額外還款]],還款排程[[#This Row],[期初餘額]]),"") ->  | H51: =IF(還款排程[[#This Row],[還款編號]]<>"",還款排程[[#This Row],[還款總金額]]-還款排程[[#This Row],[利息]],"") ->  | I51: =IF(還款排程[[#This Row],[還款編號]]<>"",還款排程[[#This Row],[期初餘額]]*(利率/每年還款次數),"") ->  | J51: =IF(還款排程[[#This Row],[還款編號]]<>"",IF(還款排程[[#This Row],[已排程還款]]+還款排程[[#This Row],[額外還款]]<=還款排程[[#This Row],[期初餘額]],還款排程[[#This Row],[期初餘額]]-還款排程[[#This Row],[本金]],0),"") ->  | K51: =IF(還款排程[[#This Row],[還款編號]]<>"",SUM(INDEX(還款排程[利息],1,1):還款排程[[#This Row],[利息]]),"") -> 
B52: =IF(貸款良好,IF(ROW()-ROW(還款排程[[#Headers],[還款編號]])>已排程的還款次數,"",ROW()-ROW(還款排程[[#Headers],[還款編號]])),"") ->  | C52: =IF(還款排程[[#This Row],[還款編號]]<>"",EOMONTH(貸款開始日期,ROW(還款排程[[#This Row],[還款編號]])-ROW(還款排程[[#Headers],[還款編號]])-2)+DAY(貸款開始日期),"") ->  | D52: =IF(還款排程[[#This Row],[還款編號]]<>"",IF(ROW()-ROW(還款排程[[#Headers],[期初餘額]])=1,貸款金額,INDEX(還款排程[結餘],ROW()-ROW(還款排程[[#Headers],[期初餘額]])-1)),"") ->  | E52: =IF(還款排程[[#This Row],[還款編號]]<>"",已排程的還款,"") ->  | F52: =IF(還款排程[[#This Row],[還款編號]]<>"",IF(還款排程[[#This Row],[已排程還款]]+額外還款<還款排程[[#This Row],[期初餘額]],額外還款,IF(還款排程[[#This Row],[期初餘額]]-還款排程[[#This Row],[已排程還款]]>0,還款排程[[#This Row],[期初餘額]]-還款排程[[#This Row],[已排程還款]],0)),"") ->  | G52: =IF(還款排程[[#This Row],[還款編號]]<>"",IF(還款排程[[#This Row],[已排程還款]]+還款排程[[#This Row],[額外還款]]<=還款排程[[#This Row],[期初餘額]],還款排程[[#This Row],[已排程還款]]+還款排程[[#This Row],[額外還款]],還款排程[[#This Row],[期初餘額]]),"") ->  | H52: =IF(還款排程[[#This Row],[還款編號]]<>"",還款排程[[#This Row],[還款總金額]]-還款排程[[#This Row],[利息]],"") ->  | I52: =IF(還款排程[[#This Row],[還款編號]]<>"",還款排程[[#This Row],[期初餘額]]*(利率/每年還款次數),"") ->  | J52: =IF(還款排程[[#This Row],[還款編號]]<>"",IF(還款排程[[#This Row],[已排程還款]]+還款排程[[#This Row],[額外還款]]<=還款排程[[#This Row],[期初餘額]],還款排程[[#This Row],[期初餘額]]-還款排程[[#This Row],[本金]],0),"") ->  | K52: =IF(還款排程[[#This Row],[還款編號]]<>"",SUM(INDEX(還款排程[利息],1,1):還款排程[[#This Row],[利息]]),"") -> 
B53: =IF(貸款良好,IF(ROW()-ROW(還款排程[[#Headers],[還款編號]])>已排程的還款次數,"",ROW()-ROW(還款排程[[#Headers],[還款編號]])),"") ->  | C53: =IF(還款排程[[#This Row],[還款編號]]<>"",EOMONTH(貸款開始日期,ROW(還款排程[[#This Row],[還款編號]])-ROW(還款排程[[#Headers],[還款編號]])-2)+DAY(貸款開始日期),"") ->  | D53: =IF(還款排程[[#This Row],[還款編號]]<>"",IF(ROW()-ROW(還款排程[[#Headers],[期初餘額]])=1,貸款金額,INDEX(還款排程[結餘],ROW()-ROW(還款排程[[#Headers],[期初餘額]])-1)),"") ->  | E53: =IF(還款排程[[#This Row],[還款編號]]<>"",已排程的還款,"") ->  | F53: =IF(還款排程[[#This Row],[還款編號]]<>"",IF(還款排程[[#This Row],[已排程還款]]+額外還款<還款排程[[#This Row],[期初餘額]],額外還款,IF(還款排程[[#This Row],[期初餘額]]-還款排程[[#This Row],[已排程還款]]>0,還款排程[[#This Row],[期初餘額]]-還款排程[[#This Row],[已排程還款]],0)),"") ->  | G53: =IF(還款排程[[#This Row],[還款編號]]<>"",IF(還款排程[[#This Row],[已排程還款]]+還款排程[[#This Row],[額外還款]]<=還款排程[[#This Row],[期初餘額]],還款排程[[#This Row],[已排程還款]]+還款排程[[#This Row],[額外還款]],還款排程[[#This Row],[期初餘額]]),"") ->  | H53: =IF(還款排程[[#This Row],[還款編號]]<>"",還款排程[[#This Row],[還款總金額]]-還款排程[[#This Row],[利息]],"") ->  | I53: =IF(還款排程[[#This Row],[還款編號]]<>"",還款排程[[#This Row],[期初餘額]]*(利率/每年還款次數),"") ->  | J53: =IF(還款排程[[#This Row],[還款編號]]<>"",IF(還款排程[[#This Row],[已排程還款]]+還款排程[[#This Row],[額外還款]]<=還款排程[[#This Row],[期初餘額]],還款排程[[#This Row],[期初餘額]]-還款排程[[#This Row],[本金]],0),"") ->  | K53: =IF(還款排程[[#This Row],[還款編號]]<>"",SUM(INDEX(還款排程[利息],1,1):還款排程[[#This Row],[利息]]),"") -> 
B54: =IF(貸款良好,IF(ROW()-ROW(還款排程[[#Headers],[還款編號]])>已排程的還款次數,"",ROW()-ROW(還款排程[[#Headers],[還款編號]])),"") ->  | C54: =IF(還款排程[[#This Row],[還款編號]]<>"",EOMONTH(貸款開始日期,ROW(還款排程[[#This Row],[還款編號]])-ROW(還款排程[[#Headers],[還款編號]])-2)+DAY(貸款開始日期),"") ->  | D54: =IF(還款排程[[#This Row],[還款編號]]<>"",IF(ROW()-ROW(還款排程[[#Headers],[期初餘額]])=1,貸款金額,INDEX(還款排程[結餘],ROW()-ROW(還款排程[[#Headers],[期初餘額]])-1)),"") ->  | E54: =IF(還款排程[[#This Row],[還款編號]]<>"",已排程的還款,"") ->  | F54: =IF(還款排程[[#This Row],[還款編號]]<>"",IF(還款排程[[#This Row],[已排程還款]]+額外還款<還款排程[[#This Row],[期初餘額]],額外還款,IF(還款排程[[#This Row],[期初餘額]]-還款排程[[#This Row],[已排程還款]]>0,還款排程[[#This Row],[期初餘額]]-還款排程[[#This Row],[已排程還款]],0)),"") ->  | G54: =IF(還款排程[[#This Row],[還款編號]]<>"",IF(還款排程[[#This Row],[已排程還款]]+還款排程[[#This Row],[額外還款]]<=還款排程[[#This Row],[期初餘額]],還款排程[[#This Row],[已排程還款]]+還款排程[[#This Row],[額外還款]],還款排程[[#This Row],[期初餘額]]),"") ->  | H54: =IF(還款排程[[#This Row],[還款編號]]<>"",還款排程[[#This Row],[還款總金額]]-還款排程[[#This Row],[利息]],"") ->  | I54: =IF(還款排程[[#This Row],[還款編號]]<>"",還款排程[[#This Row],[期初餘額]]*(利率/每年還款次數),"") ->  | J54: =IF(還款排程[[#This Row],[還款編號]]<>"",IF(還款排程[[#This Row],[已排程還款]]+還款排程[[#This Row],[額外還款]]<=還款排程[[#This Row],[期初餘額]],還款排程[[#This Row],[期初餘額]]-還款排程[[#This Row],[本金]],0),"") ->  | K54: =IF(還款排程[[#This Row],[還款編號]]<>"",SUM(INDEX(還款排程[利息],1,1):還款排程[[#This Row],[利息]]),"") -> 
B55: =IF(貸款良好,IF(ROW()-ROW(還款排程[[#Headers],[還款編號]])>已排程的還款次數,"",ROW()-ROW(還款排程[[#Headers],[還款編號]])),"") ->  | C55: =IF(還款排程[[#This Row],[還款編號]]<>"",EOMONTH(貸款開始日期,ROW(還款排程[[#This Row],[還款編號]])-ROW(還款排程[[#Headers],[還款編號]])-2)+DAY(貸款開始日期),"") ->  | D55: =IF(還款排程[[#This Row],[還款編號]]<>"",IF(ROW()-ROW(還款排程[[#Headers],[期初餘額]])=1,貸款金額,INDEX(還款排程[結餘],ROW()-ROW(還款排程[[#Headers],[期初餘額]])-1)),"") ->  | E55: =IF(還款排程[[#This Row],[還款編號]]<>"",已排程的還款,"") ->  | F55: =IF(還款排程[[#This Row],[還款編號]]<>"",IF(還款排程[[#This Row],[已排程還款]]+額外還款<還款排程[[#This Row],[期初餘額]],額外還款,IF(還款排程[[#This Row],[期初餘額]]-還款排程[[#This Row],[已排程還款]]>0,還款排程[[#This Row],[期初餘額]]-還款排程[[#This Row],[已排程還款]],0)),"") ->  | G55: =IF(還款排程[[#This Row],[還款編號]]<>"",IF(還款排程[[#This Row],[已排程還款]]+還款排程[[#This Row],[額外還款]]<=還款排程[[#This Row],[期初餘額]],還款排程[[#This Row],[已排程還款]]+還款排程[[#This Row],[額外還款]],還款排程[[#This Row],[期初餘額]]),"") ->  | H55: =IF(還款排程[[#This Row],[還款編號]]<>"",還款排程[[#This Row],[還款總金額]]-還款排程[[#This Row],[利息]],"") ->  | I55: =IF(還款排程[[#This Row],[還款編號]]<>"",還款排程[[#This Row],[期初餘額]]*(利率/每年還款次數),"") ->  | J55: =IF(還款排程[[#This Row],[還款編號]]<>"",IF(還款排程[[#This Row],[已排程還款]]+還款排程[[#This Row],[額外還款]]<=還款排程[[#This Row],[期初餘額]],還款排程[[#This Row],[期初餘額]]-還款排程[[#This Row],[本金]],0),"") ->  | K55: =IF(還款排程[[#This Row],[還款編號]]<>"",SUM(INDEX(還款排程[利息],1,1):還款排程[[#This Row],[利息]]),"") -> 
B56: =IF(貸款良好,IF(ROW()-ROW(還款排程[[#Headers],[還款編號]])>已排程的還款次數,"",ROW()-ROW(還款排程[[#Headers],[還款編號]])),"") ->  | C56: =IF(還款排程[[#This Row],[還款編號]]<>"",EOMONTH(貸款開始日期,ROW(還款排程[[#This Row],[還款編號]])-ROW(還款排程[[#Headers],[還款編號]])-2)+DAY(貸款開始日期),"") ->  | D56: =IF(還款排程[[#This Row],[還款編號]]<>"",IF(ROW()-ROW(還款排程[[#Headers],[期初餘額]])=1,貸款金額,INDEX(還款排程[結餘],ROW()-ROW(還款排程[[#Headers],[期初餘額]])-1)),"") ->  | E56: =IF(還款排程[[#This Row],[還款編號]]<>"",已排程的還款,"") ->  | F56: =IF(還款排程[[#This Row],[還款編號]]<>"",IF(還款排程[[#This Row],[已排程還款]]+額外還款<還款排程[[#This Row],[期初餘額]],額外還款,IF(還款排程[[#This Row],[期初餘額]]-還款排程[[#This Row],[已排程還款]]>0,還款排程[[#This Row],[期初餘額]]-還款排程[[#This Row],[已排程還款]],0)),"") ->  | G56: =IF(還款排程[[#This Row],[還款編號]]<>"",IF(還款排程[[#This Row],[已排程還款]]+還款排程[[#This Row],[額外還款]]<=還款排程[[#This Row],[期初餘額]],還款排程[[#This Row],[已排程還款]]+還款排程[[#This Row],[額外還款]],還款排程[[#This Row],[期初餘額]]),"") ->  | H56: =IF(還款排程[[#This Row],[還款編號]]<>"",還款排程[[#This Row],[還款總金額]]-還款排程[[#This Row],[利息]],"") ->  | I56: =IF(還款排程[[#This Row],[還款編號]]<>"",還款排程[[#This Row],[期初餘額]]*(利率/每年還款次數),"") ->  | J56: =IF(還款排程[[#This Row],[還款編號]]<>"",IF(還款排程[[#This Row],[已排程還款]]+還款排程[[#This Row],[額外還款]]<=還款排程[[#This Row],[期初餘額]],還款排程[[#This Row],[期初餘額]]-還款排程[[#This Row],[本金]],0),"") ->  | K56: =IF(還款排程[[#This Row],[還款編號]]<>"",SUM(INDEX(還款排程[利息],1,1):還款排程[[#This Row],[利息]]),"") -> 
B57: =IF(貸款良好,IF(ROW()-ROW(還款排程[[#Headers],[還款編號]])>已排程的還款次數,"",ROW()-ROW(還款排程[[#Headers],[還款編號]])),"") ->  | C57: =IF(還款排程[[#This Row],[還款編號]]<>"",EOMONTH(貸款開始日期,ROW(還款排程[[#This Row],[還款編號]])-ROW(還款排程[[#Headers],[還款編號]])-2)+DAY(貸款開始日期),"") ->  | D57: =IF(還款排程[[#This Row],[還款編號]]<>"",IF(ROW()-ROW(還款排程[[#Headers],[期初餘額]])=1,貸款金額,INDEX(還款排程[結餘],ROW()-ROW(還款排程[[#Headers],[期初餘額]])-1)),"") ->  | E57: =IF(還款排程[[#This Row],[還款編號]]<>"",已排程的還款,"") ->  | F57: =IF(還款排程[[#This Row],[還款編號]]<>"",IF(還款排程[[#This Row],[已排程還款]]+額外還款<還款排程[[#This Row],[期初餘額]],額外還款,IF(還款排程[[#This Row],[期初餘額]]-還款排程[[#This Row],[已排程還款]]>0,還款排程[[#This Row],[期初餘額]]-還款排程[[#This Row],[已排程還款]],0)),"") ->  | G57: =IF(還款排程[[#This Row],[還款編號]]<>"",IF(還款排程[[#This Row],[已排程還款]]+還款排程[[#This Row],[額外還款]]<=還款排程[[#This Row],[期初餘額]],還款排程[[#This Row],[已排程還款]]+還款排程[[#This Row],[額外還款]],還款排程[[#This Row],[期初餘額]]),"") ->  | H57: =IF(還款排程[[#This Row],[還款編號]]<>"",還款排程[[#This Row],[還款總金額]]-還款排程[[#This Row],[利息]],"") ->  | I57: =IF(還款排程[[#This Row],[還款編號]]<>"",還款排程[[#This Row],[期初餘額]]*(利率/每年還款次數),"") ->  | J57: =IF(還款排程[[#This Row],[還款編號]]<>"",IF(還款排程[[#This Row],[已排程還款]]+還款排程[[#This Row],[額外還款]]<=還款排程[[#This Row],[期初餘額]],還款排程[[#This Row],[期初餘額]]-還款排程[[#This Row],[本金]],0),"") ->  | K57: =IF(還款排程[[#This Row],[還款編號]]<>"",SUM(INDEX(還款排程[利息],1,1):還款排程[[#This Row],[利息]]),"") -> 
B58: =IF(貸款良好,IF(ROW()-ROW(還款排程[[#Headers],[還款編號]])>已排程的還款次數,"",ROW()-ROW(還款排程[[#Headers],[還款編號]])),"") ->  | C58: =IF(還款排程[[#This Row],[還款編號]]<>"",EOMONTH(貸款開始日期,ROW(還款排程[[#This Row],[還款編號]])-ROW(還款排程[[#Headers],[還款編號]])-2)+DAY(貸款開始日期),"") ->  | D58: =IF(還款排程[[#This Row],[還款編號]]<>"",IF(ROW()-ROW(還款排程[[#Headers],[期初餘額]])=1,貸款金額,INDEX(還款排程[結餘],ROW()-ROW(還款排程[[#Headers],[期初餘額]])-1)),"") ->  | E58: =IF(還款排程[[#This Row],[還款編號]]<>"",已排程的還款,"") ->  | F58: =IF(還款排程[[#This Row],[還款編號]]<>"",IF(還款排程[[#This Row],[已排程還款]]+額外還款<還款排程[[#This Row],[期初餘額]],額外還款,IF(還款排程[[#This Row],[期初餘額]]-還款排程[[#This Row],[已排程還款]]>0,還款排程[[#This Row],[期初餘額]]-還款排程[[#This Row],[已排程還款]],0)),"") ->  | G58: =IF(還款排程[[#This Row],[還款編號]]<>"",IF(還款排程[[#This Row],[已排程還款]]+還款排程[[#This Row],[額外還款]]<=還款排程[[#This Row],[期初餘額]],還款排程[[#This Row],[已排程還款]]+還款排程[[#This Row],[額外還款]],還款排程[[#This Row],[期初餘額]]),"") ->  | H58: =IF(還款排程[[#This Row],[還款編號]]<>"",還款排程[[#This Row],[還款總金額]]-還款排程[[#This Row],[利息]],"") ->  | I58: =IF(還款排程[[#This Row],[還款編號]]<>"",還款排程[[#This Row],[期初餘額]]*(利率/每年還款次數),"") ->  | J58: =IF(還款排程[[#This Row],[還款編號]]<>"",IF(還款排程[[#This Row],[已排程還款]]+還款排程[[#This Row],[額外還款]]<=還款排程[[#This Row],[期初餘額]],還款排程[[#This Row],[期初餘額]]-還款排程[[#This Row],[本金]],0),"") ->  | K58: =IF(還款排程[[#This Row],[還款編號]]<>"",SUM(INDEX(還款排程[利息],1,1):還款排程[[#This Row],[利息]]),"") -> 
B59: =IF(貸款良好,IF(ROW()-ROW(還款排程[[#Headers],[還款編號]])>已排程的還款次數,"",ROW()-ROW(還款排程[[#Headers],[還款編號]])),"") ->  | C59: =IF(還款排程[[#This Row],[還款編號]]<>"",EOMONTH(貸款開始日期,ROW(還款排程[[#This Row],[還款編號]])-ROW(還款排程[[#Headers],[還款編號]])-2)+DAY(貸款開始日期),"") ->  | D59: =IF(還款排程[[#This Row],[還款編號]]<>"",IF(ROW()-ROW(還款排程[[#Headers],[期初餘額]])=1,貸款金額,INDEX(還款排程[結餘],ROW()-ROW(還款排程[[#Headers],[期初餘額]])-1)),"") ->  | E59: =IF(還款排程[[#This Row],[還款編號]]<>"",已排程的還款,"") ->  | F59: =IF(還款排程[[#This Row],[還款編號]]<>"",IF(還款排程[[#This Row],[已排程還款]]+額外還款<還款排程[[#This Row],[期初餘額]],額外還款,IF(還款排程[[#This Row],[期初餘額]]-還款排程[[#This Row],[已排程還款]]>0,還款排程[[#This Row],[期初餘額]]-還款排程[[#This Row],[已排程還款]],0)),"") ->  | G59: =IF(還款排程[[#This Row],[還款編號]]<>"",IF(還款排程[[#This Row],[已排程還款]]+還款排程[[#This Row],[額外還款]]<=還款排程[[#This Row],[期初餘額]],還款排程[[#This Row],[已排程還款]]+還款排程[[#This Row],[額外還款]],還款排程[[#This Row],[期初餘額]]),"") ->  | H59: =IF(還款排程[[#This Row],[還款編號]]<>"",還款排程[[#This Row],[還款總金額]]-還款排程[[#This Row],[利息]],"") ->  | I59: =IF(還款排程[[#This Row],[還款編號]]<>"",還款排程[[#This Row],[期初餘額]]*(利率/每年還款次數),"") ->  | J59: =IF(還款排程[[#This Row],[還款編號]]<>"",IF(還款排程[[#This Row],[已排程還款]]+還款排程[[#This Row],[額外還款]]<=還款排程[[#This Row],[期初餘額]],還款排程[[#This Row],[期初餘額]]-還款排程[[#This Row],[本金]],0),"") ->  | K59: =IF(還款排程[[#This Row],[還款編號]]<>"",SUM(INDEX(還款排程[利息],1,1):還款排程[[#This Row],[利息]]),"") -> 
B60: =IF(貸款良好,IF(ROW()-ROW(還款排程[[#Headers],[還款編號]])>已排程的還款次數,"",ROW()-ROW(還款排程[[#Headers],[還款編號]])),"") ->  | C60: =IF(還款排程[[#This Row],[還款編號]]<>"",EOMONTH(貸款開始日期,ROW(還款排程[[#This Row],[還款編號]])-ROW(還款排程[[#Headers],[還款編號]])-2)+DAY(貸款開始日期),"") ->  | D60: =IF(還款排程[[#This Row],[還款編號]]<>"",IF(ROW()-ROW(還款排程[[#Headers],[期初餘額]])=1,貸款金額,INDEX(還款排程[結餘],ROW()-ROW(還款排程[[#Headers],[期初餘額]])-1)),"") ->  | E60: =IF(還款排程[[#This Row],[還款編號]]<>"",已排程的還款,"") ->  | F60: =IF(還款排程[[#This Row],[還款編號]]<>"",IF(還款排程[[#This Row],[已排程還款]]+額外還款<還款排程[[#This Row],[期初餘額]],額外還款,IF(還款排程[[#This Row],[期初餘額]]-還款排程[[#This Row],[已排程還款]]>0,還款排程[[#This Row],[期初餘額]]-還款排程[[#This Row],[已排程還款]],0)),"") ->  | G60: =IF(還款排程[[#This Row],[還款編號]]<>"",IF(還款排程[[#This Row],[已排程還款]]+還款排程[[#This Row],[額外還款]]<=還款排程[[#This Row],[期初餘額]],還款排程[[#This Row],[已排程還款]]+還款排程[[#This Row],[額外還款]],還款排程[[#This Row],[期初餘額]]),"") ->  | H60: =IF(還款排程[[#This Row],[還款編號]]<>"",還款排程[[#This Row],[還款總金額]]-還款排程[[#This Row],[利息]],"") ->  | I60: =IF(還款排程[[#This Row],[還款編號]]<>"",還款排程[[#This Row],[期初餘額]]*(利率/每年還款次數),"") ->  | J60: =IF(還款排程[[#This Row],[還款編號]]<>"",IF(還款排程[[#This Row],[已排程還款]]+還款排程[[#This Row],[額外還款]]<=還款排程[[#This Row],[期初餘額]],還款排程[[#This Row],[期初餘額]]-還款排程[[#This Row],[本金]],0),"") ->  | K60: =IF(還款排程[[#This Row],[還款編號]]<>"",SUM(INDEX(還款排程[利息],1,1):還款排程[[#This Row],[利息]]),"") -> 
B61: =IF(貸款良好,IF(ROW()-ROW(還款排程[[#Headers],[還款編號]])>已排程的還款次數,"",ROW()-ROW(還款排程[[#Headers],[還款編號]])),"") ->  | C61: =IF(還款排程[[#This Row],[還款編號]]<>"",EOMONTH(貸款開始日期,ROW(還款排程[[#This Row],[還款編號]])-ROW(還款排程[[#Headers],[還款編號]])-2)+DAY(貸款開始日期),"") ->  | D61: =IF(還款排程[[#This Row],[還款編號]]<>"",IF(ROW()-ROW(還款排程[[#Headers],[期初餘額]])=1,貸款金額,INDEX(還款排程[結餘],ROW()-ROW(還款排程[[#Headers],[期初餘額]])-1)),"") ->  | E61: =IF(還款排程[[#This Row],[還款編號]]<>"",已排程的還款,"") ->  | F61: =IF(還款排程[[#This Row],[還款編號]]<>"",IF(還款排程[[#This Row],[已排程還款]]+額外還款<還款排程[[#This Row],[期初餘額]],額外還款,IF(還款排程[[#This Row],[期初餘額]]-還款排程[[#This Row],[已排程還款]]>0,還款排程[[#This Row],[期初餘額]]-還款排程[[#This Row],[已排程還款]],0)),"") ->  | G61: =IF(還款排程[[#This Row],[還款編號]]<>"",IF(還款排程[[#This Row],[已排程還款]]+還款排程[[#This Row],[額外還款]]<=還款排程[[#This Row],[期初餘額]],還款排程[[#This Row],[已排程還款]]+還款排程[[#This Row],[額外還款]],還款排程[[#This Row],[期初餘額]]),"") ->  | H61: =IF(還款排程[[#This Row],[還款編號]]<>"",還款排程[[#This Row],[還款總金額]]-還款排程[[#This Row],[利息]],"") ->  | I61: =IF(還款排程[[#This Row],[還款編號]]<>"",還款排程[[#This Row],[期初餘額]]*(利率/每年還款次數),"") ->  | J61: =IF(還款排程[[#This Row],[還款編號]]<>"",IF(還款排程[[#This Row],[已排程還款]]+還款排程[[#This Row],[額外還款]]<=還款排程[[#This Row],[期初餘額]],還款排程[[#This Row],[期初餘額]]-還款排程[[#This Row],[本金]],0),"") ->  | K61: =IF(還款排程[[#This Row],[還款編號]]<>"",SUM(INDEX(還款排程[利息],1,1):還款排程[[#This Row],[利息]]),"") -> 
B62: =IF(貸款良好,IF(ROW()-ROW(還款排程[[#Headers],[還款編號]])>已排程的還款次數,"",ROW()-ROW(還款排程[[#Headers],[還款編號]])),"") ->  | C62: =IF(還款排程[[#This Row],[還款編號]]<>"",EOMONTH(貸款開始日期,ROW(還款排程[[#This Row],[還款編號]])-ROW(還款排程[[#Headers],[還款編號]])-2)+DAY(貸款開始日期),"") ->  | D62: =IF(還款排程[[#This Row],[還款編號]]<>"",IF(ROW()-ROW(還款排程[[#Headers],[期初餘額]])=1,貸款金額,INDEX(還款排程[結餘],ROW()-ROW(還款排程[[#Headers],[期初餘額]])-1)),"") ->  | E62: =IF(還款排程[[#This Row],[還款編號]]<>"",已排程的還款,"") ->  | F62: =IF(還款排程[[#This Row],[還款編號]]<>"",IF(還款排程[[#This Row],[已排程還款]]+額外還款<還款排程[[#This Row],[期初餘額]],額外還款,IF(還款排程[[#This Row],[期初餘額]]-還款排程[[#This Row],[已排程還款]]>0,還款排程[[#This Row],[期初餘額]]-還款排程[[#This Row],[已排程還款]],0)),"") ->  | G62: =IF(還款排程[[#This Row],[還款編號]]<>"",IF(還款排程[[#This Row],[已排程還款]]+還款排程[[#This Row],[額外還款]]<=還款排程[[#This Row],[期初餘額]],還款排程[[#This Row],[已排程還款]]+還款排程[[#This Row],[額外還款]],還款排程[[#This Row],[期初餘額]]),"") ->  | H62: =IF(還款排程[[#This Row],[還款編號]]<>"",還款排程[[#This Row],[還款總金額]]-還款排程[[#This Row],[利息]],"") ->  | I62: =IF(還款排程[[#This Row],[還款編號]]<>"",還款排程[[#This Row],[期初餘額]]*(利率/每年還款次數),"") ->  | J62: =IF(還款排程[[#This Row],[還款編號]]<>"",IF(還款排程[[#This Row],[已排程還款]]+還款排程[[#This Row],[額外還款]]<=還款排程[[#This Row],[期初餘額]],還款排程[[#This Row],[期初餘額]]-還款排程[[#This Row],[本金]],0),"") ->  | K62: =IF(還款排程[[#This Row],[還款編號]]<>"",SUM(INDEX(還款排程[利息],1,1):還款排程[[#This Row],[利息]]),"") -> 
B63: =IF(貸款良好,IF(ROW()-ROW(還款排程[[#Headers],[還款編號]])>已排程的還款次數,"",ROW()-ROW(還款排程[[#Headers],[還款編號]])),"") ->  | C63: =IF(還款排程[[#This Row],[還款編號]]<>"",EOMONTH(貸款開始日期,ROW(還款排程[[#This Row],[還款編號]])-ROW(還款排程[[#Headers],[還款編號]])-2)+DAY(貸款開始日期),"") ->  | D63: =IF(還款排程[[#This Row],[還款編號]]<>"",IF(ROW()-ROW(還款排程[[#Headers],[期初餘額]])=1,貸款金額,INDEX(還款排程[結餘],ROW()-ROW(還款排程[[#Headers],[期初餘額]])-1)),"") ->  | E63: =IF(還款排程[[#This Row],[還款編號]]<>"",已排程的還款,"") ->  | F63: =IF(還款排程[[#This Row],[還款編號]]<>"",IF(還款排程[[#This Row],[已排程還款]]+額外還款<還款排程[[#This Row],[期初餘額]],額外還款,IF(還款排程[[#This Row],[期初餘額]]-還款排程[[#This Row],[已排程還款]]>0,還款排程[[#This Row],[期初餘額]]-還款排程[[#This Row],[已排程還款]],0)),"") ->  | G63: =IF(還款排程[[#This Row],[還款編號]]<>"",IF(還款排程[[#This Row],[已排程還款]]+還款排程[[#This Row],[額外還款]]<=還款排程[[#This Row],[期初餘額]],還款排程[[#This Row],[已排程還款]]+還款排程[[#This Row],[額外還款]],還款排程[[#This Row],[期初餘額]]),"") ->  | H63: =IF(還款排程[[#This Row],[還款編號]]<>"",還款排程[[#This Row],[還款總金額]]-還款排程[[#This Row],[利息]],"") ->  | I63: =IF(還款排程[[#This Row],[還款編號]]<>"",還款排程[[#This Row],[期初餘額]]*(利率/每年還款次數),"") ->  | J63: =IF(還款排程[[#This Row],[還款編號]]<>"",IF(還款排程[[#This Row],[已排程還款]]+還款排程[[#This Row],[額外還款]]<=還款排程[[#This Row],[期初餘額]],還款排程[[#This Row],[期初餘額]]-還款排程[[#This Row],[本金]],0),"") ->  | K63: =IF(還款排程[[#This Row],[還款編號]]<>"",SUM(INDEX(還款排程[利息],1,1):還款排程[[#This Row],[利息]]),"") -> 
B64: =IF(貸款良好,IF(ROW()-ROW(還款排程[[#Headers],[還款編號]])>已排程的還款次數,"",ROW()-ROW(還款排程[[#Headers],[還款編號]])),"") ->  | C64: =IF(還款排程[[#This Row],[還款編號]]<>"",EOMONTH(貸款開始日期,ROW(還款排程[[#This Row],[還款編號]])-ROW(還款排程[[#Headers],[還款編號]])-2)+DAY(貸款開始日期),"") ->  | D64: =IF(還款排程[[#This Row],[還款編號]]<>"",IF(ROW()-ROW(還款排程[[#Headers],[期初餘額]])=1,貸款金額,INDEX(還款排程[結餘],ROW()-ROW(還款排程[[#Headers],[期初餘額]])-1)),"") ->  | E64: =IF(還款排程[[#This Row],[還款編號]]<>"",已排程的還款,"") ->  | F64: =IF(還款排程[[#This Row],[還款編號]]<>"",IF(還款排程[[#This Row],[已排程還款]]+額外還款<還款排程[[#This Row],[期初餘額]],額外還款,IF(還款排程[[#This Row],[期初餘額]]-還款排程[[#This Row],[已排程還款]]>0,還款排程[[#This Row],[期初餘額]]-還款排程[[#This Row],[已排程還款]],0)),"") ->  | G64: =IF(還款排程[[#This Row],[還款編號]]<>"",IF(還款排程[[#This Row],[已排程還款]]+還款排程[[#This Row],[額外還款]]<=還款排程[[#This Row],[期初餘額]],還款排程[[#This Row],[已排程還款]]+還款排程[[#This Row],[額外還款]],還款排程[[#This Row],[期初餘額]]),"") ->  | H64: =IF(還款排程[[#This Row],[還款編號]]<>"",還款排程[[#This Row],[還款總金額]]-還款排程[[#This Row],[利息]],"") ->  | I64: =IF(還款排程[[#This Row],[還款編號]]<>"",還款排程[[#This Row],[期初餘額]]*(利率/每年還款次數),"") ->  | J64: =IF(還款排程[[#This Row],[還款編號]]<>"",IF(還款排程[[#This Row],[已排程還款]]+還款排程[[#This Row],[額外還款]]<=還款排程[[#This Row],[期初餘額]],還款排程[[#This Row],[期初餘額]]-還款排程[[#This Row],[本金]],0),"") ->  | K64: =IF(還款排程[[#This Row],[還款編號]]<>"",SUM(INDEX(還款排程[利息],1,1):還款排程[[#This Row],[利息]]),"") -> 
B65: =IF(貸款良好,IF(ROW()-ROW(還款排程[[#Headers],[還款編號]])>已排程的還款次數,"",ROW()-ROW(還款排程[[#Headers],[還款編號]])),"") ->  | C65: =IF(還款排程[[#This Row],[還款編號]]<>"",EOMONTH(貸款開始日期,ROW(還款排程[[#This Row],[還款編號]])-ROW(還款排程[[#Headers],[還款編號]])-2)+DAY(貸款開始日期),"") ->  | D65: =IF(還款排程[[#This Row],[還款編號]]<>"",IF(ROW()-ROW(還款排程[[#Headers],[期初餘額]])=1,貸款金額,INDEX(還款排程[結餘],ROW()-ROW(還款排程[[#Headers],[期初餘額]])-1)),"") ->  | E65: =IF(還款排程[[#This Row],[還款編號]]<>"",已排程的還款,"") ->  | F65: =IF(還款排程[[#This Row],[還款編號]]<>"",IF(還款排程[[#This Row],[已排程還款]]+額外還款<還款排程[[#This Row],[期初餘額]],額外還款,IF(還款排程[[#This Row],[期初餘額]]-還款排程[[#This Row],[已排程還款]]>0,還款排程[[#This Row],[期初餘額]]-還款排程[[#This Row],[已排程還款]],0)),"") ->  | G65: =IF(還款排程[[#This Row],[還款編號]]<>"",IF(還款排程[[#This Row],[已排程還款]]+還款排程[[#This Row],[額外還款]]<=還款排程[[#This Row],[期初餘額]],還款排程[[#This Row],[已排程還款]]+還款排程[[#This Row],[額外還款]],還款排程[[#This Row],[期初餘額]]),"") ->  | H65: =IF(還款排程[[#This Row],[還款編號]]<>"",還款排程[[#This Row],[還款總金額]]-還款排程[[#This Row],[利息]],"") ->  | I65: =IF(還款排程[[#This Row],[還款編號]]<>"",還款排程[[#This Row],[期初餘額]]*(利率/每年還款次數),"") ->  | J65: =IF(還款排程[[#This Row],[還款編號]]<>"",IF(還款排程[[#This Row],[已排程還款]]+還款排程[[#This Row],[額外還款]]<=還款排程[[#This Row],[期初餘額]],還款排程[[#This Row],[期初餘額]]-還款排程[[#This Row],[本金]],0),"") ->  | K65: =IF(還款排程[[#This Row],[還款編號]]<>"",SUM(INDEX(還款排程[利息],1,1):還款排程[[#This Row],[利息]]),"") -> 
B66: =IF(貸款良好,IF(ROW()-ROW(還款排程[[#Headers],[還款編號]])>已排程的還款次數,"",ROW()-ROW(還款排程[[#Headers],[還款編號]])),"") ->  | C66: =IF(還款排程[[#This Row],[還款編號]]<>"",EOMONTH(貸款開始日期,ROW(還款排程[[#This Row],[還款編號]])-ROW(還款排程[[#Headers],[還款編號]])-2)+DAY(貸款開始日期),"") ->  | D66: =IF(還款排程[[#This Row],[還款編號]]<>"",IF(ROW()-ROW(還款排程[[#Headers],[期初餘額]])=1,貸款金額,INDEX(還款排程[結餘],ROW()-ROW(還款排程[[#Headers],[期初餘額]])-1)),"") ->  | E66: =IF(還款排程[[#This Row],[還款編號]]<>"",已排程的還款,"") ->  | F66: =IF(還款排程[[#This Row],[還款編號]]<>"",IF(還款排程[[#This Row],[已排程還款]]+額外還款<還款排程[[#This Row],[期初餘額]],額外還款,IF(還款排程[[#This Row],[期初餘額]]-還款排程[[#This Row],[已排程還款]]>0,還款排程[[#This Row],[期初餘額]]-還款排程[[#This Row],[已排程還款]],0)),"") ->  | G66: =IF(還款排程[[#This Row],[還款編號]]<>"",IF(還款排程[[#This Row],[已排程還款]]+還款排程[[#This Row],[額外還款]]<=還款排程[[#This Row],[期初餘額]],還款排程[[#This Row],[已排程還款]]+還款排程[[#This Row],[額外還款]],還款排程[[#This Row],[期初餘額]]),"") ->  | H66: =IF(還款排程[[#This Row],[還款編號]]<>"",還款排程[[#This Row],[還款總金額]]-還款排程[[#This Row],[利息]],"") ->  | I66: =IF(還款排程[[#This Row],[還款編號]]<>"",還款排程[[#This Row],[期初餘額]]*(利率/每年還款次數),"") ->  | J66: =IF(還款排程[[#This Row],[還款編號]]<>"",IF(還款排程[[#This Row],[已排程還款]]+還款排程[[#This Row],[額外還款]]<=還款排程[[#This Row],[期初餘額]],還款排程[[#This Row],[期初餘額]]-還款排程[[#This Row],[本金]],0),"") ->  | K66: =IF(還款排程[[#This Row],[還款編號]]<>"",SUM(INDEX(還款排程[利息],1,1):還款排程[[#This Row],[利息]]),"") -> 
B67: =IF(貸款良好,IF(ROW()-ROW(還款排程[[#Headers],[還款編號]])>已排程的還款次數,"",ROW()-ROW(還款排程[[#Headers],[還款編號]])),"") ->  | C67: =IF(還款排程[[#This Row],[還款編號]]<>"",EOMONTH(貸款開始日期,ROW(還款排程[[#This Row],[還款編號]])-ROW(還款排程[[#Headers],[還款編號]])-2)+DAY(貸款開始日期),"") ->  | D67: =IF(還款排程[[#This Row],[還款編號]]<>"",IF(ROW()-ROW(還款排程[[#Headers],[期初餘額]])=1,貸款金額,INDEX(還款排程[結餘],ROW()-ROW(還款排程[[#Headers],[期初餘額]])-1)),"") ->  | E67: =IF(還款排程[[#This Row],[還款編號]]<>"",已排程的還款,"") ->  | F67: =IF(還款排程[[#This Row],[還款編號]]<>"",IF(還款排程[[#This Row],[已排程還款]]+額外還款<還款排程[[#This Row],[期初餘額]],額外還款,IF(還款排程[[#This Row],[期初餘額]]-還款排程[[#This Row],[已排程還款]]>0,還款排程[[#This Row],[期初餘額]]-還款排程[[#This Row],[已排程還款]],0)),"") ->  | G67: =IF(還款排程[[#This Row],[還款編號]]<>"",IF(還款排程[[#This Row],[已排程還款]]+還款排程[[#This Row],[額外還款]]<=還款排程[[#This Row],[期初餘額]],還款排程[[#This Row],[已排程還款]]+還款排程[[#This Row],[額外還款]],還款排程[[#This Row],[期初餘額]]),"") ->  | H67: =IF(還款排程[[#This Row],[還款編號]]<>"",還款排程[[#This Row],[還款總金額]]-還款排程[[#This Row],[利息]],"") ->  | I67: =IF(還款排程[[#This Row],[還款編號]]<>"",還款排程[[#This Row],[期初餘額]]*(利率/每年還款次數),"") ->  | J67: =IF(還款排程[[#This Row],[還款編號]]<>"",IF(還款排程[[#This Row],[已排程還款]]+還款排程[[#This Row],[額外還款]]<=還款排程[[#This Row],[期初餘額]],還款排程[[#This Row],[期初餘額]]-還款排程[[#This Row],[本金]],0),"") ->  | K67: =IF(還款排程[[#This Row],[還款編號]]<>"",SUM(INDEX(還款排程[利息],1,1):還款排程[[#This Row],[利息]]),"") -> 
B68: =IF(貸款良好,IF(ROW()-ROW(還款排程[[#Headers],[還款編號]])>已排程的還款次數,"",ROW()-ROW(還款排程[[#Headers],[還款編號]])),"") ->  | C68: =IF(還款排程[[#This Row],[還款編號]]<>"",EOMONTH(貸款開始日期,ROW(還款排程[[#This Row],[還款編號]])-ROW(還款排程[[#Headers],[還款編號]])-2)+DAY(貸款開始日期),"") ->  | D68: =IF(還款排程[[#This Row],[還款編號]]<>"",IF(ROW()-ROW(還款排程[[#Headers],[期初餘額]])=1,貸款金額,INDEX(還款排程[結餘],ROW()-ROW(還款排程[[#Headers],[期初餘額]])-1)),"") ->  | E68: =IF(還款排程[[#This Row],[還款編號]]<>"",已排程的還款,"") ->  | F68: =IF(還款排程[[#This Row],[還款編號]]<>"",IF(還款排程[[#This Row],[已排程還款]]+額外還款<還款排程[[#This Row],[期初餘額]],額外還款,IF(還款排程[[#This Row],[期初餘額]]-還款排程[[#This Row],[已排程還款]]>0,還款排程[[#This Row],[期初餘額]]-還款排程[[#This Row],[已排程還款]],0)),"") ->  | G68: =IF(還款排程[[#This Row],[還款編號]]<>"",IF(還款排程[[#This Row],[已排程還款]]+還款排程[[#This Row],[額外還款]]<=還款排程[[#This Row],[期初餘額]],還款排程[[#This Row],[已排程還款]]+還款排程[[#This Row],[額外還款]],還款排程[[#This Row],[期初餘額]]),"") ->  | H68: =IF(還款排程[[#This Row],[還款編號]]<>"",還款排程[[#This Row],[還款總金額]]-還款排程[[#This Row],[利息]],"") ->  | I68: =IF(還款排程[[#This Row],[還款編號]]<>"",還款排程[[#This Row],[期初餘額]]*(利率/每年還款次數),"") ->  | J68: =IF(還款排程[[#This Row],[還款編號]]<>"",IF(還款排程[[#This Row],[已排程還款]]+還款排程[[#This Row],[額外還款]]<=還款排程[[#This Row],[期初餘額]],還款排程[[#This Row],[期初餘額]]-還款排程[[#This Row],[本金]],0),"") ->  | K68: =IF(還款排程[[#This Row],[還款編號]]<>"",SUM(INDEX(還款排程[利息],1,1):還款排程[[#This Row],[利息]]),"") -> 
B69: =IF(貸款良好,IF(ROW()-ROW(還款排程[[#Headers],[還款編號]])>已排程的還款次數,"",ROW()-ROW(還款排程[[#Headers],[還款編號]])),"") ->  | C69: =IF(還款排程[[#This Row],[還款編號]]<>"",EOMONTH(貸款開始日期,ROW(還款排程[[#This Row],[還款編號]])-ROW(還款排程[[#Headers],[還款編號]])-2)+DAY(貸款開始日期),"") ->  | D69: =IF(還款排程[[#This Row],[還款編號]]<>"",IF(ROW()-ROW(還款排程[[#Headers],[期初餘額]])=1,貸款金額,INDEX(還款排程[結餘],ROW()-ROW(還款排程[[#Headers],[期初餘額]])-1)),"") ->  | E69: =IF(還款排程[[#This Row],[還款編號]]<>"",已排程的還款,"") ->  | F69: =IF(還款排程[[#This Row],[還款編號]]<>"",IF(還款排程[[#This Row],[已排程還款]]+額外還款<還款排程[[#This Row],[期初餘額]],額外還款,IF(還款排程[[#This Row],[期初餘額]]-還款排程[[#This Row],[已排程還款]]>0,還款排程[[#This Row],[期初餘額]]-還款排程[[#This Row],[已排程還款]],0)),"") ->  | G69: =IF(還款排程[[#This Row],[還款編號]]<>"",IF(還款排程[[#This Row],[已排程還款]]+還款排程[[#This Row],[額外還款]]<=還款排程[[#This Row],[期初餘額]],還款排程[[#This Row],[已排程還款]]+還款排程[[#This Row],[額外還款]],還款排程[[#This Row],[期初餘額]]),"") ->  | H69: =IF(還款排程[[#This Row],[還款編號]]<>"",還款排程[[#This Row],[還款總金額]]-還款排程[[#This Row],[利息]],"") ->  | I69: =IF(還款排程[[#This Row],[還款編號]]<>"",還款排程[[#This Row],[期初餘額]]*(利率/每年還款次數),"") ->  | J69: =IF(還款排程[[#This Row],[還款編號]]<>"",IF(還款排程[[#This Row],[已排程還款]]+還款排程[[#This Row],[額外還款]]<=還款排程[[#This Row],[期初餘額]],還款排程[[#This Row],[期初餘額]]-還款排程[[#This Row],[本金]],0),"") ->  | K69: =IF(還款排程[[#This Row],[還款編號]]<>"",SUM(INDEX(還款排程[利息],1,1):還款排程[[#This Row],[利息]]),"") -> 
B70: =IF(貸款良好,IF(ROW()-ROW(還款排程[[#Headers],[還款編號]])>已排程的還款次數,"",ROW()-ROW(還款排程[[#Headers],[還款編號]])),"") ->  | C70: =IF(還款排程[[#This Row],[還款編號]]<>"",EOMONTH(貸款開始日期,ROW(還款排程[[#This Row],[還款編號]])-ROW(還款排程[[#Headers],[還款編號]])-2)+DAY(貸款開始日期),"") ->  | D70: =IF(還款排程[[#This Row],[還款編號]]<>"",IF(ROW()-ROW(還款排程[[#Headers],[期初餘額]])=1,貸款金額,INDEX(還款排程[結餘],ROW()-ROW(還款排程[[#Headers],[期初餘額]])-1)),"") ->  | E70: =IF(還款排程[[#This Row],[還款編號]]<>"",已排程的還款,"") ->  | F70: =IF(還款排程[[#This Row],[還款編號]]<>"",IF(還款排程[[#This Row],[已排程還款]]+額外還款<還款排程[[#This Row],[期初餘額]],額外還款,IF(還款排程[[#This Row],[期初餘額]]-還款排程[[#This Row],[已排程還款]]>0,還款排程[[#This Row],[期初餘額]]-還款排程[[#This Row],[已排程還款]],0)),"") ->  | G70: =IF(還款排程[[#This Row],[還款編號]]<>"",IF(還款排程[[#This Row],[已排程還款]]+還款排程[[#This Row],[額外還款]]<=還款排程[[#This Row],[期初餘額]],還款排程[[#This Row],[已排程還款]]+還款排程[[#This Row],[額外還款]],還款排程[[#This Row],[期初餘額]]),"") ->  | H70: =IF(還款排程[[#This Row],[還款編號]]<>"",還款排程[[#This Row],[還款總金額]]-還款排程[[#This Row],[利息]],"") ->  | I70: =IF(還款排程[[#This Row],[還款編號]]<>"",還款排程[[#This Row],[期初餘額]]*(利率/每年還款次數),"") ->  | J70: =IF(還款排程[[#This Row],[還款編號]]<>"",IF(還款排程[[#This Row],[已排程還款]]+還款排程[[#This Row],[額外還款]]<=還款排程[[#This Row],[期初餘額]],還款排程[[#This Row],[期初餘額]]-還款排程[[#This Row],[本金]],0),"") ->  | K70: =IF(還款排程[[#This Row],[還款編號]]<>"",SUM(INDEX(還款排程[利息],1,1):還款排程[[#This Row],[利息]]),"") -> 
B71: =IF(貸款良好,IF(ROW()-ROW(還款排程[[#Headers],[還款編號]])>已排程的還款次數,"",ROW()-ROW(還款排程[[#Headers],[還款編號]])),"") ->  | C71: =IF(還款排程[[#This Row],[還款編號]]<>"",EOMONTH(貸款開始日期,ROW(還款排程[[#This Row],[還款編號]])-ROW(還款排程[[#Headers],[還款編號]])-2)+DAY(貸款開始日期),"") ->  | D71: =IF(還款排程[[#This Row],[還款編號]]<>"",IF(ROW()-ROW(還款排程[[#Headers],[期初餘額]])=1,貸款金額,INDEX(還款排程[結餘],ROW()-ROW(還款排程[[#Headers],[期初餘額]])-1)),"") ->  | E71: =IF(還款排程[[#This Row],[還款編號]]<>"",已排程的還款,"") ->  | F71: =IF(還款排程[[#This Row],[還款編號]]<>"",IF(還款排程[[#This Row],[已排程還款]]+額外還款<還款排程[[#This Row],[期初餘額]],額外還款,IF(還款排程[[#This Row],[期初餘額]]-還款排程[[#This Row],[已排程還款]]>0,還款排程[[#This Row],[期初餘額]]-還款排程[[#This Row],[已排程還款]],0)),"") ->  | G71: =IF(還款排程[[#This Row],[還款編號]]<>"",IF(還款排程[[#This Row],[已排程還款]]+還款排程[[#This Row],[額外還款]]<=還款排程[[#This Row],[期初餘額]],還款排程[[#This Row],[已排程還款]]+還款排程[[#This Row],[額外還款]],還款排程[[#This Row],[期初餘額]]),"") ->  | H71: =IF(還款排程[[#This Row],[還款編號]]<>"",還款排程[[#This Row],[還款總金額]]-還款排程[[#This Row],[利息]],"") ->  | I71: =IF(還款排程[[#This Row],[還款編號]]<>"",還款排程[[#This Row],[期初餘額]]*(利率/每年還款次數),"") ->  | J71: =IF(還款排程[[#This Row],[還款編號]]<>"",IF(還款排程[[#This Row],[已排程還款]]+還款排程[[#This Row],[額外還款]]<=還款排程[[#This Row],[期初餘額]],還款排程[[#This Row],[期初餘額]]-還款排程[[#This Row],[本金]],0),"") ->  | K71: =IF(還款排程[[#This Row],[還款編號]]<>"",SUM(INDEX(還款排程[利息],1,1):還款排程[[#This Row],[利息]]),"") -> 
B72: =IF(貸款良好,IF(ROW()-ROW(還款排程[[#Headers],[還款編號]])>已排程的還款次數,"",ROW()-ROW(還款排程[[#Headers],[還款編號]])),"") ->  | C72: =IF(還款排程[[#This Row],[還款編號]]<>"",EOMONTH(貸款開始日期,ROW(還款排程[[#This Row],[還款編號]])-ROW(還款排程[[#Headers],[還款編號]])-2)+DAY(貸款開始日期),"") ->  | D72: =IF(還款排程[[#This Row],[還款編號]]<>"",IF(ROW()-ROW(還款排程[[#Headers],[期初餘額]])=1,貸款金額,INDEX(還款排程[結餘],ROW()-ROW(還款排程[[#Headers],[期初餘額]])-1)),"") ->  | E72: =IF(還款排程[[#This Row],[還款編號]]<>"",已排程的還款,"") ->  | F72: =IF(還款排程[[#This Row],[還款編號]]<>"",IF(還款排程[[#This Row],[已排程還款]]+額外還款<還款排程[[#This Row],[期初餘額]],額外還款,IF(還款排程[[#This Row],[期初餘額]]-還款排程[[#This Row],[已排程還款]]>0,還款排程[[#This Row],[期初餘額]]-還款排程[[#This Row],[已排程還款]],0)),"") ->  | G72: =IF(還款排程[[#This Row],[還款編號]]<>"",IF(還款排程[[#This Row],[已排程還款]]+還款排程[[#This Row],[額外還款]]<=還款排程[[#This Row],[期初餘額]],還款排程[[#This Row],[已排程還款]]+還款排程[[#This Row],[額外還款]],還款排程[[#This Row],[期初餘額]]),"") ->  | H72: =IF(還款排程[[#This Row],[還款編號]]<>"",還款排程[[#This Row],[還款總金額]]-還款排程[[#This Row],[利息]],"") ->  | I72: =IF(還款排程[[#This Row],[還款編號]]<>"",還款排程[[#This Row],[期初餘額]]*(利率/每年還款次數),"") ->  | J72: =IF(還款排程[[#This Row],[還款編號]]<>"",IF(還款排程[[#This Row],[已排程還款]]+還款排程[[#This Row],[額外還款]]<=還款排程[[#This Row],[期初餘額]],還款排程[[#This Row],[期初餘額]]-還款排程[[#This Row],[本金]],0),"") ->  | K72: =IF(還款排程[[#This Row],[還款編號]]<>"",SUM(INDEX(還款排程[利息],1,1):還款排程[[#This Row],[利息]]),"") -> 
B73: =IF(貸款良好,IF(ROW()-ROW(還款排程[[#Headers],[還款編號]])>已排程的還款次數,"",ROW()-ROW(還款排程[[#Headers],[還款編號]])),"") ->  | C73: =IF(還款排程[[#This Row],[還款編號]]<>"",EOMONTH(貸款開始日期,ROW(還款排程[[#This Row],[還款編號]])-ROW(還款排程[[#Headers],[還款編號]])-2)+DAY(貸款開始日期),"") ->  | D73: =IF(還款排程[[#This Row],[還款編號]]<>"",IF(ROW()-ROW(還款排程[[#Headers],[期初餘額]])=1,貸款金額,INDEX(還款排程[結餘],ROW()-ROW(還款排程[[#Headers],[期初餘額]])-1)),"") ->  | E73: =IF(還款排程[[#This Row],[還款編號]]<>"",已排程的還款,"") ->  | F73: =IF(還款排程[[#This Row],[還款編號]]<>"",IF(還款排程[[#This Row],[已排程還款]]+額外還款<還款排程[[#This Row],[期初餘額]],額外還款,IF(還款排程[[#This Row],[期初餘額]]-還款排程[[#This Row],[已排程還款]]>0,還款排程[[#This Row],[期初餘額]]-還款排程[[#This Row],[已排程還款]],0)),"") ->  | G73: =IF(還款排程[[#This Row],[還款編號]]<>"",IF(還款排程[[#This Row],[已排程還款]]+還款排程[[#This Row],[額外還款]]<=還款排程[[#This Row],[期初餘額]],還款排程[[#This Row],[已排程還款]]+還款排程[[#This Row],[額外還款]],還款排程[[#This Row],[期初餘額]]),"") ->  | H73: =IF(還款排程[[#This Row],[還款編號]]<>"",還款排程[[#This Row],[還款總金額]]-還款排程[[#This Row],[利息]],"") ->  | I73: =IF(還款排程[[#This Row],[還款編號]]<>"",還款排程[[#This Row],[期初餘額]]*(利率/每年還款次數),"") ->  | J73: =IF(還款排程[[#This Row],[還款編號]]<>"",IF(還款排程[[#This Row],[已排程還款]]+還款排程[[#This Row],[額外還款]]<=還款排程[[#This Row],[期初餘額]],還款排程[[#This Row],[期初餘額]]-還款排程[[#This Row],[本金]],0),"") ->  | K73: =IF(還款排程[[#This Row],[還款編號]]<>"",SUM(INDEX(還款排程[利息],1,1):還款排程[[#This Row],[利息]]),"") -> 
B74: =IF(貸款良好,IF(ROW()-ROW(還款排程[[#Headers],[還款編號]])>已排程的還款次數,"",ROW()-ROW(還款排程[[#Headers],[還款編號]])),"") ->  | C74: =IF(還款排程[[#This Row],[還款編號]]<>"",EOMONTH(貸款開始日期,ROW(還款排程[[#This Row],[還款編號]])-ROW(還款排程[[#Headers],[還款編號]])-2)+DAY(貸款開始日期),"") ->  | D74: =IF(還款排程[[#This Row],[還款編號]]<>"",IF(ROW()-ROW(還款排程[[#Headers],[期初餘額]])=1,貸款金額,INDEX(還款排程[結餘],ROW()-ROW(還款排程[[#Headers],[期初餘額]])-1)),"") ->  | E74: =IF(還款排程[[#This Row],[還款編號]]<>"",已排程的還款,"") ->  | F74: =IF(還款排程[[#This Row],[還款編號]]<>"",IF(還款排程[[#This Row],[已排程還款]]+額外還款<還款排程[[#This Row],[期初餘額]],額外還款,IF(還款排程[[#This Row],[期初餘額]]-還款排程[[#This Row],[已排程還款]]>0,還款排程[[#This Row],[期初餘額]]-還款排程[[#This Row],[已排程還款]],0)),"") ->  | G74: =IF(還款排程[[#This Row],[還款編號]]<>"",IF(還款排程[[#This Row],[已排程還款]]+還款排程[[#This Row],[額外還款]]<=還款排程[[#This Row],[期初餘額]],還款排程[[#This Row],[已排程還款]]+還款排程[[#This Row],[額外還款]],還款排程[[#This Row],[期初餘額]]),"") ->  | H74: =IF(還款排程[[#This Row],[還款編號]]<>"",還款排程[[#This Row],[還款總金額]]-還款排程[[#This Row],[利息]],"") ->  | I74: =IF(還款排程[[#This Row],[還款編號]]<>"",還款排程[[#This Row],[期初餘額]]*(利率/每年還款次數),"") ->  | J74: =IF(還款排程[[#This Row],[還款編號]]<>"",IF(還款排程[[#This Row],[已排程還款]]+還款排程[[#This Row],[額外還款]]<=還款排程[[#This Row],[期初餘額]],還款排程[[#This Row],[期初餘額]]-還款排程[[#This Row],[本金]],0),"") ->  | K74: =IF(還款排程[[#This Row],[還款編號]]<>"",SUM(INDEX(還款排程[利息],1,1):還款排程[[#This Row],[利息]]),"") -> 
B75: =IF(貸款良好,IF(ROW()-ROW(還款排程[[#Headers],[還款編號]])>已排程的還款次數,"",ROW()-ROW(還款排程[[#Headers],[還款編號]])),"") ->  | C75: =IF(還款排程[[#This Row],[還款編號]]<>"",EOMONTH(貸款開始日期,ROW(還款排程[[#This Row],[還款編號]])-ROW(還款排程[[#Headers],[還款編號]])-2)+DAY(貸款開始日期),"") ->  | D75: =IF(還款排程[[#This Row],[還款編號]]<>"",IF(ROW()-ROW(還款排程[[#Headers],[期初餘額]])=1,貸款金額,INDEX(還款排程[結餘],ROW()-ROW(還款排程[[#Headers],[期初餘額]])-1)),"") ->  | E75: =IF(還款排程[[#This Row],[還款編號]]<>"",已排程的還款,"") ->  | F75: =IF(還款排程[[#This Row],[還款編號]]<>"",IF(還款排程[[#This Row],[已排程還款]]+額外還款<還款排程[[#This Row],[期初餘額]],額外還款,IF(還款排程[[#This Row],[期初餘額]]-還款排程[[#This Row],[已排程還款]]>0,還款排程[[#This Row],[期初餘額]]-還款排程[[#This Row],[已排程還款]],0)),"") ->  | G75: =IF(還款排程[[#This Row],[還款編號]]<>"",IF(還款排程[[#This Row],[已排程還款]]+還款排程[[#This Row],[額外還款]]<=還款排程[[#This Row],[期初餘額]],還款排程[[#This Row],[已排程還款]]+還款排程[[#This Row],[額外還款]],還款排程[[#This Row],[期初餘額]]),"") ->  | H75: =IF(還款排程[[#This Row],[還款編號]]<>"",還款排程[[#This Row],[還款總金額]]-還款排程[[#This Row],[利息]],"") ->  | I75: =IF(還款排程[[#This Row],[還款編號]]<>"",還款排程[[#This Row],[期初餘額]]*(利率/每年還款次數),"") ->  | J75: =IF(還款排程[[#This Row],[還款編號]]<>"",IF(還款排程[[#This Row],[已排程還款]]+還款排程[[#This Row],[額外還款]]<=還款排程[[#This Row],[期初餘額]],還款排程[[#This Row],[期初餘額]]-還款排程[[#This Row],[本金]],0),"") ->  | K75: =IF(還款排程[[#This Row],[還款編號]]<>"",SUM(INDEX(還款排程[利息],1,1):還款排程[[#This Row],[利息]]),"") -> 
B76: =IF(貸款良好,IF(ROW()-ROW(還款排程[[#Headers],[還款編號]])>已排程的還款次數,"",ROW()-ROW(還款排程[[#Headers],[還款編號]])),"") ->  | C76: =IF(還款排程[[#This Row],[還款編號]]<>"",EOMONTH(貸款開始日期,ROW(還款排程[[#This Row],[還款編號]])-ROW(還款排程[[#Headers],[還款編號]])-2)+DAY(貸款開始日期),"") ->  | D76: =IF(還款排程[[#This Row],[還款編號]]<>"",IF(ROW()-ROW(還款排程[[#Headers],[期初餘額]])=1,貸款金額,INDEX(還款排程[結餘],ROW()-ROW(還款排程[[#Headers],[期初餘額]])-1)),"") ->  | E76: =IF(還款排程[[#This Row],[還款編號]]<>"",已排程的還款,"") ->  | F76: =IF(還款排程[[#This Row],[還款編號]]<>"",IF(還款排程[[#This Row],[已排程還款]]+額外還款<還款排程[[#This Row],[期初餘額]],額外還款,IF(還款排程[[#This Row],[期初餘額]]-還款排程[[#This Row],[已排程還款]]>0,還款排程[[#This Row],[期初餘額]]-還款排程[[#This Row],[已排程還款]],0)),"") ->  | G76: =IF(還款排程[[#This Row],[還款編號]]<>"",IF(還款排程[[#This Row],[已排程還款]]+還款排程[[#This Row],[額外還款]]<=還款排程[[#This Row],[期初餘額]],還款排程[[#This Row],[已排程還款]]+還款排程[[#This Row],[額外還款]],還款排程[[#This Row],[期初餘額]]),"") ->  | H76: =IF(還款排程[[#This Row],[還款編號]]<>"",還款排程[[#This Row],[還款總金額]]-還款排程[[#This Row],[利息]],"") ->  | I76: =IF(還款排程[[#This Row],[還款編號]]<>"",還款排程[[#This Row],[期初餘額]]*(利率/每年還款次數),"") ->  | J76: =IF(還款排程[[#This Row],[還款編號]]<>"",IF(還款排程[[#This Row],[已排程還款]]+還款排程[[#This Row],[額外還款]]<=還款排程[[#This Row],[期初餘額]],還款排程[[#This Row],[期初餘額]]-還款排程[[#This Row],[本金]],0),"") ->  | K76: =IF(還款排程[[#This Row],[還款編號]]<>"",SUM(INDEX(還款排程[利息],1,1):還款排程[[#This Row],[利息]]),"") -> 
B77: =IF(貸款良好,IF(ROW()-ROW(還款排程[[#Headers],[還款編號]])>已排程的還款次數,"",ROW()-ROW(還款排程[[#Headers],[還款編號]])),"") ->  | C77: =IF(還款排程[[#This Row],[還款編號]]<>"",EOMONTH(貸款開始日期,ROW(還款排程[[#This Row],[還款編號]])-ROW(還款排程[[#Headers],[還款編號]])-2)+DAY(貸款開始日期),"") ->  | D77: =IF(還款排程[[#This Row],[還款編號]]<>"",IF(ROW()-ROW(還款排程[[#Headers],[期初餘額]])=1,貸款金額,INDEX(還款排程[結餘],ROW()-ROW(還款排程[[#Headers],[期初餘額]])-1)),"") ->  | E77: =IF(還款排程[[#This Row],[還款編號]]<>"",已排程的還款,"") ->  | F77: =IF(還款排程[[#This Row],[還款編號]]<>"",IF(還款排程[[#This Row],[已排程還款]]+額外還款<還款排程[[#This Row],[期初餘額]],額外還款,IF(還款排程[[#This Row],[期初餘額]]-還款排程[[#This Row],[已排程還款]]>0,還款排程[[#This Row],[期初餘額]]-還款排程[[#This Row],[已排程還款]],0)),"") ->  | G77: =IF(還款排程[[#This Row],[還款編號]]<>"",IF(還款排程[[#This Row],[已排程還款]]+還款排程[[#This Row],[額外還款]]<=還款排程[[#This Row],[期初餘額]],還款排程[[#This Row],[已排程還款]]+還款排程[[#This Row],[額外還款]],還款排程[[#This Row],[期初餘額]]),"") ->  | H77: =IF(還款排程[[#This Row],[還款編號]]<>"",還款排程[[#This Row],[還款總金額]]-還款排程[[#This Row],[利息]],"") ->  | I77: =IF(還款排程[[#This Row],[還款編號]]<>"",還款排程[[#This Row],[期初餘額]]*(利率/每年還款次數),"") ->  | J77: =IF(還款排程[[#This Row],[還款編號]]<>"",IF(還款排程[[#This Row],[已排程還款]]+還款排程[[#This Row],[額外還款]]<=還款排程[[#This Row],[期初餘額]],還款排程[[#This Row],[期初餘額]]-還款排程[[#This Row],[本金]],0),"") ->  | K77: =IF(還款排程[[#This Row],[還款編號]]<>"",SUM(INDEX(還款排程[利息],1,1):還款排程[[#This Row],[利息]]),"") -> 
B78: =IF(貸款良好,IF(ROW()-ROW(還款排程[[#Headers],[還款編號]])>已排程的還款次數,"",ROW()-ROW(還款排程[[#Headers],[還款編號]])),"") ->  | C78: =IF(還款排程[[#This Row],[還款編號]]<>"",EOMONTH(貸款開始日期,ROW(還款排程[[#This Row],[還款編號]])-ROW(還款排程[[#Headers],[還款編號]])-2)+DAY(貸款開始日期),"") ->  | D78: =IF(還款排程[[#This Row],[還款編號]]<>"",IF(ROW()-ROW(還款排程[[#Headers],[期初餘額]])=1,貸款金額,INDEX(還款排程[結餘],ROW()-ROW(還款排程[[#Headers],[期初餘額]])-1)),"") ->  | E78: =IF(還款排程[[#This Row],[還款編號]]<>"",已排程的還款,"") ->  | F78: =IF(還款排程[[#This Row],[還款編號]]<>"",IF(還款排程[[#This Row],[已排程還款]]+額外還款<還款排程[[#This Row],[期初餘額]],額外還款,IF(還款排程[[#This Row],[期初餘額]]-還款排程[[#This Row],[已排程還款]]>0,還款排程[[#This Row],[期初餘額]]-還款排程[[#This Row],[已排程還款]],0)),"") ->  | G78: =IF(還款排程[[#This Row],[還款編號]]<>"",IF(還款排程[[#This Row],[已排程還款]]+還款排程[[#This Row],[額外還款]]<=還款排程[[#This Row],[期初餘額]],還款排程[[#This Row],[已排程還款]]+還款排程[[#This Row],[額外還款]],還款排程[[#This Row],[期初餘額]]),"") ->  | H78: =IF(還款排程[[#This Row],[還款編號]]<>"",還款排程[[#This Row],[還款總金額]]-還款排程[[#This Row],[利息]],"") ->  | I78: =IF(還款排程[[#This Row],[還款編號]]<>"",還款排程[[#This Row],[期初餘額]]*(利率/每年還款次數),"") ->  | J78: =IF(還款排程[[#This Row],[還款編號]]<>"",IF(還款排程[[#This Row],[已排程還款]]+還款排程[[#This Row],[額外還款]]<=還款排程[[#This Row],[期初餘額]],還款排程[[#This Row],[期初餘額]]-還款排程[[#This Row],[本金]],0),"") ->  | K78: =IF(還款排程[[#This Row],[還款編號]]<>"",SUM(INDEX(還款排程[利息],1,1):還款排程[[#This Row],[利息]]),"") -> 
B79: =IF(貸款良好,IF(ROW()-ROW(還款排程[[#Headers],[還款編號]])>已排程的還款次數,"",ROW()-ROW(還款排程[[#Headers],[還款編號]])),"") ->  | C79: =IF(還款排程[[#This Row],[還款編號]]<>"",EOMONTH(貸款開始日期,ROW(還款排程[[#This Row],[還款編號]])-ROW(還款排程[[#Headers],[還款編號]])-2)+DAY(貸款開始日期),"") ->  | D79: =IF(還款排程[[#This Row],[還款編號]]<>"",IF(ROW()-ROW(還款排程[[#Headers],[期初餘額]])=1,貸款金額,INDEX(還款排程[結餘],ROW()-ROW(還款排程[[#Headers],[期初餘額]])-1)),"") ->  | E79: =IF(還款排程[[#This Row],[還款編號]]<>"",已排程的還款,"") ->  | F79: =IF(還款排程[[#This Row],[還款編號]]<>"",IF(還款排程[[#This Row],[已排程還款]]+額外還款<還款排程[[#This Row],[期初餘額]],額外還款,IF(還款排程[[#This Row],[期初餘額]]-還款排程[[#This Row],[已排程還款]]>0,還款排程[[#This Row],[期初餘額]]-還款排程[[#This Row],[已排程還款]],0)),"") ->  | G79: =IF(還款排程[[#This Row],[還款編號]]<>"",IF(還款排程[[#This Row],[已排程還款]]+還款排程[[#This Row],[額外還款]]<=還款排程[[#This Row],[期初餘額]],還款排程[[#This Row],[已排程還款]]+還款排程[[#This Row],[額外還款]],還款排程[[#This Row],[期初餘額]]),"") ->  | H79: =IF(還款排程[[#This Row],[還款編號]]<>"",還款排程[[#This Row],[還款總金額]]-還款排程[[#This Row],[利息]],"") ->  | I79: =IF(還款排程[[#This Row],[還款編號]]<>"",還款排程[[#This Row],[期初餘額]]*(利率/每年還款次數),"") ->  | J79: =IF(還款排程[[#This Row],[還款編號]]<>"",IF(還款排程[[#This Row],[已排程還款]]+還款排程[[#This Row],[額外還款]]<=還款排程[[#This Row],[期初餘額]],還款排程[[#This Row],[期初餘額]]-還款排程[[#This Row],[本金]],0),"") ->  | K79: =IF(還款排程[[#This Row],[還款編號]]<>"",SUM(INDEX(還款排程[利息],1,1):還款排程[[#This Row],[利息]]),"") -> 
B80: =IF(貸款良好,IF(ROW()-ROW(還款排程[[#Headers],[還款編號]])>已排程的還款次數,"",ROW()-ROW(還款排程[[#Headers],[還款編號]])),"") ->  | C80: =IF(還款排程[[#This Row],[還款編號]]<>"",EOMONTH(貸款開始日期,ROW(還款排程[[#This Row],[還款編號]])-ROW(還款排程[[#Headers],[還款編號]])-2)+DAY(貸款開始日期),"") ->  | D80: =IF(還款排程[[#This Row],[還款編號]]<>"",IF(ROW()-ROW(還款排程[[#Headers],[期初餘額]])=1,貸款金額,INDEX(還款排程[結餘],ROW()-ROW(還款排程[[#Headers],[期初餘額]])-1)),"") ->  | E80: =IF(還款排程[[#This Row],[還款編號]]<>"",已排程的還款,"") ->  | F80: =IF(還款排程[[#This Row],[還款編號]]<>"",IF(還款排程[[#This Row],[已排程還款]]+額外還款<還款排程[[#This Row],[期初餘額]],額外還款,IF(還款排程[[#This Row],[期初餘額]]-還款排程[[#This Row],[已排程還款]]>0,還款排程[[#This Row],[期初餘額]]-還款排程[[#This Row],[已排程還款]],0)),"") ->  | G80: =IF(還款排程[[#This Row],[還款編號]]<>"",IF(還款排程[[#This Row],[已排程還款]]+還款排程[[#This Row],[額外還款]]<=還款排程[[#This Row],[期初餘額]],還款排程[[#This Row],[已排程還款]]+還款排程[[#This Row],[額外還款]],還款排程[[#This Row],[期初餘額]]),"") ->  | H80: =IF(還款排程[[#This Row],[還款編號]]<>"",還款排程[[#This Row],[還款總金額]]-還款排程[[#This Row],[利息]],"") ->  | I80: =IF(還款排程[[#This Row],[還款編號]]<>"",還款排程[[#This Row],[期初餘額]]*(利率/每年還款次數),"") ->  | J80: =IF(還款排程[[#This Row],[還款編號]]<>"",IF(還款排程[[#This Row],[已排程還款]]+還款排程[[#This Row],[額外還款]]<=還款排程[[#This Row],[期初餘額]],還款排程[[#This Row],[期初餘額]]-還款排程[[#This Row],[本金]],0),"") ->  | K80: =IF(還款排程[[#This Row],[還款編號]]<>"",SUM(INDEX(還款排程[利息],1,1):還款排程[[#This Row],[利息]]),"") -> 
B81: =IF(貸款良好,IF(ROW()-ROW(還款排程[[#Headers],[還款編號]])>已排程的還款次數,"",ROW()-ROW(還款排程[[#Headers],[還款編號]])),"") ->  | C81: =IF(還款排程[[#This Row],[還款編號]]<>"",EOMONTH(貸款開始日期,ROW(還款排程[[#This Row],[還款編號]])-ROW(還款排程[[#Headers],[還款編號]])-2)+DAY(貸款開始日期),"") ->  | D81: =IF(還款排程[[#This Row],[還款編號]]<>"",IF(ROW()-ROW(還款排程[[#Headers],[期初餘額]])=1,貸款金額,INDEX(還款排程[結餘],ROW()-ROW(還款排程[[#Headers],[期初餘額]])-1)),"") ->  | E81: =IF(還款排程[[#This Row],[還款編號]]<>"",已排程的還款,"") ->  | F81: =IF(還款排程[[#This Row],[還款編號]]<>"",IF(還款排程[[#This Row],[已排程還款]]+額外還款<還款排程[[#This Row],[期初餘額]],額外還款,IF(還款排程[[#This Row],[期初餘額]]-還款排程[[#This Row],[已排程還款]]>0,還款排程[[#This Row],[期初餘額]]-還款排程[[#This Row],[已排程還款]],0)),"") ->  | G81: =IF(還款排程[[#This Row],[還款編號]]<>"",IF(還款排程[[#This Row],[已排程還款]]+還款排程[[#This Row],[額外還款]]<=還款排程[[#This Row],[期初餘額]],還款排程[[#This Row],[已排程還款]]+還款排程[[#This Row],[額外還款]],還款排程[[#This Row],[期初餘額]]),"") ->  | H81: =IF(還款排程[[#This Row],[還款編號]]<>"",還款排程[[#This Row],[還款總金額]]-還款排程[[#This Row],[利息]],"") ->  | I81: =IF(還款排程[[#This Row],[還款編號]]<>"",還款排程[[#This Row],[期初餘額]]*(利率/每年還款次數),"") ->  | J81: =IF(還款排程[[#This Row],[還款編號]]<>"",IF(還款排程[[#This Row],[已排程還款]]+還款排程[[#This Row],[額外還款]]<=還款排程[[#This Row],[期初餘額]],還款排程[[#This Row],[期初餘額]]-還款排程[[#This Row],[本金]],0),"") ->  | K81: =IF(還款排程[[#This Row],[還款編號]]<>"",SUM(INDEX(還款排程[利息],1,1):還款排程[[#This Row],[利息]]),"") -> 
B82: =IF(貸款良好,IF(ROW()-ROW(還款排程[[#Headers],[還款編號]])>已排程的還款次數,"",ROW()-ROW(還款排程[[#Headers],[還款編號]])),"") ->  | C82: =IF(還款排程[[#This Row],[還款編號]]<>"",EOMONTH(貸款開始日期,ROW(還款排程[[#This Row],[還款編號]])-ROW(還款排程[[#Headers],[還款編號]])-2)+DAY(貸款開始日期),"") ->  | D82: =IF(還款排程[[#This Row],[還款編號]]<>"",IF(ROW()-ROW(還款排程[[#Headers],[期初餘額]])=1,貸款金額,INDEX(還款排程[結餘],ROW()-ROW(還款排程[[#Headers],[期初餘額]])-1)),"") ->  | E82: =IF(還款排程[[#This Row],[還款編號]]<>"",已排程的還款,"") ->  | F82: =IF(還款排程[[#This Row],[還款編號]]<>"",IF(還款排程[[#This Row],[已排程還款]]+額外還款<還款排程[[#This Row],[期初餘額]],額外還款,IF(還款排程[[#This Row],[期初餘額]]-還款排程[[#This Row],[已排程還款]]>0,還款排程[[#This Row],[期初餘額]]-還款排程[[#This Row],[已排程還款]],0)),"") ->  | G82: =IF(還款排程[[#This Row],[還款編號]]<>"",IF(還款排程[[#This Row],[已排程還款]]+還款排程[[#This Row],[額外還款]]<=還款排程[[#This Row],[期初餘額]],還款排程[[#This Row],[已排程還款]]+還款排程[[#This Row],[額外還款]],還款排程[[#This Row],[期初餘額]]),"") ->  | H82: =IF(還款排程[[#This Row],[還款編號]]<>"",還款排程[[#This Row],[還款總金額]]-還款排程[[#This Row],[利息]],"") ->  | I82: =IF(還款排程[[#This Row],[還款編號]]<>"",還款排程[[#This Row],[期初餘額]]*(利率/每年還款次數),"") ->  | J82: =IF(還款排程[[#This Row],[還款編號]]<>"",IF(還款排程[[#This Row],[已排程還款]]+還款排程[[#This Row],[額外還款]]<=還款排程[[#This Row],[期初餘額]],還款排程[[#This Row],[期初餘額]]-還款排程[[#This Row],[本金]],0),"") ->  | K82: =IF(還款排程[[#This Row],[還款編號]]<>"",SUM(INDEX(還款排程[利息],1,1):還款排程[[#This Row],[利息]]),"") -> 
B83: =IF(貸款良好,IF(ROW()-ROW(還款排程[[#Headers],[還款編號]])>已排程的還款次數,"",ROW()-ROW(還款排程[[#Headers],[還款編號]])),"") ->  | C83: =IF(還款排程[[#This Row],[還款編號]]<>"",EOMONTH(貸款開始日期,ROW(還款排程[[#This Row],[還款編號]])-ROW(還款排程[[#Headers],[還款編號]])-2)+DAY(貸款開始日期),"") ->  | D83: =IF(還款排程[[#This Row],[還款編號]]<>"",IF(ROW()-ROW(還款排程[[#Headers],[期初餘額]])=1,貸款金額,INDEX(還款排程[結餘],ROW()-ROW(還款排程[[#Headers],[期初餘額]])-1)),"") ->  | E83: =IF(還款排程[[#This Row],[還款編號]]<>"",已排程的還款,"") ->  | F83: =IF(還款排程[[#This Row],[還款編號]]<>"",IF(還款排程[[#This Row],[已排程還款]]+額外還款<還款排程[[#This Row],[期初餘額]],額外還款,IF(還款排程[[#This Row],[期初餘額]]-還款排程[[#This Row],[已排程還款]]>0,還款排程[[#This Row],[期初餘額]]-還款排程[[#This Row],[已排程還款]],0)),"") ->  | G83: =IF(還款排程[[#This Row],[還款編號]]<>"",IF(還款排程[[#This Row],[已排程還款]]+還款排程[[#This Row],[額外還款]]<=還款排程[[#This Row],[期初餘額]],還款排程[[#This Row],[已排程還款]]+還款排程[[#This Row],[額外還款]],還款排程[[#This Row],[期初餘額]]),"") ->  | H83: =IF(還款排程[[#This Row],[還款編號]]<>"",還款排程[[#This Row],[還款總金額]]-還款排程[[#This Row],[利息]],"") ->  | I83: =IF(還款排程[[#This Row],[還款編號]]<>"",還款排程[[#This Row],[期初餘額]]*(利率/每年還款次數),"") ->  | J83: =IF(還款排程[[#This Row],[還款編號]]<>"",IF(還款排程[[#This Row],[已排程還款]]+還款排程[[#This Row],[額外還款]]<=還款排程[[#This Row],[期初餘額]],還款排程[[#This Row],[期初餘額]]-還款排程[[#This Row],[本金]],0),"") ->  | K83: =IF(還款排程[[#This Row],[還款編號]]<>"",SUM(INDEX(還款排程[利息],1,1):還款排程[[#This Row],[利息]]),"") -> 
B84: =IF(貸款良好,IF(ROW()-ROW(還款排程[[#Headers],[還款編號]])>已排程的還款次數,"",ROW()-ROW(還款排程[[#Headers],[還款編號]])),"") ->  | C84: =IF(還款排程[[#This Row],[還款編號]]<>"",EOMONTH(貸款開始日期,ROW(還款排程[[#This Row],[還款編號]])-ROW(還款排程[[#Headers],[還款編號]])-2)+DAY(貸款開始日期),"") ->  | D84: =IF(還款排程[[#This Row],[還款編號]]<>"",IF(ROW()-ROW(還款排程[[#Headers],[期初餘額]])=1,貸款金額,INDEX(還款排程[結餘],ROW()-ROW(還款排程[[#Headers],[期初餘額]])-1)),"") ->  | E84: =IF(還款排程[[#This Row],[還款編號]]<>"",已排程的還款,"") ->  | F84: =IF(還款排程[[#This Row],[還款編號]]<>"",IF(還款排程[[#This Row],[已排程還款]]+額外還款<還款排程[[#This Row],[期初餘額]],額外還款,IF(還款排程[[#This Row],[期初餘額]]-還款排程[[#This Row],[已排程還款]]>0,還款排程[[#This Row],[期初餘額]]-還款排程[[#This Row],[已排程還款]],0)),"") ->  | G84: =IF(還款排程[[#This Row],[還款編號]]<>"",IF(還款排程[[#This Row],[已排程還款]]+還款排程[[#This Row],[額外還款]]<=還款排程[[#This Row],[期初餘額]],還款排程[[#This Row],[已排程還款]]+還款排程[[#This Row],[額外還款]],還款排程[[#This Row],[期初餘額]]),"") ->  | H84: =IF(還款排程[[#This Row],[還款編號]]<>"",還款排程[[#This Row],[還款總金額]]-還款排程[[#This Row],[利息]],"") ->  | I84: =IF(還款排程[[#This Row],[還款編號]]<>"",還款排程[[#This Row],[期初餘額]]*(利率/每年還款次數),"") ->  | J84: =IF(還款排程[[#This Row],[還款編號]]<>"",IF(還款排程[[#This Row],[已排程還款]]+還款排程[[#This Row],[額外還款]]<=還款排程[[#This Row],[期初餘額]],還款排程[[#This Row],[期初餘額]]-還款排程[[#This Row],[本金]],0),"") ->  | K84: =IF(還款排程[[#This Row],[還款編號]]<>"",SUM(INDEX(還款排程[利息],1,1):還款排程[[#This Row],[利息]]),"") -> 
B85: =IF(貸款良好,IF(ROW()-ROW(還款排程[[#Headers],[還款編號]])>已排程的還款次數,"",ROW()-ROW(還款排程[[#Headers],[還款編號]])),"") ->  | C85: =IF(還款排程[[#This Row],[還款編號]]<>"",EOMONTH(貸款開始日期,ROW(還款排程[[#This Row],[還款編號]])-ROW(還款排程[[#Headers],[還款編號]])-2)+DAY(貸款開始日期),"") ->  | D85: =IF(還款排程[[#This Row],[還款編號]]<>"",IF(ROW()-ROW(還款排程[[#Headers],[期初餘額]])=1,貸款金額,INDEX(還款排程[結餘],ROW()-ROW(還款排程[[#Headers],[期初餘額]])-1)),"") ->  | E85: =IF(還款排程[[#This Row],[還款編號]]<>"",已排程的還款,"") ->  | F85: =IF(還款排程[[#This Row],[還款編號]]<>"",IF(還款排程[[#This Row],[已排程還款]]+額外還款<還款排程[[#This Row],[期初餘額]],額外還款,IF(還款排程[[#This Row],[期初餘額]]-還款排程[[#This Row],[已排程還款]]>0,還款排程[[#This Row],[期初餘額]]-還款排程[[#This Row],[已排程還款]],0)),"") ->  | G85: =IF(還款排程[[#This Row],[還款編號]]<>"",IF(還款排程[[#This Row],[已排程還款]]+還款排程[[#This Row],[額外還款]]<=還款排程[[#This Row],[期初餘額]],還款排程[[#This Row],[已排程還款]]+還款排程[[#This Row],[額外還款]],還款排程[[#This Row],[期初餘額]]),"") ->  | H85: =IF(還款排程[[#This Row],[還款編號]]<>"",還款排程[[#This Row],[還款總金額]]-還款排程[[#This Row],[利息]],"") ->  | I85: =IF(還款排程[[#This Row],[還款編號]]<>"",還款排程[[#This Row],[期初餘額]]*(利率/每年還款次數),"") ->  | J85: =IF(還款排程[[#This Row],[還款編號]]<>"",IF(還款排程[[#This Row],[已排程還款]]+還款排程[[#This Row],[額外還款]]<=還款排程[[#This Row],[期初餘額]],還款排程[[#This Row],[期初餘額]]-還款排程[[#This Row],[本金]],0),"") ->  | K85: =IF(還款排程[[#This Row],[還款編號]]<>"",SUM(INDEX(還款排程[利息],1,1):還款排程[[#This Row],[利息]]),"") -> 
B86: =IF(貸款良好,IF(ROW()-ROW(還款排程[[#Headers],[還款編號]])>已排程的還款次數,"",ROW()-ROW(還款排程[[#Headers],[還款編號]])),"") ->  | C86: =IF(還款排程[[#This Row],[還款編號]]<>"",EOMONTH(貸款開始日期,ROW(還款排程[[#This Row],[還款編號]])-ROW(還款排程[[#Headers],[還款編號]])-2)+DAY(貸款開始日期),"") ->  | D86: =IF(還款排程[[#This Row],[還款編號]]<>"",IF(ROW()-ROW(還款排程[[#Headers],[期初餘額]])=1,貸款金額,INDEX(還款排程[結餘],ROW()-ROW(還款排程[[#Headers],[期初餘額]])-1)),"") ->  | E86: =IF(還款排程[[#This Row],[還款編號]]<>"",已排程的還款,"") ->  | F86: =IF(還款排程[[#This Row],[還款編號]]<>"",IF(還款排程[[#This Row],[已排程還款]]+額外還款<還款排程[[#This Row],[期初餘額]],額外還款,IF(還款排程[[#This Row],[期初餘額]]-還款排程[[#This Row],[已排程還款]]>0,還款排程[[#This Row],[期初餘額]]-還款排程[[#This Row],[已排程還款]],0)),"") ->  | G86: =IF(還款排程[[#This Row],[還款編號]]<>"",IF(還款排程[[#This Row],[已排程還款]]+還款排程[[#This Row],[額外還款]]<=還款排程[[#This Row],[期初餘額]],還款排程[[#This Row],[已排程還款]]+還款排程[[#This Row],[額外還款]],還款排程[[#This Row],[期初餘額]]),"") ->  | H86: =IF(還款排程[[#This Row],[還款編號]]<>"",還款排程[[#This Row],[還款總金額]]-還款排程[[#This Row],[利息]],"") ->  | I86: =IF(還款排程[[#This Row],[還款編號]]<>"",還款排程[[#This Row],[期初餘額]]*(利率/每年還款次數),"") ->  | J86: =IF(還款排程[[#This Row],[還款編號]]<>"",IF(還款排程[[#This Row],[已排程還款]]+還款排程[[#This Row],[額外還款]]<=還款排程[[#This Row],[期初餘額]],還款排程[[#This Row],[期初餘額]]-還款排程[[#This Row],[本金]],0),"") ->  | K86: =IF(還款排程[[#This Row],[還款編號]]<>"",SUM(INDEX(還款排程[利息],1,1):還款排程[[#This Row],[利息]]),"") -> 
B87: =IF(貸款良好,IF(ROW()-ROW(還款排程[[#Headers],[還款編號]])>已排程的還款次數,"",ROW()-ROW(還款排程[[#Headers],[還款編號]])),"") ->  | C87: =IF(還款排程[[#This Row],[還款編號]]<>"",EOMONTH(貸款開始日期,ROW(還款排程[[#This Row],[還款編號]])-ROW(還款排程[[#Headers],[還款編號]])-2)+DAY(貸款開始日期),"") ->  | D87: =IF(還款排程[[#This Row],[還款編號]]<>"",IF(ROW()-ROW(還款排程[[#Headers],[期初餘額]])=1,貸款金額,INDEX(還款排程[結餘],ROW()-ROW(還款排程[[#Headers],[期初餘額]])-1)),"") ->  | E87: =IF(還款排程[[#This Row],[還款編號]]<>"",已排程的還款,"") ->  | F87: =IF(還款排程[[#This Row],[還款編號]]<>"",IF(還款排程[[#This Row],[已排程還款]]+額外還款<還款排程[[#This Row],[期初餘額]],額外還款,IF(還款排程[[#This Row],[期初餘額]]-還款排程[[#This Row],[已排程還款]]>0,還款排程[[#This Row],[期初餘額]]-還款排程[[#This Row],[已排程還款]],0)),"") ->  | G87: =IF(還款排程[[#This Row],[還款編號]]<>"",IF(還款排程[[#This Row],[已排程還款]]+還款排程[[#This Row],[額外還款]]<=還款排程[[#This Row],[期初餘額]],還款排程[[#This Row],[已排程還款]]+還款排程[[#This Row],[額外還款]],還款排程[[#This Row],[期初餘額]]),"") ->  | H87: =IF(還款排程[[#This Row],[還款編號]]<>"",還款排程[[#This Row],[還款總金額]]-還款排程[[#This Row],[利息]],"") ->  | I87: =IF(還款排程[[#This Row],[還款編號]]<>"",還款排程[[#This Row],[期初餘額]]*(利率/每年還款次數),"") ->  | J87: =IF(還款排程[[#This Row],[還款編號]]<>"",IF(還款排程[[#This Row],[已排程還款]]+還款排程[[#This Row],[額外還款]]<=還款排程[[#This Row],[期初餘額]],還款排程[[#This Row],[期初餘額]]-還款排程[[#This Row],[本金]],0),"") ->  | K87: =IF(還款排程[[#This Row],[還款編號]]<>"",SUM(INDEX(還款排程[利息],1,1):還款排程[[#This Row],[利息]]),"") -> 
B88: =IF(貸款良好,IF(ROW()-ROW(還款排程[[#Headers],[還款編號]])>已排程的還款次數,"",ROW()-ROW(還款排程[[#Headers],[還款編號]])),"") ->  | C88: =IF(還款排程[[#This Row],[還款編號]]<>"",EOMONTH(貸款開始日期,ROW(還款排程[[#This Row],[還款編號]])-ROW(還款排程[[#Headers],[還款編號]])-2)+DAY(貸款開始日期),"") ->  | D88: =IF(還款排程[[#This Row],[還款編號]]<>"",IF(ROW()-ROW(還款排程[[#Headers],[期初餘額]])=1,貸款金額,INDEX(還款排程[結餘],ROW()-ROW(還款排程[[#Headers],[期初餘額]])-1)),"") ->  | E88: =IF(還款排程[[#This Row],[還款編號]]<>"",已排程的還款,"") ->  | F88: =IF(還款排程[[#This Row],[還款編號]]<>"",IF(還款排程[[#This Row],[已排程還款]]+額外還款<還款排程[[#This Row],[期初餘額]],額外還款,IF(還款排程[[#This Row],[期初餘額]]-還款排程[[#This Row],[已排程還款]]>0,還款排程[[#This Row],[期初餘額]]-還款排程[[#This Row],[已排程還款]],0)),"") ->  | G88: =IF(還款排程[[#This Row],[還款編號]]<>"",IF(還款排程[[#This Row],[已排程還款]]+還款排程[[#This Row],[額外還款]]<=還款排程[[#This Row],[期初餘額]],還款排程[[#This Row],[已排程還款]]+還款排程[[#This Row],[額外還款]],還款排程[[#This Row],[期初餘額]]),"") ->  | H88: =IF(還款排程[[#This Row],[還款編號]]<>"",還款排程[[#This Row],[還款總金額]]-還款排程[[#This Row],[利息]],"") ->  | I88: =IF(還款排程[[#This Row],[還款編號]]<>"",還款排程[[#This Row],[期初餘額]]*(利率/每年還款次數),"") ->  | J88: =IF(還款排程[[#This Row],[還款編號]]<>"",IF(還款排程[[#This Row],[已排程還款]]+還款排程[[#This Row],[額外還款]]<=還款排程[[#This Row],[期初餘額]],還款排程[[#This Row],[期初餘額]]-還款排程[[#This Row],[本金]],0),"") ->  | K88: =IF(還款排程[[#This Row],[還款編號]]<>"",SUM(INDEX(還款排程[利息],1,1):還款排程[[#This Row],[利息]]),"") -> 
B89: =IF(貸款良好,IF(ROW()-ROW(還款排程[[#Headers],[還款編號]])>已排程的還款次數,"",ROW()-ROW(還款排程[[#Headers],[還款編號]])),"") ->  | C89: =IF(還款排程[[#This Row],[還款編號]]<>"",EOMONTH(貸款開始日期,ROW(還款排程[[#This Row],[還款編號]])-ROW(還款排程[[#Headers],[還款編號]])-2)+DAY(貸款開始日期),"") ->  | D89: =IF(還款排程[[#This Row],[還款編號]]<>"",IF(ROW()-ROW(還款排程[[#Headers],[期初餘額]])=1,貸款金額,INDEX(還款排程[結餘],ROW()-ROW(還款排程[[#Headers],[期初餘額]])-1)),"") ->  | E89: =IF(還款排程[[#This Row],[還款編號]]<>"",已排程的還款,"") ->  | F89: =IF(還款排程[[#This Row],[還款編號]]<>"",IF(還款排程[[#This Row],[已排程還款]]+額外還款<還款排程[[#This Row],[期初餘額]],額外還款,IF(還款排程[[#This Row],[期初餘額]]-還款排程[[#This Row],[已排程還款]]>0,還款排程[[#This Row],[期初餘額]]-還款排程[[#This Row],[已排程還款]],0)),"") ->  | G89: =IF(還款排程[[#This Row],[還款編號]]<>"",IF(還款排程[[#This Row],[已排程還款]]+還款排程[[#This Row],[額外還款]]<=還款排程[[#This Row],[期初餘額]],還款排程[[#This Row],[已排程還款]]+還款排程[[#This Row],[額外還款]],還款排程[[#This Row],[期初餘額]]),"") ->  | H89: =IF(還款排程[[#This Row],[還款編號]]<>"",還款排程[[#This Row],[還款總金額]]-還款排程[[#This Row],[利息]],"") ->  | I89: =IF(還款排程[[#This Row],[還款編號]]<>"",還款排程[[#This Row],[期初餘額]]*(利率/每年還款次數),"") ->  | J89: =IF(還款排程[[#This Row],[還款編號]]<>"",IF(還款排程[[#This Row],[已排程還款]]+還款排程[[#This Row],[額外還款]]<=還款排程[[#This Row],[期初餘額]],還款排程[[#This Row],[期初餘額]]-還款排程[[#This Row],[本金]],0),"") ->  | K89: =IF(還款排程[[#This Row],[還款編號]]<>"",SUM(INDEX(還款排程[利息],1,1):還款排程[[#This Row],[利息]]),"") -> 
B90: =IF(貸款良好,IF(ROW()-ROW(還款排程[[#Headers],[還款編號]])>已排程的還款次數,"",ROW()-ROW(還款排程[[#Headers],[還款編號]])),"") ->  | C90: =IF(還款排程[[#This Row],[還款編號]]<>"",EOMONTH(貸款開始日期,ROW(還款排程[[#This Row],[還款編號]])-ROW(還款排程[[#Headers],[還款編號]])-2)+DAY(貸款開始日期),"") ->  | D90: =IF(還款排程[[#This Row],[還款編號]]<>"",IF(ROW()-ROW(還款排程[[#Headers],[期初餘額]])=1,貸款金額,INDEX(還款排程[結餘],ROW()-ROW(還款排程[[#Headers],[期初餘額]])-1)),"") ->  | E90: =IF(還款排程[[#This Row],[還款編號]]<>"",已排程的還款,"") ->  | F90: =IF(還款排程[[#This Row],[還款編號]]<>"",IF(還款排程[[#This Row],[已排程還款]]+額外還款<還款排程[[#This Row],[期初餘額]],額外還款,IF(還款排程[[#This Row],[期初餘額]]-還款排程[[#This Row],[已排程還款]]>0,還款排程[[#This Row],[期初餘額]]-還款排程[[#This Row],[已排程還款]],0)),"") ->  | G90: =IF(還款排程[[#This Row],[還款編號]]<>"",IF(還款排程[[#This Row],[已排程還款]]+還款排程[[#This Row],[額外還款]]<=還款排程[[#This Row],[期初餘額]],還款排程[[#This Row],[已排程還款]]+還款排程[[#This Row],[額外還款]],還款排程[[#This Row],[期初餘額]]),"") ->  | H90: =IF(還款排程[[#This Row],[還款編號]]<>"",還款排程[[#This Row],[還款總金額]]-還款排程[[#This Row],[利息]],"") ->  | I90: =IF(還款排程[[#This Row],[還款編號]]<>"",還款排程[[#This Row],[期初餘額]]*(利率/每年還款次數),"") ->  | J90: =IF(還款排程[[#This Row],[還款編號]]<>"",IF(還款排程[[#This Row],[已排程還款]]+還款排程[[#This Row],[額外還款]]<=還款排程[[#This Row],[期初餘額]],還款排程[[#This Row],[期初餘額]]-還款排程[[#This Row],[本金]],0),"") ->  | K90: =IF(還款排程[[#This Row],[還款編號]]<>"",SUM(INDEX(還款排程[利息],1,1):還款排程[[#This Row],[利息]]),"") -> 
B91: =IF(貸款良好,IF(ROW()-ROW(還款排程[[#Headers],[還款編號]])>已排程的還款次數,"",ROW()-ROW(還款排程[[#Headers],[還款編號]])),"") ->  | C91: =IF(還款排程[[#This Row],[還款編號]]<>"",EOMONTH(貸款開始日期,ROW(還款排程[[#This Row],[還款編號]])-ROW(還款排程[[#Headers],[還款編號]])-2)+DAY(貸款開始日期),"") ->  | D91: =IF(還款排程[[#This Row],[還款編號]]<>"",IF(ROW()-ROW(還款排程[[#Headers],[期初餘額]])=1,貸款金額,INDEX(還款排程[結餘],ROW()-ROW(還款排程[[#Headers],[期初餘額]])-1)),"") ->  | E91: =IF(還款排程[[#This Row],[還款編號]]<>"",已排程的還款,"") ->  | F91: =IF(還款排程[[#This Row],[還款編號]]<>"",IF(還款排程[[#This Row],[已排程還款]]+額外還款<還款排程[[#This Row],[期初餘額]],額外還款,IF(還款排程[[#This Row],[期初餘額]]-還款排程[[#This Row],[已排程還款]]>0,還款排程[[#This Row],[期初餘額]]-還款排程[[#This Row],[已排程還款]],0)),"") ->  | G91: =IF(還款排程[[#This Row],[還款編號]]<>"",IF(還款排程[[#This Row],[已排程還款]]+還款排程[[#This Row],[額外還款]]<=還款排程[[#This Row],[期初餘額]],還款排程[[#This Row],[已排程還款]]+還款排程[[#This Row],[額外還款]],還款排程[[#This Row],[期初餘額]]),"") ->  | H91: =IF(還款排程[[#This Row],[還款編號]]<>"",還款排程[[#This Row],[還款總金額]]-還款排程[[#This Row],[利息]],"") ->  | I91: =IF(還款排程[[#This Row],[還款編號]]<>"",還款排程[[#This Row],[期初餘額]]*(利率/每年還款次數),"") ->  | J91: =IF(還款排程[[#This Row],[還款編號]]<>"",IF(還款排程[[#This Row],[已排程還款]]+還款排程[[#This Row],[額外還款]]<=還款排程[[#This Row],[期初餘額]],還款排程[[#This Row],[期初餘額]]-還款排程[[#This Row],[本金]],0),"") ->  | K91: =IF(還款排程[[#This Row],[還款編號]]<>"",SUM(INDEX(還款排程[利息],1,1):還款排程[[#This Row],[利息]]),"") -> 
B92: =IF(貸款良好,IF(ROW()-ROW(還款排程[[#Headers],[還款編號]])>已排程的還款次數,"",ROW()-ROW(還款排程[[#Headers],[還款編號]])),"") ->  | C92: =IF(還款排程[[#This Row],[還款編號]]<>"",EOMONTH(貸款開始日期,ROW(還款排程[[#This Row],[還款編號]])-ROW(還款排程[[#Headers],[還款編號]])-2)+DAY(貸款開始日期),"") ->  | D92: =IF(還款排程[[#This Row],[還款編號]]<>"",IF(ROW()-ROW(還款排程[[#Headers],[期初餘額]])=1,貸款金額,INDEX(還款排程[結餘],ROW()-ROW(還款排程[[#Headers],[期初餘額]])-1)),"") ->  | E92: =IF(還款排程[[#This Row],[還款編號]]<>"",已排程的還款,"") ->  | F92: =IF(還款排程[[#This Row],[還款編號]]<>"",IF(還款排程[[#This Row],[已排程還款]]+額外還款<還款排程[[#This Row],[期初餘額]],額外還款,IF(還款排程[[#This Row],[期初餘額]]-還款排程[[#This Row],[已排程還款]]>0,還款排程[[#This Row],[期初餘額]]-還款排程[[#This Row],[已排程還款]],0)),"") ->  | G92: =IF(還款排程[[#This Row],[還款編號]]<>"",IF(還款排程[[#This Row],[已排程還款]]+還款排程[[#This Row],[額外還款]]<=還款排程[[#This Row],[期初餘額]],還款排程[[#This Row],[已排程還款]]+還款排程[[#This Row],[額外還款]],還款排程[[#This Row],[期初餘額]]),"") ->  | H92: =IF(還款排程[[#This Row],[還款編號]]<>"",還款排程[[#This Row],[還款總金額]]-還款排程[[#This Row],[利息]],"") ->  | I92: =IF(還款排程[[#This Row],[還款編號]]<>"",還款排程[[#This Row],[期初餘額]]*(利率/每年還款次數),"") ->  | J92: =IF(還款排程[[#This Row],[還款編號]]<>"",IF(還款排程[[#This Row],[已排程還款]]+還款排程[[#This Row],[額外還款]]<=還款排程[[#This Row],[期初餘額]],還款排程[[#This Row],[期初餘額]]-還款排程[[#This Row],[本金]],0),"") ->  | K92: =IF(還款排程[[#This Row],[還款編號]]<>"",SUM(INDEX(還款排程[利息],1,1):還款排程[[#This Row],[利息]]),"") -> 
B93: =IF(貸款良好,IF(ROW()-ROW(還款排程[[#Headers],[還款編號]])>已排程的還款次數,"",ROW()-ROW(還款排程[[#Headers],[還款編號]])),"") ->  | C93: =IF(還款排程[[#This Row],[還款編號]]<>"",EOMONTH(貸款開始日期,ROW(還款排程[[#This Row],[還款編號]])-ROW(還款排程[[#Headers],[還款編號]])-2)+DAY(貸款開始日期),"") ->  | D93: =IF(還款排程[[#This Row],[還款編號]]<>"",IF(ROW()-ROW(還款排程[[#Headers],[期初餘額]])=1,貸款金額,INDEX(還款排程[結餘],ROW()-ROW(還款排程[[#Headers],[期初餘額]])-1)),"") ->  | E93: =IF(還款排程[[#This Row],[還款編號]]<>"",已排程的還款,"") ->  | F93: =IF(還款排程[[#This Row],[還款編號]]<>"",IF(還款排程[[#This Row],[已排程還款]]+額外還款<還款排程[[#This Row],[期初餘額]],額外還款,IF(還款排程[[#This Row],[期初餘額]]-還款排程[[#This Row],[已排程還款]]>0,還款排程[[#This Row],[期初餘額]]-還款排程[[#This Row],[已排程還款]],0)),"") ->  | G93: =IF(還款排程[[#This Row],[還款編號]]<>"",IF(還款排程[[#This Row],[已排程還款]]+還款排程[[#This Row],[額外還款]]<=還款排程[[#This Row],[期初餘額]],還款排程[[#This Row],[已排程還款]]+還款排程[[#This Row],[額外還款]],還款排程[[#This Row],[期初餘額]]),"") ->  | H93: =IF(還款排程[[#This Row],[還款編號]]<>"",還款排程[[#This Row],[還款總金額]]-還款排程[[#This Row],[利息]],"") ->  | I93: =IF(還款排程[[#This Row],[還款編號]]<>"",還款排程[[#This Row],[期初餘額]]*(利率/每年還款次數),"") ->  | J93: =IF(還款排程[[#This Row],[還款編號]]<>"",IF(還款排程[[#This Row],[已排程還款]]+還款排程[[#This Row],[額外還款]]<=還款排程[[#This Row],[期初餘額]],還款排程[[#This Row],[期初餘額]]-還款排程[[#This Row],[本金]],0),"") ->  | K93: =IF(還款排程[[#This Row],[還款編號]]<>"",SUM(INDEX(還款排程[利息],1,1):還款排程[[#This Row],[利息]]),"") -> 
B94: =IF(貸款良好,IF(ROW()-ROW(還款排程[[#Headers],[還款編號]])>已排程的還款次數,"",ROW()-ROW(還款排程[[#Headers],[還款編號]])),"") ->  | C94: =IF(還款排程[[#This Row],[還款編號]]<>"",EOMONTH(貸款開始日期,ROW(還款排程[[#This Row],[還款編號]])-ROW(還款排程[[#Headers],[還款編號]])-2)+DAY(貸款開始日期),"") ->  | D94: =IF(還款排程[[#This Row],[還款編號]]<>"",IF(ROW()-ROW(還款排程[[#Headers],[期初餘額]])=1,貸款金額,INDEX(還款排程[結餘],ROW()-ROW(還款排程[[#Headers],[期初餘額]])-1)),"") ->  | E94: =IF(還款排程[[#This Row],[還款編號]]<>"",已排程的還款,"") ->  | F94: =IF(還款排程[[#This Row],[還款編號]]<>"",IF(還款排程[[#This Row],[已排程還款]]+額外還款<還款排程[[#This Row],[期初餘額]],額外還款,IF(還款排程[[#This Row],[期初餘額]]-還款排程[[#This Row],[已排程還款]]>0,還款排程[[#This Row],[期初餘額]]-還款排程[[#This Row],[已排程還款]],0)),"") ->  | G94: =IF(還款排程[[#This Row],[還款編號]]<>"",IF(還款排程[[#This Row],[已排程還款]]+還款排程[[#This Row],[額外還款]]<=還款排程[[#This Row],[期初餘額]],還款排程[[#This Row],[已排程還款]]+還款排程[[#This Row],[額外還款]],還款排程[[#This Row],[期初餘額]]),"") ->  | H94: =IF(還款排程[[#This Row],[還款編號]]<>"",還款排程[[#This Row],[還款總金額]]-還款排程[[#This Row],[利息]],"") ->  | I94: =IF(還款排程[[#This Row],[還款編號]]<>"",還款排程[[#This Row],[期初餘額]]*(利率/每年還款次數),"") ->  | J94: =IF(還款排程[[#This Row],[還款編號]]<>"",IF(還款排程[[#This Row],[已排程還款]]+還款排程[[#This Row],[額外還款]]<=還款排程[[#This Row],[期初餘額]],還款排程[[#This Row],[期初餘額]]-還款排程[[#This Row],[本金]],0),"") ->  | K94: =IF(還款排程[[#This Row],[還款編號]]<>"",SUM(INDEX(還款排程[利息],1,1):還款排程[[#This Row],[利息]]),"") -> 
B95: =IF(貸款良好,IF(ROW()-ROW(還款排程[[#Headers],[還款編號]])>已排程的還款次數,"",ROW()-ROW(還款排程[[#Headers],[還款編號]])),"") ->  | C95: =IF(還款排程[[#This Row],[還款編號]]<>"",EOMONTH(貸款開始日期,ROW(還款排程[[#This Row],[還款編號]])-ROW(還款排程[[#Headers],[還款編號]])-2)+DAY(貸款開始日期),"") ->  | D95: =IF(還款排程[[#This Row],[還款編號]]<>"",IF(ROW()-ROW(還款排程[[#Headers],[期初餘額]])=1,貸款金額,INDEX(還款排程[結餘],ROW()-ROW(還款排程[[#Headers],[期初餘額]])-1)),"") ->  | E95: =IF(還款排程[[#This Row],[還款編號]]<>"",已排程的還款,"") ->  | F95: =IF(還款排程[[#This Row],[還款編號]]<>"",IF(還款排程[[#This Row],[已排程還款]]+額外還款<還款排程[[#This Row],[期初餘額]],額外還款,IF(還款排程[[#This Row],[期初餘額]]-還款排程[[#This Row],[已排程還款]]>0,還款排程[[#This Row],[期初餘額]]-還款排程[[#This Row],[已排程還款]],0)),"") ->  | G95: =IF(還款排程[[#This Row],[還款編號]]<>"",IF(還款排程[[#This Row],[已排程還款]]+還款排程[[#This Row],[額外還款]]<=還款排程[[#This Row],[期初餘額]],還款排程[[#This Row],[已排程還款]]+還款排程[[#This Row],[額外還款]],還款排程[[#This Row],[期初餘額]]),"") ->  | H95: =IF(還款排程[[#This Row],[還款編號]]<>"",還款排程[[#This Row],[還款總金額]]-還款排程[[#This Row],[利息]],"") ->  | I95: =IF(還款排程[[#This Row],[還款編號]]<>"",還款排程[[#This Row],[期初餘額]]*(利率/每年還款次數),"") ->  | J95: =IF(還款排程[[#This Row],[還款編號]]<>"",IF(還款排程[[#This Row],[已排程還款]]+還款排程[[#This Row],[額外還款]]<=還款排程[[#This Row],[期初餘額]],還款排程[[#This Row],[期初餘額]]-還款排程[[#This Row],[本金]],0),"") ->  | K95: =IF(還款排程[[#This Row],[還款編號]]<>"",SUM(INDEX(還款排程[利息],1,1):還款排程[[#This Row],[利息]]),"") -> 
B96: =IF(貸款良好,IF(ROW()-ROW(還款排程[[#Headers],[還款編號]])>已排程的還款次數,"",ROW()-ROW(還款排程[[#Headers],[還款編號]])),"") ->  | C96: =IF(還款排程[[#This Row],[還款編號]]<>"",EOMONTH(貸款開始日期,ROW(還款排程[[#This Row],[還款編號]])-ROW(還款排程[[#Headers],[還款編號]])-2)+DAY(貸款開始日期),"") ->  | D96: =IF(還款排程[[#This Row],[還款編號]]<>"",IF(ROW()-ROW(還款排程[[#Headers],[期初餘額]])=1,貸款金額,INDEX(還款排程[結餘],ROW()-ROW(還款排程[[#Headers],[期初餘額]])-1)),"") ->  | E96: =IF(還款排程[[#This Row],[還款編號]]<>"",已排程的還款,"") ->  | F96: =IF(還款排程[[#This Row],[還款編號]]<>"",IF(還款排程[[#This Row],[已排程還款]]+額外還款<還款排程[[#This Row],[期初餘額]],額外還款,IF(還款排程[[#This Row],[期初餘額]]-還款排程[[#This Row],[已排程還款]]>0,還款排程[[#This Row],[期初餘額]]-還款排程[[#This Row],[已排程還款]],0)),"") ->  | G96: =IF(還款排程[[#This Row],[還款編號]]<>"",IF(還款排程[[#This Row],[已排程還款]]+還款排程[[#This Row],[額外還款]]<=還款排程[[#This Row],[期初餘額]],還款排程[[#This Row],[已排程還款]]+還款排程[[#This Row],[額外還款]],還款排程[[#This Row],[期初餘額]]),"") ->  | H96: =IF(還款排程[[#This Row],[還款編號]]<>"",還款排程[[#This Row],[還款總金額]]-還款排程[[#This Row],[利息]],"") ->  | I96: =IF(還款排程[[#This Row],[還款編號]]<>"",還款排程[[#This Row],[期初餘額]]*(利率/每年還款次數),"") ->  | J96: =IF(還款排程[[#This Row],[還款編號]]<>"",IF(還款排程[[#This Row],[已排程還款]]+還款排程[[#This Row],[額外還款]]<=還款排程[[#This Row],[期初餘額]],還款排程[[#This Row],[期初餘額]]-還款排程[[#This Row],[本金]],0),"") ->  | K96: =IF(還款排程[[#This Row],[還款編號]]<>"",SUM(INDEX(還款排程[利息],1,1):還款排程[[#This Row],[利息]]),"") -> 
B97: =IF(貸款良好,IF(ROW()-ROW(還款排程[[#Headers],[還款編號]])>已排程的還款次數,"",ROW()-ROW(還款排程[[#Headers],[還款編號]])),"") ->  | C97: =IF(還款排程[[#This Row],[還款編號]]<>"",EOMONTH(貸款開始日期,ROW(還款排程[[#This Row],[還款編號]])-ROW(還款排程[[#Headers],[還款編號]])-2)+DAY(貸款開始日期),"") ->  | D97: =IF(還款排程[[#This Row],[還款編號]]<>"",IF(ROW()-ROW(還款排程[[#Headers],[期初餘額]])=1,貸款金額,INDEX(還款排程[結餘],ROW()-ROW(還款排程[[#Headers],[期初餘額]])-1)),"") ->  | E97: =IF(還款排程[[#This Row],[還款編號]]<>"",已排程的還款,"") ->  | F97: =IF(還款排程[[#This Row],[還款編號]]<>"",IF(還款排程[[#This Row],[已排程還款]]+額外還款<還款排程[[#This Row],[期初餘額]],額外還款,IF(還款排程[[#This Row],[期初餘額]]-還款排程[[#This Row],[已排程還款]]>0,還款排程[[#This Row],[期初餘額]]-還款排程[[#This Row],[已排程還款]],0)),"") ->  | G97: =IF(還款排程[[#This Row],[還款編號]]<>"",IF(還款排程[[#This Row],[已排程還款]]+還款排程[[#This Row],[額外還款]]<=還款排程[[#This Row],[期初餘額]],還款排程[[#This Row],[已排程還款]]+還款排程[[#This Row],[額外還款]],還款排程[[#This Row],[期初餘額]]),"") ->  | H97: =IF(還款排程[[#This Row],[還款編號]]<>"",還款排程[[#This Row],[還款總金額]]-還款排程[[#This Row],[利息]],"") ->  | I97: =IF(還款排程[[#This Row],[還款編號]]<>"",還款排程[[#This Row],[期初餘額]]*(利率/每年還款次數),"") ->  | J97: =IF(還款排程[[#This Row],[還款編號]]<>"",IF(還款排程[[#This Row],[已排程還款]]+還款排程[[#This Row],[額外還款]]<=還款排程[[#This Row],[期初餘額]],還款排程[[#This Row],[期初餘額]]-還款排程[[#This Row],[本金]],0),"") ->  | K97: =IF(還款排程[[#This Row],[還款編號]]<>"",SUM(INDEX(還款排程[利息],1,1):還款排程[[#This Row],[利息]]),"") -> 
B98: =IF(貸款良好,IF(ROW()-ROW(還款排程[[#Headers],[還款編號]])>已排程的還款次數,"",ROW()-ROW(還款排程[[#Headers],[還款編號]])),"") ->  | C98: =IF(還款排程[[#This Row],[還款編號]]<>"",EOMONTH(貸款開始日期,ROW(還款排程[[#This Row],[還款編號]])-ROW(還款排程[[#Headers],[還款編號]])-2)+DAY(貸款開始日期),"") ->  | D98: =IF(還款排程[[#This Row],[還款編號]]<>"",IF(ROW()-ROW(還款排程[[#Headers],[期初餘額]])=1,貸款金額,INDEX(還款排程[結餘],ROW()-ROW(還款排程[[#Headers],[期初餘額]])-1)),"") ->  | E98: =IF(還款排程[[#This Row],[還款編號]]<>"",已排程的還款,"") ->  | F98: =IF(還款排程[[#This Row],[還款編號]]<>"",IF(還款排程[[#This Row],[已排程還款]]+額外還款<還款排程[[#This Row],[期初餘額]],額外還款,IF(還款排程[[#This Row],[期初餘額]]-還款排程[[#This Row],[已排程還款]]>0,還款排程[[#This Row],[期初餘額]]-還款排程[[#This Row],[已排程還款]],0)),"") ->  | G98: =IF(還款排程[[#This Row],[還款編號]]<>"",IF(還款排程[[#This Row],[已排程還款]]+還款排程[[#This Row],[額外還款]]<=還款排程[[#This Row],[期初餘額]],還款排程[[#This Row],[已排程還款]]+還款排程[[#This Row],[額外還款]],還款排程[[#This Row],[期初餘額]]),"") ->  | H98: =IF(還款排程[[#This Row],[還款編號]]<>"",還款排程[[#This Row],[還款總金額]]-還款排程[[#This Row],[利息]],"") ->  | I98: =IF(還款排程[[#This Row],[還款編號]]<>"",還款排程[[#This Row],[期初餘額]]*(利率/每年還款次數),"") ->  | J98: =IF(還款排程[[#This Row],[還款編號]]<>"",IF(還款排程[[#This Row],[已排程還款]]+還款排程[[#This Row],[額外還款]]<=還款排程[[#This Row],[期初餘額]],還款排程[[#This Row],[期初餘額]]-還款排程[[#This Row],[本金]],0),"") ->  | K98: =IF(還款排程[[#This Row],[還款編號]]<>"",SUM(INDEX(還款排程[利息],1,1):還款排程[[#This Row],[利息]]),"") -> 
B99: =IF(貸款良好,IF(ROW()-ROW(還款排程[[#Headers],[還款編號]])>已排程的還款次數,"",ROW()-ROW(還款排程[[#Headers],[還款編號]])),"") ->  | C99: =IF(還款排程[[#This Row],[還款編號]]<>"",EOMONTH(貸款開始日期,ROW(還款排程[[#This Row],[還款編號]])-ROW(還款排程[[#Headers],[還款編號]])-2)+DAY(貸款開始日期),"") ->  | D99: =IF(還款排程[[#This Row],[還款編號]]<>"",IF(ROW()-ROW(還款排程[[#Headers],[期初餘額]])=1,貸款金額,INDEX(還款排程[結餘],ROW()-ROW(還款排程[[#Headers],[期初餘額]])-1)),"") ->  | E99: =IF(還款排程[[#This Row],[還款編號]]<>"",已排程的還款,"") ->  | F99: =IF(還款排程[[#This Row],[還款編號]]<>"",IF(還款排程[[#This Row],[已排程還款]]+額外還款<還款排程[[#This Row],[期初餘額]],額外還款,IF(還款排程[[#This Row],[期初餘額]]-還款排程[[#This Row],[已排程還款]]>0,還款排程[[#This Row],[期初餘額]]-還款排程[[#This Row],[已排程還款]],0)),"") ->  | G99: =IF(還款排程[[#This Row],[還款編號]]<>"",IF(還款排程[[#This Row],[已排程還款]]+還款排程[[#This Row],[額外還款]]<=還款排程[[#This Row],[期初餘額]],還款排程[[#This Row],[已排程還款]]+還款排程[[#This Row],[額外還款]],還款排程[[#This Row],[期初餘額]]),"") ->  | H99: =IF(還款排程[[#This Row],[還款編號]]<>"",還款排程[[#This Row],[還款總金額]]-還款排程[[#This Row],[利息]],"") ->  | I99: =IF(還款排程[[#This Row],[還款編號]]<>"",還款排程[[#This Row],[期初餘額]]*(利率/每年還款次數),"") ->  | J99: =IF(還款排程[[#This Row],[還款編號]]<>"",IF(還款排程[[#This Row],[已排程還款]]+還款排程[[#This Row],[額外還款]]<=還款排程[[#This Row],[期初餘額]],還款排程[[#This Row],[期初餘額]]-還款排程[[#This Row],[本金]],0),"") ->  | K99: =IF(還款排程[[#This Row],[還款編號]]<>"",SUM(INDEX(還款排程[利息],1,1):還款排程[[#This Row],[利息]]),"") -> 
B100: =IF(貸款良好,IF(ROW()-ROW(還款排程[[#Headers],[還款編號]])>已排程的還款次數,"",ROW()-ROW(還款排程[[#Headers],[還款編號]])),"") ->  | C100: =IF(還款排程[[#This Row],[還款編號]]<>"",EOMONTH(貸款開始日期,ROW(還款排程[[#This Row],[還款編號]])-ROW(還款排程[[#Headers],[還款編號]])-2)+DAY(貸款開始日期),"") ->  | D100: =IF(還款排程[[#This Row],[還款編號]]<>"",IF(ROW()-ROW(還款排程[[#Headers],[期初餘額]])=1,貸款金額,INDEX(還款排程[結餘],ROW()-ROW(還款排程[[#Headers],[期初餘額]])-1)),"") ->  | E100: =IF(還款排程[[#This Row],[還款編號]]<>"",已排程的還款,"") ->  | F100: =IF(還款排程[[#This Row],[還款編號]]<>"",IF(還款排程[[#This Row],[已排程還款]]+額外還款<還款排程[[#This Row],[期初餘額]],額外還款,IF(還款排程[[#This Row],[期初餘額]]-還款排程[[#This Row],[已排程還款]]>0,還款排程[[#This Row],[期初餘額]]-還款排程[[#This Row],[已排程還款]],0)),"") ->  | G100: =IF(還款排程[[#This Row],[還款編號]]<>"",IF(還款排程[[#This Row],[已排程還款]]+還款排程[[#This Row],[額外還款]]<=還款排程[[#This Row],[期初餘額]],還款排程[[#This Row],[已排程還款]]+還款排程[[#This Row],[額外還款]],還款排程[[#This Row],[期初餘額]]),"") ->  | H100: =IF(還款排程[[#This Row],[還款編號]]<>"",還款排程[[#This Row],[還款總金額]]-還款排程[[#This Row],[利息]],"") ->  | I100: =IF(還款排程[[#This Row],[還款編號]]<>"",還款排程[[#This Row],[期初餘額]]*(利率/每年還款次數),"") ->  | J100: =IF(還款排程[[#This Row],[還款編號]]<>"",IF(還款排程[[#This Row],[已排程還款]]+還款排程[[#This Row],[額外還款]]<=還款排程[[#This Row],[期初餘額]],還款排程[[#This Row],[期初餘額]]-還款排程[[#This Row],[本金]],0),"") ->  | K100: =IF(還款排程[[#This Row],[還款編號]]<>"",SUM(INDEX(還款排程[利息],1,1):還款排程[[#This Row],[利息]]),"") -> 
B101: =IF(貸款良好,IF(ROW()-ROW(還款排程[[#Headers],[還款編號]])>已排程的還款次數,"",ROW()-ROW(還款排程[[#Headers],[還款編號]])),"") ->  | C101: =IF(還款排程[[#This Row],[還款編號]]<>"",EOMONTH(貸款開始日期,ROW(還款排程[[#This Row],[還款編號]])-ROW(還款排程[[#Headers],[還款編號]])-2)+DAY(貸款開始日期),"") ->  | D101: =IF(還款排程[[#This Row],[還款編號]]<>"",IF(ROW()-ROW(還款排程[[#Headers],[期初餘額]])=1,貸款金額,INDEX(還款排程[結餘],ROW()-ROW(還款排程[[#Headers],[期初餘額]])-1)),"") ->  | E101: =IF(還款排程[[#This Row],[還款編號]]<>"",已排程的還款,"") ->  | F101: =IF(還款排程[[#This Row],[還款編號]]<>"",IF(還款排程[[#This Row],[已排程還款]]+額外還款<還款排程[[#This Row],[期初餘額]],額外還款,IF(還款排程[[#This Row],[期初餘額]]-還款排程[[#This Row],[已排程還款]]>0,還款排程[[#This Row],[期初餘額]]-還款排程[[#This Row],[已排程還款]],0)),"") ->  | G101: =IF(還款排程[[#This Row],[還款編號]]<>"",IF(還款排程[[#This Row],[已排程還款]]+還款排程[[#This Row],[額外還款]]<=還款排程[[#This Row],[期初餘額]],還款排程[[#This Row],[已排程還款]]+還款排程[[#This Row],[額外還款]],還款排程[[#This Row],[期初餘額]]),"") ->  | H101: =IF(還款排程[[#This Row],[還款編號]]<>"",還款排程[[#This Row],[還款總金額]]-還款排程[[#This Row],[利息]],"") ->  | I101: =IF(還款排程[[#This Row],[還款編號]]<>"",還款排程[[#This Row],[期初餘額]]*(利率/每年還款次數),"") ->  | J101: =IF(還款排程[[#This Row],[還款編號]]<>"",IF(還款排程[[#This Row],[已排程還款]]+還款排程[[#This Row],[額外還款]]<=還款排程[[#This Row],[期初餘額]],還款排程[[#This Row],[期初餘額]]-還款排程[[#This Row],[本金]],0),"") ->  | K101: =IF(還款排程[[#This Row],[還款編號]]<>"",SUM(INDEX(還款排程[利息],1,1):還款排程[[#This Row],[利息]]),"") -> 
B102: =IF(貸款良好,IF(ROW()-ROW(還款排程[[#Headers],[還款編號]])>已排程的還款次數,"",ROW()-ROW(還款排程[[#Headers],[還款編號]])),"") ->  | C102: =IF(還款排程[[#This Row],[還款編號]]<>"",EOMONTH(貸款開始日期,ROW(還款排程[[#This Row],[還款編號]])-ROW(還款排程[[#Headers],[還款編號]])-2)+DAY(貸款開始日期),"") ->  | D102: =IF(還款排程[[#This Row],[還款編號]]<>"",IF(ROW()-ROW(還款排程[[#Headers],[期初餘額]])=1,貸款金額,INDEX(還款排程[結餘],ROW()-ROW(還款排程[[#Headers],[期初餘額]])-1)),"") ->  | E102: =IF(還款排程[[#This Row],[還款編號]]<>"",已排程的還款,"") ->  | F102: =IF(還款排程[[#This Row],[還款編號]]<>"",IF(還款排程[[#This Row],[已排程還款]]+額外還款<還款排程[[#This Row],[期初餘額]],額外還款,IF(還款排程[[#This Row],[期初餘額]]-還款排程[[#This Row],[已排程還款]]>0,還款排程[[#This Row],[期初餘額]]-還款排程[[#This Row],[已排程還款]],0)),"") ->  | G102: =IF(還款排程[[#This Row],[還款編號]]<>"",IF(還款排程[[#This Row],[已排程還款]]+還款排程[[#This Row],[額外還款]]<=還款排程[[#This Row],[期初餘額]],還款排程[[#This Row],[已排程還款]]+還款排程[[#This Row],[額外還款]],還款排程[[#This Row],[期初餘額]]),"") ->  | H102: =IF(還款排程[[#This Row],[還款編號]]<>"",還款排程[[#This Row],[還款總金額]]-還款排程[[#This Row],[利息]],"") ->  | I102: =IF(還款排程[[#This Row],[還款編號]]<>"",還款排程[[#This Row],[期初餘額]]*(利率/每年還款次數),"") ->  | J102: =IF(還款排程[[#This Row],[還款編號]]<>"",IF(還款排程[[#This Row],[已排程還款]]+還款排程[[#This Row],[額外還款]]<=還款排程[[#This Row],[期初餘額]],還款排程[[#This Row],[期初餘額]]-還款排程[[#This Row],[本金]],0),"") ->  | K102: =IF(還款排程[[#This Row],[還款編號]]<>"",SUM(INDEX(還款排程[利息],1,1):還款排程[[#This Row],[利息]]),"") -> 
B103: =IF(貸款良好,IF(ROW()-ROW(還款排程[[#Headers],[還款編號]])>已排程的還款次數,"",ROW()-ROW(還款排程[[#Headers],[還款編號]])),"") ->  | C103: =IF(還款排程[[#This Row],[還款編號]]<>"",EOMONTH(貸款開始日期,ROW(還款排程[[#This Row],[還款編號]])-ROW(還款排程[[#Headers],[還款編號]])-2)+DAY(貸款開始日期),"") ->  | D103: =IF(還款排程[[#This Row],[還款編號]]<>"",IF(ROW()-ROW(還款排程[[#Headers],[期初餘額]])=1,貸款金額,INDEX(還款排程[結餘],ROW()-ROW(還款排程[[#Headers],[期初餘額]])-1)),"") ->  | E103: =IF(還款排程[[#This Row],[還款編號]]<>"",已排程的還款,"") ->  | F103: =IF(還款排程[[#This Row],[還款編號]]<>"",IF(還款排程[[#This Row],[已排程還款]]+額外還款<還款排程[[#This Row],[期初餘額]],額外還款,IF(還款排程[[#This Row],[期初餘額]]-還款排程[[#This Row],[已排程還款]]>0,還款排程[[#This Row],[期初餘額]]-還款排程[[#This Row],[已排程還款]],0)),"") ->  | G103: =IF(還款排程[[#This Row],[還款編號]]<>"",IF(還款排程[[#This Row],[已排程還款]]+還款排程[[#This Row],[額外還款]]<=還款排程[[#This Row],[期初餘額]],還款排程[[#This Row],[已排程還款]]+還款排程[[#This Row],[額外還款]],還款排程[[#This Row],[期初餘額]]),"") ->  | H103: =IF(還款排程[[#This Row],[還款編號]]<>"",還款排程[[#This Row],[還款總金額]]-還款排程[[#This Row],[利息]],"") ->  | I103: =IF(還款排程[[#This Row],[還款編號]]<>"",還款排程[[#This Row],[期初餘額]]*(利率/每年還款次數),"") ->  | J103: =IF(還款排程[[#This Row],[還款編號]]<>"",IF(還款排程[[#This Row],[已排程還款]]+還款排程[[#This Row],[額外還款]]<=還款排程[[#This Row],[期初餘額]],還款排程[[#This Row],[期初餘額]]-還款排程[[#This Row],[本金]],0),"") ->  | K103: =IF(還款排程[[#This Row],[還款編號]]<>"",SUM(INDEX(還款排程[利息],1,1):還款排程[[#This Row],[利息]]),"") -> 
B104: =IF(貸款良好,IF(ROW()-ROW(還款排程[[#Headers],[還款編號]])>已排程的還款次數,"",ROW()-ROW(還款排程[[#Headers],[還款編號]])),"") ->  | C104: =IF(還款排程[[#This Row],[還款編號]]<>"",EOMONTH(貸款開始日期,ROW(還款排程[[#This Row],[還款編號]])-ROW(還款排程[[#Headers],[還款編號]])-2)+DAY(貸款開始日期),"") ->  | D104: =IF(還款排程[[#This Row],[還款編號]]<>"",IF(ROW()-ROW(還款排程[[#Headers],[期初餘額]])=1,貸款金額,INDEX(還款排程[結餘],ROW()-ROW(還款排程[[#Headers],[期初餘額]])-1)),"") ->  | E104: =IF(還款排程[[#This Row],[還款編號]]<>"",已排程的還款,"") ->  | F104: =IF(還款排程[[#This Row],[還款編號]]<>"",IF(還款排程[[#This Row],[已排程還款]]+額外還款<還款排程[[#This Row],[期初餘額]],額外還款,IF(還款排程[[#This Row],[期初餘額]]-還款排程[[#This Row],[已排程還款]]>0,還款排程[[#This Row],[期初餘額]]-還款排程[[#This Row],[已排程還款]],0)),"") ->  | G104: =IF(還款排程[[#This Row],[還款編號]]<>"",IF(還款排程[[#This Row],[已排程還款]]+還款排程[[#This Row],[額外還款]]<=還款排程[[#This Row],[期初餘額]],還款排程[[#This Row],[已排程還款]]+還款排程[[#This Row],[額外還款]],還款排程[[#This Row],[期初餘額]]),"") ->  | H104: =IF(還款排程[[#This Row],[還款編號]]<>"",還款排程[[#This Row],[還款總金額]]-還款排程[[#This Row],[利息]],"") ->  | I104: =IF(還款排程[[#This Row],[還款編號]]<>"",還款排程[[#This Row],[期初餘額]]*(利率/每年還款次數),"") ->  | J104: =IF(還款排程[[#This Row],[還款編號]]<>"",IF(還款排程[[#This Row],[已排程還款]]+還款排程[[#This Row],[額外還款]]<=還款排程[[#This Row],[期初餘額]],還款排程[[#This Row],[期初餘額]]-還款排程[[#This Row],[本金]],0),"") ->  | K104: =IF(還款排程[[#This Row],[還款編號]]<>"",SUM(INDEX(還款排程[利息],1,1):還款排程[[#This Row],[利息]]),"") -> 
B105: =IF(貸款良好,IF(ROW()-ROW(還款排程[[#Headers],[還款編號]])>已排程的還款次數,"",ROW()-ROW(還款排程[[#Headers],[還款編號]])),"") ->  | C105: =IF(還款排程[[#This Row],[還款編號]]<>"",EOMONTH(貸款開始日期,ROW(還款排程[[#This Row],[還款編號]])-ROW(還款排程[[#Headers],[還款編號]])-2)+DAY(貸款開始日期),"") ->  | D105: =IF(還款排程[[#This Row],[還款編號]]<>"",IF(ROW()-ROW(還款排程[[#Headers],[期初餘額]])=1,貸款金額,INDEX(還款排程[結餘],ROW()-ROW(還款排程[[#Headers],[期初餘額]])-1)),"") ->  | E105: =IF(還款排程[[#This Row],[還款編號]]<>"",已排程的還款,"") ->  | F105: =IF(還款排程[[#This Row],[還款編號]]<>"",IF(還款排程[[#This Row],[已排程還款]]+額外還款<還款排程[[#This Row],[期初餘額]],額外還款,IF(還款排程[[#This Row],[期初餘額]]-還款排程[[#This Row],[已排程還款]]>0,還款排程[[#This Row],[期初餘額]]-還款排程[[#This Row],[已排程還款]],0)),"") ->  | G105: =IF(還款排程[[#This Row],[還款編號]]<>"",IF(還款排程[[#This Row],[已排程還款]]+還款排程[[#This Row],[額外還款]]<=還款排程[[#This Row],[期初餘額]],還款排程[[#This Row],[已排程還款]]+還款排程[[#This Row],[額外還款]],還款排程[[#This Row],[期初餘額]]),"") ->  | H105: =IF(還款排程[[#This Row],[還款編號]]<>"",還款排程[[#This Row],[還款總金額]]-還款排程[[#This Row],[利息]],"") ->  | I105: =IF(還款排程[[#This Row],[還款編號]]<>"",還款排程[[#This Row],[期初餘額]]*(利率/每年還款次數),"") ->  | J105: =IF(還款排程[[#This Row],[還款編號]]<>"",IF(還款排程[[#This Row],[已排程還款]]+還款排程[[#This Row],[額外還款]]<=還款排程[[#This Row],[期初餘額]],還款排程[[#This Row],[期初餘額]]-還款排程[[#This Row],[本金]],0),"") ->  | K105: =IF(還款排程[[#This Row],[還款編號]]<>"",SUM(INDEX(還款排程[利息],1,1):還款排程[[#This Row],[利息]]),"") -> 
B106: =IF(貸款良好,IF(ROW()-ROW(還款排程[[#Headers],[還款編號]])>已排程的還款次數,"",ROW()-ROW(還款排程[[#Headers],[還款編號]])),"") ->  | C106: =IF(還款排程[[#This Row],[還款編號]]<>"",EOMONTH(貸款開始日期,ROW(還款排程[[#This Row],[還款編號]])-ROW(還款排程[[#Headers],[還款編號]])-2)+DAY(貸款開始日期),"") ->  | D106: =IF(還款排程[[#This Row],[還款編號]]<>"",IF(ROW()-ROW(還款排程[[#Headers],[期初餘額]])=1,貸款金額,INDEX(還款排程[結餘],ROW()-ROW(還款排程[[#Headers],[期初餘額]])-1)),"") ->  | E106: =IF(還款排程[[#This Row],[還款編號]]<>"",已排程的還款,"") ->  | F106: =IF(還款排程[[#This Row],[還款編號]]<>"",IF(還款排程[[#This Row],[已排程還款]]+額外還款<還款排程[[#This Row],[期初餘額]],額外還款,IF(還款排程[[#This Row],[期初餘額]]-還款排程[[#This Row],[已排程還款]]>0,還款排程[[#This Row],[期初餘額]]-還款排程[[#This Row],[已排程還款]],0)),"") ->  | G106: =IF(還款排程[[#This Row],[還款編號]]<>"",IF(還款排程[[#This Row],[已排程還款]]+還款排程[[#This Row],[額外還款]]<=還款排程[[#This Row],[期初餘額]],還款排程[[#This Row],[已排程還款]]+還款排程[[#This Row],[額外還款]],還款排程[[#This Row],[期初餘額]]),"") ->  | H106: =IF(還款排程[[#This Row],[還款編號]]<>"",還款排程[[#This Row],[還款總金額]]-還款排程[[#This Row],[利息]],"") ->  | I106: =IF(還款排程[[#This Row],[還款編號]]<>"",還款排程[[#This Row],[期初餘額]]*(利率/每年還款次數),"") ->  | J106: =IF(還款排程[[#This Row],[還款編號]]<>"",IF(還款排程[[#This Row],[已排程還款]]+還款排程[[#This Row],[額外還款]]<=還款排程[[#This Row],[期初餘額]],還款排程[[#This Row],[期初餘額]]-還款排程[[#This Row],[本金]],0),"") ->  | K106: =IF(還款排程[[#This Row],[還款編號]]<>"",SUM(INDEX(還款排程[利息],1,1):還款排程[[#This Row],[利息]]),"") -> 
B107: =IF(貸款良好,IF(ROW()-ROW(還款排程[[#Headers],[還款編號]])>已排程的還款次數,"",ROW()-ROW(還款排程[[#Headers],[還款編號]])),"") ->  | C107: =IF(還款排程[[#This Row],[還款編號]]<>"",EOMONTH(貸款開始日期,ROW(還款排程[[#This Row],[還款編號]])-ROW(還款排程[[#Headers],[還款編號]])-2)+DAY(貸款開始日期),"") ->  | D107: =IF(還款排程[[#This Row],[還款編號]]<>"",IF(ROW()-ROW(還款排程[[#Headers],[期初餘額]])=1,貸款金額,INDEX(還款排程[結餘],ROW()-ROW(還款排程[[#Headers],[期初餘額]])-1)),"") ->  | E107: =IF(還款排程[[#This Row],[還款編號]]<>"",已排程的還款,"") ->  | F107: =IF(還款排程[[#This Row],[還款編號]]<>"",IF(還款排程[[#This Row],[已排程還款]]+額外還款<還款排程[[#This Row],[期初餘額]],額外還款,IF(還款排程[[#This Row],[期初餘額]]-還款排程[[#This Row],[已排程還款]]>0,還款排程[[#This Row],[期初餘額]]-還款排程[[#This Row],[已排程還款]],0)),"") ->  | G107: =IF(還款排程[[#This Row],[還款編號]]<>"",IF(還款排程[[#This Row],[已排程還款]]+還款排程[[#This Row],[額外還款]]<=還款排程[[#This Row],[期初餘額]],還款排程[[#This Row],[已排程還款]]+還款排程[[#This Row],[額外還款]],還款排程[[#This Row],[期初餘額]]),"") ->  | H107: =IF(還款排程[[#This Row],[還款編號]]<>"",還款排程[[#This Row],[還款總金額]]-還款排程[[#This Row],[利息]],"") ->  | I107: =IF(還款排程[[#This Row],[還款編號]]<>"",還款排程[[#This Row],[期初餘額]]*(利率/每年還款次數),"") ->  | J107: =IF(還款排程[[#This Row],[還款編號]]<>"",IF(還款排程[[#This Row],[已排程還款]]+還款排程[[#This Row],[額外還款]]<=還款排程[[#This Row],[期初餘額]],還款排程[[#This Row],[期初餘額]]-還款排程[[#This Row],[本金]],0),"") ->  | K107: =IF(還款排程[[#This Row],[還款編號]]<>"",SUM(INDEX(還款排程[利息],1,1):還款排程[[#This Row],[利息]]),"") -> 
B108: =IF(貸款良好,IF(ROW()-ROW(還款排程[[#Headers],[還款編號]])>已排程的還款次數,"",ROW()-ROW(還款排程[[#Headers],[還款編號]])),"") ->  | C108: =IF(還款排程[[#This Row],[還款編號]]<>"",EOMONTH(貸款開始日期,ROW(還款排程[[#This Row],[還款編號]])-ROW(還款排程[[#Headers],[還款編號]])-2)+DAY(貸款開始日期),"") ->  | D108: =IF(還款排程[[#This Row],[還款編號]]<>"",IF(ROW()-ROW(還款排程[[#Headers],[期初餘額]])=1,貸款金額,INDEX(還款排程[結餘],ROW()-ROW(還款排程[[#Headers],[期初餘額]])-1)),"") ->  | E108: =IF(還款排程[[#This Row],[還款編號]]<>"",已排程的還款,"") ->  | F108: =IF(還款排程[[#This Row],[還款編號]]<>"",IF(還款排程[[#This Row],[已排程還款]]+額外還款<還款排程[[#This Row],[期初餘額]],額外還款,IF(還款排程[[#This Row],[期初餘額]]-還款排程[[#This Row],[已排程還款]]>0,還款排程[[#This Row],[期初餘額]]-還款排程[[#This Row],[已排程還款]],0)),"") ->  | G108: =IF(還款排程[[#This Row],[還款編號]]<>"",IF(還款排程[[#This Row],[已排程還款]]+還款排程[[#This Row],[額外還款]]<=還款排程[[#This Row],[期初餘額]],還款排程[[#This Row],[已排程還款]]+還款排程[[#This Row],[額外還款]],還款排程[[#This Row],[期初餘額]]),"") ->  | H108: =IF(還款排程[[#This Row],[還款編號]]<>"",還款排程[[#This Row],[還款總金額]]-還款排程[[#This Row],[利息]],"") ->  | I108: =IF(還款排程[[#This Row],[還款編號]]<>"",還款排程[[#This Row],[期初餘額]]*(利率/每年還款次數),"") ->  | J108: =IF(還款排程[[#This Row],[還款編號]]<>"",IF(還款排程[[#This Row],[已排程還款]]+還款排程[[#This Row],[額外還款]]<=還款排程[[#This Row],[期初餘額]],還款排程[[#This Row],[期初餘額]]-還款排程[[#This Row],[本金]],0),"") ->  | K108: =IF(還款排程[[#This Row],[還款編號]]<>"",SUM(INDEX(還款排程[利息],1,1):還款排程[[#This Row],[利息]]),"") -> 
B109: =IF(貸款良好,IF(ROW()-ROW(還款排程[[#Headers],[還款編號]])>已排程的還款次數,"",ROW()-ROW(還款排程[[#Headers],[還款編號]])),"") ->  | C109: =IF(還款排程[[#This Row],[還款編號]]<>"",EOMONTH(貸款開始日期,ROW(還款排程[[#This Row],[還款編號]])-ROW(還款排程[[#Headers],[還款編號]])-2)+DAY(貸款開始日期),"") ->  | D109: =IF(還款排程[[#This Row],[還款編號]]<>"",IF(ROW()-ROW(還款排程[[#Headers],[期初餘額]])=1,貸款金額,INDEX(還款排程[結餘],ROW()-ROW(還款排程[[#Headers],[期初餘額]])-1)),"") ->  | E109: =IF(還款排程[[#This Row],[還款編號]]<>"",已排程的還款,"") ->  | F109: =IF(還款排程[[#This Row],[還款編號]]<>"",IF(還款排程[[#This Row],[已排程還款]]+額外還款<還款排程[[#This Row],[期初餘額]],額外還款,IF(還款排程[[#This Row],[期初餘額]]-還款排程[[#This Row],[已排程還款]]>0,還款排程[[#This Row],[期初餘額]]-還款排程[[#This Row],[已排程還款]],0)),"") ->  | G109: =IF(還款排程[[#This Row],[還款編號]]<>"",IF(還款排程[[#This Row],[已排程還款]]+還款排程[[#This Row],[額外還款]]<=還款排程[[#This Row],[期初餘額]],還款排程[[#This Row],[已排程還款]]+還款排程[[#This Row],[額外還款]],還款排程[[#This Row],[期初餘額]]),"") ->  | H109: =IF(還款排程[[#This Row],[還款編號]]<>"",還款排程[[#This Row],[還款總金額]]-還款排程[[#This Row],[利息]],"") ->  | I109: =IF(還款排程[[#This Row],[還款編號]]<>"",還款排程[[#This Row],[期初餘額]]*(利率/每年還款次數),"") ->  | J109: =IF(還款排程[[#This Row],[還款編號]]<>"",IF(還款排程[[#This Row],[已排程還款]]+還款排程[[#This Row],[額外還款]]<=還款排程[[#This Row],[期初餘額]],還款排程[[#This Row],[期初餘額]]-還款排程[[#This Row],[本金]],0),"") ->  | K109: =IF(還款排程[[#This Row],[還款編號]]<>"",SUM(INDEX(還款排程[利息],1,1):還款排程[[#This Row],[利息]]),"") -> 
B110: =IF(貸款良好,IF(ROW()-ROW(還款排程[[#Headers],[還款編號]])>已排程的還款次數,"",ROW()-ROW(還款排程[[#Headers],[還款編號]])),"") ->  | C110: =IF(還款排程[[#This Row],[還款編號]]<>"",EOMONTH(貸款開始日期,ROW(還款排程[[#This Row],[還款編號]])-ROW(還款排程[[#Headers],[還款編號]])-2)+DAY(貸款開始日期),"") ->  | D110: =IF(還款排程[[#This Row],[還款編號]]<>"",IF(ROW()-ROW(還款排程[[#Headers],[期初餘額]])=1,貸款金額,INDEX(還款排程[結餘],ROW()-ROW(還款排程[[#Headers],[期初餘額]])-1)),"") ->  | E110: =IF(還款排程[[#This Row],[還款編號]]<>"",已排程的還款,"") ->  | F110: =IF(還款排程[[#This Row],[還款編號]]<>"",IF(還款排程[[#This Row],[已排程還款]]+額外還款<還款排程[[#This Row],[期初餘額]],額外還款,IF(還款排程[[#This Row],[期初餘額]]-還款排程[[#This Row],[已排程還款]]>0,還款排程[[#This Row],[期初餘額]]-還款排程[[#This Row],[已排程還款]],0)),"") ->  | G110: =IF(還款排程[[#This Row],[還款編號]]<>"",IF(還款排程[[#This Row],[已排程還款]]+還款排程[[#This Row],[額外還款]]<=還款排程[[#This Row],[期初餘額]],還款排程[[#This Row],[已排程還款]]+還款排程[[#This Row],[額外還款]],還款排程[[#This Row],[期初餘額]]),"") ->  | H110: =IF(還款排程[[#This Row],[還款編號]]<>"",還款排程[[#This Row],[還款總金額]]-還款排程[[#This Row],[利息]],"") ->  | I110: =IF(還款排程[[#This Row],[還款編號]]<>"",還款排程[[#This Row],[期初餘額]]*(利率/每年還款次數),"") ->  | J110: =IF(還款排程[[#This Row],[還款編號]]<>"",IF(還款排程[[#This Row],[已排程還款]]+還款排程[[#This Row],[額外還款]]<=還款排程[[#This Row],[期初餘額]],還款排程[[#This Row],[期初餘額]]-還款排程[[#This Row],[本金]],0),"") ->  | K110: =IF(還款排程[[#This Row],[還款編號]]<>"",SUM(INDEX(還款排程[利息],1,1):還款排程[[#This Row],[利息]]),"") -> 
B111: =IF(貸款良好,IF(ROW()-ROW(還款排程[[#Headers],[還款編號]])>已排程的還款次數,"",ROW()-ROW(還款排程[[#Headers],[還款編號]])),"") ->  | C111: =IF(還款排程[[#This Row],[還款編號]]<>"",EOMONTH(貸款開始日期,ROW(還款排程[[#This Row],[還款編號]])-ROW(還款排程[[#Headers],[還款編號]])-2)+DAY(貸款開始日期),"") ->  | D111: =IF(還款排程[[#This Row],[還款編號]]<>"",IF(ROW()-ROW(還款排程[[#Headers],[期初餘額]])=1,貸款金額,INDEX(還款排程[結餘],ROW()-ROW(還款排程[[#Headers],[期初餘額]])-1)),"") ->  | E111: =IF(還款排程[[#This Row],[還款編號]]<>"",已排程的還款,"") ->  | F111: =IF(還款排程[[#This Row],[還款編號]]<>"",IF(還款排程[[#This Row],[已排程還款]]+額外還款<還款排程[[#This Row],[期初餘額]],額外還款,IF(還款排程[[#This Row],[期初餘額]]-還款排程[[#This Row],[已排程還款]]>0,還款排程[[#This Row],[期初餘額]]-還款排程[[#This Row],[已排程還款]],0)),"") ->  | G111: =IF(還款排程[[#This Row],[還款編號]]<>"",IF(還款排程[[#This Row],[已排程還款]]+還款排程[[#This Row],[額外還款]]<=還款排程[[#This Row],[期初餘額]],還款排程[[#This Row],[已排程還款]]+還款排程[[#This Row],[額外還款]],還款排程[[#This Row],[期初餘額]]),"") ->  | H111: =IF(還款排程[[#This Row],[還款編號]]<>"",還款排程[[#This Row],[還款總金額]]-還款排程[[#This Row],[利息]],"") ->  | I111: =IF(還款排程[[#This Row],[還款編號]]<>"",還款排程[[#This Row],[期初餘額]]*(利率/每年還款次數),"") ->  | J111: =IF(還款排程[[#This Row],[還款編號]]<>"",IF(還款排程[[#This Row],[已排程還款]]+還款排程[[#This Row],[額外還款]]<=還款排程[[#This Row],[期初餘額]],還款排程[[#This Row],[期初餘額]]-還款排程[[#This Row],[本金]],0),"") ->  | K111: =IF(還款排程[[#This Row],[還款編號]]<>"",SUM(INDEX(還款排程[利息],1,1):還款排程[[#This Row],[利息]]),"") -> 
B112: =IF(貸款良好,IF(ROW()-ROW(還款排程[[#Headers],[還款編號]])>已排程的還款次數,"",ROW()-ROW(還款排程[[#Headers],[還款編號]])),"") ->  | C112: =IF(還款排程[[#This Row],[還款編號]]<>"",EOMONTH(貸款開始日期,ROW(還款排程[[#This Row],[還款編號]])-ROW(還款排程[[#Headers],[還款編號]])-2)+DAY(貸款開始日期),"") ->  | D112: =IF(還款排程[[#This Row],[還款編號]]<>"",IF(ROW()-ROW(還款排程[[#Headers],[期初餘額]])=1,貸款金額,INDEX(還款排程[結餘],ROW()-ROW(還款排程[[#Headers],[期初餘額]])-1)),"") ->  | E112: =IF(還款排程[[#This Row],[還款編號]]<>"",已排程的還款,"") ->  | F112: =IF(還款排程[[#This Row],[還款編號]]<>"",IF(還款排程[[#This Row],[已排程還款]]+額外還款<還款排程[[#This Row],[期初餘額]],額外還款,IF(還款排程[[#This Row],[期初餘額]]-還款排程[[#This Row],[已排程還款]]>0,還款排程[[#This Row],[期初餘額]]-還款排程[[#This Row],[已排程還款]],0)),"") ->  | G112: =IF(還款排程[[#This Row],[還款編號]]<>"",IF(還款排程[[#This Row],[已排程還款]]+還款排程[[#This Row],[額外還款]]<=還款排程[[#This Row],[期初餘額]],還款排程[[#This Row],[已排程還款]]+還款排程[[#This Row],[額外還款]],還款排程[[#This Row],[期初餘額]]),"") ->  | H112: =IF(還款排程[[#This Row],[還款編號]]<>"",還款排程[[#This Row],[還款總金額]]-還款排程[[#This Row],[利息]],"") ->  | I112: =IF(還款排程[[#This Row],[還款編號]]<>"",還款排程[[#This Row],[期初餘額]]*(利率/每年還款次數),"") ->  | J112: =IF(還款排程[[#This Row],[還款編號]]<>"",IF(還款排程[[#This Row],[已排程還款]]+還款排程[[#This Row],[額外還款]]<=還款排程[[#This Row],[期初餘額]],還款排程[[#This Row],[期初餘額]]-還款排程[[#This Row],[本金]],0),"") ->  | K112: =IF(還款排程[[#This Row],[還款編號]]<>"",SUM(INDEX(還款排程[利息],1,1):還款排程[[#This Row],[利息]]),"") -> 
B113: =IF(貸款良好,IF(ROW()-ROW(還款排程[[#Headers],[還款編號]])>已排程的還款次數,"",ROW()-ROW(還款排程[[#Headers],[還款編號]])),"") ->  | C113: =IF(還款排程[[#This Row],[還款編號]]<>"",EOMONTH(貸款開始日期,ROW(還款排程[[#This Row],[還款編號]])-ROW(還款排程[[#Headers],[還款編號]])-2)+DAY(貸款開始日期),"") ->  | D113: =IF(還款排程[[#This Row],[還款編號]]<>"",IF(ROW()-ROW(還款排程[[#Headers],[期初餘額]])=1,貸款金額,INDEX(還款排程[結餘],ROW()-ROW(還款排程[[#Headers],[期初餘額]])-1)),"") ->  | E113: =IF(還款排程[[#This Row],[還款編號]]<>"",已排程的還款,"") ->  | F113: =IF(還款排程[[#This Row],[還款編號]]<>"",IF(還款排程[[#This Row],[已排程還款]]+額外還款<還款排程[[#This Row],[期初餘額]],額外還款,IF(還款排程[[#This Row],[期初餘額]]-還款排程[[#This Row],[已排程還款]]>0,還款排程[[#This Row],[期初餘額]]-還款排程[[#This Row],[已排程還款]],0)),"") ->  | G113: =IF(還款排程[[#This Row],[還款編號]]<>"",IF(還款排程[[#This Row],[已排程還款]]+還款排程[[#This Row],[額外還款]]<=還款排程[[#This Row],[期初餘額]],還款排程[[#This Row],[已排程還款]]+還款排程[[#This Row],[額外還款]],還款排程[[#This Row],[期初餘額]]),"") ->  | H113: =IF(還款排程[[#This Row],[還款編號]]<>"",還款排程[[#This Row],[還款總金額]]-還款排程[[#This Row],[利息]],"") ->  | I113: =IF(還款排程[[#This Row],[還款編號]]<>"",還款排程[[#This Row],[期初餘額]]*(利率/每年還款次數),"") ->  | J113: =IF(還款排程[[#This Row],[還款編號]]<>"",IF(還款排程[[#This Row],[已排程還款]]+還款排程[[#This Row],[額外還款]]<=還款排程[[#This Row],[期初餘額]],還款排程[[#This Row],[期初餘額]]-還款排程[[#This Row],[本金]],0),"") ->  | K113: =IF(還款排程[[#This Row],[還款編號]]<>"",SUM(INDEX(還款排程[利息],1,1):還款排程[[#This Row],[利息]]),"") -> 
B114: =IF(貸款良好,IF(ROW()-ROW(還款排程[[#Headers],[還款編號]])>已排程的還款次數,"",ROW()-ROW(還款排程[[#Headers],[還款編號]])),"") ->  | C114: =IF(還款排程[[#This Row],[還款編號]]<>"",EOMONTH(貸款開始日期,ROW(還款排程[[#This Row],[還款編號]])-ROW(還款排程[[#Headers],[還款編號]])-2)+DAY(貸款開始日期),"") ->  | D114: =IF(還款排程[[#This Row],[還款編號]]<>"",IF(ROW()-ROW(還款排程[[#Headers],[期初餘額]])=1,貸款金額,INDEX(還款排程[結餘],ROW()-ROW(還款排程[[#Headers],[期初餘額]])-1)),"") ->  | E114: =IF(還款排程[[#This Row],[還款編號]]<>"",已排程的還款,"") ->  | F114: =IF(還款排程[[#This Row],[還款編號]]<>"",IF(還款排程[[#This Row],[已排程還款]]+額外還款<還款排程[[#This Row],[期初餘額]],額外還款,IF(還款排程[[#This Row],[期初餘額]]-還款排程[[#This Row],[已排程還款]]>0,還款排程[[#This Row],[期初餘額]]-還款排程[[#This Row],[已排程還款]],0)),"") ->  | G114: =IF(還款排程[[#This Row],[還款編號]]<>"",IF(還款排程[[#This Row],[已排程還款]]+還款排程[[#This Row],[額外還款]]<=還款排程[[#This Row],[期初餘額]],還款排程[[#This Row],[已排程還款]]+還款排程[[#This Row],[額外還款]],還款排程[[#This Row],[期初餘額]]),"") ->  | H114: =IF(還款排程[[#This Row],[還款編號]]<>"",還款排程[[#This Row],[還款總金額]]-還款排程[[#This Row],[利息]],"") ->  | I114: =IF(還款排程[[#This Row],[還款編號]]<>"",還款排程[[#This Row],[期初餘額]]*(利率/每年還款次數),"") ->  | J114: =IF(還款排程[[#This Row],[還款編號]]<>"",IF(還款排程[[#This Row],[已排程還款]]+還款排程[[#This Row],[額外還款]]<=還款排程[[#This Row],[期初餘額]],還款排程[[#This Row],[期初餘額]]-還款排程[[#This Row],[本金]],0),"") ->  | K114: =IF(還款排程[[#This Row],[還款編號]]<>"",SUM(INDEX(還款排程[利息],1,1):還款排程[[#This Row],[利息]]),"") -> 
B115: =IF(貸款良好,IF(ROW()-ROW(還款排程[[#Headers],[還款編號]])>已排程的還款次數,"",ROW()-ROW(還款排程[[#Headers],[還款編號]])),"") ->  | C115: =IF(還款排程[[#This Row],[還款編號]]<>"",EOMONTH(貸款開始日期,ROW(還款排程[[#This Row],[還款編號]])-ROW(還款排程[[#Headers],[還款編號]])-2)+DAY(貸款開始日期),"") ->  | D115: =IF(還款排程[[#This Row],[還款編號]]<>"",IF(ROW()-ROW(還款排程[[#Headers],[期初餘額]])=1,貸款金額,INDEX(還款排程[結餘],ROW()-ROW(還款排程[[#Headers],[期初餘額]])-1)),"") ->  | E115: =IF(還款排程[[#This Row],[還款編號]]<>"",已排程的還款,"") ->  | F115: =IF(還款排程[[#This Row],[還款編號]]<>"",IF(還款排程[[#This Row],[已排程還款]]+額外還款<還款排程[[#This Row],[期初餘額]],額外還款,IF(還款排程[[#This Row],[期初餘額]]-還款排程[[#This Row],[已排程還款]]>0,還款排程[[#This Row],[期初餘額]]-還款排程[[#This Row],[已排程還款]],0)),"") ->  | G115: =IF(還款排程[[#This Row],[還款編號]]<>"",IF(還款排程[[#This Row],[已排程還款]]+還款排程[[#This Row],[額外還款]]<=還款排程[[#This Row],[期初餘額]],還款排程[[#This Row],[已排程還款]]+還款排程[[#This Row],[額外還款]],還款排程[[#This Row],[期初餘額]]),"") ->  | H115: =IF(還款排程[[#This Row],[還款編號]]<>"",還款排程[[#This Row],[還款總金額]]-還款排程[[#This Row],[利息]],"") ->  | I115: =IF(還款排程[[#This Row],[還款編號]]<>"",還款排程[[#This Row],[期初餘額]]*(利率/每年還款次數),"") ->  | J115: =IF(還款排程[[#This Row],[還款編號]]<>"",IF(還款排程[[#This Row],[已排程還款]]+還款排程[[#This Row],[額外還款]]<=還款排程[[#This Row],[期初餘額]],還款排程[[#This Row],[期初餘額]]-還款排程[[#This Row],[本金]],0),"") ->  | K115: =IF(還款排程[[#This Row],[還款編號]]<>"",SUM(INDEX(還款排程[利息],1,1):還款排程[[#This Row],[利息]]),"") -> 
B116: =IF(貸款良好,IF(ROW()-ROW(還款排程[[#Headers],[還款編號]])>已排程的還款次數,"",ROW()-ROW(還款排程[[#Headers],[還款編號]])),"") ->  | C116: =IF(還款排程[[#This Row],[還款編號]]<>"",EOMONTH(貸款開始日期,ROW(還款排程[[#This Row],[還款編號]])-ROW(還款排程[[#Headers],[還款編號]])-2)+DAY(貸款開始日期),"") ->  | D116: =IF(還款排程[[#This Row],[還款編號]]<>"",IF(ROW()-ROW(還款排程[[#Headers],[期初餘額]])=1,貸款金額,INDEX(還款排程[結餘],ROW()-ROW(還款排程[[#Headers],[期初餘額]])-1)),"") ->  | E116: =IF(還款排程[[#This Row],[還款編號]]<>"",已排程的還款,"") ->  | F116: =IF(還款排程[[#This Row],[還款編號]]<>"",IF(還款排程[[#This Row],[已排程還款]]+額外還款<還款排程[[#This Row],[期初餘額]],額外還款,IF(還款排程[[#This Row],[期初餘額]]-還款排程[[#This Row],[已排程還款]]>0,還款排程[[#This Row],[期初餘額]]-還款排程[[#This Row],[已排程還款]],0)),"") ->  | G116: =IF(還款排程[[#This Row],[還款編號]]<>"",IF(還款排程[[#This Row],[已排程還款]]+還款排程[[#This Row],[額外還款]]<=還款排程[[#This Row],[期初餘額]],還款排程[[#This Row],[已排程還款]]+還款排程[[#This Row],[額外還款]],還款排程[[#This Row],[期初餘額]]),"") ->  | H116: =IF(還款排程[[#This Row],[還款編號]]<>"",還款排程[[#This Row],[還款總金額]]-還款排程[[#This Row],[利息]],"") ->  | I116: =IF(還款排程[[#This Row],[還款編號]]<>"",還款排程[[#This Row],[期初餘額]]*(利率/每年還款次數),"") ->  | J116: =IF(還款排程[[#This Row],[還款編號]]<>"",IF(還款排程[[#This Row],[已排程還款]]+還款排程[[#This Row],[額外還款]]<=還款排程[[#This Row],[期初餘額]],還款排程[[#This Row],[期初餘額]]-還款排程[[#This Row],[本金]],0),"") ->  | K116: =IF(還款排程[[#This Row],[還款編號]]<>"",SUM(INDEX(還款排程[利息],1,1):還款排程[[#This Row],[利息]]),"") -> 
B117: =IF(貸款良好,IF(ROW()-ROW(還款排程[[#Headers],[還款編號]])>已排程的還款次數,"",ROW()-ROW(還款排程[[#Headers],[還款編號]])),"") ->  | C117: =IF(還款排程[[#This Row],[還款編號]]<>"",EOMONTH(貸款開始日期,ROW(還款排程[[#This Row],[還款編號]])-ROW(還款排程[[#Headers],[還款編號]])-2)+DAY(貸款開始日期),"") ->  | D117: =IF(還款排程[[#This Row],[還款編號]]<>"",IF(ROW()-ROW(還款排程[[#Headers],[期初餘額]])=1,貸款金額,INDEX(還款排程[結餘],ROW()-ROW(還款排程[[#Headers],[期初餘額]])-1)),"") ->  | E117: =IF(還款排程[[#This Row],[還款編號]]<>"",已排程的還款,"") ->  | F117: =IF(還款排程[[#This Row],[還款編號]]<>"",IF(還款排程[[#This Row],[已排程還款]]+額外還款<還款排程[[#This Row],[期初餘額]],額外還款,IF(還款排程[[#This Row],[期初餘額]]-還款排程[[#This Row],[已排程還款]]>0,還款排程[[#This Row],[期初餘額]]-還款排程[[#This Row],[已排程還款]],0)),"") ->  | G117: =IF(還款排程[[#This Row],[還款編號]]<>"",IF(還款排程[[#This Row],[已排程還款]]+還款排程[[#This Row],[額外還款]]<=還款排程[[#This Row],[期初餘額]],還款排程[[#This Row],[已排程還款]]+還款排程[[#This Row],[額外還款]],還款排程[[#This Row],[期初餘額]]),"") ->  | H117: =IF(還款排程[[#This Row],[還款編號]]<>"",還款排程[[#This Row],[還款總金額]]-還款排程[[#This Row],[利息]],"") ->  | I117: =IF(還款排程[[#This Row],[還款編號]]<>"",還款排程[[#This Row],[期初餘額]]*(利率/每年還款次數),"") ->  | J117: =IF(還款排程[[#This Row],[還款編號]]<>"",IF(還款排程[[#This Row],[已排程還款]]+還款排程[[#This Row],[額外還款]]<=還款排程[[#This Row],[期初餘額]],還款排程[[#This Row],[期初餘額]]-還款排程[[#This Row],[本金]],0),"") ->  | K117: =IF(還款排程[[#This Row],[還款編號]]<>"",SUM(INDEX(還款排程[利息],1,1):還款排程[[#This Row],[利息]]),"") -> 
B118: =IF(貸款良好,IF(ROW()-ROW(還款排程[[#Headers],[還款編號]])>已排程的還款次數,"",ROW()-ROW(還款排程[[#Headers],[還款編號]])),"") ->  | C118: =IF(還款排程[[#This Row],[還款編號]]<>"",EOMONTH(貸款開始日期,ROW(還款排程[[#This Row],[還款編號]])-ROW(還款排程[[#Headers],[還款編號]])-2)+DAY(貸款開始日期),"") ->  | D118: =IF(還款排程[[#This Row],[還款編號]]<>"",IF(ROW()-ROW(還款排程[[#Headers],[期初餘額]])=1,貸款金額,INDEX(還款排程[結餘],ROW()-ROW(還款排程[[#Headers],[期初餘額]])-1)),"") ->  | E118: =IF(還款排程[[#This Row],[還款編號]]<>"",已排程的還款,"") ->  | F118: =IF(還款排程[[#This Row],[還款編號]]<>"",IF(還款排程[[#This Row],[已排程還款]]+額外還款<還款排程[[#This Row],[期初餘額]],額外還款,IF(還款排程[[#This Row],[期初餘額]]-還款排程[[#This Row],[已排程還款]]>0,還款排程[[#This Row],[期初餘額]]-還款排程[[#This Row],[已排程還款]],0)),"") ->  | G118: =IF(還款排程[[#This Row],[還款編號]]<>"",IF(還款排程[[#This Row],[已排程還款]]+還款排程[[#This Row],[額外還款]]<=還款排程[[#This Row],[期初餘額]],還款排程[[#This Row],[已排程還款]]+還款排程[[#This Row],[額外還款]],還款排程[[#This Row],[期初餘額]]),"") ->  | H118: =IF(還款排程[[#This Row],[還款編號]]<>"",還款排程[[#This Row],[還款總金額]]-還款排程[[#This Row],[利息]],"") ->  | I118: =IF(還款排程[[#This Row],[還款編號]]<>"",還款排程[[#This Row],[期初餘額]]*(利率/每年還款次數),"") ->  | J118: =IF(還款排程[[#This Row],[還款編號]]<>"",IF(還款排程[[#This Row],[已排程還款]]+還款排程[[#This Row],[額外還款]]<=還款排程[[#This Row],[期初餘額]],還款排程[[#This Row],[期初餘額]]-還款排程[[#This Row],[本金]],0),"") ->  | K118: =IF(還款排程[[#This Row],[還款編號]]<>"",SUM(INDEX(還款排程[利息],1,1):還款排程[[#This Row],[利息]]),"") -> 
B119: =IF(貸款良好,IF(ROW()-ROW(還款排程[[#Headers],[還款編號]])>已排程的還款次數,"",ROW()-ROW(還款排程[[#Headers],[還款編號]])),"") ->  | C119: =IF(還款排程[[#This Row],[還款編號]]<>"",EOMONTH(貸款開始日期,ROW(還款排程[[#This Row],[還款編號]])-ROW(還款排程[[#Headers],[還款編號]])-2)+DAY(貸款開始日期),"") ->  | D119: =IF(還款排程[[#This Row],[還款編號]]<>"",IF(ROW()-ROW(還款排程[[#Headers],[期初餘額]])=1,貸款金額,INDEX(還款排程[結餘],ROW()-ROW(還款排程[[#Headers],[期初餘額]])-1)),"") ->  | E119: =IF(還款排程[[#This Row],[還款編號]]<>"",已排程的還款,"") ->  | F119: =IF(還款排程[[#This Row],[還款編號]]<>"",IF(還款排程[[#This Row],[已排程還款]]+額外還款<還款排程[[#This Row],[期初餘額]],額外還款,IF(還款排程[[#This Row],[期初餘額]]-還款排程[[#This Row],[已排程還款]]>0,還款排程[[#This Row],[期初餘額]]-還款排程[[#This Row],[已排程還款]],0)),"") ->  | G119: =IF(還款排程[[#This Row],[還款編號]]<>"",IF(還款排程[[#This Row],[已排程還款]]+還款排程[[#This Row],[額外還款]]<=還款排程[[#This Row],[期初餘額]],還款排程[[#This Row],[已排程還款]]+還款排程[[#This Row],[額外還款]],還款排程[[#This Row],[期初餘額]]),"") ->  | H119: =IF(還款排程[[#This Row],[還款編號]]<>"",還款排程[[#This Row],[還款總金額]]-還款排程[[#This Row],[利息]],"") ->  | I119: =IF(還款排程[[#This Row],[還款編號]]<>"",還款排程[[#This Row],[期初餘額]]*(利率/每年還款次數),"") ->  | J119: =IF(還款排程[[#This Row],[還款編號]]<>"",IF(還款排程[[#This Row],[已排程還款]]+還款排程[[#This Row],[額外還款]]<=還款排程[[#This Row],[期初餘額]],還款排程[[#This Row],[期初餘額]]-還款排程[[#This Row],[本金]],0),"") ->  | K119: =IF(還款排程[[#This Row],[還款編號]]<>"",SUM(INDEX(還款排程[利息],1,1):還款排程[[#This Row],[利息]]),"") -> 
B120: =IF(貸款良好,IF(ROW()-ROW(還款排程[[#Headers],[還款編號]])>已排程的還款次數,"",ROW()-ROW(還款排程[[#Headers],[還款編號]])),"") ->  | C120: =IF(還款排程[[#This Row],[還款編號]]<>"",EOMONTH(貸款開始日期,ROW(還款排程[[#This Row],[還款編號]])-ROW(還款排程[[#Headers],[還款編號]])-2)+DAY(貸款開始日期),"") ->  | D120: =IF(還款排程[[#This Row],[還款編號]]<>"",IF(ROW()-ROW(還款排程[[#Headers],[期初餘額]])=1,貸款金額,INDEX(還款排程[結餘],ROW()-ROW(還款排程[[#Headers],[期初餘額]])-1)),"") ->  | E120: =IF(還款排程[[#This Row],[還款編號]]<>"",已排程的還款,"") ->  | F120: =IF(還款排程[[#This Row],[還款編號]]<>"",IF(還款排程[[#This Row],[已排程還款]]+額外還款<還款排程[[#This Row],[期初餘額]],額外還款,IF(還款排程[[#This Row],[期初餘額]]-還款排程[[#This Row],[已排程還款]]>0,還款排程[[#This Row],[期初餘額]]-還款排程[[#This Row],[已排程還款]],0)),"") ->  | G120: =IF(還款排程[[#This Row],[還款編號]]<>"",IF(還款排程[[#This Row],[已排程還款]]+還款排程[[#This Row],[額外還款]]<=還款排程[[#This Row],[期初餘額]],還款排程[[#This Row],[已排程還款]]+還款排程[[#This Row],[額外還款]],還款排程[[#This Row],[期初餘額]]),"") ->  | H120: =IF(還款排程[[#This Row],[還款編號]]<>"",還款排程[[#This Row],[還款總金額]]-還款排程[[#This Row],[利息]],"") ->  | I120: =IF(還款排程[[#This Row],[還款編號]]<>"",還款排程[[#This Row],[期初餘額]]*(利率/每年還款次數),"") ->  | J120: =IF(還款排程[[#This Row],[還款編號]]<>"",IF(還款排程[[#This Row],[已排程還款]]+還款排程[[#This Row],[額外還款]]<=還款排程[[#This Row],[期初餘額]],還款排程[[#This Row],[期初餘額]]-還款排程[[#This Row],[本金]],0),"") ->  | K120: =IF(還款排程[[#This Row],[還款編號]]<>"",SUM(INDEX(還款排程[利息],1,1):還款排程[[#This Row],[利息]]),"") -> 
B121: =IF(貸款良好,IF(ROW()-ROW(還款排程[[#Headers],[還款編號]])>已排程的還款次數,"",ROW()-ROW(還款排程[[#Headers],[還款編號]])),"") ->  | C121: =IF(還款排程[[#This Row],[還款編號]]<>"",EOMONTH(貸款開始日期,ROW(還款排程[[#This Row],[還款編號]])-ROW(還款排程[[#Headers],[還款編號]])-2)+DAY(貸款開始日期),"") ->  | D121: =IF(還款排程[[#This Row],[還款編號]]<>"",IF(ROW()-ROW(還款排程[[#Headers],[期初餘額]])=1,貸款金額,INDEX(還款排程[結餘],ROW()-ROW(還款排程[[#Headers],[期初餘額]])-1)),"") ->  | E121: =IF(還款排程[[#This Row],[還款編號]]<>"",已排程的還款,"") ->  | F121: =IF(還款排程[[#This Row],[還款編號]]<>"",IF(還款排程[[#This Row],[已排程還款]]+額外還款<還款排程[[#This Row],[期初餘額]],額外還款,IF(還款排程[[#This Row],[期初餘額]]-還款排程[[#This Row],[已排程還款]]>0,還款排程[[#This Row],[期初餘額]]-還款排程[[#This Row],[已排程還款]],0)),"") ->  | G121: =IF(還款排程[[#This Row],[還款編號]]<>"",IF(還款排程[[#This Row],[已排程還款]]+還款排程[[#This Row],[額外還款]]<=還款排程[[#This Row],[期初餘額]],還款排程[[#This Row],[已排程還款]]+還款排程[[#This Row],[額外還款]],還款排程[[#This Row],[期初餘額]]),"") ->  | H121: =IF(還款排程[[#This Row],[還款編號]]<>"",還款排程[[#This Row],[還款總金額]]-還款排程[[#This Row],[利息]],"") ->  | I121: =IF(還款排程[[#This Row],[還款編號]]<>"",還款排程[[#This Row],[期初餘額]]*(利率/每年還款次數),"") ->  | J121: =IF(還款排程[[#This Row],[還款編號]]<>"",IF(還款排程[[#This Row],[已排程還款]]+還款排程[[#This Row],[額外還款]]<=還款排程[[#This Row],[期初餘額]],還款排程[[#This Row],[期初餘額]]-還款排程[[#This Row],[本金]],0),"") ->  | K121: =IF(還款排程[[#This Row],[還款編號]]<>"",SUM(INDEX(還款排程[利息],1,1):還款排程[[#This Row],[利息]]),"") -> 
B122: =IF(貸款良好,IF(ROW()-ROW(還款排程[[#Headers],[還款編號]])>已排程的還款次數,"",ROW()-ROW(還款排程[[#Headers],[還款編號]])),"") ->  | C122: =IF(還款排程[[#This Row],[還款編號]]<>"",EOMONTH(貸款開始日期,ROW(還款排程[[#This Row],[還款編號]])-ROW(還款排程[[#Headers],[還款編號]])-2)+DAY(貸款開始日期),"") ->  | D122: =IF(還款排程[[#This Row],[還款編號]]<>"",IF(ROW()-ROW(還款排程[[#Headers],[期初餘額]])=1,貸款金額,INDEX(還款排程[結餘],ROW()-ROW(還款排程[[#Headers],[期初餘額]])-1)),"") ->  | E122: =IF(還款排程[[#This Row],[還款編號]]<>"",已排程的還款,"") ->  | F122: =IF(還款排程[[#This Row],[還款編號]]<>"",IF(還款排程[[#This Row],[已排程還款]]+額外還款<還款排程[[#This Row],[期初餘額]],額外還款,IF(還款排程[[#This Row],[期初餘額]]-還款排程[[#This Row],[已排程還款]]>0,還款排程[[#This Row],[期初餘額]]-還款排程[[#This Row],[已排程還款]],0)),"") ->  | G122: =IF(還款排程[[#This Row],[還款編號]]<>"",IF(還款排程[[#This Row],[已排程還款]]+還款排程[[#This Row],[額外還款]]<=還款排程[[#This Row],[期初餘額]],還款排程[[#This Row],[已排程還款]]+還款排程[[#This Row],[額外還款]],還款排程[[#This Row],[期初餘額]]),"") ->  | H122: =IF(還款排程[[#This Row],[還款編號]]<>"",還款排程[[#This Row],[還款總金額]]-還款排程[[#This Row],[利息]],"") ->  | I122: =IF(還款排程[[#This Row],[還款編號]]<>"",還款排程[[#This Row],[期初餘額]]*(利率/每年還款次數),"") ->  | J122: =IF(還款排程[[#This Row],[還款編號]]<>"",IF(還款排程[[#This Row],[已排程還款]]+還款排程[[#This Row],[額外還款]]<=還款排程[[#This Row],[期初餘額]],還款排程[[#This Row],[期初餘額]]-還款排程[[#This Row],[本金]],0),"") ->  | K122: =IF(還款排程[[#This Row],[還款編號]]<>"",SUM(INDEX(還款排程[利息],1,1):還款排程[[#This Row],[利息]]),"") -> 
B123: =IF(貸款良好,IF(ROW()-ROW(還款排程[[#Headers],[還款編號]])>已排程的還款次數,"",ROW()-ROW(還款排程[[#Headers],[還款編號]])),"") ->  | C123: =IF(還款排程[[#This Row],[還款編號]]<>"",EOMONTH(貸款開始日期,ROW(還款排程[[#This Row],[還款編號]])-ROW(還款排程[[#Headers],[還款編號]])-2)+DAY(貸款開始日期),"") ->  | D123: =IF(還款排程[[#This Row],[還款編號]]<>"",IF(ROW()-ROW(還款排程[[#Headers],[期初餘額]])=1,貸款金額,INDEX(還款排程[結餘],ROW()-ROW(還款排程[[#Headers],[期初餘額]])-1)),"") ->  | E123: =IF(還款排程[[#This Row],[還款編號]]<>"",已排程的還款,"") ->  | F123: =IF(還款排程[[#This Row],[還款編號]]<>"",IF(還款排程[[#This Row],[已排程還款]]+額外還款<還款排程[[#This Row],[期初餘額]],額外還款,IF(還款排程[[#This Row],[期初餘額]]-還款排程[[#This Row],[已排程還款]]>0,還款排程[[#This Row],[期初餘額]]-還款排程[[#This Row],[已排程還款]],0)),"") ->  | G123: =IF(還款排程[[#This Row],[還款編號]]<>"",IF(還款排程[[#This Row],[已排程還款]]+還款排程[[#This Row],[額外還款]]<=還款排程[[#This Row],[期初餘額]],還款排程[[#This Row],[已排程還款]]+還款排程[[#This Row],[額外還款]],還款排程[[#This Row],[期初餘額]]),"") ->  | H123: =IF(還款排程[[#This Row],[還款編號]]<>"",還款排程[[#This Row],[還款總金額]]-還款排程[[#This Row],[利息]],"") ->  | I123: =IF(還款排程[[#This Row],[還款編號]]<>"",還款排程[[#This Row],[期初餘額]]*(利率/每年還款次數),"") ->  | J123: =IF(還款排程[[#This Row],[還款編號]]<>"",IF(還款排程[[#This Row],[已排程還款]]+還款排程[[#This Row],[額外還款]]<=還款排程[[#This Row],[期初餘額]],還款排程[[#This Row],[期初餘額]]-還款排程[[#This Row],[本金]],0),"") ->  | K123: =IF(還款排程[[#This Row],[還款編號]]<>"",SUM(INDEX(還款排程[利息],1,1):還款排程[[#This Row],[利息]]),"") -> 
B124: =IF(貸款良好,IF(ROW()-ROW(還款排程[[#Headers],[還款編號]])>已排程的還款次數,"",ROW()-ROW(還款排程[[#Headers],[還款編號]])),"") ->  | C124: =IF(還款排程[[#This Row],[還款編號]]<>"",EOMONTH(貸款開始日期,ROW(還款排程[[#This Row],[還款編號]])-ROW(還款排程[[#Headers],[還款編號]])-2)+DAY(貸款開始日期),"") ->  | D124: =IF(還款排程[[#This Row],[還款編號]]<>"",IF(ROW()-ROW(還款排程[[#Headers],[期初餘額]])=1,貸款金額,INDEX(還款排程[結餘],ROW()-ROW(還款排程[[#Headers],[期初餘額]])-1)),"") ->  | E124: =IF(還款排程[[#This Row],[還款編號]]<>"",已排程的還款,"") ->  | F124: =IF(還款排程[[#This Row],[還款編號]]<>"",IF(還款排程[[#This Row],[已排程還款]]+額外還款<還款排程[[#This Row],[期初餘額]],額外還款,IF(還款排程[[#This Row],[期初餘額]]-還款排程[[#This Row],[已排程還款]]>0,還款排程[[#This Row],[期初餘額]]-還款排程[[#This Row],[已排程還款]],0)),"") ->  | G124: =IF(還款排程[[#This Row],[還款編號]]<>"",IF(還款排程[[#This Row],[已排程還款]]+還款排程[[#This Row],[額外還款]]<=還款排程[[#This Row],[期初餘額]],還款排程[[#This Row],[已排程還款]]+還款排程[[#This Row],[額外還款]],還款排程[[#This Row],[期初餘額]]),"") ->  | H124: =IF(還款排程[[#This Row],[還款編號]]<>"",還款排程[[#This Row],[還款總金額]]-還款排程[[#This Row],[利息]],"") ->  | I124: =IF(還款排程[[#This Row],[還款編號]]<>"",還款排程[[#This Row],[期初餘額]]*(利率/每年還款次數),"") ->  | J124: =IF(還款排程[[#This Row],[還款編號]]<>"",IF(還款排程[[#This Row],[已排程還款]]+還款排程[[#This Row],[額外還款]]<=還款排程[[#This Row],[期初餘額]],還款排程[[#This Row],[期初餘額]]-還款排程[[#This Row],[本金]],0),"") ->  | K124: =IF(還款排程[[#This Row],[還款編號]]<>"",SUM(INDEX(還款排程[利息],1,1):還款排程[[#This Row],[利息]]),"") -> 
B125: =IF(貸款良好,IF(ROW()-ROW(還款排程[[#Headers],[還款編號]])>已排程的還款次數,"",ROW()-ROW(還款排程[[#Headers],[還款編號]])),"") ->  | C125: =IF(還款排程[[#This Row],[還款編號]]<>"",EOMONTH(貸款開始日期,ROW(還款排程[[#This Row],[還款編號]])-ROW(還款排程[[#Headers],[還款編號]])-2)+DAY(貸款開始日期),"") ->  | D125: =IF(還款排程[[#This Row],[還款編號]]<>"",IF(ROW()-ROW(還款排程[[#Headers],[期初餘額]])=1,貸款金額,INDEX(還款排程[結餘],ROW()-ROW(還款排程[[#Headers],[期初餘額]])-1)),"") ->  | E125: =IF(還款排程[[#This Row],[還款編號]]<>"",已排程的還款,"") ->  | F125: =IF(還款排程[[#This Row],[還款編號]]<>"",IF(還款排程[[#This Row],[已排程還款]]+額外還款<還款排程[[#This Row],[期初餘額]],額外還款,IF(還款排程[[#This Row],[期初餘額]]-還款排程[[#This Row],[已排程還款]]>0,還款排程[[#This Row],[期初餘額]]-還款排程[[#This Row],[已排程還款]],0)),"") ->  | G125: =IF(還款排程[[#This Row],[還款編號]]<>"",IF(還款排程[[#This Row],[已排程還款]]+還款排程[[#This Row],[額外還款]]<=還款排程[[#This Row],[期初餘額]],還款排程[[#This Row],[已排程還款]]+還款排程[[#This Row],[額外還款]],還款排程[[#This Row],[期初餘額]]),"") ->  | H125: =IF(還款排程[[#This Row],[還款編號]]<>"",還款排程[[#This Row],[還款總金額]]-還款排程[[#This Row],[利息]],"") ->  | I125: =IF(還款排程[[#This Row],[還款編號]]<>"",還款排程[[#This Row],[期初餘額]]*(利率/每年還款次數),"") ->  | J125: =IF(還款排程[[#This Row],[還款編號]]<>"",IF(還款排程[[#This Row],[已排程還款]]+還款排程[[#This Row],[額外還款]]<=還款排程[[#This Row],[期初餘額]],還款排程[[#This Row],[期初餘額]]-還款排程[[#This Row],[本金]],0),"") ->  | K125: =IF(還款排程[[#This Row],[還款編號]]<>"",SUM(INDEX(還款排程[利息],1,1):還款排程[[#This Row],[利息]]),"") -> 
B126: =IF(貸款良好,IF(ROW()-ROW(還款排程[[#Headers],[還款編號]])>已排程的還款次數,"",ROW()-ROW(還款排程[[#Headers],[還款編號]])),"") ->  | C126: =IF(還款排程[[#This Row],[還款編號]]<>"",EOMONTH(貸款開始日期,ROW(還款排程[[#This Row],[還款編號]])-ROW(還款排程[[#Headers],[還款編號]])-2)+DAY(貸款開始日期),"") ->  | D126: =IF(還款排程[[#This Row],[還款編號]]<>"",IF(ROW()-ROW(還款排程[[#Headers],[期初餘額]])=1,貸款金額,INDEX(還款排程[結餘],ROW()-ROW(還款排程[[#Headers],[期初餘額]])-1)),"") ->  | E126: =IF(還款排程[[#This Row],[還款編號]]<>"",已排程的還款,"") ->  | F126: =IF(還款排程[[#This Row],[還款編號]]<>"",IF(還款排程[[#This Row],[已排程還款]]+額外還款<還款排程[[#This Row],[期初餘額]],額外還款,IF(還款排程[[#This Row],[期初餘額]]-還款排程[[#This Row],[已排程還款]]>0,還款排程[[#This Row],[期初餘額]]-還款排程[[#This Row],[已排程還款]],0)),"") ->  | G126: =IF(還款排程[[#This Row],[還款編號]]<>"",IF(還款排程[[#This Row],[已排程還款]]+還款排程[[#This Row],[額外還款]]<=還款排程[[#This Row],[期初餘額]],還款排程[[#This Row],[已排程還款]]+還款排程[[#This Row],[額外還款]],還款排程[[#This Row],[期初餘額]]),"") ->  | H126: =IF(還款排程[[#This Row],[還款編號]]<>"",還款排程[[#This Row],[還款總金額]]-還款排程[[#This Row],[利息]],"") ->  | I126: =IF(還款排程[[#This Row],[還款編號]]<>"",還款排程[[#This Row],[期初餘額]]*(利率/每年還款次數),"") ->  | J126: =IF(還款排程[[#This Row],[還款編號]]<>"",IF(還款排程[[#This Row],[已排程還款]]+還款排程[[#This Row],[額外還款]]<=還款排程[[#This Row],[期初餘額]],還款排程[[#This Row],[期初餘額]]-還款排程[[#This Row],[本金]],0),"") ->  | K126: =IF(還款排程[[#This Row],[還款編號]]<>"",SUM(INDEX(還款排程[利息],1,1):還款排程[[#This Row],[利息]]),"") -> 
B127: =IF(貸款良好,IF(ROW()-ROW(還款排程[[#Headers],[還款編號]])>已排程的還款次數,"",ROW()-ROW(還款排程[[#Headers],[還款編號]])),"") ->  | C127: =IF(還款排程[[#This Row],[還款編號]]<>"",EOMONTH(貸款開始日期,ROW(還款排程[[#This Row],[還款編號]])-ROW(還款排程[[#Headers],[還款編號]])-2)+DAY(貸款開始日期),"") ->  | D127: =IF(還款排程[[#This Row],[還款編號]]<>"",IF(ROW()-ROW(還款排程[[#Headers],[期初餘額]])=1,貸款金額,INDEX(還款排程[結餘],ROW()-ROW(還款排程[[#Headers],[期初餘額]])-1)),"") ->  | E127: =IF(還款排程[[#This Row],[還款編號]]<>"",已排程的還款,"") ->  | F127: =IF(還款排程[[#This Row],[還款編號]]<>"",IF(還款排程[[#This Row],[已排程還款]]+額外還款<還款排程[[#This Row],[期初餘額]],額外還款,IF(還款排程[[#This Row],[期初餘額]]-還款排程[[#This Row],[已排程還款]]>0,還款排程[[#This Row],[期初餘額]]-還款排程[[#This Row],[已排程還款]],0)),"") ->  | G127: =IF(還款排程[[#This Row],[還款編號]]<>"",IF(還款排程[[#This Row],[已排程還款]]+還款排程[[#This Row],[額外還款]]<=還款排程[[#This Row],[期初餘額]],還款排程[[#This Row],[已排程還款]]+還款排程[[#This Row],[額外還款]],還款排程[[#This Row],[期初餘額]]),"") ->  | H127: =IF(還款排程[[#This Row],[還款編號]]<>"",還款排程[[#This Row],[還款總金額]]-還款排程[[#This Row],[利息]],"") ->  | I127: =IF(還款排程[[#This Row],[還款編號]]<>"",還款排程[[#This Row],[期初餘額]]*(利率/每年還款次數),"") ->  | J127: =IF(還款排程[[#This Row],[還款編號]]<>"",IF(還款排程[[#This Row],[已排程還款]]+還款排程[[#This Row],[額外還款]]<=還款排程[[#This Row],[期初餘額]],還款排程[[#This Row],[期初餘額]]-還款排程[[#This Row],[本金]],0),"") ->  | K127: =IF(還款排程[[#This Row],[還款編號]]<>"",SUM(INDEX(還款排程[利息],1,1):還款排程[[#This Row],[利息]]),"") -> 
B128: =IF(貸款良好,IF(ROW()-ROW(還款排程[[#Headers],[還款編號]])>已排程的還款次數,"",ROW()-ROW(還款排程[[#Headers],[還款編號]])),"") ->  | C128: =IF(還款排程[[#This Row],[還款編號]]<>"",EOMONTH(貸款開始日期,ROW(還款排程[[#This Row],[還款編號]])-ROW(還款排程[[#Headers],[還款編號]])-2)+DAY(貸款開始日期),"") ->  | D128: =IF(還款排程[[#This Row],[還款編號]]<>"",IF(ROW()-ROW(還款排程[[#Headers],[期初餘額]])=1,貸款金額,INDEX(還款排程[結餘],ROW()-ROW(還款排程[[#Headers],[期初餘額]])-1)),"") ->  | E128: =IF(還款排程[[#This Row],[還款編號]]<>"",已排程的還款,"") ->  | F128: =IF(還款排程[[#This Row],[還款編號]]<>"",IF(還款排程[[#This Row],[已排程還款]]+額外還款<還款排程[[#This Row],[期初餘額]],額外還款,IF(還款排程[[#This Row],[期初餘額]]-還款排程[[#This Row],[已排程還款]]>0,還款排程[[#This Row],[期初餘額]]-還款排程[[#This Row],[已排程還款]],0)),"") ->  | G128: =IF(還款排程[[#This Row],[還款編號]]<>"",IF(還款排程[[#This Row],[已排程還款]]+還款排程[[#This Row],[額外還款]]<=還款排程[[#This Row],[期初餘額]],還款排程[[#This Row],[已排程還款]]+還款排程[[#This Row],[額外還款]],還款排程[[#This Row],[期初餘額]]),"") ->  | H128: =IF(還款排程[[#This Row],[還款編號]]<>"",還款排程[[#This Row],[還款總金額]]-還款排程[[#This Row],[利息]],"") ->  | I128: =IF(還款排程[[#This Row],[還款編號]]<>"",還款排程[[#This Row],[期初餘額]]*(利率/每年還款次數),"") ->  | J128: =IF(還款排程[[#This Row],[還款編號]]<>"",IF(還款排程[[#This Row],[已排程還款]]+還款排程[[#This Row],[額外還款]]<=還款排程[[#This Row],[期初餘額]],還款排程[[#This Row],[期初餘額]]-還款排程[[#This Row],[本金]],0),"") ->  | K128: =IF(還款排程[[#This Row],[還款編號]]<>"",SUM(INDEX(還款排程[利息],1,1):還款排程[[#This Row],[利息]]),"") -> 
B129: =IF(貸款良好,IF(ROW()-ROW(還款排程[[#Headers],[還款編號]])>已排程的還款次數,"",ROW()-ROW(還款排程[[#Headers],[還款編號]])),"") ->  | C129: =IF(還款排程[[#This Row],[還款編號]]<>"",EOMONTH(貸款開始日期,ROW(還款排程[[#This Row],[還款編號]])-ROW(還款排程[[#Headers],[還款編號]])-2)+DAY(貸款開始日期),"") ->  | D129: =IF(還款排程[[#This Row],[還款編號]]<>"",IF(ROW()-ROW(還款排程[[#Headers],[期初餘額]])=1,貸款金額,INDEX(還款排程[結餘],ROW()-ROW(還款排程[[#Headers],[期初餘額]])-1)),"") ->  | E129: =IF(還款排程[[#This Row],[還款編號]]<>"",已排程的還款,"") ->  | F129: =IF(還款排程[[#This Row],[還款編號]]<>"",IF(還款排程[[#This Row],[已排程還款]]+額外還款<還款排程[[#This Row],[期初餘額]],額外還款,IF(還款排程[[#This Row],[期初餘額]]-還款排程[[#This Row],[已排程還款]]>0,還款排程[[#This Row],[期初餘額]]-還款排程[[#This Row],[已排程還款]],0)),"") ->  | G129: =IF(還款排程[[#This Row],[還款編號]]<>"",IF(還款排程[[#This Row],[已排程還款]]+還款排程[[#This Row],[額外還款]]<=還款排程[[#This Row],[期初餘額]],還款排程[[#This Row],[已排程還款]]+還款排程[[#This Row],[額外還款]],還款排程[[#This Row],[期初餘額]]),"") ->  | H129: =IF(還款排程[[#This Row],[還款編號]]<>"",還款排程[[#This Row],[還款總金額]]-還款排程[[#This Row],[利息]],"") ->  | I129: =IF(還款排程[[#This Row],[還款編號]]<>"",還款排程[[#This Row],[期初餘額]]*(利率/每年還款次數),"") ->  | J129: =IF(還款排程[[#This Row],[還款編號]]<>"",IF(還款排程[[#This Row],[已排程還款]]+還款排程[[#This Row],[額外還款]]<=還款排程[[#This Row],[期初餘額]],還款排程[[#This Row],[期初餘額]]-還款排程[[#This Row],[本金]],0),"") ->  | K129: =IF(還款排程[[#This Row],[還款編號]]<>"",SUM(INDEX(還款排程[利息],1,1):還款排程[[#This Row],[利息]]),"") -> 
B130: =IF(貸款良好,IF(ROW()-ROW(還款排程[[#Headers],[還款編號]])>已排程的還款次數,"",ROW()-ROW(還款排程[[#Headers],[還款編號]])),"") ->  | C130: =IF(還款排程[[#This Row],[還款編號]]<>"",EOMONTH(貸款開始日期,ROW(還款排程[[#This Row],[還款編號]])-ROW(還款排程[[#Headers],[還款編號]])-2)+DAY(貸款開始日期),"") ->  | D130: =IF(還款排程[[#This Row],[還款編號]]<>"",IF(ROW()-ROW(還款排程[[#Headers],[期初餘額]])=1,貸款金額,INDEX(還款排程[結餘],ROW()-ROW(還款排程[[#Headers],[期初餘額]])-1)),"") ->  | E130: =IF(還款排程[[#This Row],[還款編號]]<>"",已排程的還款,"") ->  | F130: =IF(還款排程[[#This Row],[還款編號]]<>"",IF(還款排程[[#This Row],[已排程還款]]+額外還款<還款排程[[#This Row],[期初餘額]],額外還款,IF(還款排程[[#This Row],[期初餘額]]-還款排程[[#This Row],[已排程還款]]>0,還款排程[[#This Row],[期初餘額]]-還款排程[[#This Row],[已排程還款]],0)),"") ->  | G130: =IF(還款排程[[#This Row],[還款編號]]<>"",IF(還款排程[[#This Row],[已排程還款]]+還款排程[[#This Row],[額外還款]]<=還款排程[[#This Row],[期初餘額]],還款排程[[#This Row],[已排程還款]]+還款排程[[#This Row],[額外還款]],還款排程[[#This Row],[期初餘額]]),"") ->  | H130: =IF(還款排程[[#This Row],[還款編號]]<>"",還款排程[[#This Row],[還款總金額]]-還款排程[[#This Row],[利息]],"") ->  | I130: =IF(還款排程[[#This Row],[還款編號]]<>"",還款排程[[#This Row],[期初餘額]]*(利率/每年還款次數),"") ->  | J130: =IF(還款排程[[#This Row],[還款編號]]<>"",IF(還款排程[[#This Row],[已排程還款]]+還款排程[[#This Row],[額外還款]]<=還款排程[[#This Row],[期初餘額]],還款排程[[#This Row],[期初餘額]]-還款排程[[#This Row],[本金]],0),"") ->  | K130: =IF(還款排程[[#This Row],[還款編號]]<>"",SUM(INDEX(還款排程[利息],1,1):還款排程[[#This Row],[利息]]),"") -> 
B131: =IF(貸款良好,IF(ROW()-ROW(還款排程[[#Headers],[還款編號]])>已排程的還款次數,"",ROW()-ROW(還款排程[[#Headers],[還款編號]])),"") ->  | C131: =IF(還款排程[[#This Row],[還款編號]]<>"",EOMONTH(貸款開始日期,ROW(還款排程[[#This Row],[還款編號]])-ROW(還款排程[[#Headers],[還款編號]])-2)+DAY(貸款開始日期),"") ->  | D131: =IF(還款排程[[#This Row],[還款編號]]<>"",IF(ROW()-ROW(還款排程[[#Headers],[期初餘額]])=1,貸款金額,INDEX(還款排程[結餘],ROW()-ROW(還款排程[[#Headers],[期初餘額]])-1)),"") ->  | E131: =IF(還款排程[[#This Row],[還款編號]]<>"",已排程的還款,"") ->  | F131: =IF(還款排程[[#This Row],[還款編號]]<>"",IF(還款排程[[#This Row],[已排程還款]]+額外還款<還款排程[[#This Row],[期初餘額]],額外還款,IF(還款排程[[#This Row],[期初餘額]]-還款排程[[#This Row],[已排程還款]]>0,還款排程[[#This Row],[期初餘額]]-還款排程[[#This Row],[已排程還款]],0)),"") ->  | G131: =IF(還款排程[[#This Row],[還款編號]]<>"",IF(還款排程[[#This Row],[已排程還款]]+還款排程[[#This Row],[額外還款]]<=還款排程[[#This Row],[期初餘額]],還款排程[[#This Row],[已排程還款]]+還款排程[[#This Row],[額外還款]],還款排程[[#This Row],[期初餘額]]),"") ->  | H131: =IF(還款排程[[#This Row],[還款編號]]<>"",還款排程[[#This Row],[還款總金額]]-還款排程[[#This Row],[利息]],"") ->  | I131: =IF(還款排程[[#This Row],[還款編號]]<>"",還款排程[[#This Row],[期初餘額]]*(利率/每年還款次數),"") ->  | J131: =IF(還款排程[[#This Row],[還款編號]]<>"",IF(還款排程[[#This Row],[已排程還款]]+還款排程[[#This Row],[額外還款]]<=還款排程[[#This Row],[期初餘額]],還款排程[[#This Row],[期初餘額]]-還款排程[[#This Row],[本金]],0),"") ->  | K131: =IF(還款排程[[#This Row],[還款編號]]<>"",SUM(INDEX(還款排程[利息],1,1):還款排程[[#This Row],[利息]]),"") -> 
B132: =IF(貸款良好,IF(ROW()-ROW(還款排程[[#Headers],[還款編號]])>已排程的還款次數,"",ROW()-ROW(還款排程[[#Headers],[還款編號]])),"") ->  | C132: =IF(還款排程[[#This Row],[還款編號]]<>"",EOMONTH(貸款開始日期,ROW(還款排程[[#This Row],[還款編號]])-ROW(還款排程[[#Headers],[還款編號]])-2)+DAY(貸款開始日期),"") ->  | D132: =IF(還款排程[[#This Row],[還款編號]]<>"",IF(ROW()-ROW(還款排程[[#Headers],[期初餘額]])=1,貸款金額,INDEX(還款排程[結餘],ROW()-ROW(還款排程[[#Headers],[期初餘額]])-1)),"") ->  | E132: =IF(還款排程[[#This Row],[還款編號]]<>"",已排程的還款,"") ->  | F132: =IF(還款排程[[#This Row],[還款編號]]<>"",IF(還款排程[[#This Row],[已排程還款]]+額外還款<還款排程[[#This Row],[期初餘額]],額外還款,IF(還款排程[[#This Row],[期初餘額]]-還款排程[[#This Row],[已排程還款]]>0,還款排程[[#This Row],[期初餘額]]-還款排程[[#This Row],[已排程還款]],0)),"") ->  | G132: =IF(還款排程[[#This Row],[還款編號]]<>"",IF(還款排程[[#This Row],[已排程還款]]+還款排程[[#This Row],[額外還款]]<=還款排程[[#This Row],[期初餘額]],還款排程[[#This Row],[已排程還款]]+還款排程[[#This Row],[額外還款]],還款排程[[#This Row],[期初餘額]]),"") ->  | H132: =IF(還款排程[[#This Row],[還款編號]]<>"",還款排程[[#This Row],[還款總金額]]-還款排程[[#This Row],[利息]],"") ->  | I132: =IF(還款排程[[#This Row],[還款編號]]<>"",還款排程[[#This Row],[期初餘額]]*(利率/每年還款次數),"") ->  | J132: =IF(還款排程[[#This Row],[還款編號]]<>"",IF(還款排程[[#This Row],[已排程還款]]+還款排程[[#This Row],[額外還款]]<=還款排程[[#This Row],[期初餘額]],還款排程[[#This Row],[期初餘額]]-還款排程[[#This Row],[本金]],0),"") ->  | K132: =IF(還款排程[[#This Row],[還款編號]]<>"",SUM(INDEX(還款排程[利息],1,1):還款排程[[#This Row],[利息]]),"") -> 
B133: =IF(貸款良好,IF(ROW()-ROW(還款排程[[#Headers],[還款編號]])>已排程的還款次數,"",ROW()-ROW(還款排程[[#Headers],[還款編號]])),"") ->  | C133: =IF(還款排程[[#This Row],[還款編號]]<>"",EOMONTH(貸款開始日期,ROW(還款排程[[#This Row],[還款編號]])-ROW(還款排程[[#Headers],[還款編號]])-2)+DAY(貸款開始日期),"") ->  | D133: =IF(還款排程[[#This Row],[還款編號]]<>"",IF(ROW()-ROW(還款排程[[#Headers],[期初餘額]])=1,貸款金額,INDEX(還款排程[結餘],ROW()-ROW(還款排程[[#Headers],[期初餘額]])-1)),"") ->  | E133: =IF(還款排程[[#This Row],[還款編號]]<>"",已排程的還款,"") ->  | F133: =IF(還款排程[[#This Row],[還款編號]]<>"",IF(還款排程[[#This Row],[已排程還款]]+額外還款<還款排程[[#This Row],[期初餘額]],額外還款,IF(還款排程[[#This Row],[期初餘額]]-還款排程[[#This Row],[已排程還款]]>0,還款排程[[#This Row],[期初餘額]]-還款排程[[#This Row],[已排程還款]],0)),"") ->  | G133: =IF(還款排程[[#This Row],[還款編號]]<>"",IF(還款排程[[#This Row],[已排程還款]]+還款排程[[#This Row],[額外還款]]<=還款排程[[#This Row],[期初餘額]],還款排程[[#This Row],[已排程還款]]+還款排程[[#This Row],[額外還款]],還款排程[[#This Row],[期初餘額]]),"") ->  | H133: =IF(還款排程[[#This Row],[還款編號]]<>"",還款排程[[#This Row],[還款總金額]]-還款排程[[#This Row],[利息]],"") ->  | I133: =IF(還款排程[[#This Row],[還款編號]]<>"",還款排程[[#This Row],[期初餘額]]*(利率/每年還款次數),"") ->  | J133: =IF(還款排程[[#This Row],[還款編號]]<>"",IF(還款排程[[#This Row],[已排程還款]]+還款排程[[#This Row],[額外還款]]<=還款排程[[#This Row],[期初餘額]],還款排程[[#This Row],[期初餘額]]-還款排程[[#This Row],[本金]],0),"") ->  | K133: =IF(還款排程[[#This Row],[還款編號]]<>"",SUM(INDEX(還款排程[利息],1,1):還款排程[[#This Row],[利息]]),"") -> 
B134: =IF(貸款良好,IF(ROW()-ROW(還款排程[[#Headers],[還款編號]])>已排程的還款次數,"",ROW()-ROW(還款排程[[#Headers],[還款編號]])),"") ->  | C134: =IF(還款排程[[#This Row],[還款編號]]<>"",EOMONTH(貸款開始日期,ROW(還款排程[[#This Row],[還款編號]])-ROW(還款排程[[#Headers],[還款編號]])-2)+DAY(貸款開始日期),"") ->  | D134: =IF(還款排程[[#This Row],[還款編號]]<>"",IF(ROW()-ROW(還款排程[[#Headers],[期初餘額]])=1,貸款金額,INDEX(還款排程[結餘],ROW()-ROW(還款排程[[#Headers],[期初餘額]])-1)),"") ->  | E134: =IF(還款排程[[#This Row],[還款編號]]<>"",已排程的還款,"") ->  | F134: =IF(還款排程[[#This Row],[還款編號]]<>"",IF(還款排程[[#This Row],[已排程還款]]+額外還款<還款排程[[#This Row],[期初餘額]],額外還款,IF(還款排程[[#This Row],[期初餘額]]-還款排程[[#This Row],[已排程還款]]>0,還款排程[[#This Row],[期初餘額]]-還款排程[[#This Row],[已排程還款]],0)),"") ->  | G134: =IF(還款排程[[#This Row],[還款編號]]<>"",IF(還款排程[[#This Row],[已排程還款]]+還款排程[[#This Row],[額外還款]]<=還款排程[[#This Row],[期初餘額]],還款排程[[#This Row],[已排程還款]]+還款排程[[#This Row],[額外還款]],還款排程[[#This Row],[期初餘額]]),"") ->  | H134: =IF(還款排程[[#This Row],[還款編號]]<>"",還款排程[[#This Row],[還款總金額]]-還款排程[[#This Row],[利息]],"") ->  | I134: =IF(還款排程[[#This Row],[還款編號]]<>"",還款排程[[#This Row],[期初餘額]]*(利率/每年還款次數),"") ->  | J134: =IF(還款排程[[#This Row],[還款編號]]<>"",IF(還款排程[[#This Row],[已排程還款]]+還款排程[[#This Row],[額外還款]]<=還款排程[[#This Row],[期初餘額]],還款排程[[#This Row],[期初餘額]]-還款排程[[#This Row],[本金]],0),"") ->  | K134: =IF(還款排程[[#This Row],[還款編號]]<>"",SUM(INDEX(還款排程[利息],1,1):還款排程[[#This Row],[利息]]),"") -> 
B135: =IF(貸款良好,IF(ROW()-ROW(還款排程[[#Headers],[還款編號]])>已排程的還款次數,"",ROW()-ROW(還款排程[[#Headers],[還款編號]])),"") ->  | C135: =IF(還款排程[[#This Row],[還款編號]]<>"",EOMONTH(貸款開始日期,ROW(還款排程[[#This Row],[還款編號]])-ROW(還款排程[[#Headers],[還款編號]])-2)+DAY(貸款開始日期),"") ->  | D135: =IF(還款排程[[#This Row],[還款編號]]<>"",IF(ROW()-ROW(還款排程[[#Headers],[期初餘額]])=1,貸款金額,INDEX(還款排程[結餘],ROW()-ROW(還款排程[[#Headers],[期初餘額]])-1)),"") ->  | E135: =IF(還款排程[[#This Row],[還款編號]]<>"",已排程的還款,"") ->  | F135: =IF(還款排程[[#This Row],[還款編號]]<>"",IF(還款排程[[#This Row],[已排程還款]]+額外還款<還款排程[[#This Row],[期初餘額]],額外還款,IF(還款排程[[#This Row],[期初餘額]]-還款排程[[#This Row],[已排程還款]]>0,還款排程[[#This Row],[期初餘額]]-還款排程[[#This Row],[已排程還款]],0)),"") ->  | G135: =IF(還款排程[[#This Row],[還款編號]]<>"",IF(還款排程[[#This Row],[已排程還款]]+還款排程[[#This Row],[額外還款]]<=還款排程[[#This Row],[期初餘額]],還款排程[[#This Row],[已排程還款]]+還款排程[[#This Row],[額外還款]],還款排程[[#This Row],[期初餘額]]),"") ->  | H135: =IF(還款排程[[#This Row],[還款編號]]<>"",還款排程[[#This Row],[還款總金額]]-還款排程[[#This Row],[利息]],"") ->  | I135: =IF(還款排程[[#This Row],[還款編號]]<>"",還款排程[[#This Row],[期初餘額]]*(利率/每年還款次數),"") ->  | J135: =IF(還款排程[[#This Row],[還款編號]]<>"",IF(還款排程[[#This Row],[已排程還款]]+還款排程[[#This Row],[額外還款]]<=還款排程[[#This Row],[期初餘額]],還款排程[[#This Row],[期初餘額]]-還款排程[[#This Row],[本金]],0),"") ->  | K135: =IF(還款排程[[#This Row],[還款編號]]<>"",SUM(INDEX(還款排程[利息],1,1):還款排程[[#This Row],[利息]]),"") -> 
B136: =IF(貸款良好,IF(ROW()-ROW(還款排程[[#Headers],[還款編號]])>已排程的還款次數,"",ROW()-ROW(還款排程[[#Headers],[還款編號]])),"") ->  | C136: =IF(還款排程[[#This Row],[還款編號]]<>"",EOMONTH(貸款開始日期,ROW(還款排程[[#This Row],[還款編號]])-ROW(還款排程[[#Headers],[還款編號]])-2)+DAY(貸款開始日期),"") ->  | D136: =IF(還款排程[[#This Row],[還款編號]]<>"",IF(ROW()-ROW(還款排程[[#Headers],[期初餘額]])=1,貸款金額,INDEX(還款排程[結餘],ROW()-ROW(還款排程[[#Headers],[期初餘額]])-1)),"") ->  | E136: =IF(還款排程[[#This Row],[還款編號]]<>"",已排程的還款,"") ->  | F136: =IF(還款排程[[#This Row],[還款編號]]<>"",IF(還款排程[[#This Row],[已排程還款]]+額外還款<還款排程[[#This Row],[期初餘額]],額外還款,IF(還款排程[[#This Row],[期初餘額]]-還款排程[[#This Row],[已排程還款]]>0,還款排程[[#This Row],[期初餘額]]-還款排程[[#This Row],[已排程還款]],0)),"") ->  | G136: =IF(還款排程[[#This Row],[還款編號]]<>"",IF(還款排程[[#This Row],[已排程還款]]+還款排程[[#This Row],[額外還款]]<=還款排程[[#This Row],[期初餘額]],還款排程[[#This Row],[已排程還款]]+還款排程[[#This Row],[額外還款]],還款排程[[#This Row],[期初餘額]]),"") ->  | H136: =IF(還款排程[[#This Row],[還款編號]]<>"",還款排程[[#This Row],[還款總金額]]-還款排程[[#This Row],[利息]],"") ->  | I136: =IF(還款排程[[#This Row],[還款編號]]<>"",還款排程[[#This Row],[期初餘額]]*(利率/每年還款次數),"") ->  | J136: =IF(還款排程[[#This Row],[還款編號]]<>"",IF(還款排程[[#This Row],[已排程還款]]+還款排程[[#This Row],[額外還款]]<=還款排程[[#This Row],[期初餘額]],還款排程[[#This Row],[期初餘額]]-還款排程[[#This Row],[本金]],0),"") ->  | K136: =IF(還款排程[[#This Row],[還款編號]]<>"",SUM(INDEX(還款排程[利息],1,1):還款排程[[#This Row],[利息]]),"") -> 
B137: =IF(貸款良好,IF(ROW()-ROW(還款排程[[#Headers],[還款編號]])>已排程的還款次數,"",ROW()-ROW(還款排程[[#Headers],[還款編號]])),"") ->  | C137: =IF(還款排程[[#This Row],[還款編號]]<>"",EOMONTH(貸款開始日期,ROW(還款排程[[#This Row],[還款編號]])-ROW(還款排程[[#Headers],[還款編號]])-2)+DAY(貸款開始日期),"") ->  | D137: =IF(還款排程[[#This Row],[還款編號]]<>"",IF(ROW()-ROW(還款排程[[#Headers],[期初餘額]])=1,貸款金額,INDEX(還款排程[結餘],ROW()-ROW(還款排程[[#Headers],[期初餘額]])-1)),"") ->  | E137: =IF(還款排程[[#This Row],[還款編號]]<>"",已排程的還款,"") ->  | F137: =IF(還款排程[[#This Row],[還款編號]]<>"",IF(還款排程[[#This Row],[已排程還款]]+額外還款<還款排程[[#This Row],[期初餘額]],額外還款,IF(還款排程[[#This Row],[期初餘額]]-還款排程[[#This Row],[已排程還款]]>0,還款排程[[#This Row],[期初餘額]]-還款排程[[#This Row],[已排程還款]],0)),"") ->  | G137: =IF(還款排程[[#This Row],[還款編號]]<>"",IF(還款排程[[#This Row],[已排程還款]]+還款排程[[#This Row],[額外還款]]<=還款排程[[#This Row],[期初餘額]],還款排程[[#This Row],[已排程還款]]+還款排程[[#This Row],[額外還款]],還款排程[[#This Row],[期初餘額]]),"") ->  | H137: =IF(還款排程[[#This Row],[還款編號]]<>"",還款排程[[#This Row],[還款總金額]]-還款排程[[#This Row],[利息]],"") ->  | I137: =IF(還款排程[[#This Row],[還款編號]]<>"",還款排程[[#This Row],[期初餘額]]*(利率/每年還款次數),"") ->  | J137: =IF(還款排程[[#This Row],[還款編號]]<>"",IF(還款排程[[#This Row],[已排程還款]]+還款排程[[#This Row],[額外還款]]<=還款排程[[#This Row],[期初餘額]],還款排程[[#This Row],[期初餘額]]-還款排程[[#This Row],[本金]],0),"") ->  | K137: =IF(還款排程[[#This Row],[還款編號]]<>"",SUM(INDEX(還款排程[利息],1,1):還款排程[[#This Row],[利息]]),"") -> 
B138: =IF(貸款良好,IF(ROW()-ROW(還款排程[[#Headers],[還款編號]])>已排程的還款次數,"",ROW()-ROW(還款排程[[#Headers],[還款編號]])),"") ->  | C138: =IF(還款排程[[#This Row],[還款編號]]<>"",EOMONTH(貸款開始日期,ROW(還款排程[[#This Row],[還款編號]])-ROW(還款排程[[#Headers],[還款編號]])-2)+DAY(貸款開始日期),"") ->  | D138: =IF(還款排程[[#This Row],[還款編號]]<>"",IF(ROW()-ROW(還款排程[[#Headers],[期初餘額]])=1,貸款金額,INDEX(還款排程[結餘],ROW()-ROW(還款排程[[#Headers],[期初餘額]])-1)),"") ->  | E138: =IF(還款排程[[#This Row],[還款編號]]<>"",已排程的還款,"") ->  | F138: =IF(還款排程[[#This Row],[還款編號]]<>"",IF(還款排程[[#This Row],[已排程還款]]+額外還款<還款排程[[#This Row],[期初餘額]],額外還款,IF(還款排程[[#This Row],[期初餘額]]-還款排程[[#This Row],[已排程還款]]>0,還款排程[[#This Row],[期初餘額]]-還款排程[[#This Row],[已排程還款]],0)),"") ->  | G138: =IF(還款排程[[#This Row],[還款編號]]<>"",IF(還款排程[[#This Row],[已排程還款]]+還款排程[[#This Row],[額外還款]]<=還款排程[[#This Row],[期初餘額]],還款排程[[#This Row],[已排程還款]]+還款排程[[#This Row],[額外還款]],還款排程[[#This Row],[期初餘額]]),"") ->  | H138: =IF(還款排程[[#This Row],[還款編號]]<>"",還款排程[[#This Row],[還款總金額]]-還款排程[[#This Row],[利息]],"") ->  | I138: =IF(還款排程[[#This Row],[還款編號]]<>"",還款排程[[#This Row],[期初餘額]]*(利率/每年還款次數),"") ->  | J138: =IF(還款排程[[#This Row],[還款編號]]<>"",IF(還款排程[[#This Row],[已排程還款]]+還款排程[[#This Row],[額外還款]]<=還款排程[[#This Row],[期初餘額]],還款排程[[#This Row],[期初餘額]]-還款排程[[#This Row],[本金]],0),"") ->  | K138: =IF(還款排程[[#This Row],[還款編號]]<>"",SUM(INDEX(還款排程[利息],1,1):還款排程[[#This Row],[利息]]),"") -> 
B139: =IF(貸款良好,IF(ROW()-ROW(還款排程[[#Headers],[還款編號]])>已排程的還款次數,"",ROW()-ROW(還款排程[[#Headers],[還款編號]])),"") ->  | C139: =IF(還款排程[[#This Row],[還款編號]]<>"",EOMONTH(貸款開始日期,ROW(還款排程[[#This Row],[還款編號]])-ROW(還款排程[[#Headers],[還款編號]])-2)+DAY(貸款開始日期),"") ->  | D139: =IF(還款排程[[#This Row],[還款編號]]<>"",IF(ROW()-ROW(還款排程[[#Headers],[期初餘額]])=1,貸款金額,INDEX(還款排程[結餘],ROW()-ROW(還款排程[[#Headers],[期初餘額]])-1)),"") ->  | E139: =IF(還款排程[[#This Row],[還款編號]]<>"",已排程的還款,"") ->  | F139: =IF(還款排程[[#This Row],[還款編號]]<>"",IF(還款排程[[#This Row],[已排程還款]]+額外還款<還款排程[[#This Row],[期初餘額]],額外還款,IF(還款排程[[#This Row],[期初餘額]]-還款排程[[#This Row],[已排程還款]]>0,還款排程[[#This Row],[期初餘額]]-還款排程[[#This Row],[已排程還款]],0)),"") ->  | G139: =IF(還款排程[[#This Row],[還款編號]]<>"",IF(還款排程[[#This Row],[已排程還款]]+還款排程[[#This Row],[額外還款]]<=還款排程[[#This Row],[期初餘額]],還款排程[[#This Row],[已排程還款]]+還款排程[[#This Row],[額外還款]],還款排程[[#This Row],[期初餘額]]),"") ->  | H139: =IF(還款排程[[#This Row],[還款編號]]<>"",還款排程[[#This Row],[還款總金額]]-還款排程[[#This Row],[利息]],"") ->  | I139: =IF(還款排程[[#This Row],[還款編號]]<>"",還款排程[[#This Row],[期初餘額]]*(利率/每年還款次數),"") ->  | J139: =IF(還款排程[[#This Row],[還款編號]]<>"",IF(還款排程[[#This Row],[已排程還款]]+還款排程[[#This Row],[額外還款]]<=還款排程[[#This Row],[期初餘額]],還款排程[[#This Row],[期初餘額]]-還款排程[[#This Row],[本金]],0),"") ->  | K139: =IF(還款排程[[#This Row],[還款編號]]<>"",SUM(INDEX(還款排程[利息],1,1):還款排程[[#This Row],[利息]]),"") -> 
B140: =IF(貸款良好,IF(ROW()-ROW(還款排程[[#Headers],[還款編號]])>已排程的還款次數,"",ROW()-ROW(還款排程[[#Headers],[還款編號]])),"") ->  | C140: =IF(還款排程[[#This Row],[還款編號]]<>"",EOMONTH(貸款開始日期,ROW(還款排程[[#This Row],[還款編號]])-ROW(還款排程[[#Headers],[還款編號]])-2)+DAY(貸款開始日期),"") ->  | D140: =IF(還款排程[[#This Row],[還款編號]]<>"",IF(ROW()-ROW(還款排程[[#Headers],[期初餘額]])=1,貸款金額,INDEX(還款排程[結餘],ROW()-ROW(還款排程[[#Headers],[期初餘額]])-1)),"") ->  | E140: =IF(還款排程[[#This Row],[還款編號]]<>"",已排程的還款,"") ->  | F140: =IF(還款排程[[#This Row],[還款編號]]<>"",IF(還款排程[[#This Row],[已排程還款]]+額外還款<還款排程[[#This Row],[期初餘額]],額外還款,IF(還款排程[[#This Row],[期初餘額]]-還款排程[[#This Row],[已排程還款]]>0,還款排程[[#This Row],[期初餘額]]-還款排程[[#This Row],[已排程還款]],0)),"") ->  | G140: =IF(還款排程[[#This Row],[還款編號]]<>"",IF(還款排程[[#This Row],[已排程還款]]+還款排程[[#This Row],[額外還款]]<=還款排程[[#This Row],[期初餘額]],還款排程[[#This Row],[已排程還款]]+還款排程[[#This Row],[額外還款]],還款排程[[#This Row],[期初餘額]]),"") ->  | H140: =IF(還款排程[[#This Row],[還款編號]]<>"",還款排程[[#This Row],[還款總金額]]-還款排程[[#This Row],[利息]],"") ->  | I140: =IF(還款排程[[#This Row],[還款編號]]<>"",還款排程[[#This Row],[期初餘額]]*(利率/每年還款次數),"") ->  | J140: =IF(還款排程[[#This Row],[還款編號]]<>"",IF(還款排程[[#This Row],[已排程還款]]+還款排程[[#This Row],[額外還款]]<=還款排程[[#This Row],[期初餘額]],還款排程[[#This Row],[期初餘額]]-還款排程[[#This Row],[本金]],0),"") ->  | K140: =IF(還款排程[[#This Row],[還款編號]]<>"",SUM(INDEX(還款排程[利息],1,1):還款排程[[#This Row],[利息]]),"") -> 
B141: =IF(貸款良好,IF(ROW()-ROW(還款排程[[#Headers],[還款編號]])>已排程的還款次數,"",ROW()-ROW(還款排程[[#Headers],[還款編號]])),"") ->  | C141: =IF(還款排程[[#This Row],[還款編號]]<>"",EOMONTH(貸款開始日期,ROW(還款排程[[#This Row],[還款編號]])-ROW(還款排程[[#Headers],[還款編號]])-2)+DAY(貸款開始日期),"") ->  | D141: =IF(還款排程[[#This Row],[還款編號]]<>"",IF(ROW()-ROW(還款排程[[#Headers],[期初餘額]])=1,貸款金額,INDEX(還款排程[結餘],ROW()-ROW(還款排程[[#Headers],[期初餘額]])-1)),"") ->  | E141: =IF(還款排程[[#This Row],[還款編號]]<>"",已排程的還款,"") ->  | F141: =IF(還款排程[[#This Row],[還款編號]]<>"",IF(還款排程[[#This Row],[已排程還款]]+額外還款<還款排程[[#This Row],[期初餘額]],額外還款,IF(還款排程[[#This Row],[期初餘額]]-還款排程[[#This Row],[已排程還款]]>0,還款排程[[#This Row],[期初餘額]]-還款排程[[#This Row],[已排程還款]],0)),"") ->  | G141: =IF(還款排程[[#This Row],[還款編號]]<>"",IF(還款排程[[#This Row],[已排程還款]]+還款排程[[#This Row],[額外還款]]<=還款排程[[#This Row],[期初餘額]],還款排程[[#This Row],[已排程還款]]+還款排程[[#This Row],[額外還款]],還款排程[[#This Row],[期初餘額]]),"") ->  | H141: =IF(還款排程[[#This Row],[還款編號]]<>"",還款排程[[#This Row],[還款總金額]]-還款排程[[#This Row],[利息]],"") ->  | I141: =IF(還款排程[[#This Row],[還款編號]]<>"",還款排程[[#This Row],[期初餘額]]*(利率/每年還款次數),"") ->  | J141: =IF(還款排程[[#This Row],[還款編號]]<>"",IF(還款排程[[#This Row],[已排程還款]]+還款排程[[#This Row],[額外還款]]<=還款排程[[#This Row],[期初餘額]],還款排程[[#This Row],[期初餘額]]-還款排程[[#This Row],[本金]],0),"") ->  | K141: =IF(還款排程[[#This Row],[還款編號]]<>"",SUM(INDEX(還款排程[利息],1,1):還款排程[[#This Row],[利息]]),"") -> 
B142: =IF(貸款良好,IF(ROW()-ROW(還款排程[[#Headers],[還款編號]])>已排程的還款次數,"",ROW()-ROW(還款排程[[#Headers],[還款編號]])),"") ->  | C142: =IF(還款排程[[#This Row],[還款編號]]<>"",EOMONTH(貸款開始日期,ROW(還款排程[[#This Row],[還款編號]])-ROW(還款排程[[#Headers],[還款編號]])-2)+DAY(貸款開始日期),"") ->  | D142: =IF(還款排程[[#This Row],[還款編號]]<>"",IF(ROW()-ROW(還款排程[[#Headers],[期初餘額]])=1,貸款金額,INDEX(還款排程[結餘],ROW()-ROW(還款排程[[#Headers],[期初餘額]])-1)),"") ->  | E142: =IF(還款排程[[#This Row],[還款編號]]<>"",已排程的還款,"") ->  | F142: =IF(還款排程[[#This Row],[還款編號]]<>"",IF(還款排程[[#This Row],[已排程還款]]+額外還款<還款排程[[#This Row],[期初餘額]],額外還款,IF(還款排程[[#This Row],[期初餘額]]-還款排程[[#This Row],[已排程還款]]>0,還款排程[[#This Row],[期初餘額]]-還款排程[[#This Row],[已排程還款]],0)),"") ->  | G142: =IF(還款排程[[#This Row],[還款編號]]<>"",IF(還款排程[[#This Row],[已排程還款]]+還款排程[[#This Row],[額外還款]]<=還款排程[[#This Row],[期初餘額]],還款排程[[#This Row],[已排程還款]]+還款排程[[#This Row],[額外還款]],還款排程[[#This Row],[期初餘額]]),"") ->  | H142: =IF(還款排程[[#This Row],[還款編號]]<>"",還款排程[[#This Row],[還款總金額]]-還款排程[[#This Row],[利息]],"") ->  | I142: =IF(還款排程[[#This Row],[還款編號]]<>"",還款排程[[#This Row],[期初餘額]]*(利率/每年還款次數),"") ->  | J142: =IF(還款排程[[#This Row],[還款編號]]<>"",IF(還款排程[[#This Row],[已排程還款]]+還款排程[[#This Row],[額外還款]]<=還款排程[[#This Row],[期初餘額]],還款排程[[#This Row],[期初餘額]]-還款排程[[#This Row],[本金]],0),"") ->  | K142: =IF(還款排程[[#This Row],[還款編號]]<>"",SUM(INDEX(還款排程[利息],1,1):還款排程[[#This Row],[利息]]),"") -> 
B143: =IF(貸款良好,IF(ROW()-ROW(還款排程[[#Headers],[還款編號]])>已排程的還款次數,"",ROW()-ROW(還款排程[[#Headers],[還款編號]])),"") ->  | C143: =IF(還款排程[[#This Row],[還款編號]]<>"",EOMONTH(貸款開始日期,ROW(還款排程[[#This Row],[還款編號]])-ROW(還款排程[[#Headers],[還款編號]])-2)+DAY(貸款開始日期),"") ->  | D143: =IF(還款排程[[#This Row],[還款編號]]<>"",IF(ROW()-ROW(還款排程[[#Headers],[期初餘額]])=1,貸款金額,INDEX(還款排程[結餘],ROW()-ROW(還款排程[[#Headers],[期初餘額]])-1)),"") ->  | E143: =IF(還款排程[[#This Row],[還款編號]]<>"",已排程的還款,"") ->  | F143: =IF(還款排程[[#This Row],[還款編號]]<>"",IF(還款排程[[#This Row],[已排程還款]]+額外還款<還款排程[[#This Row],[期初餘額]],額外還款,IF(還款排程[[#This Row],[期初餘額]]-還款排程[[#This Row],[已排程還款]]>0,還款排程[[#This Row],[期初餘額]]-還款排程[[#This Row],[已排程還款]],0)),"") ->  | G143: =IF(還款排程[[#This Row],[還款編號]]<>"",IF(還款排程[[#This Row],[已排程還款]]+還款排程[[#This Row],[額外還款]]<=還款排程[[#This Row],[期初餘額]],還款排程[[#This Row],[已排程還款]]+還款排程[[#This Row],[額外還款]],還款排程[[#This Row],[期初餘額]]),"") ->  | H143: =IF(還款排程[[#This Row],[還款編號]]<>"",還款排程[[#This Row],[還款總金額]]-還款排程[[#This Row],[利息]],"") ->  | I143: =IF(還款排程[[#This Row],[還款編號]]<>"",還款排程[[#This Row],[期初餘額]]*(利率/每年還款次數),"") ->  | J143: =IF(還款排程[[#This Row],[還款編號]]<>"",IF(還款排程[[#This Row],[已排程還款]]+還款排程[[#This Row],[額外還款]]<=還款排程[[#This Row],[期初餘額]],還款排程[[#This Row],[期初餘額]]-還款排程[[#This Row],[本金]],0),"") ->  | K143: =IF(還款排程[[#This Row],[還款編號]]<>"",SUM(INDEX(還款排程[利息],1,1):還款排程[[#This Row],[利息]]),"") -> 
B144: =IF(貸款良好,IF(ROW()-ROW(還款排程[[#Headers],[還款編號]])>已排程的還款次數,"",ROW()-ROW(還款排程[[#Headers],[還款編號]])),"") ->  | C144: =IF(還款排程[[#This Row],[還款編號]]<>"",EOMONTH(貸款開始日期,ROW(還款排程[[#This Row],[還款編號]])-ROW(還款排程[[#Headers],[還款編號]])-2)+DAY(貸款開始日期),"") ->  | D144: =IF(還款排程[[#This Row],[還款編號]]<>"",IF(ROW()-ROW(還款排程[[#Headers],[期初餘額]])=1,貸款金額,INDEX(還款排程[結餘],ROW()-ROW(還款排程[[#Headers],[期初餘額]])-1)),"") ->  | E144: =IF(還款排程[[#This Row],[還款編號]]<>"",已排程的還款,"") ->  | F144: =IF(還款排程[[#This Row],[還款編號]]<>"",IF(還款排程[[#This Row],[已排程還款]]+額外還款<還款排程[[#This Row],[期初餘額]],額外還款,IF(還款排程[[#This Row],[期初餘額]]-還款排程[[#This Row],[已排程還款]]>0,還款排程[[#This Row],[期初餘額]]-還款排程[[#This Row],[已排程還款]],0)),"") ->  | G144: =IF(還款排程[[#This Row],[還款編號]]<>"",IF(還款排程[[#This Row],[已排程還款]]+還款排程[[#This Row],[額外還款]]<=還款排程[[#This Row],[期初餘額]],還款排程[[#This Row],[已排程還款]]+還款排程[[#This Row],[額外還款]],還款排程[[#This Row],[期初餘額]]),"") ->  | H144: =IF(還款排程[[#This Row],[還款編號]]<>"",還款排程[[#This Row],[還款總金額]]-還款排程[[#This Row],[利息]],"") ->  | I144: =IF(還款排程[[#This Row],[還款編號]]<>"",還款排程[[#This Row],[期初餘額]]*(利率/每年還款次數),"") ->  | J144: =IF(還款排程[[#This Row],[還款編號]]<>"",IF(還款排程[[#This Row],[已排程還款]]+還款排程[[#This Row],[額外還款]]<=還款排程[[#This Row],[期初餘額]],還款排程[[#This Row],[期初餘額]]-還款排程[[#This Row],[本金]],0),"") ->  | K144: =IF(還款排程[[#This Row],[還款編號]]<>"",SUM(INDEX(還款排程[利息],1,1):還款排程[[#This Row],[利息]]),"") -> 
B145: =IF(貸款良好,IF(ROW()-ROW(還款排程[[#Headers],[還款編號]])>已排程的還款次數,"",ROW()-ROW(還款排程[[#Headers],[還款編號]])),"") ->  | C145: =IF(還款排程[[#This Row],[還款編號]]<>"",EOMONTH(貸款開始日期,ROW(還款排程[[#This Row],[還款編號]])-ROW(還款排程[[#Headers],[還款編號]])-2)+DAY(貸款開始日期),"") ->  | D145: =IF(還款排程[[#This Row],[還款編號]]<>"",IF(ROW()-ROW(還款排程[[#Headers],[期初餘額]])=1,貸款金額,INDEX(還款排程[結餘],ROW()-ROW(還款排程[[#Headers],[期初餘額]])-1)),"") ->  | E145: =IF(還款排程[[#This Row],[還款編號]]<>"",已排程的還款,"") ->  | F145: =IF(還款排程[[#This Row],[還款編號]]<>"",IF(還款排程[[#This Row],[已排程還款]]+額外還款<還款排程[[#This Row],[期初餘額]],額外還款,IF(還款排程[[#This Row],[期初餘額]]-還款排程[[#This Row],[已排程還款]]>0,還款排程[[#This Row],[期初餘額]]-還款排程[[#This Row],[已排程還款]],0)),"") ->  | G145: =IF(還款排程[[#This Row],[還款編號]]<>"",IF(還款排程[[#This Row],[已排程還款]]+還款排程[[#This Row],[額外還款]]<=還款排程[[#This Row],[期初餘額]],還款排程[[#This Row],[已排程還款]]+還款排程[[#This Row],[額外還款]],還款排程[[#This Row],[期初餘額]]),"") ->  | H145: =IF(還款排程[[#This Row],[還款編號]]<>"",還款排程[[#This Row],[還款總金額]]-還款排程[[#This Row],[利息]],"") ->  | I145: =IF(還款排程[[#This Row],[還款編號]]<>"",還款排程[[#This Row],[期初餘額]]*(利率/每年還款次數),"") ->  | J145: =IF(還款排程[[#This Row],[還款編號]]<>"",IF(還款排程[[#This Row],[已排程還款]]+還款排程[[#This Row],[額外還款]]<=還款排程[[#This Row],[期初餘額]],還款排程[[#This Row],[期初餘額]]-還款排程[[#This Row],[本金]],0),"") ->  | K145: =IF(還款排程[[#This Row],[還款編號]]<>"",SUM(INDEX(還款排程[利息],1,1):還款排程[[#This Row],[利息]]),"") -> 
B146: =IF(貸款良好,IF(ROW()-ROW(還款排程[[#Headers],[還款編號]])>已排程的還款次數,"",ROW()-ROW(還款排程[[#Headers],[還款編號]])),"") ->  | C146: =IF(還款排程[[#This Row],[還款編號]]<>"",EOMONTH(貸款開始日期,ROW(還款排程[[#This Row],[還款編號]])-ROW(還款排程[[#Headers],[還款編號]])-2)+DAY(貸款開始日期),"") ->  | D146: =IF(還款排程[[#This Row],[還款編號]]<>"",IF(ROW()-ROW(還款排程[[#Headers],[期初餘額]])=1,貸款金額,INDEX(還款排程[結餘],ROW()-ROW(還款排程[[#Headers],[期初餘額]])-1)),"") ->  | E146: =IF(還款排程[[#This Row],[還款編號]]<>"",已排程的還款,"") ->  | F146: =IF(還款排程[[#This Row],[還款編號]]<>"",IF(還款排程[[#This Row],[已排程還款]]+額外還款<還款排程[[#This Row],[期初餘額]],額外還款,IF(還款排程[[#This Row],[期初餘額]]-還款排程[[#This Row],[已排程還款]]>0,還款排程[[#This Row],[期初餘額]]-還款排程[[#This Row],[已排程還款]],0)),"") ->  | G146: =IF(還款排程[[#This Row],[還款編號]]<>"",IF(還款排程[[#This Row],[已排程還款]]+還款排程[[#This Row],[額外還款]]<=還款排程[[#This Row],[期初餘額]],還款排程[[#This Row],[已排程還款]]+還款排程[[#This Row],[額外還款]],還款排程[[#This Row],[期初餘額]]),"") ->  | H146: =IF(還款排程[[#This Row],[還款編號]]<>"",還款排程[[#This Row],[還款總金額]]-還款排程[[#This Row],[利息]],"") ->  | I146: =IF(還款排程[[#This Row],[還款編號]]<>"",還款排程[[#This Row],[期初餘額]]*(利率/每年還款次數),"") ->  | J146: =IF(還款排程[[#This Row],[還款編號]]<>"",IF(還款排程[[#This Row],[已排程還款]]+還款排程[[#This Row],[額外還款]]<=還款排程[[#This Row],[期初餘額]],還款排程[[#This Row],[期初餘額]]-還款排程[[#This Row],[本金]],0),"") ->  | K146: =IF(還款排程[[#This Row],[還款編號]]<>"",SUM(INDEX(還款排程[利息],1,1):還款排程[[#This Row],[利息]]),"") -> 
B147: =IF(貸款良好,IF(ROW()-ROW(還款排程[[#Headers],[還款編號]])>已排程的還款次數,"",ROW()-ROW(還款排程[[#Headers],[還款編號]])),"") ->  | C147: =IF(還款排程[[#This Row],[還款編號]]<>"",EOMONTH(貸款開始日期,ROW(還款排程[[#This Row],[還款編號]])-ROW(還款排程[[#Headers],[還款編號]])-2)+DAY(貸款開始日期),"") ->  | D147: =IF(還款排程[[#This Row],[還款編號]]<>"",IF(ROW()-ROW(還款排程[[#Headers],[期初餘額]])=1,貸款金額,INDEX(還款排程[結餘],ROW()-ROW(還款排程[[#Headers],[期初餘額]])-1)),"") ->  | E147: =IF(還款排程[[#This Row],[還款編號]]<>"",已排程的還款,"") ->  | F147: =IF(還款排程[[#This Row],[還款編號]]<>"",IF(還款排程[[#This Row],[已排程還款]]+額外還款<還款排程[[#This Row],[期初餘額]],額外還款,IF(還款排程[[#This Row],[期初餘額]]-還款排程[[#This Row],[已排程還款]]>0,還款排程[[#This Row],[期初餘額]]-還款排程[[#This Row],[已排程還款]],0)),"") ->  | G147: =IF(還款排程[[#This Row],[還款編號]]<>"",IF(還款排程[[#This Row],[已排程還款]]+還款排程[[#This Row],[額外還款]]<=還款排程[[#This Row],[期初餘額]],還款排程[[#This Row],[已排程還款]]+還款排程[[#This Row],[額外還款]],還款排程[[#This Row],[期初餘額]]),"") ->  | H147: =IF(還款排程[[#This Row],[還款編號]]<>"",還款排程[[#This Row],[還款總金額]]-還款排程[[#This Row],[利息]],"") ->  | I147: =IF(還款排程[[#This Row],[還款編號]]<>"",還款排程[[#This Row],[期初餘額]]*(利率/每年還款次數),"") ->  | J147: =IF(還款排程[[#This Row],[還款編號]]<>"",IF(還款排程[[#This Row],[已排程還款]]+還款排程[[#This Row],[額外還款]]<=還款排程[[#This Row],[期初餘額]],還款排程[[#This Row],[期初餘額]]-還款排程[[#This Row],[本金]],0),"") ->  | K147: =IF(還款排程[[#This Row],[還款編號]]<>"",SUM(INDEX(還款排程[利息],1,1):還款排程[[#This Row],[利息]]),"") -> 
B148: =IF(貸款良好,IF(ROW()-ROW(還款排程[[#Headers],[還款編號]])>已排程的還款次數,"",ROW()-ROW(還款排程[[#Headers],[還款編號]])),"") ->  | C148: =IF(還款排程[[#This Row],[還款編號]]<>"",EOMONTH(貸款開始日期,ROW(還款排程[[#This Row],[還款編號]])-ROW(還款排程[[#Headers],[還款編號]])-2)+DAY(貸款開始日期),"") ->  | D148: =IF(還款排程[[#This Row],[還款編號]]<>"",IF(ROW()-ROW(還款排程[[#Headers],[期初餘額]])=1,貸款金額,INDEX(還款排程[結餘],ROW()-ROW(還款排程[[#Headers],[期初餘額]])-1)),"") ->  | E148: =IF(還款排程[[#This Row],[還款編號]]<>"",已排程的還款,"") ->  | F148: =IF(還款排程[[#This Row],[還款編號]]<>"",IF(還款排程[[#This Row],[已排程還款]]+額外還款<還款排程[[#This Row],[期初餘額]],額外還款,IF(還款排程[[#This Row],[期初餘額]]-還款排程[[#This Row],[已排程還款]]>0,還款排程[[#This Row],[期初餘額]]-還款排程[[#This Row],[已排程還款]],0)),"") ->  | G148: =IF(還款排程[[#This Row],[還款編號]]<>"",IF(還款排程[[#This Row],[已排程還款]]+還款排程[[#This Row],[額外還款]]<=還款排程[[#This Row],[期初餘額]],還款排程[[#This Row],[已排程還款]]+還款排程[[#This Row],[額外還款]],還款排程[[#This Row],[期初餘額]]),"") ->  | H148: =IF(還款排程[[#This Row],[還款編號]]<>"",還款排程[[#This Row],[還款總金額]]-還款排程[[#This Row],[利息]],"") ->  | I148: =IF(還款排程[[#This Row],[還款編號]]<>"",還款排程[[#This Row],[期初餘額]]*(利率/每年還款次數),"") ->  | J148: =IF(還款排程[[#This Row],[還款編號]]<>"",IF(還款排程[[#This Row],[已排程還款]]+還款排程[[#This Row],[額外還款]]<=還款排程[[#This Row],[期初餘額]],還款排程[[#This Row],[期初餘額]]-還款排程[[#This Row],[本金]],0),"") ->  | K148: =IF(還款排程[[#This Row],[還款編號]]<>"",SUM(INDEX(還款排程[利息],1,1):還款排程[[#This Row],[利息]]),"") -> 
B149: =IF(貸款良好,IF(ROW()-ROW(還款排程[[#Headers],[還款編號]])>已排程的還款次數,"",ROW()-ROW(還款排程[[#Headers],[還款編號]])),"") ->  | C149: =IF(還款排程[[#This Row],[還款編號]]<>"",EOMONTH(貸款開始日期,ROW(還款排程[[#This Row],[還款編號]])-ROW(還款排程[[#Headers],[還款編號]])-2)+DAY(貸款開始日期),"") ->  | D149: =IF(還款排程[[#This Row],[還款編號]]<>"",IF(ROW()-ROW(還款排程[[#Headers],[期初餘額]])=1,貸款金額,INDEX(還款排程[結餘],ROW()-ROW(還款排程[[#Headers],[期初餘額]])-1)),"") ->  | E149: =IF(還款排程[[#This Row],[還款編號]]<>"",已排程的還款,"") ->  | F149: =IF(還款排程[[#This Row],[還款編號]]<>"",IF(還款排程[[#This Row],[已排程還款]]+額外還款<還款排程[[#This Row],[期初餘額]],額外還款,IF(還款排程[[#This Row],[期初餘額]]-還款排程[[#This Row],[已排程還款]]>0,還款排程[[#This Row],[期初餘額]]-還款排程[[#This Row],[已排程還款]],0)),"") ->  | G149: =IF(還款排程[[#This Row],[還款編號]]<>"",IF(還款排程[[#This Row],[已排程還款]]+還款排程[[#This Row],[額外還款]]<=還款排程[[#This Row],[期初餘額]],還款排程[[#This Row],[已排程還款]]+還款排程[[#This Row],[額外還款]],還款排程[[#This Row],[期初餘額]]),"") ->  | H149: =IF(還款排程[[#This Row],[還款編號]]<>"",還款排程[[#This Row],[還款總金額]]-還款排程[[#This Row],[利息]],"") ->  | I149: =IF(還款排程[[#This Row],[還款編號]]<>"",還款排程[[#This Row],[期初餘額]]*(利率/每年還款次數),"") ->  | J149: =IF(還款排程[[#This Row],[還款編號]]<>"",IF(還款排程[[#This Row],[已排程還款]]+還款排程[[#This Row],[額外還款]]<=還款排程[[#This Row],[期初餘額]],還款排程[[#This Row],[期初餘額]]-還款排程[[#This Row],[本金]],0),"") ->  | K149: =IF(還款排程[[#This Row],[還款編號]]<>"",SUM(INDEX(還款排程[利息],1,1):還款排程[[#This Row],[利息]]),"") -> 
B150: =IF(貸款良好,IF(ROW()-ROW(還款排程[[#Headers],[還款編號]])>已排程的還款次數,"",ROW()-ROW(還款排程[[#Headers],[還款編號]])),"") ->  | C150: =IF(還款排程[[#This Row],[還款編號]]<>"",EOMONTH(貸款開始日期,ROW(還款排程[[#This Row],[還款編號]])-ROW(還款排程[[#Headers],[還款編號]])-2)+DAY(貸款開始日期),"") ->  | D150: =IF(還款排程[[#This Row],[還款編號]]<>"",IF(ROW()-ROW(還款排程[[#Headers],[期初餘額]])=1,貸款金額,INDEX(還款排程[結餘],ROW()-ROW(還款排程[[#Headers],[期初餘額]])-1)),"") ->  | E150: =IF(還款排程[[#This Row],[還款編號]]<>"",已排程的還款,"") ->  | F150: =IF(還款排程[[#This Row],[還款編號]]<>"",IF(還款排程[[#This Row],[已排程還款]]+額外還款<還款排程[[#This Row],[期初餘額]],額外還款,IF(還款排程[[#This Row],[期初餘額]]-還款排程[[#This Row],[已排程還款]]>0,還款排程[[#This Row],[期初餘額]]-還款排程[[#This Row],[已排程還款]],0)),"") ->  | G150: =IF(還款排程[[#This Row],[還款編號]]<>"",IF(還款排程[[#This Row],[已排程還款]]+還款排程[[#This Row],[額外還款]]<=還款排程[[#This Row],[期初餘額]],還款排程[[#This Row],[已排程還款]]+還款排程[[#This Row],[額外還款]],還款排程[[#This Row],[期初餘額]]),"") ->  | H150: =IF(還款排程[[#This Row],[還款編號]]<>"",還款排程[[#This Row],[還款總金額]]-還款排程[[#This Row],[利息]],"") ->  | I150: =IF(還款排程[[#This Row],[還款編號]]<>"",還款排程[[#This Row],[期初餘額]]*(利率/每年還款次數),"") ->  | J150: =IF(還款排程[[#This Row],[還款編號]]<>"",IF(還款排程[[#This Row],[已排程還款]]+還款排程[[#This Row],[額外還款]]<=還款排程[[#This Row],[期初餘額]],還款排程[[#This Row],[期初餘額]]-還款排程[[#This Row],[本金]],0),"") ->  | K150: =IF(還款排程[[#This Row],[還款編號]]<>"",SUM(INDEX(還款排程[利息],1,1):還款排程[[#This Row],[利息]]),"") -> 
B151: =IF(貸款良好,IF(ROW()-ROW(還款排程[[#Headers],[還款編號]])>已排程的還款次數,"",ROW()-ROW(還款排程[[#Headers],[還款編號]])),"") ->  | C151: =IF(還款排程[[#This Row],[還款編號]]<>"",EOMONTH(貸款開始日期,ROW(還款排程[[#This Row],[還款編號]])-ROW(還款排程[[#Headers],[還款編號]])-2)+DAY(貸款開始日期),"") ->  | D151: =IF(還款排程[[#This Row],[還款編號]]<>"",IF(ROW()-ROW(還款排程[[#Headers],[期初餘額]])=1,貸款金額,INDEX(還款排程[結餘],ROW()-ROW(還款排程[[#Headers],[期初餘額]])-1)),"") ->  | E151: =IF(還款排程[[#This Row],[還款編號]]<>"",已排程的還款,"") ->  | F151: =IF(還款排程[[#This Row],[還款編號]]<>"",IF(還款排程[[#This Row],[已排程還款]]+額外還款<還款排程[[#This Row],[期初餘額]],額外還款,IF(還款排程[[#This Row],[期初餘額]]-還款排程[[#This Row],[已排程還款]]>0,還款排程[[#This Row],[期初餘額]]-還款排程[[#This Row],[已排程還款]],0)),"") ->  | G151: =IF(還款排程[[#This Row],[還款編號]]<>"",IF(還款排程[[#This Row],[已排程還款]]+還款排程[[#This Row],[額外還款]]<=還款排程[[#This Row],[期初餘額]],還款排程[[#This Row],[已排程還款]]+還款排程[[#This Row],[額外還款]],還款排程[[#This Row],[期初餘額]]),"") ->  | H151: =IF(還款排程[[#This Row],[還款編號]]<>"",還款排程[[#This Row],[還款總金額]]-還款排程[[#This Row],[利息]],"") ->  | I151: =IF(還款排程[[#This Row],[還款編號]]<>"",還款排程[[#This Row],[期初餘額]]*(利率/每年還款次數),"") ->  | J151: =IF(還款排程[[#This Row],[還款編號]]<>"",IF(還款排程[[#This Row],[已排程還款]]+還款排程[[#This Row],[額外還款]]<=還款排程[[#This Row],[期初餘額]],還款排程[[#This Row],[期初餘額]]-還款排程[[#This Row],[本金]],0),"") ->  | K151: =IF(還款排程[[#This Row],[還款編號]]<>"",SUM(INDEX(還款排程[利息],1,1):還款排程[[#This Row],[利息]]),"") -> 
B152: =IF(貸款良好,IF(ROW()-ROW(還款排程[[#Headers],[還款編號]])>已排程的還款次數,"",ROW()-ROW(還款排程[[#Headers],[還款編號]])),"") ->  | C152: =IF(還款排程[[#This Row],[還款編號]]<>"",EOMONTH(貸款開始日期,ROW(還款排程[[#This Row],[還款編號]])-ROW(還款排程[[#Headers],[還款編號]])-2)+DAY(貸款開始日期),"") ->  | D152: =IF(還款排程[[#This Row],[還款編號]]<>"",IF(ROW()-ROW(還款排程[[#Headers],[期初餘額]])=1,貸款金額,INDEX(還款排程[結餘],ROW()-ROW(還款排程[[#Headers],[期初餘額]])-1)),"") ->  | E152: =IF(還款排程[[#This Row],[還款編號]]<>"",已排程的還款,"") ->  | F152: =IF(還款排程[[#This Row],[還款編號]]<>"",IF(還款排程[[#This Row],[已排程還款]]+額外還款<還款排程[[#This Row],[期初餘額]],額外還款,IF(還款排程[[#This Row],[期初餘額]]-還款排程[[#This Row],[已排程還款]]>0,還款排程[[#This Row],[期初餘額]]-還款排程[[#This Row],[已排程還款]],0)),"") ->  | G152: =IF(還款排程[[#This Row],[還款編號]]<>"",IF(還款排程[[#This Row],[已排程還款]]+還款排程[[#This Row],[額外還款]]<=還款排程[[#This Row],[期初餘額]],還款排程[[#This Row],[已排程還款]]+還款排程[[#This Row],[額外還款]],還款排程[[#This Row],[期初餘額]]),"") ->  | H152: =IF(還款排程[[#This Row],[還款編號]]<>"",還款排程[[#This Row],[還款總金額]]-還款排程[[#This Row],[利息]],"") ->  | I152: =IF(還款排程[[#This Row],[還款編號]]<>"",還款排程[[#This Row],[期初餘額]]*(利率/每年還款次數),"") ->  | J152: =IF(還款排程[[#This Row],[還款編號]]<>"",IF(還款排程[[#This Row],[已排程還款]]+還款排程[[#This Row],[額外還款]]<=還款排程[[#This Row],[期初餘額]],還款排程[[#This Row],[期初餘額]]-還款排程[[#This Row],[本金]],0),"") ->  | K152: =IF(還款排程[[#This Row],[還款編號]]<>"",SUM(INDEX(還款排程[利息],1,1):還款排程[[#This Row],[利息]]),"") -> 
B153: =IF(貸款良好,IF(ROW()-ROW(還款排程[[#Headers],[還款編號]])>已排程的還款次數,"",ROW()-ROW(還款排程[[#Headers],[還款編號]])),"") ->  | C153: =IF(還款排程[[#This Row],[還款編號]]<>"",EOMONTH(貸款開始日期,ROW(還款排程[[#This Row],[還款編號]])-ROW(還款排程[[#Headers],[還款編號]])-2)+DAY(貸款開始日期),"") ->  | D153: =IF(還款排程[[#This Row],[還款編號]]<>"",IF(ROW()-ROW(還款排程[[#Headers],[期初餘額]])=1,貸款金額,INDEX(還款排程[結餘],ROW()-ROW(還款排程[[#Headers],[期初餘額]])-1)),"") ->  | E153: =IF(還款排程[[#This Row],[還款編號]]<>"",已排程的還款,"") ->  | F153: =IF(還款排程[[#This Row],[還款編號]]<>"",IF(還款排程[[#This Row],[已排程還款]]+額外還款<還款排程[[#This Row],[期初餘額]],額外還款,IF(還款排程[[#This Row],[期初餘額]]-還款排程[[#This Row],[已排程還款]]>0,還款排程[[#This Row],[期初餘額]]-還款排程[[#This Row],[已排程還款]],0)),"") ->  | G153: =IF(還款排程[[#This Row],[還款編號]]<>"",IF(還款排程[[#This Row],[已排程還款]]+還款排程[[#This Row],[額外還款]]<=還款排程[[#This Row],[期初餘額]],還款排程[[#This Row],[已排程還款]]+還款排程[[#This Row],[額外還款]],還款排程[[#This Row],[期初餘額]]),"") ->  | H153: =IF(還款排程[[#This Row],[還款編號]]<>"",還款排程[[#This Row],[還款總金額]]-還款排程[[#This Row],[利息]],"") ->  | I153: =IF(還款排程[[#This Row],[還款編號]]<>"",還款排程[[#This Row],[期初餘額]]*(利率/每年還款次數),"") ->  | J153: =IF(還款排程[[#This Row],[還款編號]]<>"",IF(還款排程[[#This Row],[已排程還款]]+還款排程[[#This Row],[額外還款]]<=還款排程[[#This Row],[期初餘額]],還款排程[[#This Row],[期初餘額]]-還款排程[[#This Row],[本金]],0),"") ->  | K153: =IF(還款排程[[#This Row],[還款編號]]<>"",SUM(INDEX(還款排程[利息],1,1):還款排程[[#This Row],[利息]]),"") -> 
B154: =IF(貸款良好,IF(ROW()-ROW(還款排程[[#Headers],[還款編號]])>已排程的還款次數,"",ROW()-ROW(還款排程[[#Headers],[還款編號]])),"") ->  | C154: =IF(還款排程[[#This Row],[還款編號]]<>"",EOMONTH(貸款開始日期,ROW(還款排程[[#This Row],[還款編號]])-ROW(還款排程[[#Headers],[還款編號]])-2)+DAY(貸款開始日期),"") ->  | D154: =IF(還款排程[[#This Row],[還款編號]]<>"",IF(ROW()-ROW(還款排程[[#Headers],[期初餘額]])=1,貸款金額,INDEX(還款排程[結餘],ROW()-ROW(還款排程[[#Headers],[期初餘額]])-1)),"") ->  | E154: =IF(還款排程[[#This Row],[還款編號]]<>"",已排程的還款,"") ->  | F154: =IF(還款排程[[#This Row],[還款編號]]<>"",IF(還款排程[[#This Row],[已排程還款]]+額外還款<還款排程[[#This Row],[期初餘額]],額外還款,IF(還款排程[[#This Row],[期初餘額]]-還款排程[[#This Row],[已排程還款]]>0,還款排程[[#This Row],[期初餘額]]-還款排程[[#This Row],[已排程還款]],0)),"") ->  | G154: =IF(還款排程[[#This Row],[還款編號]]<>"",IF(還款排程[[#This Row],[已排程還款]]+還款排程[[#This Row],[額外還款]]<=還款排程[[#This Row],[期初餘額]],還款排程[[#This Row],[已排程還款]]+還款排程[[#This Row],[額外還款]],還款排程[[#This Row],[期初餘額]]),"") ->  | H154: =IF(還款排程[[#This Row],[還款編號]]<>"",還款排程[[#This Row],[還款總金額]]-還款排程[[#This Row],[利息]],"") ->  | I154: =IF(還款排程[[#This Row],[還款編號]]<>"",還款排程[[#This Row],[期初餘額]]*(利率/每年還款次數),"") ->  | J154: =IF(還款排程[[#This Row],[還款編號]]<>"",IF(還款排程[[#This Row],[已排程還款]]+還款排程[[#This Row],[額外還款]]<=還款排程[[#This Row],[期初餘額]],還款排程[[#This Row],[期初餘額]]-還款排程[[#This Row],[本金]],0),"") ->  | K154: =IF(還款排程[[#This Row],[還款編號]]<>"",SUM(INDEX(還款排程[利息],1,1):還款排程[[#This Row],[利息]]),"") -> 
B155: =IF(貸款良好,IF(ROW()-ROW(還款排程[[#Headers],[還款編號]])>已排程的還款次數,"",ROW()-ROW(還款排程[[#Headers],[還款編號]])),"") ->  | C155: =IF(還款排程[[#This Row],[還款編號]]<>"",EOMONTH(貸款開始日期,ROW(還款排程[[#This Row],[還款編號]])-ROW(還款排程[[#Headers],[還款編號]])-2)+DAY(貸款開始日期),"") ->  | D155: =IF(還款排程[[#This Row],[還款編號]]<>"",IF(ROW()-ROW(還款排程[[#Headers],[期初餘額]])=1,貸款金額,INDEX(還款排程[結餘],ROW()-ROW(還款排程[[#Headers],[期初餘額]])-1)),"") ->  | E155: =IF(還款排程[[#This Row],[還款編號]]<>"",已排程的還款,"") ->  | F155: =IF(還款排程[[#This Row],[還款編號]]<>"",IF(還款排程[[#This Row],[已排程還款]]+額外還款<還款排程[[#This Row],[期初餘額]],額外還款,IF(還款排程[[#This Row],[期初餘額]]-還款排程[[#This Row],[已排程還款]]>0,還款排程[[#This Row],[期初餘額]]-還款排程[[#This Row],[已排程還款]],0)),"") ->  | G155: =IF(還款排程[[#This Row],[還款編號]]<>"",IF(還款排程[[#This Row],[已排程還款]]+還款排程[[#This Row],[額外還款]]<=還款排程[[#This Row],[期初餘額]],還款排程[[#This Row],[已排程還款]]+還款排程[[#This Row],[額外還款]],還款排程[[#This Row],[期初餘額]]),"") ->  | H155: =IF(還款排程[[#This Row],[還款編號]]<>"",還款排程[[#This Row],[還款總金額]]-還款排程[[#This Row],[利息]],"") ->  | I155: =IF(還款排程[[#This Row],[還款編號]]<>"",還款排程[[#This Row],[期初餘額]]*(利率/每年還款次數),"") ->  | J155: =IF(還款排程[[#This Row],[還款編號]]<>"",IF(還款排程[[#This Row],[已排程還款]]+還款排程[[#This Row],[額外還款]]<=還款排程[[#This Row],[期初餘額]],還款排程[[#This Row],[期初餘額]]-還款排程[[#This Row],[本金]],0),"") ->  | K155: =IF(還款排程[[#This Row],[還款編號]]<>"",SUM(INDEX(還款排程[利息],1,1):還款排程[[#This Row],[利息]]),"") -> 
B156: =IF(貸款良好,IF(ROW()-ROW(還款排程[[#Headers],[還款編號]])>已排程的還款次數,"",ROW()-ROW(還款排程[[#Headers],[還款編號]])),"") ->  | C156: =IF(還款排程[[#This Row],[還款編號]]<>"",EOMONTH(貸款開始日期,ROW(還款排程[[#This Row],[還款編號]])-ROW(還款排程[[#Headers],[還款編號]])-2)+DAY(貸款開始日期),"") ->  | D156: =IF(還款排程[[#This Row],[還款編號]]<>"",IF(ROW()-ROW(還款排程[[#Headers],[期初餘額]])=1,貸款金額,INDEX(還款排程[結餘],ROW()-ROW(還款排程[[#Headers],[期初餘額]])-1)),"") ->  | E156: =IF(還款排程[[#This Row],[還款編號]]<>"",已排程的還款,"") ->  | F156: =IF(還款排程[[#This Row],[還款編號]]<>"",IF(還款排程[[#This Row],[已排程還款]]+額外還款<還款排程[[#This Row],[期初餘額]],額外還款,IF(還款排程[[#This Row],[期初餘額]]-還款排程[[#This Row],[已排程還款]]>0,還款排程[[#This Row],[期初餘額]]-還款排程[[#This Row],[已排程還款]],0)),"") ->  | G156: =IF(還款排程[[#This Row],[還款編號]]<>"",IF(還款排程[[#This Row],[已排程還款]]+還款排程[[#This Row],[額外還款]]<=還款排程[[#This Row],[期初餘額]],還款排程[[#This Row],[已排程還款]]+還款排程[[#This Row],[額外還款]],還款排程[[#This Row],[期初餘額]]),"") ->  | H156: =IF(還款排程[[#This Row],[還款編號]]<>"",還款排程[[#This Row],[還款總金額]]-還款排程[[#This Row],[利息]],"") ->  | I156: =IF(還款排程[[#This Row],[還款編號]]<>"",還款排程[[#This Row],[期初餘額]]*(利率/每年還款次數),"") ->  | J156: =IF(還款排程[[#This Row],[還款編號]]<>"",IF(還款排程[[#This Row],[已排程還款]]+還款排程[[#This Row],[額外還款]]<=還款排程[[#This Row],[期初餘額]],還款排程[[#This Row],[期初餘額]]-還款排程[[#This Row],[本金]],0),"") ->  | K156: =IF(還款排程[[#This Row],[還款編號]]<>"",SUM(INDEX(還款排程[利息],1,1):還款排程[[#This Row],[利息]]),"") -> 
B157: =IF(貸款良好,IF(ROW()-ROW(還款排程[[#Headers],[還款編號]])>已排程的還款次數,"",ROW()-ROW(還款排程[[#Headers],[還款編號]])),"") ->  | C157: =IF(還款排程[[#This Row],[還款編號]]<>"",EOMONTH(貸款開始日期,ROW(還款排程[[#This Row],[還款編號]])-ROW(還款排程[[#Headers],[還款編號]])-2)+DAY(貸款開始日期),"") ->  | D157: =IF(還款排程[[#This Row],[還款編號]]<>"",IF(ROW()-ROW(還款排程[[#Headers],[期初餘額]])=1,貸款金額,INDEX(還款排程[結餘],ROW()-ROW(還款排程[[#Headers],[期初餘額]])-1)),"") ->  | E157: =IF(還款排程[[#This Row],[還款編號]]<>"",已排程的還款,"") ->  | F157: =IF(還款排程[[#This Row],[還款編號]]<>"",IF(還款排程[[#This Row],[已排程還款]]+額外還款<還款排程[[#This Row],[期初餘額]],額外還款,IF(還款排程[[#This Row],[期初餘額]]-還款排程[[#This Row],[已排程還款]]>0,還款排程[[#This Row],[期初餘額]]-還款排程[[#This Row],[已排程還款]],0)),"") ->  | G157: =IF(還款排程[[#This Row],[還款編號]]<>"",IF(還款排程[[#This Row],[已排程還款]]+還款排程[[#This Row],[額外還款]]<=還款排程[[#This Row],[期初餘額]],還款排程[[#This Row],[已排程還款]]+還款排程[[#This Row],[額外還款]],還款排程[[#This Row],[期初餘額]]),"") ->  | H157: =IF(還款排程[[#This Row],[還款編號]]<>"",還款排程[[#This Row],[還款總金額]]-還款排程[[#This Row],[利息]],"") ->  | I157: =IF(還款排程[[#This Row],[還款編號]]<>"",還款排程[[#This Row],[期初餘額]]*(利率/每年還款次數),"") ->  | J157: =IF(還款排程[[#This Row],[還款編號]]<>"",IF(還款排程[[#This Row],[已排程還款]]+還款排程[[#This Row],[額外還款]]<=還款排程[[#This Row],[期初餘額]],還款排程[[#This Row],[期初餘額]]-還款排程[[#This Row],[本金]],0),"") ->  | K157: =IF(還款排程[[#This Row],[還款編號]]<>"",SUM(INDEX(還款排程[利息],1,1):還款排程[[#This Row],[利息]]),"") -> 
B158: =IF(貸款良好,IF(ROW()-ROW(還款排程[[#Headers],[還款編號]])>已排程的還款次數,"",ROW()-ROW(還款排程[[#Headers],[還款編號]])),"") ->  | C158: =IF(還款排程[[#This Row],[還款編號]]<>"",EOMONTH(貸款開始日期,ROW(還款排程[[#This Row],[還款編號]])-ROW(還款排程[[#Headers],[還款編號]])-2)+DAY(貸款開始日期),"") ->  | D158: =IF(還款排程[[#This Row],[還款編號]]<>"",IF(ROW()-ROW(還款排程[[#Headers],[期初餘額]])=1,貸款金額,INDEX(還款排程[結餘],ROW()-ROW(還款排程[[#Headers],[期初餘額]])-1)),"") ->  | E158: =IF(還款排程[[#This Row],[還款編號]]<>"",已排程的還款,"") ->  | F158: =IF(還款排程[[#This Row],[還款編號]]<>"",IF(還款排程[[#This Row],[已排程還款]]+額外還款<還款排程[[#This Row],[期初餘額]],額外還款,IF(還款排程[[#This Row],[期初餘額]]-還款排程[[#This Row],[已排程還款]]>0,還款排程[[#This Row],[期初餘額]]-還款排程[[#This Row],[已排程還款]],0)),"") ->  | G158: =IF(還款排程[[#This Row],[還款編號]]<>"",IF(還款排程[[#This Row],[已排程還款]]+還款排程[[#This Row],[額外還款]]<=還款排程[[#This Row],[期初餘額]],還款排程[[#This Row],[已排程還款]]+還款排程[[#This Row],[額外還款]],還款排程[[#This Row],[期初餘額]]),"") ->  | H158: =IF(還款排程[[#This Row],[還款編號]]<>"",還款排程[[#This Row],[還款總金額]]-還款排程[[#This Row],[利息]],"") ->  | I158: =IF(還款排程[[#This Row],[還款編號]]<>"",還款排程[[#This Row],[期初餘額]]*(利率/每年還款次數),"") ->  | J158: =IF(還款排程[[#This Row],[還款編號]]<>"",IF(還款排程[[#This Row],[已排程還款]]+還款排程[[#This Row],[額外還款]]<=還款排程[[#This Row],[期初餘額]],還款排程[[#This Row],[期初餘額]]-還款排程[[#This Row],[本金]],0),"") ->  | K158: =IF(還款排程[[#This Row],[還款編號]]<>"",SUM(INDEX(還款排程[利息],1,1):還款排程[[#This Row],[利息]]),"") -> 
B159: =IF(貸款良好,IF(ROW()-ROW(還款排程[[#Headers],[還款編號]])>已排程的還款次數,"",ROW()-ROW(還款排程[[#Headers],[還款編號]])),"") ->  | C159: =IF(還款排程[[#This Row],[還款編號]]<>"",EOMONTH(貸款開始日期,ROW(還款排程[[#This Row],[還款編號]])-ROW(還款排程[[#Headers],[還款編號]])-2)+DAY(貸款開始日期),"") ->  | D159: =IF(還款排程[[#This Row],[還款編號]]<>"",IF(ROW()-ROW(還款排程[[#Headers],[期初餘額]])=1,貸款金額,INDEX(還款排程[結餘],ROW()-ROW(還款排程[[#Headers],[期初餘額]])-1)),"") ->  | E159: =IF(還款排程[[#This Row],[還款編號]]<>"",已排程的還款,"") ->  | F159: =IF(還款排程[[#This Row],[還款編號]]<>"",IF(還款排程[[#This Row],[已排程還款]]+額外還款<還款排程[[#This Row],[期初餘額]],額外還款,IF(還款排程[[#This Row],[期初餘額]]-還款排程[[#This Row],[已排程還款]]>0,還款排程[[#This Row],[期初餘額]]-還款排程[[#This Row],[已排程還款]],0)),"") ->  | G159: =IF(還款排程[[#This Row],[還款編號]]<>"",IF(還款排程[[#This Row],[已排程還款]]+還款排程[[#This Row],[額外還款]]<=還款排程[[#This Row],[期初餘額]],還款排程[[#This Row],[已排程還款]]+還款排程[[#This Row],[額外還款]],還款排程[[#This Row],[期初餘額]]),"") ->  | H159: =IF(還款排程[[#This Row],[還款編號]]<>"",還款排程[[#This Row],[還款總金額]]-還款排程[[#This Row],[利息]],"") ->  | I159: =IF(還款排程[[#This Row],[還款編號]]<>"",還款排程[[#This Row],[期初餘額]]*(利率/每年還款次數),"") ->  | J159: =IF(還款排程[[#This Row],[還款編號]]<>"",IF(還款排程[[#This Row],[已排程還款]]+還款排程[[#This Row],[額外還款]]<=還款排程[[#This Row],[期初餘額]],還款排程[[#This Row],[期初餘額]]-還款排程[[#This Row],[本金]],0),"") ->  | K159: =IF(還款排程[[#This Row],[還款編號]]<>"",SUM(INDEX(還款排程[利息],1,1):還款排程[[#This Row],[利息]]),"") -> 
B160: =IF(貸款良好,IF(ROW()-ROW(還款排程[[#Headers],[還款編號]])>已排程的還款次數,"",ROW()-ROW(還款排程[[#Headers],[還款編號]])),"") ->  | C160: =IF(還款排程[[#This Row],[還款編號]]<>"",EOMONTH(貸款開始日期,ROW(還款排程[[#This Row],[還款編號]])-ROW(還款排程[[#Headers],[還款編號]])-2)+DAY(貸款開始日期),"") ->  | D160: =IF(還款排程[[#This Row],[還款編號]]<>"",IF(ROW()-ROW(還款排程[[#Headers],[期初餘額]])=1,貸款金額,INDEX(還款排程[結餘],ROW()-ROW(還款排程[[#Headers],[期初餘額]])-1)),"") ->  | E160: =IF(還款排程[[#This Row],[還款編號]]<>"",已排程的還款,"") ->  | F160: =IF(還款排程[[#This Row],[還款編號]]<>"",IF(還款排程[[#This Row],[已排程還款]]+額外還款<還款排程[[#This Row],[期初餘額]],額外還款,IF(還款排程[[#This Row],[期初餘額]]-還款排程[[#This Row],[已排程還款]]>0,還款排程[[#This Row],[期初餘額]]-還款排程[[#This Row],[已排程還款]],0)),"") ->  | G160: =IF(還款排程[[#This Row],[還款編號]]<>"",IF(還款排程[[#This Row],[已排程還款]]+還款排程[[#This Row],[額外還款]]<=還款排程[[#This Row],[期初餘額]],還款排程[[#This Row],[已排程還款]]+還款排程[[#This Row],[額外還款]],還款排程[[#This Row],[期初餘額]]),"") ->  | H160: =IF(還款排程[[#This Row],[還款編號]]<>"",還款排程[[#This Row],[還款總金額]]-還款排程[[#This Row],[利息]],"") ->  | I160: =IF(還款排程[[#This Row],[還款編號]]<>"",還款排程[[#This Row],[期初餘額]]*(利率/每年還款次數),"") ->  | J160: =IF(還款排程[[#This Row],[還款編號]]<>"",IF(還款排程[[#This Row],[已排程還款]]+還款排程[[#This Row],[額外還款]]<=還款排程[[#This Row],[期初餘額]],還款排程[[#This Row],[期初餘額]]-還款排程[[#This Row],[本金]],0),"") ->  | K160: =IF(還款排程[[#This Row],[還款編號]]<>"",SUM(INDEX(還款排程[利息],1,1):還款排程[[#This Row],[利息]]),"") -> 
B161: =IF(貸款良好,IF(ROW()-ROW(還款排程[[#Headers],[還款編號]])>已排程的還款次數,"",ROW()-ROW(還款排程[[#Headers],[還款編號]])),"") ->  | C161: =IF(還款排程[[#This Row],[還款編號]]<>"",EOMONTH(貸款開始日期,ROW(還款排程[[#This Row],[還款編號]])-ROW(還款排程[[#Headers],[還款編號]])-2)+DAY(貸款開始日期),"") ->  | D161: =IF(還款排程[[#This Row],[還款編號]]<>"",IF(ROW()-ROW(還款排程[[#Headers],[期初餘額]])=1,貸款金額,INDEX(還款排程[結餘],ROW()-ROW(還款排程[[#Headers],[期初餘額]])-1)),"") ->  | E161: =IF(還款排程[[#This Row],[還款編號]]<>"",已排程的還款,"") ->  | F161: =IF(還款排程[[#This Row],[還款編號]]<>"",IF(還款排程[[#This Row],[已排程還款]]+額外還款<還款排程[[#This Row],[期初餘額]],額外還款,IF(還款排程[[#This Row],[期初餘額]]-還款排程[[#This Row],[已排程還款]]>0,還款排程[[#This Row],[期初餘額]]-還款排程[[#This Row],[已排程還款]],0)),"") ->  | G161: =IF(還款排程[[#This Row],[還款編號]]<>"",IF(還款排程[[#This Row],[已排程還款]]+還款排程[[#This Row],[額外還款]]<=還款排程[[#This Row],[期初餘額]],還款排程[[#This Row],[已排程還款]]+還款排程[[#This Row],[額外還款]],還款排程[[#This Row],[期初餘額]]),"") ->  | H161: =IF(還款排程[[#This Row],[還款編號]]<>"",還款排程[[#This Row],[還款總金額]]-還款排程[[#This Row],[利息]],"") ->  | I161: =IF(還款排程[[#This Row],[還款編號]]<>"",還款排程[[#This Row],[期初餘額]]*(利率/每年還款次數),"") ->  | J161: =IF(還款排程[[#This Row],[還款編號]]<>"",IF(還款排程[[#This Row],[已排程還款]]+還款排程[[#This Row],[額外還款]]<=還款排程[[#This Row],[期初餘額]],還款排程[[#This Row],[期初餘額]]-還款排程[[#This Row],[本金]],0),"") ->  | K161: =IF(還款排程[[#This Row],[還款編號]]<>"",SUM(INDEX(還款排程[利息],1,1):還款排程[[#This Row],[利息]]),"") -> 
B162: =IF(貸款良好,IF(ROW()-ROW(還款排程[[#Headers],[還款編號]])>已排程的還款次數,"",ROW()-ROW(還款排程[[#Headers],[還款編號]])),"") ->  | C162: =IF(還款排程[[#This Row],[還款編號]]<>"",EOMONTH(貸款開始日期,ROW(還款排程[[#This Row],[還款編號]])-ROW(還款排程[[#Headers],[還款編號]])-2)+DAY(貸款開始日期),"") ->  | D162: =IF(還款排程[[#This Row],[還款編號]]<>"",IF(ROW()-ROW(還款排程[[#Headers],[期初餘額]])=1,貸款金額,INDEX(還款排程[結餘],ROW()-ROW(還款排程[[#Headers],[期初餘額]])-1)),"") ->  | E162: =IF(還款排程[[#This Row],[還款編號]]<>"",已排程的還款,"") ->  | F162: =IF(還款排程[[#This Row],[還款編號]]<>"",IF(還款排程[[#This Row],[已排程還款]]+額外還款<還款排程[[#This Row],[期初餘額]],額外還款,IF(還款排程[[#This Row],[期初餘額]]-還款排程[[#This Row],[已排程還款]]>0,還款排程[[#This Row],[期初餘額]]-還款排程[[#This Row],[已排程還款]],0)),"") ->  | G162: =IF(還款排程[[#This Row],[還款編號]]<>"",IF(還款排程[[#This Row],[已排程還款]]+還款排程[[#This Row],[額外還款]]<=還款排程[[#This Row],[期初餘額]],還款排程[[#This Row],[已排程還款]]+還款排程[[#This Row],[額外還款]],還款排程[[#This Row],[期初餘額]]),"") ->  | H162: =IF(還款排程[[#This Row],[還款編號]]<>"",還款排程[[#This Row],[還款總金額]]-還款排程[[#This Row],[利息]],"") ->  | I162: =IF(還款排程[[#This Row],[還款編號]]<>"",還款排程[[#This Row],[期初餘額]]*(利率/每年還款次數),"") ->  | J162: =IF(還款排程[[#This Row],[還款編號]]<>"",IF(還款排程[[#This Row],[已排程還款]]+還款排程[[#This Row],[額外還款]]<=還款排程[[#This Row],[期初餘額]],還款排程[[#This Row],[期初餘額]]-還款排程[[#This Row],[本金]],0),"") ->  | K162: =IF(還款排程[[#This Row],[還款編號]]<>"",SUM(INDEX(還款排程[利息],1,1):還款排程[[#This Row],[利息]]),"") -> 
B163: =IF(貸款良好,IF(ROW()-ROW(還款排程[[#Headers],[還款編號]])>已排程的還款次數,"",ROW()-ROW(還款排程[[#Headers],[還款編號]])),"") ->  | C163: =IF(還款排程[[#This Row],[還款編號]]<>"",EOMONTH(貸款開始日期,ROW(還款排程[[#This Row],[還款編號]])-ROW(還款排程[[#Headers],[還款編號]])-2)+DAY(貸款開始日期),"") ->  | D163: =IF(還款排程[[#This Row],[還款編號]]<>"",IF(ROW()-ROW(還款排程[[#Headers],[期初餘額]])=1,貸款金額,INDEX(還款排程[結餘],ROW()-ROW(還款排程[[#Headers],[期初餘額]])-1)),"") ->  | E163: =IF(還款排程[[#This Row],[還款編號]]<>"",已排程的還款,"") ->  | F163: =IF(還款排程[[#This Row],[還款編號]]<>"",IF(還款排程[[#This Row],[已排程還款]]+額外還款<還款排程[[#This Row],[期初餘額]],額外還款,IF(還款排程[[#This Row],[期初餘額]]-還款排程[[#This Row],[已排程還款]]>0,還款排程[[#This Row],[期初餘額]]-還款排程[[#This Row],[已排程還款]],0)),"") ->  | G163: =IF(還款排程[[#This Row],[還款編號]]<>"",IF(還款排程[[#This Row],[已排程還款]]+還款排程[[#This Row],[額外還款]]<=還款排程[[#This Row],[期初餘額]],還款排程[[#This Row],[已排程還款]]+還款排程[[#This Row],[額外還款]],還款排程[[#This Row],[期初餘額]]),"") ->  | H163: =IF(還款排程[[#This Row],[還款編號]]<>"",還款排程[[#This Row],[還款總金額]]-還款排程[[#This Row],[利息]],"") ->  | I163: =IF(還款排程[[#This Row],[還款編號]]<>"",還款排程[[#This Row],[期初餘額]]*(利率/每年還款次數),"") ->  | J163: =IF(還款排程[[#This Row],[還款編號]]<>"",IF(還款排程[[#This Row],[已排程還款]]+還款排程[[#This Row],[額外還款]]<=還款排程[[#This Row],[期初餘額]],還款排程[[#This Row],[期初餘額]]-還款排程[[#This Row],[本金]],0),"") ->  | K163: =IF(還款排程[[#This Row],[還款編號]]<>"",SUM(INDEX(還款排程[利息],1,1):還款排程[[#This Row],[利息]]),"") -> 
B164: =IF(貸款良好,IF(ROW()-ROW(還款排程[[#Headers],[還款編號]])>已排程的還款次數,"",ROW()-ROW(還款排程[[#Headers],[還款編號]])),"") ->  | C164: =IF(還款排程[[#This Row],[還款編號]]<>"",EOMONTH(貸款開始日期,ROW(還款排程[[#This Row],[還款編號]])-ROW(還款排程[[#Headers],[還款編號]])-2)+DAY(貸款開始日期),"") ->  | D164: =IF(還款排程[[#This Row],[還款編號]]<>"",IF(ROW()-ROW(還款排程[[#Headers],[期初餘額]])=1,貸款金額,INDEX(還款排程[結餘],ROW()-ROW(還款排程[[#Headers],[期初餘額]])-1)),"") ->  | E164: =IF(還款排程[[#This Row],[還款編號]]<>"",已排程的還款,"") ->  | F164: =IF(還款排程[[#This Row],[還款編號]]<>"",IF(還款排程[[#This Row],[已排程還款]]+額外還款<還款排程[[#This Row],[期初餘額]],額外還款,IF(還款排程[[#This Row],[期初餘額]]-還款排程[[#This Row],[已排程還款]]>0,還款排程[[#This Row],[期初餘額]]-還款排程[[#This Row],[已排程還款]],0)),"") ->  | G164: =IF(還款排程[[#This Row],[還款編號]]<>"",IF(還款排程[[#This Row],[已排程還款]]+還款排程[[#This Row],[額外還款]]<=還款排程[[#This Row],[期初餘額]],還款排程[[#This Row],[已排程還款]]+還款排程[[#This Row],[額外還款]],還款排程[[#This Row],[期初餘額]]),"") ->  | H164: =IF(還款排程[[#This Row],[還款編號]]<>"",還款排程[[#This Row],[還款總金額]]-還款排程[[#This Row],[利息]],"") ->  | I164: =IF(還款排程[[#This Row],[還款編號]]<>"",還款排程[[#This Row],[期初餘額]]*(利率/每年還款次數),"") ->  | J164: =IF(還款排程[[#This Row],[還款編號]]<>"",IF(還款排程[[#This Row],[已排程還款]]+還款排程[[#This Row],[額外還款]]<=還款排程[[#This Row],[期初餘額]],還款排程[[#This Row],[期初餘額]]-還款排程[[#This Row],[本金]],0),"") ->  | K164: =IF(還款排程[[#This Row],[還款編號]]<>"",SUM(INDEX(還款排程[利息],1,1):還款排程[[#This Row],[利息]]),"") -> 
B165: =IF(貸款良好,IF(ROW()-ROW(還款排程[[#Headers],[還款編號]])>已排程的還款次數,"",ROW()-ROW(還款排程[[#Headers],[還款編號]])),"") ->  | C165: =IF(還款排程[[#This Row],[還款編號]]<>"",EOMONTH(貸款開始日期,ROW(還款排程[[#This Row],[還款編號]])-ROW(還款排程[[#Headers],[還款編號]])-2)+DAY(貸款開始日期),"") ->  | D165: =IF(還款排程[[#This Row],[還款編號]]<>"",IF(ROW()-ROW(還款排程[[#Headers],[期初餘額]])=1,貸款金額,INDEX(還款排程[結餘],ROW()-ROW(還款排程[[#Headers],[期初餘額]])-1)),"") ->  | E165: =IF(還款排程[[#This Row],[還款編號]]<>"",已排程的還款,"") ->  | F165: =IF(還款排程[[#This Row],[還款編號]]<>"",IF(還款排程[[#This Row],[已排程還款]]+額外還款<還款排程[[#This Row],[期初餘額]],額外還款,IF(還款排程[[#This Row],[期初餘額]]-還款排程[[#This Row],[已排程還款]]>0,還款排程[[#This Row],[期初餘額]]-還款排程[[#This Row],[已排程還款]],0)),"") ->  | G165: =IF(還款排程[[#This Row],[還款編號]]<>"",IF(還款排程[[#This Row],[已排程還款]]+還款排程[[#This Row],[額外還款]]<=還款排程[[#This Row],[期初餘額]],還款排程[[#This Row],[已排程還款]]+還款排程[[#This Row],[額外還款]],還款排程[[#This Row],[期初餘額]]),"") ->  | H165: =IF(還款排程[[#This Row],[還款編號]]<>"",還款排程[[#This Row],[還款總金額]]-還款排程[[#This Row],[利息]],"") ->  | I165: =IF(還款排程[[#This Row],[還款編號]]<>"",還款排程[[#This Row],[期初餘額]]*(利率/每年還款次數),"") ->  | J165: =IF(還款排程[[#This Row],[還款編號]]<>"",IF(還款排程[[#This Row],[已排程還款]]+還款排程[[#This Row],[額外還款]]<=還款排程[[#This Row],[期初餘額]],還款排程[[#This Row],[期初餘額]]-還款排程[[#This Row],[本金]],0),"") ->  | K165: =IF(還款排程[[#This Row],[還款編號]]<>"",SUM(INDEX(還款排程[利息],1,1):還款排程[[#This Row],[利息]]),"") -> 
B166: =IF(貸款良好,IF(ROW()-ROW(還款排程[[#Headers],[還款編號]])>已排程的還款次數,"",ROW()-ROW(還款排程[[#Headers],[還款編號]])),"") ->  | C166: =IF(還款排程[[#This Row],[還款編號]]<>"",EOMONTH(貸款開始日期,ROW(還款排程[[#This Row],[還款編號]])-ROW(還款排程[[#Headers],[還款編號]])-2)+DAY(貸款開始日期),"") ->  | D166: =IF(還款排程[[#This Row],[還款編號]]<>"",IF(ROW()-ROW(還款排程[[#Headers],[期初餘額]])=1,貸款金額,INDEX(還款排程[結餘],ROW()-ROW(還款排程[[#Headers],[期初餘額]])-1)),"") ->  | E166: =IF(還款排程[[#This Row],[還款編號]]<>"",已排程的還款,"") ->  | F166: =IF(還款排程[[#This Row],[還款編號]]<>"",IF(還款排程[[#This Row],[已排程還款]]+額外還款<還款排程[[#This Row],[期初餘額]],額外還款,IF(還款排程[[#This Row],[期初餘額]]-還款排程[[#This Row],[已排程還款]]>0,還款排程[[#This Row],[期初餘額]]-還款排程[[#This Row],[已排程還款]],0)),"") ->  | G166: =IF(還款排程[[#This Row],[還款編號]]<>"",IF(還款排程[[#This Row],[已排程還款]]+還款排程[[#This Row],[額外還款]]<=還款排程[[#This Row],[期初餘額]],還款排程[[#This Row],[已排程還款]]+還款排程[[#This Row],[額外還款]],還款排程[[#This Row],[期初餘額]]),"") ->  | H166: =IF(還款排程[[#This Row],[還款編號]]<>"",還款排程[[#This Row],[還款總金額]]-還款排程[[#This Row],[利息]],"") ->  | I166: =IF(還款排程[[#This Row],[還款編號]]<>"",還款排程[[#This Row],[期初餘額]]*(利率/每年還款次數),"") ->  | J166: =IF(還款排程[[#This Row],[還款編號]]<>"",IF(還款排程[[#This Row],[已排程還款]]+還款排程[[#This Row],[額外還款]]<=還款排程[[#This Row],[期初餘額]],還款排程[[#This Row],[期初餘額]]-還款排程[[#This Row],[本金]],0),"") ->  | K166: =IF(還款排程[[#This Row],[還款編號]]<>"",SUM(INDEX(還款排程[利息],1,1):還款排程[[#This Row],[利息]]),"") -> 
B167: =IF(貸款良好,IF(ROW()-ROW(還款排程[[#Headers],[還款編號]])>已排程的還款次數,"",ROW()-ROW(還款排程[[#Headers],[還款編號]])),"") ->  | C167: =IF(還款排程[[#This Row],[還款編號]]<>"",EOMONTH(貸款開始日期,ROW(還款排程[[#This Row],[還款編號]])-ROW(還款排程[[#Headers],[還款編號]])-2)+DAY(貸款開始日期),"") ->  | D167: =IF(還款排程[[#This Row],[還款編號]]<>"",IF(ROW()-ROW(還款排程[[#Headers],[期初餘額]])=1,貸款金額,INDEX(還款排程[結餘],ROW()-ROW(還款排程[[#Headers],[期初餘額]])-1)),"") ->  | E167: =IF(還款排程[[#This Row],[還款編號]]<>"",已排程的還款,"") ->  | F167: =IF(還款排程[[#This Row],[還款編號]]<>"",IF(還款排程[[#This Row],[已排程還款]]+額外還款<還款排程[[#This Row],[期初餘額]],額外還款,IF(還款排程[[#This Row],[期初餘額]]-還款排程[[#This Row],[已排程還款]]>0,還款排程[[#This Row],[期初餘額]]-還款排程[[#This Row],[已排程還款]],0)),"") ->  | G167: =IF(還款排程[[#This Row],[還款編號]]<>"",IF(還款排程[[#This Row],[已排程還款]]+還款排程[[#This Row],[額外還款]]<=還款排程[[#This Row],[期初餘額]],還款排程[[#This Row],[已排程還款]]+還款排程[[#This Row],[額外還款]],還款排程[[#This Row],[期初餘額]]),"") ->  | H167: =IF(還款排程[[#This Row],[還款編號]]<>"",還款排程[[#This Row],[還款總金額]]-還款排程[[#This Row],[利息]],"") ->  | I167: =IF(還款排程[[#This Row],[還款編號]]<>"",還款排程[[#This Row],[期初餘額]]*(利率/每年還款次數),"") ->  | J167: =IF(還款排程[[#This Row],[還款編號]]<>"",IF(還款排程[[#This Row],[已排程還款]]+還款排程[[#This Row],[額外還款]]<=還款排程[[#This Row],[期初餘額]],還款排程[[#This Row],[期初餘額]]-還款排程[[#This Row],[本金]],0),"") ->  | K167: =IF(還款排程[[#This Row],[還款編號]]<>"",SUM(INDEX(還款排程[利息],1,1):還款排程[[#This Row],[利息]]),"") -> 
B168: =IF(貸款良好,IF(ROW()-ROW(還款排程[[#Headers],[還款編號]])>已排程的還款次數,"",ROW()-ROW(還款排程[[#Headers],[還款編號]])),"") ->  | C168: =IF(還款排程[[#This Row],[還款編號]]<>"",EOMONTH(貸款開始日期,ROW(還款排程[[#This Row],[還款編號]])-ROW(還款排程[[#Headers],[還款編號]])-2)+DAY(貸款開始日期),"") ->  | D168: =IF(還款排程[[#This Row],[還款編號]]<>"",IF(ROW()-ROW(還款排程[[#Headers],[期初餘額]])=1,貸款金額,INDEX(還款排程[結餘],ROW()-ROW(還款排程[[#Headers],[期初餘額]])-1)),"") ->  | E168: =IF(還款排程[[#This Row],[還款編號]]<>"",已排程的還款,"") ->  | F168: =IF(還款排程[[#This Row],[還款編號]]<>"",IF(還款排程[[#This Row],[已排程還款]]+額外還款<還款排程[[#This Row],[期初餘額]],額外還款,IF(還款排程[[#This Row],[期初餘額]]-還款排程[[#This Row],[已排程還款]]>0,還款排程[[#This Row],[期初餘額]]-還款排程[[#This Row],[已排程還款]],0)),"") ->  | G168: =IF(還款排程[[#This Row],[還款編號]]<>"",IF(還款排程[[#This Row],[已排程還款]]+還款排程[[#This Row],[額外還款]]<=還款排程[[#This Row],[期初餘額]],還款排程[[#This Row],[已排程還款]]+還款排程[[#This Row],[額外還款]],還款排程[[#This Row],[期初餘額]]),"") ->  | H168: =IF(還款排程[[#This Row],[還款編號]]<>"",還款排程[[#This Row],[還款總金額]]-還款排程[[#This Row],[利息]],"") ->  | I168: =IF(還款排程[[#This Row],[還款編號]]<>"",還款排程[[#This Row],[期初餘額]]*(利率/每年還款次數),"") ->  | J168: =IF(還款排程[[#This Row],[還款編號]]<>"",IF(還款排程[[#This Row],[已排程還款]]+還款排程[[#This Row],[額外還款]]<=還款排程[[#This Row],[期初餘額]],還款排程[[#This Row],[期初餘額]]-還款排程[[#This Row],[本金]],0),"") ->  | K168: =IF(還款排程[[#This Row],[還款編號]]<>"",SUM(INDEX(還款排程[利息],1,1):還款排程[[#This Row],[利息]]),"") -> 
B169: =IF(貸款良好,IF(ROW()-ROW(還款排程[[#Headers],[還款編號]])>已排程的還款次數,"",ROW()-ROW(還款排程[[#Headers],[還款編號]])),"") ->  | C169: =IF(還款排程[[#This Row],[還款編號]]<>"",EOMONTH(貸款開始日期,ROW(還款排程[[#This Row],[還款編號]])-ROW(還款排程[[#Headers],[還款編號]])-2)+DAY(貸款開始日期),"") ->  | D169: =IF(還款排程[[#This Row],[還款編號]]<>"",IF(ROW()-ROW(還款排程[[#Headers],[期初餘額]])=1,貸款金額,INDEX(還款排程[結餘],ROW()-ROW(還款排程[[#Headers],[期初餘額]])-1)),"") ->  | E169: =IF(還款排程[[#This Row],[還款編號]]<>"",已排程的還款,"") ->  | F169: =IF(還款排程[[#This Row],[還款編號]]<>"",IF(還款排程[[#This Row],[已排程還款]]+額外還款<還款排程[[#This Row],[期初餘額]],額外還款,IF(還款排程[[#This Row],[期初餘額]]-還款排程[[#This Row],[已排程還款]]>0,還款排程[[#This Row],[期初餘額]]-還款排程[[#This Row],[已排程還款]],0)),"") ->  | G169: =IF(還款排程[[#This Row],[還款編號]]<>"",IF(還款排程[[#This Row],[已排程還款]]+還款排程[[#This Row],[額外還款]]<=還款排程[[#This Row],[期初餘額]],還款排程[[#This Row],[已排程還款]]+還款排程[[#This Row],[額外還款]],還款排程[[#This Row],[期初餘額]]),"") ->  | H169: =IF(還款排程[[#This Row],[還款編號]]<>"",還款排程[[#This Row],[還款總金額]]-還款排程[[#This Row],[利息]],"") ->  | I169: =IF(還款排程[[#This Row],[還款編號]]<>"",還款排程[[#This Row],[期初餘額]]*(利率/每年還款次數),"") ->  | J169: =IF(還款排程[[#This Row],[還款編號]]<>"",IF(還款排程[[#This Row],[已排程還款]]+還款排程[[#This Row],[額外還款]]<=還款排程[[#This Row],[期初餘額]],還款排程[[#This Row],[期初餘額]]-還款排程[[#This Row],[本金]],0),"") ->  | K169: =IF(還款排程[[#This Row],[還款編號]]<>"",SUM(INDEX(還款排程[利息],1,1):還款排程[[#This Row],[利息]]),"") -> 
B170: =IF(貸款良好,IF(ROW()-ROW(還款排程[[#Headers],[還款編號]])>已排程的還款次數,"",ROW()-ROW(還款排程[[#Headers],[還款編號]])),"") ->  | C170: =IF(還款排程[[#This Row],[還款編號]]<>"",EOMONTH(貸款開始日期,ROW(還款排程[[#This Row],[還款編號]])-ROW(還款排程[[#Headers],[還款編號]])-2)+DAY(貸款開始日期),"") ->  | D170: =IF(還款排程[[#This Row],[還款編號]]<>"",IF(ROW()-ROW(還款排程[[#Headers],[期初餘額]])=1,貸款金額,INDEX(還款排程[結餘],ROW()-ROW(還款排程[[#Headers],[期初餘額]])-1)),"") ->  | E170: =IF(還款排程[[#This Row],[還款編號]]<>"",已排程的還款,"") ->  | F170: =IF(還款排程[[#This Row],[還款編號]]<>"",IF(還款排程[[#This Row],[已排程還款]]+額外還款<還款排程[[#This Row],[期初餘額]],額外還款,IF(還款排程[[#This Row],[期初餘額]]-還款排程[[#This Row],[已排程還款]]>0,還款排程[[#This Row],[期初餘額]]-還款排程[[#This Row],[已排程還款]],0)),"") ->  | G170: =IF(還款排程[[#This Row],[還款編號]]<>"",IF(還款排程[[#This Row],[已排程還款]]+還款排程[[#This Row],[額外還款]]<=還款排程[[#This Row],[期初餘額]],還款排程[[#This Row],[已排程還款]]+還款排程[[#This Row],[額外還款]],還款排程[[#This Row],[期初餘額]]),"") ->  | H170: =IF(還款排程[[#This Row],[還款編號]]<>"",還款排程[[#This Row],[還款總金額]]-還款排程[[#This Row],[利息]],"") ->  | I170: =IF(還款排程[[#This Row],[還款編號]]<>"",還款排程[[#This Row],[期初餘額]]*(利率/每年還款次數),"") ->  | J170: =IF(還款排程[[#This Row],[還款編號]]<>"",IF(還款排程[[#This Row],[已排程還款]]+還款排程[[#This Row],[額外還款]]<=還款排程[[#This Row],[期初餘額]],還款排程[[#This Row],[期初餘額]]-還款排程[[#This Row],[本金]],0),"") ->  | K170: =IF(還款排程[[#This Row],[還款編號]]<>"",SUM(INDEX(還款排程[利息],1,1):還款排程[[#This Row],[利息]]),"") -> 
B171: =IF(貸款良好,IF(ROW()-ROW(還款排程[[#Headers],[還款編號]])>已排程的還款次數,"",ROW()-ROW(還款排程[[#Headers],[還款編號]])),"") ->  | C171: =IF(還款排程[[#This Row],[還款編號]]<>"",EOMONTH(貸款開始日期,ROW(還款排程[[#This Row],[還款編號]])-ROW(還款排程[[#Headers],[還款編號]])-2)+DAY(貸款開始日期),"") ->  | D171: =IF(還款排程[[#This Row],[還款編號]]<>"",IF(ROW()-ROW(還款排程[[#Headers],[期初餘額]])=1,貸款金額,INDEX(還款排程[結餘],ROW()-ROW(還款排程[[#Headers],[期初餘額]])-1)),"") ->  | E171: =IF(還款排程[[#This Row],[還款編號]]<>"",已排程的還款,"") ->  | F171: =IF(還款排程[[#This Row],[還款編號]]<>"",IF(還款排程[[#This Row],[已排程還款]]+額外還款<還款排程[[#This Row],[期初餘額]],額外還款,IF(還款排程[[#This Row],[期初餘額]]-還款排程[[#This Row],[已排程還款]]>0,還款排程[[#This Row],[期初餘額]]-還款排程[[#This Row],[已排程還款]],0)),"") ->  | G171: =IF(還款排程[[#This Row],[還款編號]]<>"",IF(還款排程[[#This Row],[已排程還款]]+還款排程[[#This Row],[額外還款]]<=還款排程[[#This Row],[期初餘額]],還款排程[[#This Row],[已排程還款]]+還款排程[[#This Row],[額外還款]],還款排程[[#This Row],[期初餘額]]),"") ->  | H171: =IF(還款排程[[#This Row],[還款編號]]<>"",還款排程[[#This Row],[還款總金額]]-還款排程[[#This Row],[利息]],"") ->  | I171: =IF(還款排程[[#This Row],[還款編號]]<>"",還款排程[[#This Row],[期初餘額]]*(利率/每年還款次數),"") ->  | J171: =IF(還款排程[[#This Row],[還款編號]]<>"",IF(還款排程[[#This Row],[已排程還款]]+還款排程[[#This Row],[額外還款]]<=還款排程[[#This Row],[期初餘額]],還款排程[[#This Row],[期初餘額]]-還款排程[[#This Row],[本金]],0),"") ->  | K171: =IF(還款排程[[#This Row],[還款編號]]<>"",SUM(INDEX(還款排程[利息],1,1):還款排程[[#This Row],[利息]]),"") -> 
B172: =IF(貸款良好,IF(ROW()-ROW(還款排程[[#Headers],[還款編號]])>已排程的還款次數,"",ROW()-ROW(還款排程[[#Headers],[還款編號]])),"") ->  | C172: =IF(還款排程[[#This Row],[還款編號]]<>"",EOMONTH(貸款開始日期,ROW(還款排程[[#This Row],[還款編號]])-ROW(還款排程[[#Headers],[還款編號]])-2)+DAY(貸款開始日期),"") ->  | D172: =IF(還款排程[[#This Row],[還款編號]]<>"",IF(ROW()-ROW(還款排程[[#Headers],[期初餘額]])=1,貸款金額,INDEX(還款排程[結餘],ROW()-ROW(還款排程[[#Headers],[期初餘額]])-1)),"") ->  | E172: =IF(還款排程[[#This Row],[還款編號]]<>"",已排程的還款,"") ->  | F172: =IF(還款排程[[#This Row],[還款編號]]<>"",IF(還款排程[[#This Row],[已排程還款]]+額外還款<還款排程[[#This Row],[期初餘額]],額外還款,IF(還款排程[[#This Row],[期初餘額]]-還款排程[[#This Row],[已排程還款]]>0,還款排程[[#This Row],[期初餘額]]-還款排程[[#This Row],[已排程還款]],0)),"") ->  | G172: =IF(還款排程[[#This Row],[還款編號]]<>"",IF(還款排程[[#This Row],[已排程還款]]+還款排程[[#This Row],[額外還款]]<=還款排程[[#This Row],[期初餘額]],還款排程[[#This Row],[已排程還款]]+還款排程[[#This Row],[額外還款]],還款排程[[#This Row],[期初餘額]]),"") ->  | H172: =IF(還款排程[[#This Row],[還款編號]]<>"",還款排程[[#This Row],[還款總金額]]-還款排程[[#This Row],[利息]],"") ->  | I172: =IF(還款排程[[#This Row],[還款編號]]<>"",還款排程[[#This Row],[期初餘額]]*(利率/每年還款次數),"") ->  | J172: =IF(還款排程[[#This Row],[還款編號]]<>"",IF(還款排程[[#This Row],[已排程還款]]+還款排程[[#This Row],[額外還款]]<=還款排程[[#This Row],[期初餘額]],還款排程[[#This Row],[期初餘額]]-還款排程[[#This Row],[本金]],0),"") ->  | K172: =IF(還款排程[[#This Row],[還款編號]]<>"",SUM(INDEX(還款排程[利息],1,1):還款排程[[#This Row],[利息]]),"") -> 
B173: =IF(貸款良好,IF(ROW()-ROW(還款排程[[#Headers],[還款編號]])>已排程的還款次數,"",ROW()-ROW(還款排程[[#Headers],[還款編號]])),"") ->  | C173: =IF(還款排程[[#This Row],[還款編號]]<>"",EOMONTH(貸款開始日期,ROW(還款排程[[#This Row],[還款編號]])-ROW(還款排程[[#Headers],[還款編號]])-2)+DAY(貸款開始日期),"") ->  | D173: =IF(還款排程[[#This Row],[還款編號]]<>"",IF(ROW()-ROW(還款排程[[#Headers],[期初餘額]])=1,貸款金額,INDEX(還款排程[結餘],ROW()-ROW(還款排程[[#Headers],[期初餘額]])-1)),"") ->  | E173: =IF(還款排程[[#This Row],[還款編號]]<>"",已排程的還款,"") ->  | F173: =IF(還款排程[[#This Row],[還款編號]]<>"",IF(還款排程[[#This Row],[已排程還款]]+額外還款<還款排程[[#This Row],[期初餘額]],額外還款,IF(還款排程[[#This Row],[期初餘額]]-還款排程[[#This Row],[已排程還款]]>0,還款排程[[#This Row],[期初餘額]]-還款排程[[#This Row],[已排程還款]],0)),"") ->  | G173: =IF(還款排程[[#This Row],[還款編號]]<>"",IF(還款排程[[#This Row],[已排程還款]]+還款排程[[#This Row],[額外還款]]<=還款排程[[#This Row],[期初餘額]],還款排程[[#This Row],[已排程還款]]+還款排程[[#This Row],[額外還款]],還款排程[[#This Row],[期初餘額]]),"") ->  | H173: =IF(還款排程[[#This Row],[還款編號]]<>"",還款排程[[#This Row],[還款總金額]]-還款排程[[#This Row],[利息]],"") ->  | I173: =IF(還款排程[[#This Row],[還款編號]]<>"",還款排程[[#This Row],[期初餘額]]*(利率/每年還款次數),"") ->  | J173: =IF(還款排程[[#This Row],[還款編號]]<>"",IF(還款排程[[#This Row],[已排程還款]]+還款排程[[#This Row],[額外還款]]<=還款排程[[#This Row],[期初餘額]],還款排程[[#This Row],[期初餘額]]-還款排程[[#This Row],[本金]],0),"") ->  | K173: =IF(還款排程[[#This Row],[還款編號]]<>"",SUM(INDEX(還款排程[利息],1,1):還款排程[[#This Row],[利息]]),"") -> 
B174: =IF(貸款良好,IF(ROW()-ROW(還款排程[[#Headers],[還款編號]])>已排程的還款次數,"",ROW()-ROW(還款排程[[#Headers],[還款編號]])),"") ->  | C174: =IF(還款排程[[#This Row],[還款編號]]<>"",EOMONTH(貸款開始日期,ROW(還款排程[[#This Row],[還款編號]])-ROW(還款排程[[#Headers],[還款編號]])-2)+DAY(貸款開始日期),"") ->  | D174: =IF(還款排程[[#This Row],[還款編號]]<>"",IF(ROW()-ROW(還款排程[[#Headers],[期初餘額]])=1,貸款金額,INDEX(還款排程[結餘],ROW()-ROW(還款排程[[#Headers],[期初餘額]])-1)),"") ->  | E174: =IF(還款排程[[#This Row],[還款編號]]<>"",已排程的還款,"") ->  | F174: =IF(還款排程[[#This Row],[還款編號]]<>"",IF(還款排程[[#This Row],[已排程還款]]+額外還款<還款排程[[#This Row],[期初餘額]],額外還款,IF(還款排程[[#This Row],[期初餘額]]-還款排程[[#This Row],[已排程還款]]>0,還款排程[[#This Row],[期初餘額]]-還款排程[[#This Row],[已排程還款]],0)),"") ->  | G174: =IF(還款排程[[#This Row],[還款編號]]<>"",IF(還款排程[[#This Row],[已排程還款]]+還款排程[[#This Row],[額外還款]]<=還款排程[[#This Row],[期初餘額]],還款排程[[#This Row],[已排程還款]]+還款排程[[#This Row],[額外還款]],還款排程[[#This Row],[期初餘額]]),"") ->  | H174: =IF(還款排程[[#This Row],[還款編號]]<>"",還款排程[[#This Row],[還款總金額]]-還款排程[[#This Row],[利息]],"") ->  | I174: =IF(還款排程[[#This Row],[還款編號]]<>"",還款排程[[#This Row],[期初餘額]]*(利率/每年還款次數),"") ->  | J174: =IF(還款排程[[#This Row],[還款編號]]<>"",IF(還款排程[[#This Row],[已排程還款]]+還款排程[[#This Row],[額外還款]]<=還款排程[[#This Row],[期初餘額]],還款排程[[#This Row],[期初餘額]]-還款排程[[#This Row],[本金]],0),"") ->  | K174: =IF(還款排程[[#This Row],[還款編號]]<>"",SUM(INDEX(還款排程[利息],1,1):還款排程[[#This Row],[利息]]),"") -> 
B175: =IF(貸款良好,IF(ROW()-ROW(還款排程[[#Headers],[還款編號]])>已排程的還款次數,"",ROW()-ROW(還款排程[[#Headers],[還款編號]])),"") ->  | C175: =IF(還款排程[[#This Row],[還款編號]]<>"",EOMONTH(貸款開始日期,ROW(還款排程[[#This Row],[還款編號]])-ROW(還款排程[[#Headers],[還款編號]])-2)+DAY(貸款開始日期),"") ->  | D175: =IF(還款排程[[#This Row],[還款編號]]<>"",IF(ROW()-ROW(還款排程[[#Headers],[期初餘額]])=1,貸款金額,INDEX(還款排程[結餘],ROW()-ROW(還款排程[[#Headers],[期初餘額]])-1)),"") ->  | E175: =IF(還款排程[[#This Row],[還款編號]]<>"",已排程的還款,"") ->  | F175: =IF(還款排程[[#This Row],[還款編號]]<>"",IF(還款排程[[#This Row],[已排程還款]]+額外還款<還款排程[[#This Row],[期初餘額]],額外還款,IF(還款排程[[#This Row],[期初餘額]]-還款排程[[#This Row],[已排程還款]]>0,還款排程[[#This Row],[期初餘額]]-還款排程[[#This Row],[已排程還款]],0)),"") ->  | G175: =IF(還款排程[[#This Row],[還款編號]]<>"",IF(還款排程[[#This Row],[已排程還款]]+還款排程[[#This Row],[額外還款]]<=還款排程[[#This Row],[期初餘額]],還款排程[[#This Row],[已排程還款]]+還款排程[[#This Row],[額外還款]],還款排程[[#This Row],[期初餘額]]),"") ->  | H175: =IF(還款排程[[#This Row],[還款編號]]<>"",還款排程[[#This Row],[還款總金額]]-還款排程[[#This Row],[利息]],"") ->  | I175: =IF(還款排程[[#This Row],[還款編號]]<>"",還款排程[[#This Row],[期初餘額]]*(利率/每年還款次數),"") ->  | J175: =IF(還款排程[[#This Row],[還款編號]]<>"",IF(還款排程[[#This Row],[已排程還款]]+還款排程[[#This Row],[額外還款]]<=還款排程[[#This Row],[期初餘額]],還款排程[[#This Row],[期初餘額]]-還款排程[[#This Row],[本金]],0),"") ->  | K175: =IF(還款排程[[#This Row],[還款編號]]<>"",SUM(INDEX(還款排程[利息],1,1):還款排程[[#This Row],[利息]]),"") -> 
B176: =IF(貸款良好,IF(ROW()-ROW(還款排程[[#Headers],[還款編號]])>已排程的還款次數,"",ROW()-ROW(還款排程[[#Headers],[還款編號]])),"") ->  | C176: =IF(還款排程[[#This Row],[還款編號]]<>"",EOMONTH(貸款開始日期,ROW(還款排程[[#This Row],[還款編號]])-ROW(還款排程[[#Headers],[還款編號]])-2)+DAY(貸款開始日期),"") ->  | D176: =IF(還款排程[[#This Row],[還款編號]]<>"",IF(ROW()-ROW(還款排程[[#Headers],[期初餘額]])=1,貸款金額,INDEX(還款排程[結餘],ROW()-ROW(還款排程[[#Headers],[期初餘額]])-1)),"") ->  | E176: =IF(還款排程[[#This Row],[還款編號]]<>"",已排程的還款,"") ->  | F176: =IF(還款排程[[#This Row],[還款編號]]<>"",IF(還款排程[[#This Row],[已排程還款]]+額外還款<還款排程[[#This Row],[期初餘額]],額外還款,IF(還款排程[[#This Row],[期初餘額]]-還款排程[[#This Row],[已排程還款]]>0,還款排程[[#This Row],[期初餘額]]-還款排程[[#This Row],[已排程還款]],0)),"") ->  | G176: =IF(還款排程[[#This Row],[還款編號]]<>"",IF(還款排程[[#This Row],[已排程還款]]+還款排程[[#This Row],[額外還款]]<=還款排程[[#This Row],[期初餘額]],還款排程[[#This Row],[已排程還款]]+還款排程[[#This Row],[額外還款]],還款排程[[#This Row],[期初餘額]]),"") ->  | H176: =IF(還款排程[[#This Row],[還款編號]]<>"",還款排程[[#This Row],[還款總金額]]-還款排程[[#This Row],[利息]],"") ->  | I176: =IF(還款排程[[#This Row],[還款編號]]<>"",還款排程[[#This Row],[期初餘額]]*(利率/每年還款次數),"") ->  | J176: =IF(還款排程[[#This Row],[還款編號]]<>"",IF(還款排程[[#This Row],[已排程還款]]+還款排程[[#This Row],[額外還款]]<=還款排程[[#This Row],[期初餘額]],還款排程[[#This Row],[期初餘額]]-還款排程[[#This Row],[本金]],0),"") ->  | K176: =IF(還款排程[[#This Row],[還款編號]]<>"",SUM(INDEX(還款排程[利息],1,1):還款排程[[#This Row],[利息]]),"") -> 
B177: =IF(貸款良好,IF(ROW()-ROW(還款排程[[#Headers],[還款編號]])>已排程的還款次數,"",ROW()-ROW(還款排程[[#Headers],[還款編號]])),"") ->  | C177: =IF(還款排程[[#This Row],[還款編號]]<>"",EOMONTH(貸款開始日期,ROW(還款排程[[#This Row],[還款編號]])-ROW(還款排程[[#Headers],[還款編號]])-2)+DAY(貸款開始日期),"") ->  | D177: =IF(還款排程[[#This Row],[還款編號]]<>"",IF(ROW()-ROW(還款排程[[#Headers],[期初餘額]])=1,貸款金額,INDEX(還款排程[結餘],ROW()-ROW(還款排程[[#Headers],[期初餘額]])-1)),"") ->  | E177: =IF(還款排程[[#This Row],[還款編號]]<>"",已排程的還款,"") ->  | F177: =IF(還款排程[[#This Row],[還款編號]]<>"",IF(還款排程[[#This Row],[已排程還款]]+額外還款<還款排程[[#This Row],[期初餘額]],額外還款,IF(還款排程[[#This Row],[期初餘額]]-還款排程[[#This Row],[已排程還款]]>0,還款排程[[#This Row],[期初餘額]]-還款排程[[#This Row],[已排程還款]],0)),"") ->  | G177: =IF(還款排程[[#This Row],[還款編號]]<>"",IF(還款排程[[#This Row],[已排程還款]]+還款排程[[#This Row],[額外還款]]<=還款排程[[#This Row],[期初餘額]],還款排程[[#This Row],[已排程還款]]+還款排程[[#This Row],[額外還款]],還款排程[[#This Row],[期初餘額]]),"") ->  | H177: =IF(還款排程[[#This Row],[還款編號]]<>"",還款排程[[#This Row],[還款總金額]]-還款排程[[#This Row],[利息]],"") ->  | I177: =IF(還款排程[[#This Row],[還款編號]]<>"",還款排程[[#This Row],[期初餘額]]*(利率/每年還款次數),"") ->  | J177: =IF(還款排程[[#This Row],[還款編號]]<>"",IF(還款排程[[#This Row],[已排程還款]]+還款排程[[#This Row],[額外還款]]<=還款排程[[#This Row],[期初餘額]],還款排程[[#This Row],[期初餘額]]-還款排程[[#This Row],[本金]],0),"") ->  | K177: =IF(還款排程[[#This Row],[還款編號]]<>"",SUM(INDEX(還款排程[利息],1,1):還款排程[[#This Row],[利息]]),"") -> 
B178: =IF(貸款良好,IF(ROW()-ROW(還款排程[[#Headers],[還款編號]])>已排程的還款次數,"",ROW()-ROW(還款排程[[#Headers],[還款編號]])),"") ->  | C178: =IF(還款排程[[#This Row],[還款編號]]<>"",EOMONTH(貸款開始日期,ROW(還款排程[[#This Row],[還款編號]])-ROW(還款排程[[#Headers],[還款編號]])-2)+DAY(貸款開始日期),"") ->  | D178: =IF(還款排程[[#This Row],[還款編號]]<>"",IF(ROW()-ROW(還款排程[[#Headers],[期初餘額]])=1,貸款金額,INDEX(還款排程[結餘],ROW()-ROW(還款排程[[#Headers],[期初餘額]])-1)),"") ->  | E178: =IF(還款排程[[#This Row],[還款編號]]<>"",已排程的還款,"") ->  | F178: =IF(還款排程[[#This Row],[還款編號]]<>"",IF(還款排程[[#This Row],[已排程還款]]+額外還款<還款排程[[#This Row],[期初餘額]],額外還款,IF(還款排程[[#This Row],[期初餘額]]-還款排程[[#This Row],[已排程還款]]>0,還款排程[[#This Row],[期初餘額]]-還款排程[[#This Row],[已排程還款]],0)),"") ->  | G178: =IF(還款排程[[#This Row],[還款編號]]<>"",IF(還款排程[[#This Row],[已排程還款]]+還款排程[[#This Row],[額外還款]]<=還款排程[[#This Row],[期初餘額]],還款排程[[#This Row],[已排程還款]]+還款排程[[#This Row],[額外還款]],還款排程[[#This Row],[期初餘額]]),"") ->  | H178: =IF(還款排程[[#This Row],[還款編號]]<>"",還款排程[[#This Row],[還款總金額]]-還款排程[[#This Row],[利息]],"") ->  | I178: =IF(還款排程[[#This Row],[還款編號]]<>"",還款排程[[#This Row],[期初餘額]]*(利率/每年還款次數),"") ->  | J178: =IF(還款排程[[#This Row],[還款編號]]<>"",IF(還款排程[[#This Row],[已排程還款]]+還款排程[[#This Row],[額外還款]]<=還款排程[[#This Row],[期初餘額]],還款排程[[#This Row],[期初餘額]]-還款排程[[#This Row],[本金]],0),"") ->  | K178: =IF(還款排程[[#This Row],[還款編號]]<>"",SUM(INDEX(還款排程[利息],1,1):還款排程[[#This Row],[利息]]),"") -> 
B179: =IF(貸款良好,IF(ROW()-ROW(還款排程[[#Headers],[還款編號]])>已排程的還款次數,"",ROW()-ROW(還款排程[[#Headers],[還款編號]])),"") ->  | C179: =IF(還款排程[[#This Row],[還款編號]]<>"",EOMONTH(貸款開始日期,ROW(還款排程[[#This Row],[還款編號]])-ROW(還款排程[[#Headers],[還款編號]])-2)+DAY(貸款開始日期),"") ->  | D179: =IF(還款排程[[#This Row],[還款編號]]<>"",IF(ROW()-ROW(還款排程[[#Headers],[期初餘額]])=1,貸款金額,INDEX(還款排程[結餘],ROW()-ROW(還款排程[[#Headers],[期初餘額]])-1)),"") ->  | E179: =IF(還款排程[[#This Row],[還款編號]]<>"",已排程的還款,"") ->  | F179: =IF(還款排程[[#This Row],[還款編號]]<>"",IF(還款排程[[#This Row],[已排程還款]]+額外還款<還款排程[[#This Row],[期初餘額]],額外還款,IF(還款排程[[#This Row],[期初餘額]]-還款排程[[#This Row],[已排程還款]]>0,還款排程[[#This Row],[期初餘額]]-還款排程[[#This Row],[已排程還款]],0)),"") ->  | G179: =IF(還款排程[[#This Row],[還款編號]]<>"",IF(還款排程[[#This Row],[已排程還款]]+還款排程[[#This Row],[額外還款]]<=還款排程[[#This Row],[期初餘額]],還款排程[[#This Row],[已排程還款]]+還款排程[[#This Row],[額外還款]],還款排程[[#This Row],[期初餘額]]),"") ->  | H179: =IF(還款排程[[#This Row],[還款編號]]<>"",還款排程[[#This Row],[還款總金額]]-還款排程[[#This Row],[利息]],"") ->  | I179: =IF(還款排程[[#This Row],[還款編號]]<>"",還款排程[[#This Row],[期初餘額]]*(利率/每年還款次數),"") ->  | J179: =IF(還款排程[[#This Row],[還款編號]]<>"",IF(還款排程[[#This Row],[已排程還款]]+還款排程[[#This Row],[額外還款]]<=還款排程[[#This Row],[期初餘額]],還款排程[[#This Row],[期初餘額]]-還款排程[[#This Row],[本金]],0),"") ->  | K179: =IF(還款排程[[#This Row],[還款編號]]<>"",SUM(INDEX(還款排程[利息],1,1):還款排程[[#This Row],[利息]]),"") -> 
B180: =IF(貸款良好,IF(ROW()-ROW(還款排程[[#Headers],[還款編號]])>已排程的還款次數,"",ROW()-ROW(還款排程[[#Headers],[還款編號]])),"") ->  | C180: =IF(還款排程[[#This Row],[還款編號]]<>"",EOMONTH(貸款開始日期,ROW(還款排程[[#This Row],[還款編號]])-ROW(還款排程[[#Headers],[還款編號]])-2)+DAY(貸款開始日期),"") ->  | D180: =IF(還款排程[[#This Row],[還款編號]]<>"",IF(ROW()-ROW(還款排程[[#Headers],[期初餘額]])=1,貸款金額,INDEX(還款排程[結餘],ROW()-ROW(還款排程[[#Headers],[期初餘額]])-1)),"") ->  | E180: =IF(還款排程[[#This Row],[還款編號]]<>"",已排程的還款,"") ->  | F180: =IF(還款排程[[#This Row],[還款編號]]<>"",IF(還款排程[[#This Row],[已排程還款]]+額外還款<還款排程[[#This Row],[期初餘額]],額外還款,IF(還款排程[[#This Row],[期初餘額]]-還款排程[[#This Row],[已排程還款]]>0,還款排程[[#This Row],[期初餘額]]-還款排程[[#This Row],[已排程還款]],0)),"") ->  | G180: =IF(還款排程[[#This Row],[還款編號]]<>"",IF(還款排程[[#This Row],[已排程還款]]+還款排程[[#This Row],[額外還款]]<=還款排程[[#This Row],[期初餘額]],還款排程[[#This Row],[已排程還款]]+還款排程[[#This Row],[額外還款]],還款排程[[#This Row],[期初餘額]]),"") ->  | H180: =IF(還款排程[[#This Row],[還款編號]]<>"",還款排程[[#This Row],[還款總金額]]-還款排程[[#This Row],[利息]],"") ->  | I180: =IF(還款排程[[#This Row],[還款編號]]<>"",還款排程[[#This Row],[期初餘額]]*(利率/每年還款次數),"") ->  | J180: =IF(還款排程[[#This Row],[還款編號]]<>"",IF(還款排程[[#This Row],[已排程還款]]+還款排程[[#This Row],[額外還款]]<=還款排程[[#This Row],[期初餘額]],還款排程[[#This Row],[期初餘額]]-還款排程[[#This Row],[本金]],0),"") ->  | K180: =IF(還款排程[[#This Row],[還款編號]]<>"",SUM(INDEX(還款排程[利息],1,1):還款排程[[#This Row],[利息]]),"") -> 
B181: =IF(貸款良好,IF(ROW()-ROW(還款排程[[#Headers],[還款編號]])>已排程的還款次數,"",ROW()-ROW(還款排程[[#Headers],[還款編號]])),"") ->  | C181: =IF(還款排程[[#This Row],[還款編號]]<>"",EOMONTH(貸款開始日期,ROW(還款排程[[#This Row],[還款編號]])-ROW(還款排程[[#Headers],[還款編號]])-2)+DAY(貸款開始日期),"") ->  | D181: =IF(還款排程[[#This Row],[還款編號]]<>"",IF(ROW()-ROW(還款排程[[#Headers],[期初餘額]])=1,貸款金額,INDEX(還款排程[結餘],ROW()-ROW(還款排程[[#Headers],[期初餘額]])-1)),"") ->  | E181: =IF(還款排程[[#This Row],[還款編號]]<>"",已排程的還款,"") ->  | F181: =IF(還款排程[[#This Row],[還款編號]]<>"",IF(還款排程[[#This Row],[已排程還款]]+額外還款<還款排程[[#This Row],[期初餘額]],額外還款,IF(還款排程[[#This Row],[期初餘額]]-還款排程[[#This Row],[已排程還款]]>0,還款排程[[#This Row],[期初餘額]]-還款排程[[#This Row],[已排程還款]],0)),"") ->  | G181: =IF(還款排程[[#This Row],[還款編號]]<>"",IF(還款排程[[#This Row],[已排程還款]]+還款排程[[#This Row],[額外還款]]<=還款排程[[#This Row],[期初餘額]],還款排程[[#This Row],[已排程還款]]+還款排程[[#This Row],[額外還款]],還款排程[[#This Row],[期初餘額]]),"") ->  | H181: =IF(還款排程[[#This Row],[還款編號]]<>"",還款排程[[#This Row],[還款總金額]]-還款排程[[#This Row],[利息]],"") ->  | I181: =IF(還款排程[[#This Row],[還款編號]]<>"",還款排程[[#This Row],[期初餘額]]*(利率/每年還款次數),"") ->  | J181: =IF(還款排程[[#This Row],[還款編號]]<>"",IF(還款排程[[#This Row],[已排程還款]]+還款排程[[#This Row],[額外還款]]<=還款排程[[#This Row],[期初餘額]],還款排程[[#This Row],[期初餘額]]-還款排程[[#This Row],[本金]],0),"") ->  | K181: =IF(還款排程[[#This Row],[還款編號]]<>"",SUM(INDEX(還款排程[利息],1,1):還款排程[[#This Row],[利息]]),"") -> 
B182: =IF(貸款良好,IF(ROW()-ROW(還款排程[[#Headers],[還款編號]])>已排程的還款次數,"",ROW()-ROW(還款排程[[#Headers],[還款編號]])),"") ->  | C182: =IF(還款排程[[#This Row],[還款編號]]<>"",EOMONTH(貸款開始日期,ROW(還款排程[[#This Row],[還款編號]])-ROW(還款排程[[#Headers],[還款編號]])-2)+DAY(貸款開始日期),"") ->  | D182: =IF(還款排程[[#This Row],[還款編號]]<>"",IF(ROW()-ROW(還款排程[[#Headers],[期初餘額]])=1,貸款金額,INDEX(還款排程[結餘],ROW()-ROW(還款排程[[#Headers],[期初餘額]])-1)),"") ->  | E182: =IF(還款排程[[#This Row],[還款編號]]<>"",已排程的還款,"") ->  | F182: =IF(還款排程[[#This Row],[還款編號]]<>"",IF(還款排程[[#This Row],[已排程還款]]+額外還款<還款排程[[#This Row],[期初餘額]],額外還款,IF(還款排程[[#This Row],[期初餘額]]-還款排程[[#This Row],[已排程還款]]>0,還款排程[[#This Row],[期初餘額]]-還款排程[[#This Row],[已排程還款]],0)),"") ->  | G182: =IF(還款排程[[#This Row],[還款編號]]<>"",IF(還款排程[[#This Row],[已排程還款]]+還款排程[[#This Row],[額外還款]]<=還款排程[[#This Row],[期初餘額]],還款排程[[#This Row],[已排程還款]]+還款排程[[#This Row],[額外還款]],還款排程[[#This Row],[期初餘額]]),"") ->  | H182: =IF(還款排程[[#This Row],[還款編號]]<>"",還款排程[[#This Row],[還款總金額]]-還款排程[[#This Row],[利息]],"") ->  | I182: =IF(還款排程[[#This Row],[還款編號]]<>"",還款排程[[#This Row],[期初餘額]]*(利率/每年還款次數),"") ->  | J182: =IF(還款排程[[#This Row],[還款編號]]<>"",IF(還款排程[[#This Row],[已排程還款]]+還款排程[[#This Row],[額外還款]]<=還款排程[[#This Row],[期初餘額]],還款排程[[#This Row],[期初餘額]]-還款排程[[#This Row],[本金]],0),"") ->  | K182: =IF(還款排程[[#This Row],[還款編號]]<>"",SUM(INDEX(還款排程[利息],1,1):還款排程[[#This Row],[利息]]),"") -> 
B183: =IF(貸款良好,IF(ROW()-ROW(還款排程[[#Headers],[還款編號]])>已排程的還款次數,"",ROW()-ROW(還款排程[[#Headers],[還款編號]])),"") ->  | C183: =IF(還款排程[[#This Row],[還款編號]]<>"",EOMONTH(貸款開始日期,ROW(還款排程[[#This Row],[還款編號]])-ROW(還款排程[[#Headers],[還款編號]])-2)+DAY(貸款開始日期),"") ->  | D183: =IF(還款排程[[#This Row],[還款編號]]<>"",IF(ROW()-ROW(還款排程[[#Headers],[期初餘額]])=1,貸款金額,INDEX(還款排程[結餘],ROW()-ROW(還款排程[[#Headers],[期初餘額]])-1)),"") ->  | E183: =IF(還款排程[[#This Row],[還款編號]]<>"",已排程的還款,"") ->  | F183: =IF(還款排程[[#This Row],[還款編號]]<>"",IF(還款排程[[#This Row],[已排程還款]]+額外還款<還款排程[[#This Row],[期初餘額]],額外還款,IF(還款排程[[#This Row],[期初餘額]]-還款排程[[#This Row],[已排程還款]]>0,還款排程[[#This Row],[期初餘額]]-還款排程[[#This Row],[已排程還款]],0)),"") ->  | G183: =IF(還款排程[[#This Row],[還款編號]]<>"",IF(還款排程[[#This Row],[已排程還款]]+還款排程[[#This Row],[額外還款]]<=還款排程[[#This Row],[期初餘額]],還款排程[[#This Row],[已排程還款]]+還款排程[[#This Row],[額外還款]],還款排程[[#This Row],[期初餘額]]),"") ->  | H183: =IF(還款排程[[#This Row],[還款編號]]<>"",還款排程[[#This Row],[還款總金額]]-還款排程[[#This Row],[利息]],"") ->  | I183: =IF(還款排程[[#This Row],[還款編號]]<>"",還款排程[[#This Row],[期初餘額]]*(利率/每年還款次數),"") ->  | J183: =IF(還款排程[[#This Row],[還款編號]]<>"",IF(還款排程[[#This Row],[已排程還款]]+還款排程[[#This Row],[額外還款]]<=還款排程[[#This Row],[期初餘額]],還款排程[[#This Row],[期初餘額]]-還款排程[[#This Row],[本金]],0),"") ->  | K183: =IF(還款排程[[#This Row],[還款編號]]<>"",SUM(INDEX(還款排程[利息],1,1):還款排程[[#This Row],[利息]]),"") -> 
B184: =IF(貸款良好,IF(ROW()-ROW(還款排程[[#Headers],[還款編號]])>已排程的還款次數,"",ROW()-ROW(還款排程[[#Headers],[還款編號]])),"") ->  | C184: =IF(還款排程[[#This Row],[還款編號]]<>"",EOMONTH(貸款開始日期,ROW(還款排程[[#This Row],[還款編號]])-ROW(還款排程[[#Headers],[還款編號]])-2)+DAY(貸款開始日期),"") ->  | D184: =IF(還款排程[[#This Row],[還款編號]]<>"",IF(ROW()-ROW(還款排程[[#Headers],[期初餘額]])=1,貸款金額,INDEX(還款排程[結餘],ROW()-ROW(還款排程[[#Headers],[期初餘額]])-1)),"") ->  | E184: =IF(還款排程[[#This Row],[還款編號]]<>"",已排程的還款,"") ->  | F184: =IF(還款排程[[#This Row],[還款編號]]<>"",IF(還款排程[[#This Row],[已排程還款]]+額外還款<還款排程[[#This Row],[期初餘額]],額外還款,IF(還款排程[[#This Row],[期初餘額]]-還款排程[[#This Row],[已排程還款]]>0,還款排程[[#This Row],[期初餘額]]-還款排程[[#This Row],[已排程還款]],0)),"") ->  | G184: =IF(還款排程[[#This Row],[還款編號]]<>"",IF(還款排程[[#This Row],[已排程還款]]+還款排程[[#This Row],[額外還款]]<=還款排程[[#This Row],[期初餘額]],還款排程[[#This Row],[已排程還款]]+還款排程[[#This Row],[額外還款]],還款排程[[#This Row],[期初餘額]]),"") ->  | H184: =IF(還款排程[[#This Row],[還款編號]]<>"",還款排程[[#This Row],[還款總金額]]-還款排程[[#This Row],[利息]],"") ->  | I184: =IF(還款排程[[#This Row],[還款編號]]<>"",還款排程[[#This Row],[期初餘額]]*(利率/每年還款次數),"") ->  | J184: =IF(還款排程[[#This Row],[還款編號]]<>"",IF(還款排程[[#This Row],[已排程還款]]+還款排程[[#This Row],[額外還款]]<=還款排程[[#This Row],[期初餘額]],還款排程[[#This Row],[期初餘額]]-還款排程[[#This Row],[本金]],0),"") ->  | K184: =IF(還款排程[[#This Row],[還款編號]]<>"",SUM(INDEX(還款排程[利息],1,1):還款排程[[#This Row],[利息]]),"") -> 
B185: =IF(貸款良好,IF(ROW()-ROW(還款排程[[#Headers],[還款編號]])>已排程的還款次數,"",ROW()-ROW(還款排程[[#Headers],[還款編號]])),"") ->  | C185: =IF(還款排程[[#This Row],[還款編號]]<>"",EOMONTH(貸款開始日期,ROW(還款排程[[#This Row],[還款編號]])-ROW(還款排程[[#Headers],[還款編號]])-2)+DAY(貸款開始日期),"") ->  | D185: =IF(還款排程[[#This Row],[還款編號]]<>"",IF(ROW()-ROW(還款排程[[#Headers],[期初餘額]])=1,貸款金額,INDEX(還款排程[結餘],ROW()-ROW(還款排程[[#Headers],[期初餘額]])-1)),"") ->  | E185: =IF(還款排程[[#This Row],[還款編號]]<>"",已排程的還款,"") ->  | F185: =IF(還款排程[[#This Row],[還款編號]]<>"",IF(還款排程[[#This Row],[已排程還款]]+額外還款<還款排程[[#This Row],[期初餘額]],額外還款,IF(還款排程[[#This Row],[期初餘額]]-還款排程[[#This Row],[已排程還款]]>0,還款排程[[#This Row],[期初餘額]]-還款排程[[#This Row],[已排程還款]],0)),"") ->  | G185: =IF(還款排程[[#This Row],[還款編號]]<>"",IF(還款排程[[#This Row],[已排程還款]]+還款排程[[#This Row],[額外還款]]<=還款排程[[#This Row],[期初餘額]],還款排程[[#This Row],[已排程還款]]+還款排程[[#This Row],[額外還款]],還款排程[[#This Row],[期初餘額]]),"") ->  | H185: =IF(還款排程[[#This Row],[還款編號]]<>"",還款排程[[#This Row],[還款總金額]]-還款排程[[#This Row],[利息]],"") ->  | I185: =IF(還款排程[[#This Row],[還款編號]]<>"",還款排程[[#This Row],[期初餘額]]*(利率/每年還款次數),"") ->  | J185: =IF(還款排程[[#This Row],[還款編號]]<>"",IF(還款排程[[#This Row],[已排程還款]]+還款排程[[#This Row],[額外還款]]<=還款排程[[#This Row],[期初餘額]],還款排程[[#This Row],[期初餘額]]-還款排程[[#This Row],[本金]],0),"") ->  | K185: =IF(還款排程[[#This Row],[還款編號]]<>"",SUM(INDEX(還款排程[利息],1,1):還款排程[[#This Row],[利息]]),"") -> 
B186: =IF(貸款良好,IF(ROW()-ROW(還款排程[[#Headers],[還款編號]])>已排程的還款次數,"",ROW()-ROW(還款排程[[#Headers],[還款編號]])),"") ->  | C186: =IF(還款排程[[#This Row],[還款編號]]<>"",EOMONTH(貸款開始日期,ROW(還款排程[[#This Row],[還款編號]])-ROW(還款排程[[#Headers],[還款編號]])-2)+DAY(貸款開始日期),"") ->  | D186: =IF(還款排程[[#This Row],[還款編號]]<>"",IF(ROW()-ROW(還款排程[[#Headers],[期初餘額]])=1,貸款金額,INDEX(還款排程[結餘],ROW()-ROW(還款排程[[#Headers],[期初餘額]])-1)),"") ->  | E186: =IF(還款排程[[#This Row],[還款編號]]<>"",已排程的還款,"") ->  | F186: =IF(還款排程[[#This Row],[還款編號]]<>"",IF(還款排程[[#This Row],[已排程還款]]+額外還款<還款排程[[#This Row],[期初餘額]],額外還款,IF(還款排程[[#This Row],[期初餘額]]-還款排程[[#This Row],[已排程還款]]>0,還款排程[[#This Row],[期初餘額]]-還款排程[[#This Row],[已排程還款]],0)),"") ->  | G186: =IF(還款排程[[#This Row],[還款編號]]<>"",IF(還款排程[[#This Row],[已排程還款]]+還款排程[[#This Row],[額外還款]]<=還款排程[[#This Row],[期初餘額]],還款排程[[#This Row],[已排程還款]]+還款排程[[#This Row],[額外還款]],還款排程[[#This Row],[期初餘額]]),"") ->  | H186: =IF(還款排程[[#This Row],[還款編號]]<>"",還款排程[[#This Row],[還款總金額]]-還款排程[[#This Row],[利息]],"") ->  | I186: =IF(還款排程[[#This Row],[還款編號]]<>"",還款排程[[#This Row],[期初餘額]]*(利率/每年還款次數),"") ->  | J186: =IF(還款排程[[#This Row],[還款編號]]<>"",IF(還款排程[[#This Row],[已排程還款]]+還款排程[[#This Row],[額外還款]]<=還款排程[[#This Row],[期初餘額]],還款排程[[#This Row],[期初餘額]]-還款排程[[#This Row],[本金]],0),"") ->  | K186: =IF(還款排程[[#This Row],[還款編號]]<>"",SUM(INDEX(還款排程[利息],1,1):還款排程[[#This Row],[利息]]),"") -> 
B187: =IF(貸款良好,IF(ROW()-ROW(還款排程[[#Headers],[還款編號]])>已排程的還款次數,"",ROW()-ROW(還款排程[[#Headers],[還款編號]])),"") ->  | C187: =IF(還款排程[[#This Row],[還款編號]]<>"",EOMONTH(貸款開始日期,ROW(還款排程[[#This Row],[還款編號]])-ROW(還款排程[[#Headers],[還款編號]])-2)+DAY(貸款開始日期),"") ->  | D187: =IF(還款排程[[#This Row],[還款編號]]<>"",IF(ROW()-ROW(還款排程[[#Headers],[期初餘額]])=1,貸款金額,INDEX(還款排程[結餘],ROW()-ROW(還款排程[[#Headers],[期初餘額]])-1)),"") ->  | E187: =IF(還款排程[[#This Row],[還款編號]]<>"",已排程的還款,"") ->  | F187: =IF(還款排程[[#This Row],[還款編號]]<>"",IF(還款排程[[#This Row],[已排程還款]]+額外還款<還款排程[[#This Row],[期初餘額]],額外還款,IF(還款排程[[#This Row],[期初餘額]]-還款排程[[#This Row],[已排程還款]]>0,還款排程[[#This Row],[期初餘額]]-還款排程[[#This Row],[已排程還款]],0)),"") ->  | G187: =IF(還款排程[[#This Row],[還款編號]]<>"",IF(還款排程[[#This Row],[已排程還款]]+還款排程[[#This Row],[額外還款]]<=還款排程[[#This Row],[期初餘額]],還款排程[[#This Row],[已排程還款]]+還款排程[[#This Row],[額外還款]],還款排程[[#This Row],[期初餘額]]),"") ->  | H187: =IF(還款排程[[#This Row],[還款編號]]<>"",還款排程[[#This Row],[還款總金額]]-還款排程[[#This Row],[利息]],"") ->  | I187: =IF(還款排程[[#This Row],[還款編號]]<>"",還款排程[[#This Row],[期初餘額]]*(利率/每年還款次數),"") ->  | J187: =IF(還款排程[[#This Row],[還款編號]]<>"",IF(還款排程[[#This Row],[已排程還款]]+還款排程[[#This Row],[額外還款]]<=還款排程[[#This Row],[期初餘額]],還款排程[[#This Row],[期初餘額]]-還款排程[[#This Row],[本金]],0),"") ->  | K187: =IF(還款排程[[#This Row],[還款編號]]<>"",SUM(INDEX(還款排程[利息],1,1):還款排程[[#This Row],[利息]]),"") -> 
B188: =IF(貸款良好,IF(ROW()-ROW(還款排程[[#Headers],[還款編號]])>已排程的還款次數,"",ROW()-ROW(還款排程[[#Headers],[還款編號]])),"") ->  | C188: =IF(還款排程[[#This Row],[還款編號]]<>"",EOMONTH(貸款開始日期,ROW(還款排程[[#This Row],[還款編號]])-ROW(還款排程[[#Headers],[還款編號]])-2)+DAY(貸款開始日期),"") ->  | D188: =IF(還款排程[[#This Row],[還款編號]]<>"",IF(ROW()-ROW(還款排程[[#Headers],[期初餘額]])=1,貸款金額,INDEX(還款排程[結餘],ROW()-ROW(還款排程[[#Headers],[期初餘額]])-1)),"") ->  | E188: =IF(還款排程[[#This Row],[還款編號]]<>"",已排程的還款,"") ->  | F188: =IF(還款排程[[#This Row],[還款編號]]<>"",IF(還款排程[[#This Row],[已排程還款]]+額外還款<還款排程[[#This Row],[期初餘額]],額外還款,IF(還款排程[[#This Row],[期初餘額]]-還款排程[[#This Row],[已排程還款]]>0,還款排程[[#This Row],[期初餘額]]-還款排程[[#This Row],[已排程還款]],0)),"") ->  | G188: =IF(還款排程[[#This Row],[還款編號]]<>"",IF(還款排程[[#This Row],[已排程還款]]+還款排程[[#This Row],[額外還款]]<=還款排程[[#This Row],[期初餘額]],還款排程[[#This Row],[已排程還款]]+還款排程[[#This Row],[額外還款]],還款排程[[#This Row],[期初餘額]]),"") ->  | H188: =IF(還款排程[[#This Row],[還款編號]]<>"",還款排程[[#This Row],[還款總金額]]-還款排程[[#This Row],[利息]],"") ->  | I188: =IF(還款排程[[#This Row],[還款編號]]<>"",還款排程[[#This Row],[期初餘額]]*(利率/每年還款次數),"") ->  | J188: =IF(還款排程[[#This Row],[還款編號]]<>"",IF(還款排程[[#This Row],[已排程還款]]+還款排程[[#This Row],[額外還款]]<=還款排程[[#This Row],[期初餘額]],還款排程[[#This Row],[期初餘額]]-還款排程[[#This Row],[本金]],0),"") ->  | K188: =IF(還款排程[[#This Row],[還款編號]]<>"",SUM(INDEX(還款排程[利息],1,1):還款排程[[#This Row],[利息]]),"") -> 
B189: =IF(貸款良好,IF(ROW()-ROW(還款排程[[#Headers],[還款編號]])>已排程的還款次數,"",ROW()-ROW(還款排程[[#Headers],[還款編號]])),"") ->  | C189: =IF(還款排程[[#This Row],[還款編號]]<>"",EOMONTH(貸款開始日期,ROW(還款排程[[#This Row],[還款編號]])-ROW(還款排程[[#Headers],[還款編號]])-2)+DAY(貸款開始日期),"") ->  | D189: =IF(還款排程[[#This Row],[還款編號]]<>"",IF(ROW()-ROW(還款排程[[#Headers],[期初餘額]])=1,貸款金額,INDEX(還款排程[結餘],ROW()-ROW(還款排程[[#Headers],[期初餘額]])-1)),"") ->  | E189: =IF(還款排程[[#This Row],[還款編號]]<>"",已排程的還款,"") ->  | F189: =IF(還款排程[[#This Row],[還款編號]]<>"",IF(還款排程[[#This Row],[已排程還款]]+額外還款<還款排程[[#This Row],[期初餘額]],額外還款,IF(還款排程[[#This Row],[期初餘額]]-還款排程[[#This Row],[已排程還款]]>0,還款排程[[#This Row],[期初餘額]]-還款排程[[#This Row],[已排程還款]],0)),"") ->  | G189: =IF(還款排程[[#This Row],[還款編號]]<>"",IF(還款排程[[#This Row],[已排程還款]]+還款排程[[#This Row],[額外還款]]<=還款排程[[#This Row],[期初餘額]],還款排程[[#This Row],[已排程還款]]+還款排程[[#This Row],[額外還款]],還款排程[[#This Row],[期初餘額]]),"") ->  | H189: =IF(還款排程[[#This Row],[還款編號]]<>"",還款排程[[#This Row],[還款總金額]]-還款排程[[#This Row],[利息]],"") ->  | I189: =IF(還款排程[[#This Row],[還款編號]]<>"",還款排程[[#This Row],[期初餘額]]*(利率/每年還款次數),"") ->  | J189: =IF(還款排程[[#This Row],[還款編號]]<>"",IF(還款排程[[#This Row],[已排程還款]]+還款排程[[#This Row],[額外還款]]<=還款排程[[#This Row],[期初餘額]],還款排程[[#This Row],[期初餘額]]-還款排程[[#This Row],[本金]],0),"") ->  | K189: =IF(還款排程[[#This Row],[還款編號]]<>"",SUM(INDEX(還款排程[利息],1,1):還款排程[[#This Row],[利息]]),"") -> 
B190: =IF(貸款良好,IF(ROW()-ROW(還款排程[[#Headers],[還款編號]])>已排程的還款次數,"",ROW()-ROW(還款排程[[#Headers],[還款編號]])),"") ->  | C190: =IF(還款排程[[#This Row],[還款編號]]<>"",EOMONTH(貸款開始日期,ROW(還款排程[[#This Row],[還款編號]])-ROW(還款排程[[#Headers],[還款編號]])-2)+DAY(貸款開始日期),"") ->  | D190: =IF(還款排程[[#This Row],[還款編號]]<>"",IF(ROW()-ROW(還款排程[[#Headers],[期初餘額]])=1,貸款金額,INDEX(還款排程[結餘],ROW()-ROW(還款排程[[#Headers],[期初餘額]])-1)),"") ->  | E190: =IF(還款排程[[#This Row],[還款編號]]<>"",已排程的還款,"") ->  | F190: =IF(還款排程[[#This Row],[還款編號]]<>"",IF(還款排程[[#This Row],[已排程還款]]+額外還款<還款排程[[#This Row],[期初餘額]],額外還款,IF(還款排程[[#This Row],[期初餘額]]-還款排程[[#This Row],[已排程還款]]>0,還款排程[[#This Row],[期初餘額]]-還款排程[[#This Row],[已排程還款]],0)),"") ->  | G190: =IF(還款排程[[#This Row],[還款編號]]<>"",IF(還款排程[[#This Row],[已排程還款]]+還款排程[[#This Row],[額外還款]]<=還款排程[[#This Row],[期初餘額]],還款排程[[#This Row],[已排程還款]]+還款排程[[#This Row],[額外還款]],還款排程[[#This Row],[期初餘額]]),"") ->  | H190: =IF(還款排程[[#This Row],[還款編號]]<>"",還款排程[[#This Row],[還款總金額]]-還款排程[[#This Row],[利息]],"") ->  | I190: =IF(還款排程[[#This Row],[還款編號]]<>"",還款排程[[#This Row],[期初餘額]]*(利率/每年還款次數),"") ->  | J190: =IF(還款排程[[#This Row],[還款編號]]<>"",IF(還款排程[[#This Row],[已排程還款]]+還款排程[[#This Row],[額外還款]]<=還款排程[[#This Row],[期初餘額]],還款排程[[#This Row],[期初餘額]]-還款排程[[#This Row],[本金]],0),"") ->  | K190: =IF(還款排程[[#This Row],[還款編號]]<>"",SUM(INDEX(還款排程[利息],1,1):還款排程[[#This Row],[利息]]),"") -> 
B191: =IF(貸款良好,IF(ROW()-ROW(還款排程[[#Headers],[還款編號]])>已排程的還款次數,"",ROW()-ROW(還款排程[[#Headers],[還款編號]])),"") ->  | C191: =IF(還款排程[[#This Row],[還款編號]]<>"",EOMONTH(貸款開始日期,ROW(還款排程[[#This Row],[還款編號]])-ROW(還款排程[[#Headers],[還款編號]])-2)+DAY(貸款開始日期),"") ->  | D191: =IF(還款排程[[#This Row],[還款編號]]<>"",IF(ROW()-ROW(還款排程[[#Headers],[期初餘額]])=1,貸款金額,INDEX(還款排程[結餘],ROW()-ROW(還款排程[[#Headers],[期初餘額]])-1)),"") ->  | E191: =IF(還款排程[[#This Row],[還款編號]]<>"",已排程的還款,"") ->  | F191: =IF(還款排程[[#This Row],[還款編號]]<>"",IF(還款排程[[#This Row],[已排程還款]]+額外還款<還款排程[[#This Row],[期初餘額]],額外還款,IF(還款排程[[#This Row],[期初餘額]]-還款排程[[#This Row],[已排程還款]]>0,還款排程[[#This Row],[期初餘額]]-還款排程[[#This Row],[已排程還款]],0)),"") ->  | G191: =IF(還款排程[[#This Row],[還款編號]]<>"",IF(還款排程[[#This Row],[已排程還款]]+還款排程[[#This Row],[額外還款]]<=還款排程[[#This Row],[期初餘額]],還款排程[[#This Row],[已排程還款]]+還款排程[[#This Row],[額外還款]],還款排程[[#This Row],[期初餘額]]),"") ->  | H191: =IF(還款排程[[#This Row],[還款編號]]<>"",還款排程[[#This Row],[還款總金額]]-還款排程[[#This Row],[利息]],"") ->  | I191: =IF(還款排程[[#This Row],[還款編號]]<>"",還款排程[[#This Row],[期初餘額]]*(利率/每年還款次數),"") ->  | J191: =IF(還款排程[[#This Row],[還款編號]]<>"",IF(還款排程[[#This Row],[已排程還款]]+還款排程[[#This Row],[額外還款]]<=還款排程[[#This Row],[期初餘額]],還款排程[[#This Row],[期初餘額]]-還款排程[[#This Row],[本金]],0),"") ->  | K191: =IF(還款排程[[#This Row],[還款編號]]<>"",SUM(INDEX(還款排程[利息],1,1):還款排程[[#This Row],[利息]]),"") -> 
B192: =IF(貸款良好,IF(ROW()-ROW(還款排程[[#Headers],[還款編號]])>已排程的還款次數,"",ROW()-ROW(還款排程[[#Headers],[還款編號]])),"") ->  | C192: =IF(還款排程[[#This Row],[還款編號]]<>"",EOMONTH(貸款開始日期,ROW(還款排程[[#This Row],[還款編號]])-ROW(還款排程[[#Headers],[還款編號]])-2)+DAY(貸款開始日期),"") ->  | D192: =IF(還款排程[[#This Row],[還款編號]]<>"",IF(ROW()-ROW(還款排程[[#Headers],[期初餘額]])=1,貸款金額,INDEX(還款排程[結餘],ROW()-ROW(還款排程[[#Headers],[期初餘額]])-1)),"") ->  | E192: =IF(還款排程[[#This Row],[還款編號]]<>"",已排程的還款,"") ->  | F192: =IF(還款排程[[#This Row],[還款編號]]<>"",IF(還款排程[[#This Row],[已排程還款]]+額外還款<還款排程[[#This Row],[期初餘額]],額外還款,IF(還款排程[[#This Row],[期初餘額]]-還款排程[[#This Row],[已排程還款]]>0,還款排程[[#This Row],[期初餘額]]-還款排程[[#This Row],[已排程還款]],0)),"") ->  | G192: =IF(還款排程[[#This Row],[還款編號]]<>"",IF(還款排程[[#This Row],[已排程還款]]+還款排程[[#This Row],[額外還款]]<=還款排程[[#This Row],[期初餘額]],還款排程[[#This Row],[已排程還款]]+還款排程[[#This Row],[額外還款]],還款排程[[#This Row],[期初餘額]]),"") ->  | H192: =IF(還款排程[[#This Row],[還款編號]]<>"",還款排程[[#This Row],[還款總金額]]-還款排程[[#This Row],[利息]],"") ->  | I192: =IF(還款排程[[#This Row],[還款編號]]<>"",還款排程[[#This Row],[期初餘額]]*(利率/每年還款次數),"") ->  | J192: =IF(還款排程[[#This Row],[還款編號]]<>"",IF(還款排程[[#This Row],[已排程還款]]+還款排程[[#This Row],[額外還款]]<=還款排程[[#This Row],[期初餘額]],還款排程[[#This Row],[期初餘額]]-還款排程[[#This Row],[本金]],0),"") ->  | K192: =IF(還款排程[[#This Row],[還款編號]]<>"",SUM(INDEX(還款排程[利息],1,1):還款排程[[#This Row],[利息]]),"") -> 
B193: =IF(貸款良好,IF(ROW()-ROW(還款排程[[#Headers],[還款編號]])>已排程的還款次數,"",ROW()-ROW(還款排程[[#Headers],[還款編號]])),"") ->  | C193: =IF(還款排程[[#This Row],[還款編號]]<>"",EOMONTH(貸款開始日期,ROW(還款排程[[#This Row],[還款編號]])-ROW(還款排程[[#Headers],[還款編號]])-2)+DAY(貸款開始日期),"") ->  | D193: =IF(還款排程[[#This Row],[還款編號]]<>"",IF(ROW()-ROW(還款排程[[#Headers],[期初餘額]])=1,貸款金額,INDEX(還款排程[結餘],ROW()-ROW(還款排程[[#Headers],[期初餘額]])-1)),"") ->  | E193: =IF(還款排程[[#This Row],[還款編號]]<>"",已排程的還款,"") ->  | F193: =IF(還款排程[[#This Row],[還款編號]]<>"",IF(還款排程[[#This Row],[已排程還款]]+額外還款<還款排程[[#This Row],[期初餘額]],額外還款,IF(還款排程[[#This Row],[期初餘額]]-還款排程[[#This Row],[已排程還款]]>0,還款排程[[#This Row],[期初餘額]]-還款排程[[#This Row],[已排程還款]],0)),"") ->  | G193: =IF(還款排程[[#This Row],[還款編號]]<>"",IF(還款排程[[#This Row],[已排程還款]]+還款排程[[#This Row],[額外還款]]<=還款排程[[#This Row],[期初餘額]],還款排程[[#This Row],[已排程還款]]+還款排程[[#This Row],[額外還款]],還款排程[[#This Row],[期初餘額]]),"") ->  | H193: =IF(還款排程[[#This Row],[還款編號]]<>"",還款排程[[#This Row],[還款總金額]]-還款排程[[#This Row],[利息]],"") ->  | I193: =IF(還款排程[[#This Row],[還款編號]]<>"",還款排程[[#This Row],[期初餘額]]*(利率/每年還款次數),"") ->  | J193: =IF(還款排程[[#This Row],[還款編號]]<>"",IF(還款排程[[#This Row],[已排程還款]]+還款排程[[#This Row],[額外還款]]<=還款排程[[#This Row],[期初餘額]],還款排程[[#This Row],[期初餘額]]-還款排程[[#This Row],[本金]],0),"") ->  | K193: =IF(還款排程[[#This Row],[還款編號]]<>"",SUM(INDEX(還款排程[利息],1,1):還款排程[[#This Row],[利息]]),"") -> 
B194: =IF(貸款良好,IF(ROW()-ROW(還款排程[[#Headers],[還款編號]])>已排程的還款次數,"",ROW()-ROW(還款排程[[#Headers],[還款編號]])),"") ->  | C194: =IF(還款排程[[#This Row],[還款編號]]<>"",EOMONTH(貸款開始日期,ROW(還款排程[[#This Row],[還款編號]])-ROW(還款排程[[#Headers],[還款編號]])-2)+DAY(貸款開始日期),"") ->  | D194: =IF(還款排程[[#This Row],[還款編號]]<>"",IF(ROW()-ROW(還款排程[[#Headers],[期初餘額]])=1,貸款金額,INDEX(還款排程[結餘],ROW()-ROW(還款排程[[#Headers],[期初餘額]])-1)),"") ->  | E194: =IF(還款排程[[#This Row],[還款編號]]<>"",已排程的還款,"") ->  | F194: =IF(還款排程[[#This Row],[還款編號]]<>"",IF(還款排程[[#This Row],[已排程還款]]+額外還款<還款排程[[#This Row],[期初餘額]],額外還款,IF(還款排程[[#This Row],[期初餘額]]-還款排程[[#This Row],[已排程還款]]>0,還款排程[[#This Row],[期初餘額]]-還款排程[[#This Row],[已排程還款]],0)),"") ->  | G194: =IF(還款排程[[#This Row],[還款編號]]<>"",IF(還款排程[[#This Row],[已排程還款]]+還款排程[[#This Row],[額外還款]]<=還款排程[[#This Row],[期初餘額]],還款排程[[#This Row],[已排程還款]]+還款排程[[#This Row],[額外還款]],還款排程[[#This Row],[期初餘額]]),"") ->  | H194: =IF(還款排程[[#This Row],[還款編號]]<>"",還款排程[[#This Row],[還款總金額]]-還款排程[[#This Row],[利息]],"") ->  | I194: =IF(還款排程[[#This Row],[還款編號]]<>"",還款排程[[#This Row],[期初餘額]]*(利率/每年還款次數),"") ->  | J194: =IF(還款排程[[#This Row],[還款編號]]<>"",IF(還款排程[[#This Row],[已排程還款]]+還款排程[[#This Row],[額外還款]]<=還款排程[[#This Row],[期初餘額]],還款排程[[#This Row],[期初餘額]]-還款排程[[#This Row],[本金]],0),"") ->  | K194: =IF(還款排程[[#This Row],[還款編號]]<>"",SUM(INDEX(還款排程[利息],1,1):還款排程[[#This Row],[利息]]),"") -> 
B195: =IF(貸款良好,IF(ROW()-ROW(還款排程[[#Headers],[還款編號]])>已排程的還款次數,"",ROW()-ROW(還款排程[[#Headers],[還款編號]])),"") ->  | C195: =IF(還款排程[[#This Row],[還款編號]]<>"",EOMONTH(貸款開始日期,ROW(還款排程[[#This Row],[還款編號]])-ROW(還款排程[[#Headers],[還款編號]])-2)+DAY(貸款開始日期),"") ->  | D195: =IF(還款排程[[#This Row],[還款編號]]<>"",IF(ROW()-ROW(還款排程[[#Headers],[期初餘額]])=1,貸款金額,INDEX(還款排程[結餘],ROW()-ROW(還款排程[[#Headers],[期初餘額]])-1)),"") ->  | E195: =IF(還款排程[[#This Row],[還款編號]]<>"",已排程的還款,"") ->  | F195: =IF(還款排程[[#This Row],[還款編號]]<>"",IF(還款排程[[#This Row],[已排程還款]]+額外還款<還款排程[[#This Row],[期初餘額]],額外還款,IF(還款排程[[#This Row],[期初餘額]]-還款排程[[#This Row],[已排程還款]]>0,還款排程[[#This Row],[期初餘額]]-還款排程[[#This Row],[已排程還款]],0)),"") ->  | G195: =IF(還款排程[[#This Row],[還款編號]]<>"",IF(還款排程[[#This Row],[已排程還款]]+還款排程[[#This Row],[額外還款]]<=還款排程[[#This Row],[期初餘額]],還款排程[[#This Row],[已排程還款]]+還款排程[[#This Row],[額外還款]],還款排程[[#This Row],[期初餘額]]),"") ->  | H195: =IF(還款排程[[#This Row],[還款編號]]<>"",還款排程[[#This Row],[還款總金額]]-還款排程[[#This Row],[利息]],"") ->  | I195: =IF(還款排程[[#This Row],[還款編號]]<>"",還款排程[[#This Row],[期初餘額]]*(利率/每年還款次數),"") ->  | J195: =IF(還款排程[[#This Row],[還款編號]]<>"",IF(還款排程[[#This Row],[已排程還款]]+還款排程[[#This Row],[額外還款]]<=還款排程[[#This Row],[期初餘額]],還款排程[[#This Row],[期初餘額]]-還款排程[[#This Row],[本金]],0),"") ->  | K195: =IF(還款排程[[#This Row],[還款編號]]<>"",SUM(INDEX(還款排程[利息],1,1):還款排程[[#This Row],[利息]]),"") -> 
B196: =IF(貸款良好,IF(ROW()-ROW(還款排程[[#Headers],[還款編號]])>已排程的還款次數,"",ROW()-ROW(還款排程[[#Headers],[還款編號]])),"") ->  | C196: =IF(還款排程[[#This Row],[還款編號]]<>"",EOMONTH(貸款開始日期,ROW(還款排程[[#This Row],[還款編號]])-ROW(還款排程[[#Headers],[還款編號]])-2)+DAY(貸款開始日期),"") ->  | D196: =IF(還款排程[[#This Row],[還款編號]]<>"",IF(ROW()-ROW(還款排程[[#Headers],[期初餘額]])=1,貸款金額,INDEX(還款排程[結餘],ROW()-ROW(還款排程[[#Headers],[期初餘額]])-1)),"") ->  | E196: =IF(還款排程[[#This Row],[還款編號]]<>"",已排程的還款,"") ->  | F196: =IF(還款排程[[#This Row],[還款編號]]<>"",IF(還款排程[[#This Row],[已排程還款]]+額外還款<還款排程[[#This Row],[期初餘額]],額外還款,IF(還款排程[[#This Row],[期初餘額]]-還款排程[[#This Row],[已排程還款]]>0,還款排程[[#This Row],[期初餘額]]-還款排程[[#This Row],[已排程還款]],0)),"") ->  | G196: =IF(還款排程[[#This Row],[還款編號]]<>"",IF(還款排程[[#This Row],[已排程還款]]+還款排程[[#This Row],[額外還款]]<=還款排程[[#This Row],[期初餘額]],還款排程[[#This Row],[已排程還款]]+還款排程[[#This Row],[額外還款]],還款排程[[#This Row],[期初餘額]]),"") ->  | H196: =IF(還款排程[[#This Row],[還款編號]]<>"",還款排程[[#This Row],[還款總金額]]-還款排程[[#This Row],[利息]],"") ->  | I196: =IF(還款排程[[#This Row],[還款編號]]<>"",還款排程[[#This Row],[期初餘額]]*(利率/每年還款次數),"") ->  | J196: =IF(還款排程[[#This Row],[還款編號]]<>"",IF(還款排程[[#This Row],[已排程還款]]+還款排程[[#This Row],[額外還款]]<=還款排程[[#This Row],[期初餘額]],還款排程[[#This Row],[期初餘額]]-還款排程[[#This Row],[本金]],0),"") ->  | K196: =IF(還款排程[[#This Row],[還款編號]]<>"",SUM(INDEX(還款排程[利息],1,1):還款排程[[#This Row],[利息]]),"") -> 
B197: =IF(貸款良好,IF(ROW()-ROW(還款排程[[#Headers],[還款編號]])>已排程的還款次數,"",ROW()-ROW(還款排程[[#Headers],[還款編號]])),"") ->  | C197: =IF(還款排程[[#This Row],[還款編號]]<>"",EOMONTH(貸款開始日期,ROW(還款排程[[#This Row],[還款編號]])-ROW(還款排程[[#Headers],[還款編號]])-2)+DAY(貸款開始日期),"") ->  | D197: =IF(還款排程[[#This Row],[還款編號]]<>"",IF(ROW()-ROW(還款排程[[#Headers],[期初餘額]])=1,貸款金額,INDEX(還款排程[結餘],ROW()-ROW(還款排程[[#Headers],[期初餘額]])-1)),"") ->  | E197: =IF(還款排程[[#This Row],[還款編號]]<>"",已排程的還款,"") ->  | F197: =IF(還款排程[[#This Row],[還款編號]]<>"",IF(還款排程[[#This Row],[已排程還款]]+額外還款<還款排程[[#This Row],[期初餘額]],額外還款,IF(還款排程[[#This Row],[期初餘額]]-還款排程[[#This Row],[已排程還款]]>0,還款排程[[#This Row],[期初餘額]]-還款排程[[#This Row],[已排程還款]],0)),"") ->  | G197: =IF(還款排程[[#This Row],[還款編號]]<>"",IF(還款排程[[#This Row],[已排程還款]]+還款排程[[#This Row],[額外還款]]<=還款排程[[#This Row],[期初餘額]],還款排程[[#This Row],[已排程還款]]+還款排程[[#This Row],[額外還款]],還款排程[[#This Row],[期初餘額]]),"") ->  | H197: =IF(還款排程[[#This Row],[還款編號]]<>"",還款排程[[#This Row],[還款總金額]]-還款排程[[#This Row],[利息]],"") ->  | I197: =IF(還款排程[[#This Row],[還款編號]]<>"",還款排程[[#This Row],[期初餘額]]*(利率/每年還款次數),"") ->  | J197: =IF(還款排程[[#This Row],[還款編號]]<>"",IF(還款排程[[#This Row],[已排程還款]]+還款排程[[#This Row],[額外還款]]<=還款排程[[#This Row],[期初餘額]],還款排程[[#This Row],[期初餘額]]-還款排程[[#This Row],[本金]],0),"") ->  | K197: =IF(還款排程[[#This Row],[還款編號]]<>"",SUM(INDEX(還款排程[利息],1,1):還款排程[[#This Row],[利息]]),"") -> 
B198: =IF(貸款良好,IF(ROW()-ROW(還款排程[[#Headers],[還款編號]])>已排程的還款次數,"",ROW()-ROW(還款排程[[#Headers],[還款編號]])),"") ->  | C198: =IF(還款排程[[#This Row],[還款編號]]<>"",EOMONTH(貸款開始日期,ROW(還款排程[[#This Row],[還款編號]])-ROW(還款排程[[#Headers],[還款編號]])-2)+DAY(貸款開始日期),"") ->  | D198: =IF(還款排程[[#This Row],[還款編號]]<>"",IF(ROW()-ROW(還款排程[[#Headers],[期初餘額]])=1,貸款金額,INDEX(還款排程[結餘],ROW()-ROW(還款排程[[#Headers],[期初餘額]])-1)),"") ->  | E198: =IF(還款排程[[#This Row],[還款編號]]<>"",已排程的還款,"") ->  | F198: =IF(還款排程[[#This Row],[還款編號]]<>"",IF(還款排程[[#This Row],[已排程還款]]+額外還款<還款排程[[#This Row],[期初餘額]],額外還款,IF(還款排程[[#This Row],[期初餘額]]-還款排程[[#This Row],[已排程還款]]>0,還款排程[[#This Row],[期初餘額]]-還款排程[[#This Row],[已排程還款]],0)),"") ->  | G198: =IF(還款排程[[#This Row],[還款編號]]<>"",IF(還款排程[[#This Row],[已排程還款]]+還款排程[[#This Row],[額外還款]]<=還款排程[[#This Row],[期初餘額]],還款排程[[#This Row],[已排程還款]]+還款排程[[#This Row],[額外還款]],還款排程[[#This Row],[期初餘額]]),"") ->  | H198: =IF(還款排程[[#This Row],[還款編號]]<>"",還款排程[[#This Row],[還款總金額]]-還款排程[[#This Row],[利息]],"") ->  | I198: =IF(還款排程[[#This Row],[還款編號]]<>"",還款排程[[#This Row],[期初餘額]]*(利率/每年還款次數),"") ->  | J198: =IF(還款排程[[#This Row],[還款編號]]<>"",IF(還款排程[[#This Row],[已排程還款]]+還款排程[[#This Row],[額外還款]]<=還款排程[[#This Row],[期初餘額]],還款排程[[#This Row],[期初餘額]]-還款排程[[#This Row],[本金]],0),"") ->  | K198: =IF(還款排程[[#This Row],[還款編號]]<>"",SUM(INDEX(還款排程[利息],1,1):還款排程[[#This Row],[利息]]),"") -> 
B199: =IF(貸款良好,IF(ROW()-ROW(還款排程[[#Headers],[還款編號]])>已排程的還款次數,"",ROW()-ROW(還款排程[[#Headers],[還款編號]])),"") ->  | C199: =IF(還款排程[[#This Row],[還款編號]]<>"",EOMONTH(貸款開始日期,ROW(還款排程[[#This Row],[還款編號]])-ROW(還款排程[[#Headers],[還款編號]])-2)+DAY(貸款開始日期),"") ->  | D199: =IF(還款排程[[#This Row],[還款編號]]<>"",IF(ROW()-ROW(還款排程[[#Headers],[期初餘額]])=1,貸款金額,INDEX(還款排程[結餘],ROW()-ROW(還款排程[[#Headers],[期初餘額]])-1)),"") ->  | E199: =IF(還款排程[[#This Row],[還款編號]]<>"",已排程的還款,"") ->  | F199: =IF(還款排程[[#This Row],[還款編號]]<>"",IF(還款排程[[#This Row],[已排程還款]]+額外還款<還款排程[[#This Row],[期初餘額]],額外還款,IF(還款排程[[#This Row],[期初餘額]]-還款排程[[#This Row],[已排程還款]]>0,還款排程[[#This Row],[期初餘額]]-還款排程[[#This Row],[已排程還款]],0)),"") ->  | G199: =IF(還款排程[[#This Row],[還款編號]]<>"",IF(還款排程[[#This Row],[已排程還款]]+還款排程[[#This Row],[額外還款]]<=還款排程[[#This Row],[期初餘額]],還款排程[[#This Row],[已排程還款]]+還款排程[[#This Row],[額外還款]],還款排程[[#This Row],[期初餘額]]),"") ->  | H199: =IF(還款排程[[#This Row],[還款編號]]<>"",還款排程[[#This Row],[還款總金額]]-還款排程[[#This Row],[利息]],"") ->  | I199: =IF(還款排程[[#This Row],[還款編號]]<>"",還款排程[[#This Row],[期初餘額]]*(利率/每年還款次數),"") ->  | J199: =IF(還款排程[[#This Row],[還款編號]]<>"",IF(還款排程[[#This Row],[已排程還款]]+還款排程[[#This Row],[額外還款]]<=還款排程[[#This Row],[期初餘額]],還款排程[[#This Row],[期初餘額]]-還款排程[[#This Row],[本金]],0),"") ->  | K199: =IF(還款排程[[#This Row],[還款編號]]<>"",SUM(INDEX(還款排程[利息],1,1):還款排程[[#This Row],[利息]]),"") -> 
B200: =IF(貸款良好,IF(ROW()-ROW(還款排程[[#Headers],[還款編號]])>已排程的還款次數,"",ROW()-ROW(還款排程[[#Headers],[還款編號]])),"") ->  | C200: =IF(還款排程[[#This Row],[還款編號]]<>"",EOMONTH(貸款開始日期,ROW(還款排程[[#This Row],[還款編號]])-ROW(還款排程[[#Headers],[還款編號]])-2)+DAY(貸款開始日期),"") ->  | D200: =IF(還款排程[[#This Row],[還款編號]]<>"",IF(ROW()-ROW(還款排程[[#Headers],[期初餘額]])=1,貸款金額,INDEX(還款排程[結餘],ROW()-ROW(還款排程[[#Headers],[期初餘額]])-1)),"") ->  | E200: =IF(還款排程[[#This Row],[還款編號]]<>"",已排程的還款,"") ->  | F200: =IF(還款排程[[#This Row],[還款編號]]<>"",IF(還款排程[[#This Row],[已排程還款]]+額外還款<還款排程[[#This Row],[期初餘額]],額外還款,IF(還款排程[[#This Row],[期初餘額]]-還款排程[[#This Row],[已排程還款]]>0,還款排程[[#This Row],[期初餘額]]-還款排程[[#This Row],[已排程還款]],0)),"") ->  | G200: =IF(還款排程[[#This Row],[還款編號]]<>"",IF(還款排程[[#This Row],[已排程還款]]+還款排程[[#This Row],[額外還款]]<=還款排程[[#This Row],[期初餘額]],還款排程[[#This Row],[已排程還款]]+還款排程[[#This Row],[額外還款]],還款排程[[#This Row],[期初餘額]]),"") ->  | H200: =IF(還款排程[[#This Row],[還款編號]]<>"",還款排程[[#This Row],[還款總金額]]-還款排程[[#This Row],[利息]],"") ->  | I200: =IF(還款排程[[#This Row],[還款編號]]<>"",還款排程[[#This Row],[期初餘額]]*(利率/每年還款次數),"") ->  | J200: =IF(還款排程[[#This Row],[還款編號]]<>"",IF(還款排程[[#This Row],[已排程還款]]+還款排程[[#This Row],[額外還款]]<=還款排程[[#This Row],[期初餘額]],還款排程[[#This Row],[期初餘額]]-還款排程[[#This Row],[本金]],0),"") ->  | K200: =IF(還款排程[[#This Row],[還款編號]]<>"",SUM(INDEX(還款排程[利息],1,1):還款排程[[#This Row],[利息]]),"") -> 
B201: =IF(貸款良好,IF(ROW()-ROW(還款排程[[#Headers],[還款編號]])>已排程的還款次數,"",ROW()-ROW(還款排程[[#Headers],[還款編號]])),"") ->  | C201: =IF(還款排程[[#This Row],[還款編號]]<>"",EOMONTH(貸款開始日期,ROW(還款排程[[#This Row],[還款編號]])-ROW(還款排程[[#Headers],[還款編號]])-2)+DAY(貸款開始日期),"") ->  | D201: =IF(還款排程[[#This Row],[還款編號]]<>"",IF(ROW()-ROW(還款排程[[#Headers],[期初餘額]])=1,貸款金額,INDEX(還款排程[結餘],ROW()-ROW(還款排程[[#Headers],[期初餘額]])-1)),"") ->  | E201: =IF(還款排程[[#This Row],[還款編號]]<>"",已排程的還款,"") ->  | F201: =IF(還款排程[[#This Row],[還款編號]]<>"",IF(還款排程[[#This Row],[已排程還款]]+額外還款<還款排程[[#This Row],[期初餘額]],額外還款,IF(還款排程[[#This Row],[期初餘額]]-還款排程[[#This Row],[已排程還款]]>0,還款排程[[#This Row],[期初餘額]]-還款排程[[#This Row],[已排程還款]],0)),"") ->  | G201: =IF(還款排程[[#This Row],[還款編號]]<>"",IF(還款排程[[#This Row],[已排程還款]]+還款排程[[#This Row],[額外還款]]<=還款排程[[#This Row],[期初餘額]],還款排程[[#This Row],[已排程還款]]+還款排程[[#This Row],[額外還款]],還款排程[[#This Row],[期初餘額]]),"") ->  | H201: =IF(還款排程[[#This Row],[還款編號]]<>"",還款排程[[#This Row],[還款總金額]]-還款排程[[#This Row],[利息]],"") ->  | I201: =IF(還款排程[[#This Row],[還款編號]]<>"",還款排程[[#This Row],[期初餘額]]*(利率/每年還款次數),"") ->  | J201: =IF(還款排程[[#This Row],[還款編號]]<>"",IF(還款排程[[#This Row],[已排程還款]]+還款排程[[#This Row],[額外還款]]<=還款排程[[#This Row],[期初餘額]],還款排程[[#This Row],[期初餘額]]-還款排程[[#This Row],[本金]],0),"") ->  | K201: =IF(還款排程[[#This Row],[還款編號]]<>"",SUM(INDEX(還款排程[利息],1,1):還款排程[[#This Row],[利息]]),"") -> 
B202: =IF(貸款良好,IF(ROW()-ROW(還款排程[[#Headers],[還款編號]])>已排程的還款次數,"",ROW()-ROW(還款排程[[#Headers],[還款編號]])),"") ->  | C202: =IF(還款排程[[#This Row],[還款編號]]<>"",EOMONTH(貸款開始日期,ROW(還款排程[[#This Row],[還款編號]])-ROW(還款排程[[#Headers],[還款編號]])-2)+DAY(貸款開始日期),"") ->  | D202: =IF(還款排程[[#This Row],[還款編號]]<>"",IF(ROW()-ROW(還款排程[[#Headers],[期初餘額]])=1,貸款金額,INDEX(還款排程[結餘],ROW()-ROW(還款排程[[#Headers],[期初餘額]])-1)),"") ->  | E202: =IF(還款排程[[#This Row],[還款編號]]<>"",已排程的還款,"") ->  | F202: =IF(還款排程[[#This Row],[還款編號]]<>"",IF(還款排程[[#This Row],[已排程還款]]+額外還款<還款排程[[#This Row],[期初餘額]],額外還款,IF(還款排程[[#This Row],[期初餘額]]-還款排程[[#This Row],[已排程還款]]>0,還款排程[[#This Row],[期初餘額]]-還款排程[[#This Row],[已排程還款]],0)),"") ->  | G202: =IF(還款排程[[#This Row],[還款編號]]<>"",IF(還款排程[[#This Row],[已排程還款]]+還款排程[[#This Row],[額外還款]]<=還款排程[[#This Row],[期初餘額]],還款排程[[#This Row],[已排程還款]]+還款排程[[#This Row],[額外還款]],還款排程[[#This Row],[期初餘額]]),"") ->  | H202: =IF(還款排程[[#This Row],[還款編號]]<>"",還款排程[[#This Row],[還款總金額]]-還款排程[[#This Row],[利息]],"") ->  | I202: =IF(還款排程[[#This Row],[還款編號]]<>"",還款排程[[#This Row],[期初餘額]]*(利率/每年還款次數),"") ->  | J202: =IF(還款排程[[#This Row],[還款編號]]<>"",IF(還款排程[[#This Row],[已排程還款]]+還款排程[[#This Row],[額外還款]]<=還款排程[[#This Row],[期初餘額]],還款排程[[#This Row],[期初餘額]]-還款排程[[#This Row],[本金]],0),"") ->  | K202: =IF(還款排程[[#This Row],[還款編號]]<>"",SUM(INDEX(還款排程[利息],1,1):還款排程[[#This Row],[利息]]),"") -> 
... 169 more rows
